Workbook

Sheet Model
X1: =MAX($W1:W1)+1 -> 1 | Y1: =MAX($W1:X1)+1 -> 2 | Z1: =MAX($W1:Y1)+1 -> 3 | AA1: =MAX($W1:Z1)+1 -> 4 | AB1: =MAX($W1:AA1)+1 -> 5 | AC1: =MAX($W1:AB1)+1 -> 6 | AD1: =MAX($W1:AC1)+1 -> 7 | AE1: =MAX($W1:AD1)+1 -> 8 | AF1: =MAX($W1:AE1)+1 -> 9 | AG1: =MAX($W1:AF1)+1 -> 10 | AH1: =MAX($W1:AG1)+1 -> 11 | AI1: =MAX($W1:AH1)+1 -> 12 | AJ1: =MAX($W1:AI1)+1 -> 13 | AK1: =MAX($W1:AJ1)+1 -> 14 | AL1: =MAX($W1:AK1)+1 -> 15 | AM1: =MAX($W1:AL1)+1 -> 16 | AN1: =MAX($W1:AM1)+1 -> 17 | AO1: =MAX($W1:AN1)+1 -> 18 | AP1: =MAX($W1:AO1)+1 -> 19 | AQ1: =MAX($W1:AP1)+1 -> 20 | AR1: =MAX($W1:AQ1)+1 -> 21 | AS1: =MAX($W1:AR1)+1 -> 22 | AT1: =MAX($W1:AS1)+1 -> 23 | AU1: =MAX($W1:AT1)+1 -> 24 | AV1: =MAX($W1:AU1)+1 -> 25 | AW1: =MAX($W1:AV1)+1 -> 26 | AX1: =MAX($W1:AW1)+1 -> 27 | AY1: =MAX($W1:AX1)+1 -> 28 | AZ1: =MAX($W1:AY1)+1 -> 29 | BA1: =MAX($W1:AZ1)+1 -> 30 | BB1: =MAX($W1:BA1)+1 -> 31 | BC1: =MAX($W1:BB1)+1 -> 32 | BD1: =MAX($W1:BC1)+1 -> 33 | BE1: =MAX($W1:BD1)+1 -> 34 | BF1: =MAX($W1:BE1)+1 -> 35 | BG1: =MAX($W1:BF1)+1 -> 36 | BH1: =MAX($W1:BG1)+1 -> 37 | BI1: =MAX($W1:BH1)+1 -> 38 | BJ1: =MAX($W1:BI1)+1 -> 39 | BK1: =MAX($W1:BJ1)+1 -> 40 | BL1: =MAX($W1:BK1)+1 -> 41 | BM1: =MAX($W1:BL1)+1 -> 42 | BN1: =MAX($W1:BM1)+1 -> 43 | BO1: =MAX($W1:BN1)+1 -> 44 | BP1: =MAX($W1:BO1)+1 -> 45 | BQ1: =MAX($W1:BP1)+1 -> 46 | BR1: =MAX($W1:BQ1)+1 -> 47 | BS1: =MAX($W1:BR1)+1 -> 48 | BT1: =MAX($W1:BS1)+1 -> 49 | BU1: =MAX($W1:BT1)+1 -> 50 | BV1: =MAX($W1:BU1)+1 -> 51 | BW1: =MAX($W1:BV1)+1 -> 52 | BX1: =MAX($W1:BW1)+1 -> 53 | BY1: =MAX($W1:BX1)+1 -> 54 | BZ1: =MAX($W1:BY1)+1 -> 55 | CA1: =MAX($W1:BZ1)+1 -> 56 | CB1: =MAX($W1:CA1)+1 -> 57 | CC1: =MAX($W1:CB1)+1 -> 58 | CD1: =MAX($W1:CC1)+1 -> 59 | CE1: =MAX($W1:CD1)+1 -> 60 | CF1: =MAX($W1:CE1)+1 -> 61 | CG1: =MAX($W1:CF1)+1 -> 62 | CH1: =MAX($W1:CG1)+1 -> 63 | CI1: =MAX($W1:CH1)+1 -> 64 | CJ1: =MAX($W1:CI1)+1 -> 65 | CK1: =MAX($W1:CJ1)+1 -> 66 | CL1: =MAX($W1:CK1)+1 -> 67 | CM1: =MAX($W1:CL1)+1 -> 68 | CN1: =MAX($W1:CM1)+1 -> 69 | CO1: =MAX($W1:CN1)+1 -> 70 | CP1: =MAX($W1:CO1)+1 -> 71 | CQ1: =MAX($W1:CP1)+1 -> 72 | CR1: =MAX($W1:CQ1)+1 -> 73 | CS1: =MAX($W1:CR1)+1 -> 74 | CT1: =MAX($W1:CS1)+1 -> 75 | CU1: =MAX($W1:CT1)+1 -> 76 | CV1: =MAX($W1:CU1)+1 -> 77 | CW1: =MAX($W1:CV1)+1 -> 78 | CX1: =MAX($W1:CW1)+1 -> 79 | CY1: =MAX($W1:CX1)+1 -> 80 | CZ1: =MAX($W1:CY1)+1 -> 81 | DA1: =MAX($W1:CZ1)+1 -> 82 | DB1: =MAX($W1:DA1)+1 -> 83 | DC1: =MAX($W1:DB1)+1 -> 84 | DD1: =MAX($W1:DC1)+1 -> 85 | DE1: =MAX($W1:DD1)+1 -> 86 | DF1: =MAX($W1:DE1)+1 -> 87 | DG1: =MAX($W1:DF1)+1 -> 88 | DH1: =MAX($W1:DG1)+1 -> 89 | DI1: =MAX($W1:DH1)+1 -> 90 | DJ1: =MAX($W1:DI1)+1 -> 91 | DK1: =MAX($W1:DJ1)+1 -> 92 | DL1: =MAX($W1:DK1)+1 -> 93 | DM1: =MAX($W1:DL1)+1 -> 94 | DN1: =MAX($W1:DM1)+1 -> 95 | DO1: =MAX($W1:DN1)+1 -> 96 | DP1: =MAX($W1:DO1)+1 -> 97 | DQ1: =MAX($W1:DP1)+1 -> 98 | DR1: =MAX($W1:DQ1)+1 -> 99 | DS1: =MAX($W1:DR1)+1 -> 100 | DT1: =MAX($W1:DS1)+1 -> 101 | DU1: =MAX($W1:DT1)+1 -> 102 | DV1: =MAX($W1:DU1)+1 -> 103 | DW1: =MAX($W1:DV1)+1 -> 104 | DX1: =MAX($W1:DW1)+1 -> 105 | DY1: =MAX($W1:DX1)+1 -> 106 | DZ1: =MAX($W1:DY1)+1 -> 107 | EA1: =MAX($W1:DZ1)+1 -> 108 | EB1: =MAX($W1:EA1)+1 -> 109 | EC1: =MAX($W1:EB1)+1 -> 110 | ED1: =MAX($W1:EC1)+1 -> 111 | EE1: =MAX($W1:ED1)+1 -> 112 | EF1: =MAX($W1:EE1)+1 -> 113 | EG1: =MAX($W1:EF1)+1 -> 114 | EH1: =MAX($W1:EG1)+1 -> 115 | EI1: =MAX($W1:EH1)+1 -> 116 | EJ1: =MAX($W1:EI1)+1 -> 117 | EK1: =MAX($W1:EJ1)+1 -> 118 | EL1: =MAX($W1:EK1)+1 -> 119 | EM1: =MAX($W1:EL1)+1 -> 120 | EN1: =MAX($W1:EM1)+1 -> 121 | EO1: =MAX($W1:EN1)+1 -> 122 | EP1: =MAX($W1:EO1)+1 -> 123 | EQ1: =MAX($W1:EP1)+1 -> 124 | ER1: =MAX($W1:EQ1)+1 -> 125 | ES1: =MAX($W1:ER1)+1 -> 126 | ET1: =MAX($W1:ES1)+1 -> 127 | EU1: =MAX($W1:ET1)+1 -> 128 | EV1: =MAX($W1:EU1)+1 -> 129 | EW1: =MAX($W1:EV1)+1 -> 130 | EX1: =MAX($W1:EW1)+1 -> 131 | EY1: =MAX($W1:EX1)+1 -> 132 | EZ1: =MAX($W1:EY1)+1 -> 133 | FA1: =MAX($W1:EZ1)+1 -> 134 | FB1: =MAX($W1:FA1)+1 -> 135 | FC1: =MAX($W1:FB1)+1 -> 136 | FD1: =MAX($W1:FC1)+1 -> 137 | FE1: =MAX($W1:FD1)+1 -> 138 | FF1: =MAX($W1:FE1)+1 -> 139 | FG1: =MAX($W1:FF1)+1 -> 140 | FH1: =MAX($W1:FG1)+1 -> 141 | FI1: =MAX($W1:FH1)+1 -> 142 | FJ1: =MAX($W1:FI1)+1 -> 143 | FK1: =MAX($W1:FJ1)+1 -> 144 | FL1: =MAX($W1:FK1)+1 -> 145 | FM1: =MAX($W1:FL1)+1 -> 146 | FN1: =MAX($W1:FM1)+1 -> 147 | FO1: =MAX($W1:FN1)+1 -> 148 | FP1: =MAX($W1:FO1)+1 -> 149 | FQ1: =MAX($W1:FP1)+1 -> 150 | FR1: =MAX($W1:FQ1)+1 -> 151 | FS1: =MAX($W1:FR1)+1 -> 152 | FT1: =MAX($W1:FS1)+1 -> 153 | FU1: =MAX($W1:FT1)+1 -> 154 | FV1: =MAX($W1:FU1)+1 -> 155 | FW1: =MAX($W1:FV1)+1 -> 156 | FX1: =MAX($W1:FW1)+1 -> 157 | FY1: =MAX($W1:FX1)+1 -> 158 | FZ1: =MAX($W1:FY1)+1 -> 159 | GA1: =MAX($W1:FZ1)+1 -> 160 | GB1: =MAX($W1:GA1)+1 -> 161 | GC1: =MAX($W1:GB1)+1 -> 162 | GD1: =MAX($W1:GC1)+1 -> 163 | GE1: =MAX($W1:GD1)+1 -> 164 | GF1: =MAX($W1:GE1)+1 -> 165 | GG1: =MAX($W1:GF1)+1 -> 166 | GH1: =MAX($W1:GG1)+1 -> 167 | GI1: =MAX($W1:GH1)+1 -> 168 | GJ1: =MAX($W1:GI1)+1 -> 169 | GK1: =MAX($W1:GJ1)+1 -> 170 | GL1: =MAX($W1:GK1)+1 -> 171 | GM1: =MAX($W1:GL1)+1 -> 172 | GN1: =MAX($W1:GM1)+1 -> 173 | GO1: =MAX($W1:GN1)+1 -> 174 | GP1: =MAX($W1:GO1)+1 -> 175 | GQ1: =MAX($W1:GP1)+1 -> 176 | GR1: =MAX($W1:GQ1)+1 -> 177 | GS1: =MAX($W1:GR1)+1 -> 178 | GT1: =MAX($W1:GS1)+1 -> 179 | GU1: =MAX($W1:GT1)+1 -> 180 | GV1: =MAX($W1:GU1)+1 -> 181
P2: =COLUMN() -> 16 | X2: =IF(X$4="",0,COLUMN()) -> 24 | Y2: =IF(Y$4="",0,COLUMN()) -> 25 | Z2: 26 | AA2: 27 | AB2: 28 | AC2: 29 | AD2: 30 | AE2: 31 | AF2: 32 | AG2: 33 | AH2: 34 | AI2: 35 | AJ2: 36 | AK2: 37 | AL2: 38 | AM2: 39 | AN2: 40 | AO2: 41 | AP2: 42 | AQ2: 43 | AR2: 44 | AS2: 45 | AT2: 46 | AU2: 47 | AV2: 48 | AW2: 49 | AX2: 50 | AY2: 51 | AZ2: 52 | BA2: 53 | BB2: 54 | BC2: 55 | BD2: 56 | BE2: 57 | BF2: 58 | BG2: 59 | BH2: 60 | BI2: 61 | BJ2: 62 | BK2: 63 | BL2: 64 | BM2: 65 | BN2: 66 | BO2: 67 | BP2: 68 | BQ2: 69 | BR2: 70 | BS2: 71 | BT2: 72 | BU2: 73 | BV2: 74 | BW2: 75 | BX2: 76 | BY2: 77 | BZ2: 78 | CA2: 79 | CB2: 80 | CC2: 81 | CD2: 82 | CE2: 83 | CF2: 84 | CG2: 85 | CH2: 86 | CI2: 87 | CJ2: 88 | CK2: =IF(CK$4="",0,COLUMN()) -> 89 | CL2: 90 | CM2: 91 | CN2: 92 | CO2: 93 | CP2: 94 | CQ2: 95 | CR2: 96 | CS2: 97 | CT2: 98 | CU2: 99 | CV2: 100 | CW2: 101 | CX2: 102 | CY2: 103 | CZ2: 104 | DA2: 105 | DB2: 106 | DC2: 107 | DD2: 108 | DE2: 109 | DF2: 110 | DG2: 111 | DH2: 112 | DI2: 113 | DJ2: 114 | DK2: 115 | DL2: 116 | DM2: 117 | DN2: 118 | DO2: 119 | DP2: 120 | DQ2: 121 | DR2: 122 | DS2: 123 | DT2: 124 | DU2: 125 | DV2: 126 | DW2: 127 | DX2: 128 | DY2: 129 | DZ2: 130 | EA2: 131 | EB2: 132 | EC2: 133 | ED2: 134 | EE2: 135 | EF2: 136 | EG2: 137 | EH2: 138 | EI2: 139 | EJ2: 140 | EK2: 141 | EL2: 142 | EM2: 143 | EN2: 0 | EO2: 0 | EP2: 0 | EQ2: 0 | ER2: 0 | ES2: 0 | ET2: 0 | EU2: 0 | EV2: 0 | EW2: =IF(EW$4="",0,COLUMN()) -> 0 | EX2: 0 | EY2: 0 | EZ2: 0 | FA2: 0 | FB2: 0 | FC2: 0 | FD2: 0 | FE2: 0 | FF2: 0 | FG2: 0 | FH2: 0 | FI2: 0 | FJ2: 0 | FK2: 0 | FL2: 0 | FM2: 0 | FN2: 0 | FO2: 0 | FP2: 0 | FQ2: 0 | FR2: 0 | FS2: 0 | FT2: 0 | FU2: 0 | FV2: 0 | FW2: 0 | FX2: 0 | FY2: 0 | FZ2: 0 | GA2: 0 | GB2: 0 | GC2: 0 | GD2: 0 | GE2: 0 | GF2: 0 | GG2: 0 | GH2: 0 | GI2: 0 | GJ2: 0 | GK2: 0 | GL2: 0 | GM2: 0 | GN2: 0 | GO2: 0 | GP2: 0 | GQ2: 0 | GR2: 0 | GS2: 0 | GT2: 0 | GU2: 0 | GV2: 0
X3: =IF(X$6="",0,((12*(YEAR(X$7)-1)+MONTH(X$7))-(12*(YEAR(X$6)-1)+MONTH(X$6))+1)) -> 1 | Y3: =IF(Y$6="",0,((12*(YEAR(Y$7)-1)+MONTH(Y$7))-(12*(YEAR(Y$6)-1)+MONTH(Y$6))+1)) -> 1 | Z3: 1 | AA3: 1 | AB3: 1 | AC3: 1 | AD3: 1 | AE3: 1 | AF3: 1 | AG3: 1 | AH3: 1 | AI3: 1 | AJ3: 1 | AK3: 1 | AL3: 1 | AM3: 1 | AN3: 1 | AO3: 1 | AP3: 1 | AQ3: 1 | AR3: 1 | AS3: 1 | AT3: 1 | AU3: 1 | AV3: 1 | AW3: 1 | AX3: 1 | AY3: 1 | AZ3: 1 | BA3: 1 | BB3: 1 | BC3: 1 | BD3: 1 | BE3: 1 | BF3: 1 | BG3: 1 | BH3: 1 | BI3: 1 | BJ3: 1 | BK3: 1 | BL3: 1 | BM3: 1 | BN3: 1 | BO3: 1 | BP3: 1 | BQ3: 1 | BR3: 1 | BS3: 1 | BT3: 1 | BU3: 1 | BV3: 1 | BW3: 1 | BX3: 1 | BY3: 1 | BZ3: 1 | CA3: 1 | CB3: 1 | CC3: 1 | CD3: 1 | CE3: 1 | CF3: 1 | CG3: 1 | CH3: 1 | CI3: 1 | CJ3: 1 | CK3: =IF(CK$6="",0,((12*(YEAR(CK$7)-1)+MONTH(CK$7))-(12*(YEAR(CK$6)-1)+MONTH(CK$6))+1)) -> 1 | CL3: 1 | CM3: 1 | CN3: 1 | CO3: 1 | CP3: 1 | CQ3: 1 | CR3: 1 | CS3: 1 | CT3: 1 | CU3: 1 | CV3: 1 | CW3: 1 | CX3: 1 | CY3: 1 | CZ3: 1 | DA3: 1 | DB3: 1 | DC3: 1 | DD3: 1 | DE3: 1 | DF3: 1 | DG3: 1 | DH3: 1 | DI3: 1 | DJ3: 1 | DK3: 1 | DL3: 1 | DM3: 1 | DN3: 1 | DO3: 1 | DP3: 1 | DQ3: 1 | DR3: 1 | DS3: 1 | DT3: 1 | DU3: 1 | DV3: 1 | DW3: 1 | DX3: 1 | DY3: 1 | DZ3: 1 | EA3: 1 | EB3: 1 | EC3: 1 | ED3: 1 | EE3: 1 | EF3: 1 | EG3: 1 | EH3: 1 | EI3: 1 | EJ3: 1 | EK3: 1 | EL3: 1 | EM3: 1 | EN3: 0 | EO3: 0 | EP3: 0 | EQ3: 0 | ER3: 0 | ES3: 0 | ET3: 0 | EU3: 0 | EV3: 0 | EW3: =IF(EW$6="",0,((12*(YEAR(EW$7)-1)+MONTH(EW$7))-(12*(YEAR(EW$6)-1)+MONTH(EW$6))+1)) -> 0 | EX3: 0 | EY3: 0 | EZ3: 0 | FA3: 0 | FB3: 0 | FC3: 0 | FD3: 0 | FE3: 0 | FF3: 0 | FG3: 0 | FH3: 0 | FI3: 0 | FJ3: 0 | FK3: 0 | FL3: 0 | FM3: 0 | FN3: 0 | FO3: 0 | FP3: 0 | FQ3: 0 | FR3: 0 | FS3: 0 | FT3: 0 | FU3: 0 | FV3: 0 | FW3: 0 | FX3: 0 | FY3: 0 | FZ3: 0 | GA3: 0 | GB3: 0 | GC3: 0 | GD3: 0 | GE3: 0 | GF3: 0 | GG3: 0 | GH3: 0 | GI3: 0 | GJ3: 0 | GK3: 0 | GL3: 0 | GM3: 0 | GN3: 0 | GO3: 0 | GP3: 0 | GQ3: 0 | GR3: 0 | GS3: 0 | GT3: 0 | GU3: 0 | GV3: 0
H4: показатель | M4: ед.изм. | P4: значение | U4: итого | X4: =IF(OR($P$6="",$P$6=0,$P$7="",$P$7=0,$P$8="",$P$7<1),"", IF(X$8="","", IF($P$6=Lists!$I$6,X6, IF($P$6=Lists!$I$7,INT(MONTH(X7)/3)&"кв"&(YEAR(X7)-2000)&"г", IF($P$6=Lists!$I$8,X8&" год", IF($P$6=Lists!$I$9,YEAR(X7)&"г.","")))))) -> 2023-01-01 | Y4: =IF(OR($P$6="",$P$6=0,$P$7="",$P$7=0,$P$8="",$P$7<1),"", IF(Y$8="","", IF($P$6=Lists!$I$6,Y6, IF($P$6=Lists!$I$7,INT(MONTH(Y7)/3)&"кв"&(YEAR(Y7)-2000)&"г", IF($P$6=Lists!$I$8,Y8&" год", IF($P$6=Lists!$I$9,YEAR(Y7)&"г.","")))))) -> 2023-02-01 | Z4: =IF(OR($P$6="",$P$6=0,$P$7="",$P$7=0,$P$8="",$P$7<1),"", IF(Z$8="","", IF($P$6=Lists!$I$6,Z6, IF($P$6=Lists!$I$7,INT(MONTH(Z7)/3)&"кв"&(YEAR(Z7)-2000)&"г", IF($P$6=Lists!$I$8,Z8&" год", IF($P$6=Lists!$I$9,YEAR(Z7)&"г.","")))))) -> 2023-03-01 | AA4: =IF(OR($P$6="",$P$6=0,$P$7="",$P$7=0,$P$8="",$P$7<1),"", IF(AA$8="","", IF($P$6=Lists!$I$6,AA6, IF($P$6=Lists!$I$7,INT(MONTH(AA7)/3)&"кв"&(YEAR(AA7)-2000)&"г", IF($P$6=Lists!$I$8,AA8&" год", IF($P$6=Lists!$I$9,YEAR(AA7)&"г.","")))))) -> 2023-04-01 | AB4: =IF(OR($P$6="",$P$6=0,$P$7="",$P$7=0,$P$8="",$P$7<1),"", IF(AB$8="","", IF($P$6=Lists!$I$6,AB6, IF($P$6=Lists!$I$7,INT(MONTH(AB7)/3)&"кв"&(YEAR(AB7)-2000)&"г", IF($P$6=Lists!$I$8,AB8&" год", IF($P$6=Lists!$I$9,YEAR(AB7)&"г.","")))))) -> 2023-05-01 | AC4: =IF(OR($P$6="",$P$6=0,$P$7="",$P$7=0,$P$8="",$P$7<1),"", IF(AC$8="","", IF($P$6=Lists!$I$6,AC6, IF($P$6=Lists!$I$7,INT(MONTH(AC7)/3)&"кв"&(YEAR(AC7)-2000)&"г", IF($P$6=Lists!$I$8,AC8&" год", IF($P$6=Lists!$I$9,YEAR(AC7)&"г.","")))))) -> 2023-06-01 | AD4: =IF(OR($P$6="",$P$6=0,$P$7="",$P$7=0,$P$8="",$P$7<1),"", IF(AD$8="","", IF($P$6=Lists!$I$6,AD6, IF($P$6=Lists!$I$7,INT(MONTH(AD7)/3)&"кв"&(YEAR(AD7)-2000)&"г", IF($P$6=Lists!$I$8,AD8&" год", IF($P$6=Lists!$I$9,YEAR(AD7)&"г.","")))))) -> 2023-07-01 | AE4: =IF(OR($P$6="",$P$6=0,$P$7="",$P$7=0,$P$8="",$P$7<1),"", IF(AE$8="","", IF($P$6=Lists!$I$6,AE6, IF($P$6=Lists!$I$7,INT(MONTH(AE7)/3)&"кв"&(YEAR(AE7)-2000)&"г", IF($P$6=Lists!$I$8,AE8&" год", IF($P$6=Lists!$I$9,YEAR(AE7)&"г.","")))))) -> 2023-08-01 | AF4: =IF(OR($P$6="",$P$6=0,$P$7="",$P$7=0,$P$8="",$P$7<1),"", IF(AF$8="","", IF($P$6=Lists!$I$6,AF6, IF($P$6=Lists!$I$7,INT(MONTH(AF7)/3)&"кв"&(YEAR(AF7)-2000)&"г", IF($P$6=Lists!$I$8,AF8&" год", IF($P$6=Lists!$I$9,YEAR(AF7)&"г.","")))))) -> 2023-09-01 | AG4: =IF(OR($P$6="",$P$6=0,$P$7="",$P$7=0,$P$8="",$P$7<1),"", IF(AG$8="","", IF($P$6=Lists!$I$6,AG6, IF($P$6=Lists!$I$7,INT(MONTH(AG7)/3)&"кв"&(YEAR(AG7)-2000)&"г", IF($P$6=Lists!$I$8,AG8&" год", IF($P$6=Lists!$I$9,YEAR(AG7)&"г.","")))))) -> 2023-10-01 | AH4: =IF(OR($P$6="",$P$6=0,$P$7="",$P$7=0,$P$8="",$P$7<1),"", IF(AH$8="","", IF($P$6=Lists!$I$6,AH6, IF($P$6=Lists!$I$7,INT(MONTH(AH7)/3)&"кв"&(YEAR(AH7)-2000)&"г", IF($P$6=Lists!$I$8,AH8&" год", IF($P$6=Lists!$I$9,YEAR(AH7)&"г.","")))))) -> 2023-11-01 | AI4: =IF(OR($P$6="",$P$6=0,$P$7="",$P$7=0,$P$8="",$P$7<1),"", IF(AI$8="","", IF($P$6=Lists!$I$6,AI6, IF($P$6=Lists!$I$7,INT(MONTH(AI7)/3)&"кв"&(YEAR(AI7)-2000)&"г", IF($P$6=Lists!$I$8,AI8&" год", IF($P$6=Lists!$I$9,YEAR(AI7)&"г.","")))))) -> 2023-12-01 | AJ4: =IF(OR($P$6="",$P$6=0,$P$7="",$P$7=0,$P$8="",$P$7<1),"", IF(AJ$8="","", IF($P$6=Lists!$I$6,AJ6, IF($P$6=Lists!$I$7,INT(MONTH(AJ7)/3)&"кв"&(YEAR(AJ7)-2000)&"г", IF($P$6=Lists!$I$8,AJ8&" год", IF($P$6=Lists!$I$9,YEAR(AJ7)&"г.","")))))) -> 2024-01-01 | AK4: =IF(OR($P$6="",$P$6=0,$P$7="",$P$7=0,$P$8="",$P$7<1),"", IF(AK$8="","", IF($P$6=Lists!$I$6,AK6, IF($P$6=Lists!$I$7,INT(MONTH(AK7)/3)&"кв"&(YEAR(AK7)-2000)&"г", IF($P$6=Lists!$I$8,AK8&" год", IF($P$6=Lists!$I$9,YEAR(AK7)&"г.","")))))) -> 2024-02-01 | AL4: =IF(OR($P$6="",$P$6=0,$P$7="",$P$7=0,$P$8="",$P$7<1),"", IF(AL$8="","", IF($P$6=Lists!$I$6,AL6, IF($P$6=Lists!$I$7,INT(MONTH(AL7)/3)&"кв"&(YEAR(AL7)-2000)&"г", IF($P$6=Lists!$I$8,AL8&" год", IF($P$6=Lists!$I$9,YEAR(AL7)&"г.","")))))) -> 2024-03-01 | AM4: =IF(OR($P$6="",$P$6=0,$P$7="",$P$7=0,$P$8="",$P$7<1),"", IF(AM$8="","", IF($P$6=Lists!$I$6,AM6, IF($P$6=Lists!$I$7,INT(MONTH(AM7)/3)&"кв"&(YEAR(AM7)-2000)&"г", IF($P$6=Lists!$I$8,AM8&" год", IF($P$6=Lists!$I$9,YEAR(AM7)&"г.","")))))) -> 2024-04-01 | AN4: =IF(OR($P$6="",$P$6=0,$P$7="",$P$7=0,$P$8="",$P$7<1),"", IF(AN$8="","", IF($P$6=Lists!$I$6,AN6, IF($P$6=Lists!$I$7,INT(MONTH(AN7)/3)&"кв"&(YEAR(AN7)-2000)&"г", IF($P$6=Lists!$I$8,AN8&" год", IF($P$6=Lists!$I$9,YEAR(AN7)&"г.","")))))) -> 2024-05-01 | AO4: =IF(OR($P$6="",$P$6=0,$P$7="",$P$7=0,$P$8="",$P$7<1),"", IF(AO$8="","", IF($P$6=Lists!$I$6,AO6, IF($P$6=Lists!$I$7,INT(MONTH(AO7)/3)&"кв"&(YEAR(AO7)-2000)&"г", IF($P$6=Lists!$I$8,AO8&" год", IF($P$6=Lists!$I$9,YEAR(AO7)&"г.","")))))) -> 2024-06-01 | AP4: =IF(OR($P$6="",$P$6=0,$P$7="",$P$7=0,$P$8="",$P$7<1),"", IF(AP$8="","", IF($P$6=Lists!$I$6,AP6, IF($P$6=Lists!$I$7,INT(MONTH(AP7)/3)&"кв"&(YEAR(AP7)-2000)&"г", IF($P$6=Lists!$I$8,AP8&" год", IF($P$6=Lists!$I$9,YEAR(AP7)&"г.","")))))) -> 2024-07-01 | AQ4: =IF(OR($P$6="",$P$6=0,$P$7="",$P$7=0,$P$8="",$P$7<1),"", IF(AQ$8="","", IF($P$6=Lists!$I$6,AQ6, IF($P$6=Lists!$I$7,INT(MONTH(AQ7)/3)&"кв"&(YEAR(AQ7)-2000)&"г", IF($P$6=Lists!$I$8,AQ8&" год", IF($P$6=Lists!$I$9,YEAR(AQ7)&"г.","")))))) -> 2024-08-01 | AR4: =IF(OR($P$6="",$P$6=0,$P$7="",$P$7=0,$P$8="",$P$7<1),"", IF(AR$8="","", IF($P$6=Lists!$I$6,AR6, IF($P$6=Lists!$I$7,INT(MONTH(AR7)/3)&"кв"&(YEAR(AR7)-2000)&"г", IF($P$6=Lists!$I$8,AR8&" год", IF($P$6=Lists!$I$9,YEAR(AR7)&"г.","")))))) -> 2024-09-01 | AS4: =IF(OR($P$6="",$P$6=0,$P$7="",$P$7=0,$P$8="",$P$7<1),"", IF(AS$8="","", IF($P$6=Lists!$I$6,AS6, IF($P$6=Lists!$I$7,INT(MONTH(AS7)/3)&"кв"&(YEAR(AS7)-2000)&"г", IF($P$6=Lists!$I$8,AS8&" год", IF($P$6=Lists!$I$9,YEAR(AS7)&"г.","")))))) -> 2024-10-01 | AT4: =IF(OR($P$6="",$P$6=0,$P$7="",$P$7=0,$P$8="",$P$7<1),"", IF(AT$8="","", IF($P$6=Lists!$I$6,AT6, IF($P$6=Lists!$I$7,INT(MONTH(AT7)/3)&"кв"&(YEAR(AT7)-2000)&"г", IF($P$6=Lists!$I$8,AT8&" год", IF($P$6=Lists!$I$9,YEAR(AT7)&"г.","")))))) -> 2024-11-01 | AU4: =IF(OR($P$6="",$P$6=0,$P$7="",$P$7=0,$P$8="",$P$7<1),"", IF(AU$8="","", IF($P$6=Lists!$I$6,AU6, IF($P$6=Lists!$I$7,INT(MONTH(AU7)/3)&"кв"&(YEAR(AU7)-2000)&"г", IF($P$6=Lists!$I$8,AU8&" год", IF($P$6=Lists!$I$9,YEAR(AU7)&"г.","")))))) -> 2024-12-01 | AV4: =IF(OR($P$6="",$P$6=0,$P$7="",$P$7=0,$P$8="",$P$7<1),"", IF(AV$8="","", IF($P$6=Lists!$I$6,AV6, IF($P$6=Lists!$I$7,INT(MONTH(AV7)/3)&"кв"&(YEAR(AV7)-2000)&"г", IF($P$6=Lists!$I$8,AV8&" год", IF($P$6=Lists!$I$9,YEAR(AV7)&"г.","")))))) -> 2025-01-01 | AW4: =IF(OR($P$6="",$P$6=0,$P$7="",$P$7=0,$P$8="",$P$7<1),"", IF(AW$8="","", IF($P$6=Lists!$I$6,AW6, IF($P$6=Lists!$I$7,INT(MONTH(AW7)/3)&"кв"&(YEAR(AW7)-2000)&"г", IF($P$6=Lists!$I$8,AW8&" год", IF($P$6=Lists!$I$9,YEAR(AW7)&"г.","")))))) -> 2025-02-01 | AX4: =IF(OR($P$6="",$P$6=0,$P$7="",$P$7=0,$P$8="",$P$7<1),"", IF(AX$8="","", IF($P$6=Lists!$I$6,AX6, IF($P$6=Lists!$I$7,INT(MONTH(AX7)/3)&"кв"&(YEAR(AX7)-2000)&"г", IF($P$6=Lists!$I$8,AX8&" год", IF($P$6=Lists!$I$9,YEAR(AX7)&"г.","")))))) -> 2025-03-01 | AY4: =IF(OR($P$6="",$P$6=0,$P$7="",$P$7=0,$P$8="",$P$7<1),"", IF(AY$8="","", IF($P$6=Lists!$I$6,AY6, IF($P$6=Lists!$I$7,INT(MONTH(AY7)/3)&"кв"&(YEAR(AY7)-2000)&"г", IF($P$6=Lists!$I$8,AY8&" год", IF($P$6=Lists!$I$9,YEAR(AY7)&"г.","")))))) -> 2025-04-01 | AZ4: =IF(OR($P$6="",$P$6=0,$P$7="",$P$7=0,$P$8="",$P$7<1),"", IF(AZ$8="","", IF($P$6=Lists!$I$6,AZ6, IF($P$6=Lists!$I$7,INT(MONTH(AZ7)/3)&"кв"&(YEAR(AZ7)-2000)&"г", IF($P$6=Lists!$I$8,AZ8&" год", IF($P$6=Lists!$I$9,YEAR(AZ7)&"г.","")))))) -> 2025-05-01 | BA4: =IF(OR($P$6="",$P$6=0,$P$7="",$P$7=0,$P$8="",$P$7<1),"", IF(BA$8="","", IF($P$6=Lists!$I$6,BA6, IF($P$6=Lists!$I$7,INT(MONTH(BA7)/3)&"кв"&(YEAR(BA7)-2000)&"г", IF($P$6=Lists!$I$8,BA8&" год", IF($P$6=Lists!$I$9,YEAR(BA7)&"г.","")))))) -> 2025-06-01 | BB4: =IF(OR($P$6="",$P$6=0,$P$7="",$P$7=0,$P$8="",$P$7<1),"", IF(BB$8="","", IF($P$6=Lists!$I$6,BB6, IF($P$6=Lists!$I$7,INT(MONTH(BB7)/3)&"кв"&(YEAR(BB7)-2000)&"г", IF($P$6=Lists!$I$8,BB8&" год", IF($P$6=Lists!$I$9,YEAR(BB7)&"г.","")))))) -> 2025-07-01 | BC4: =IF(OR($P$6="",$P$6=0,$P$7="",$P$7=0,$P$8="",$P$7<1),"", IF(BC$8="","", IF($P$6=Lists!$I$6,BC6, IF($P$6=Lists!$I$7,INT(MONTH(BC7)/3)&"кв"&(YEAR(BC7)-2000)&"г", IF($P$6=Lists!$I$8,BC8&" год", IF($P$6=Lists!$I$9,YEAR(BC7)&"г.","")))))) -> 2025-08-01 | BD4: =IF(OR($P$6="",$P$6=0,$P$7="",$P$7=0,$P$8="",$P$7<1),"", IF(BD$8="","", IF($P$6=Lists!$I$6,BD6, IF($P$6=Lists!$I$7,INT(MONTH(BD7)/3)&"кв"&(YEAR(BD7)-2000)&"г", IF($P$6=Lists!$I$8,BD8&" год", IF($P$6=Lists!$I$9,YEAR(BD7)&"г.","")))))) -> 2025-09-01 | BE4: =IF(OR($P$6="",$P$6=0,$P$7="",$P$7=0,$P$8="",$P$7<1),"", IF(BE$8="","", IF($P$6=Lists!$I$6,BE6, IF($P$6=Lists!$I$7,INT(MONTH(BE7)/3)&"кв"&(YEAR(BE7)-2000)&"г", IF($P$6=Lists!$I$8,BE8&" год", IF($P$6=Lists!$I$9,YEAR(BE7)&"г.","")))))) -> 2025-10-01 | BF4: =IF(OR($P$6="",$P$6=0,$P$7="",$P$7=0,$P$8="",$P$7<1),"", IF(BF$8="","", IF($P$6=Lists!$I$6,BF6, IF($P$6=Lists!$I$7,INT(MONTH(BF7)/3)&"кв"&(YEAR(BF7)-2000)&"г", IF($P$6=Lists!$I$8,BF8&" год", IF($P$6=Lists!$I$9,YEAR(BF7)&"г.","")))))) -> 2025-11-01 | BG4: =IF(OR($P$6="",$P$6=0,$P$7="",$P$7=0,$P$8="",$P$7<1),"", IF(BG$8="","", IF($P$6=Lists!$I$6,BG6, IF($P$6=Lists!$I$7,INT(MONTH(BG7)/3)&"кв"&(YEAR(BG7)-2000)&"г", IF($P$6=Lists!$I$8,BG8&" год", IF($P$6=Lists!$I$9,YEAR(BG7)&"г.","")))))) -> 2025-12-01 | BH4: =IF(OR($P$6="",$P$6=0,$P$7="",$P$7=0,$P$8="",$P$7<1),"", IF(BH$8="","", IF($P$6=Lists!$I$6,BH6, IF($P$6=Lists!$I$7,INT(MONTH(BH7)/3)&"кв"&(YEAR(BH7)-2000)&"г", IF($P$6=Lists!$I$8,BH8&" год", IF($P$6=Lists!$I$9,YEAR(BH7)&"г.","")))))) -> 2026-01-01 | BI4: =IF(OR($P$6="",$P$6=0,$P$7="",$P$7=0,$P$8="",$P$7<1),"", IF(BI$8="","", IF($P$6=Lists!$I$6,BI6, IF($P$6=Lists!$I$7,INT(MONTH(BI7)/3)&"кв"&(YEAR(BI7)-2000)&"г", IF($P$6=Lists!$I$8,BI8&" год", IF($P$6=Lists!$I$9,YEAR(BI7)&"г.","")))))) -> 2026-02-01 | BJ4: =IF(OR($P$6="",$P$6=0,$P$7="",$P$7=0,$P$8="",$P$7<1),"", IF(BJ$8="","", IF($P$6=Lists!$I$6,BJ6, IF($P$6=Lists!$I$7,INT(MONTH(BJ7)/3)&"кв"&(YEAR(BJ7)-2000)&"г", IF($P$6=Lists!$I$8,BJ8&" год", IF($P$6=Lists!$I$9,YEAR(BJ7)&"г.","")))))) -> 2026-03-01 | BK4: =IF(OR($P$6="",$P$6=0,$P$7="",$P$7=0,$P$8="",$P$7<1),"", IF(BK$8="","", IF($P$6=Lists!$I$6,BK6, IF($P$6=Lists!$I$7,INT(MONTH(BK7)/3)&"кв"&(YEAR(BK7)-2000)&"г", IF($P$6=Lists!$I$8,BK8&" год", IF($P$6=Lists!$I$9,YEAR(BK7)&"г.","")))))) -> 2026-04-01 | BL4: =IF(OR($P$6="",$P$6=0,$P$7="",$P$7=0,$P$8="",$P$7<1),"", IF(BL$8="","", IF($P$6=Lists!$I$6,BL6, IF($P$6=Lists!$I$7,INT(MONTH(BL7)/3)&"кв"&(YEAR(BL7)-2000)&"г", IF($P$6=Lists!$I$8,BL8&" год", IF($P$6=Lists!$I$9,YEAR(BL7)&"г.","")))))) -> 2026-05-01 | BM4: =IF(OR($P$6="",$P$6=0,$P$7="",$P$7=0,$P$8="",$P$7<1),"", IF(BM$8="","", IF($P$6=Lists!$I$6,BM6, IF($P$6=Lists!$I$7,INT(MONTH(BM7)/3)&"кв"&(YEAR(BM7)-2000)&"г", IF($P$6=Lists!$I$8,BM8&" год", IF($P$6=Lists!$I$9,YEAR(BM7)&"г.","")))))) -> 2026-06-01 | BN4: =IF(OR($P$6="",$P$6=0,$P$7="",$P$7=0,$P$8="",$P$7<1),"", IF(BN$8="","", IF($P$6=Lists!$I$6,BN6, IF($P$6=Lists!$I$7,INT(MONTH(BN7)/3)&"кв"&(YEAR(BN7)-2000)&"г", IF($P$6=Lists!$I$8,BN8&" год", IF($P$6=Lists!$I$9,YEAR(BN7)&"г.","")))))) -> 2026-07-01 | BO4: =IF(OR($P$6="",$P$6=0,$P$7="",$P$7=0,$P$8="",$P$7<1),"", IF(BO$8="","", IF($P$6=Lists!$I$6,BO6, IF($P$6=Lists!$I$7,INT(MONTH(BO7)/3)&"кв"&(YEAR(BO7)-2000)&"г", IF($P$6=Lists!$I$8,BO8&" год", IF($P$6=Lists!$I$9,YEAR(BO7)&"г.","")))))) -> 2026-08-01 | BP4: =IF(OR($P$6="",$P$6=0,$P$7="",$P$7=0,$P$8="",$P$7<1),"", IF(BP$8="","", IF($P$6=Lists!$I$6,BP6, IF($P$6=Lists!$I$7,INT(MONTH(BP7)/3)&"кв"&(YEAR(BP7)-2000)&"г", IF($P$6=Lists!$I$8,BP8&" год", IF($P$6=Lists!$I$9,YEAR(BP7)&"г.","")))))) -> 2026-09-01 | BQ4: =IF(OR($P$6="",$P$6=0,$P$7="",$P$7=0,$P$8="",$P$7<1),"", IF(BQ$8="","", IF($P$6=Lists!$I$6,BQ6, IF($P$6=Lists!$I$7,INT(MONTH(BQ7)/3)&"кв"&(YEAR(BQ7)-2000)&"г", IF($P$6=Lists!$I$8,BQ8&" год", IF($P$6=Lists!$I$9,YEAR(BQ7)&"г.","")))))) -> 2026-10-01 | BR4: =IF(OR($P$6="",$P$6=0,$P$7="",$P$7=0,$P$8="",$P$7<1),"", IF(BR$8="","", IF($P$6=Lists!$I$6,BR6, IF($P$6=Lists!$I$7,INT(MONTH(BR7)/3)&"кв"&(YEAR(BR7)-2000)&"г", IF($P$6=Lists!$I$8,BR8&" год", IF($P$6=Lists!$I$9,YEAR(BR7)&"г.","")))))) -> 2026-11-01 | BS4: =IF(OR($P$6="",$P$6=0,$P$7="",$P$7=0,$P$8="",$P$7<1),"", IF(BS$8="","", IF($P$6=Lists!$I$6,BS6, IF($P$6=Lists!$I$7,INT(MONTH(BS7)/3)&"кв"&(YEAR(BS7)-2000)&"г", IF($P$6=Lists!$I$8,BS8&" год", IF($P$6=Lists!$I$9,YEAR(BS7)&"г.","")))))) -> 2026-12-01 | BT4: =IF(OR($P$6="",$P$6=0,$P$7="",$P$7=0,$P$8="",$P$7<1),"", IF(BT$8="","", IF($P$6=Lists!$I$6,BT6, IF($P$6=Lists!$I$7,INT(MONTH(BT7)/3)&"кв"&(YEAR(BT7)-2000)&"г", IF($P$6=Lists!$I$8,BT8&" год", IF($P$6=Lists!$I$9,YEAR(BT7)&"г.","")))))) -> 2027-01-01 | BU4: =IF(OR($P$6="",$P$6=0,$P$7="",$P$7=0,$P$8="",$P$7<1),"", IF(BU$8="","", IF($P$6=Lists!$I$6,BU6, IF($P$6=Lists!$I$7,INT(MONTH(BU7)/3)&"кв"&(YEAR(BU7)-2000)&"г", IF($P$6=Lists!$I$8,BU8&" год", IF($P$6=Lists!$I$9,YEAR(BU7)&"г.","")))))) -> 2027-02-01 | BV4: =IF(OR($P$6="",$P$6=0,$P$7="",$P$7=0,$P$8="",$P$7<1),"", IF(BV$8="","", IF($P$6=Lists!$I$6,BV6, IF($P$6=Lists!$I$7,INT(MONTH(BV7)/3)&"кв"&(YEAR(BV7)-2000)&"г", IF($P$6=Lists!$I$8,BV8&" год", IF($P$6=Lists!$I$9,YEAR(BV7)&"г.","")))))) -> 2027-03-01 | BW4: =IF(OR($P$6="",$P$6=0,$P$7="",$P$7=0,$P$8="",$P$7<1),"", IF(BW$8="","", IF($P$6=Lists!$I$6,BW6, IF($P$6=Lists!$I$7,INT(MONTH(BW7)/3)&"кв"&(YEAR(BW7)-2000)&"г", IF($P$6=Lists!$I$8,BW8&" год", IF($P$6=Lists!$I$9,YEAR(BW7)&"г.","")))))) -> 2027-04-01 | BX4: =IF(OR($P$6="",$P$6=0,$P$7="",$P$7=0,$P$8="",$P$7<1),"", IF(BX$8="","", IF($P$6=Lists!$I$6,BX6, IF($P$6=Lists!$I$7,INT(MONTH(BX7)/3)&"кв"&(YEAR(BX7)-2000)&"г", IF($P$6=Lists!$I$8,BX8&" год", IF($P$6=Lists!$I$9,YEAR(BX7)&"г.","")))))) -> 2027-05-01 | BY4: =IF(OR($P$6="",$P$6=0,$P$7="",$P$7=0,$P$8="",$P$7<1),"", IF(BY$8="","", IF($P$6=Lists!$I$6,BY6, IF($P$6=Lists!$I$7,INT(MONTH(BY7)/3)&"кв"&(YEAR(BY7)-2000)&"г", IF($P$6=Lists!$I$8,BY8&" год", IF($P$6=Lists!$I$9,YEAR(BY7)&"г.","")))))) -> 2027-06-01 | BZ4: =IF(OR($P$6="",$P$6=0,$P$7="",$P$7=0,$P$8="",$P$7<1),"", IF(BZ$8="","", IF($P$6=Lists!$I$6,BZ6, IF($P$6=Lists!$I$7,INT(MONTH(BZ7)/3)&"кв"&(YEAR(BZ7)-2000)&"г", IF($P$6=Lists!$I$8,BZ8&" год", IF($P$6=Lists!$I$9,YEAR(BZ7)&"г.","")))))) -> 2027-07-01 | CA4: =IF(OR($P$6="",$P$6=0,$P$7="",$P$7=0,$P$8="",$P$7<1),"", IF(CA$8="","", IF($P$6=Lists!$I$6,CA6, IF($P$6=Lists!$I$7,INT(MONTH(CA7)/3)&"кв"&(YEAR(CA7)-2000)&"г", IF($P$6=Lists!$I$8,CA8&" год", IF($P$6=Lists!$I$9,YEAR(CA7)&"г.","")))))) -> 2027-08-01 | CB4: =IF(OR($P$6="",$P$6=0,$P$7="",$P$7=0,$P$8="",$P$7<1),"", IF(CB$8="","", IF($P$6=Lists!$I$6,CB6, IF($P$6=Lists!$I$7,INT(MONTH(CB7)/3)&"кв"&(YEAR(CB7)-2000)&"г", IF($P$6=Lists!$I$8,CB8&" год", IF($P$6=Lists!$I$9,YEAR(CB7)&"г.","")))))) -> 2027-09-01 | CC4: =IF(OR($P$6="",$P$6=0,$P$7="",$P$7=0,$P$8="",$P$7<1),"", IF(CC$8="","", IF($P$6=Lists!$I$6,CC6, IF($P$6=Lists!$I$7,INT(MONTH(CC7)/3)&"кв"&(YEAR(CC7)-2000)&"г", IF($P$6=Lists!$I$8,CC8&" год", IF($P$6=Lists!$I$9,YEAR(CC7)&"г.","")))))) -> 2027-10-01 | CD4: =IF(OR($P$6="",$P$6=0,$P$7="",$P$7=0,$P$8="",$P$7<1),"", IF(CD$8="","", IF($P$6=Lists!$I$6,CD6, IF($P$6=Lists!$I$7,INT(MONTH(CD7)/3)&"кв"&(YEAR(CD7)-2000)&"г", IF($P$6=Lists!$I$8,CD8&" год", IF($P$6=Lists!$I$9,YEAR(CD7)&"г.","")))))) -> 2027-11-01 | CE4: =IF(OR($P$6="",$P$6=0,$P$7="",$P$7=0,$P$8="",$P$7<1),"", IF(CE$8="","", IF($P$6=Lists!$I$6,CE6, IF($P$6=Lists!$I$7,INT(MONTH(CE7)/3)&"кв"&(YEAR(CE7)-2000)&"г", IF($P$6=Lists!$I$8,CE8&" год", IF($P$6=Lists!$I$9,YEAR(CE7)&"г.","")))))) -> 2027-12-01 | CF4: =IF(OR($P$6="",$P$6=0,$P$7="",$P$7=0,$P$8="",$P$7<1),"", IF(CF$8="","", IF($P$6=Lists!$I$6,CF6, IF($P$6=Lists!$I$7,INT(MONTH(CF7)/3)&"кв"&(YEAR(CF7)-2000)&"г", IF($P$6=Lists!$I$8,CF8&" год", IF($P$6=Lists!$I$9,YEAR(CF7)&"г.","")))))) -> 2028-01-01 | CG4: =IF(OR($P$6="",$P$6=0,$P$7="",$P$7=0,$P$8="",$P$7<1),"", IF(CG$8="","", IF($P$6=Lists!$I$6,CG6, IF($P$6=Lists!$I$7,INT(MONTH(CG7)/3)&"кв"&(YEAR(CG7)-2000)&"г", IF($P$6=Lists!$I$8,CG8&" год", IF($P$6=Lists!$I$9,YEAR(CG7)&"г.","")))))) -> 2028-02-01 | CH4: =IF(OR($P$6="",$P$6=0,$P$7="",$P$7=0,$P$8="",$P$7<1),"", IF(CH$8="","", IF($P$6=Lists!$I$6,CH6, IF($P$6=Lists!$I$7,INT(MONTH(CH7)/3)&"кв"&(YEAR(CH7)-2000)&"г", IF($P$6=Lists!$I$8,CH8&" год", IF($P$6=Lists!$I$9,YEAR(CH7)&"г.","")))))) -> 2028-03-01 | CI4: =IF(OR($P$6="",$P$6=0,$P$7="",$P$7=0,$P$8="",$P$7<1),"", IF(CI$8="","", IF($P$6=Lists!$I$6,CI6, IF($P$6=Lists!$I$7,INT(MONTH(CI7)/3)&"кв"&(YEAR(CI7)-2000)&"г", IF($P$6=Lists!$I$8,CI8&" год", IF($P$6=Lists!$I$9,YEAR(CI7)&"г.","")))))) -> 2028-04-01 | CJ4: =IF(OR($P$6="",$P$6=0,$P$7="",$P$7=0,$P$8="",$P$7<1),"", IF(CJ$8="","", IF($P$6=Lists!$I$6,CJ6, IF($P$6=Lists!$I$7,INT(MONTH(CJ7)/3)&"кв"&(YEAR(CJ7)-2000)&"г", IF($P$6=Lists!$I$8,CJ8&" год", IF($P$6=Lists!$I$9,YEAR(CJ7)&"г.","")))))) -> 2028-05-01 | CK4: =IF(OR($P$6="",$P$6=0,$P$7="",$P$7=0,$P$8="",$P$7<1),"", IF(CK$8="","", IF($P$6=Lists!$I$6,CK6, IF($P$6=Lists!$I$7,INT(MONTH(CK7)/3)&"кв"&(YEAR(CK7)-2000)&"г", IF($P$6=Lists!$I$8,CK8&" год", IF($P$6=Lists!$I$9,YEAR(CK7)&"г.","")))))) -> 2028-06-01 | CL4: =IF(OR($P$6="",$P$6=0,$P$7="",$P$7=0,$P$8="",$P$7<1),"", IF(CL$8="","", IF($P$6=Lists!$I$6,CL6, IF($P$6=Lists!$I$7,INT(MONTH(CL7)/3)&"кв"&(YEAR(CL7)-2000)&"г", IF($P$6=Lists!$I$8,CL8&" год", IF($P$6=Lists!$I$9,YEAR(CL7)&"г.","")))))) -> 2028-07-01 | CM4: =IF(OR($P$6="",$P$6=0,$P$7="",$P$7=0,$P$8="",$P$7<1),"", IF(CM$8="","", IF($P$6=Lists!$I$6,CM6, IF($P$6=Lists!$I$7,INT(MONTH(CM7)/3)&"кв"&(YEAR(CM7)-2000)&"г", IF($P$6=Lists!$I$8,CM8&" год", IF($P$6=Lists!$I$9,YEAR(CM7)&"г.","")))))) -> 2028-08-01 | CN4: =IF(OR($P$6="",$P$6=0,$P$7="",$P$7=0,$P$8="",$P$7<1),"", IF(CN$8="","", IF($P$6=Lists!$I$6,CN6, IF($P$6=Lists!$I$7,INT(MONTH(CN7)/3)&"кв"&(YEAR(CN7)-2000)&"г", IF($P$6=Lists!$I$8,CN8&" год", IF($P$6=Lists!$I$9,YEAR(CN7)&"г.","")))))) -> 2028-09-01 | CO4: =IF(OR($P$6="",$P$6=0,$P$7="",$P$7=0,$P$8="",$P$7<1),"", IF(CO$8="","", IF($P$6=Lists!$I$6,CO6, IF($P$6=Lists!$I$7,INT(MONTH(CO7)/3)&"кв"&(YEAR(CO7)-2000)&"г", IF($P$6=Lists!$I$8,CO8&" год", IF($P$6=Lists!$I$9,YEAR(CO7)&"г.","")))))) -> 2028-10-01 | CP4: =IF(OR($P$6="",$P$6=0,$P$7="",$P$7=0,$P$8="",$P$7<1),"", IF(CP$8="","", IF($P$6=Lists!$I$6,CP6, IF($P$6=Lists!$I$7,INT(MONTH(CP7)/3)&"кв"&(YEAR(CP7)-2000)&"г", IF($P$6=Lists!$I$8,CP8&" год", IF($P$6=Lists!$I$9,YEAR(CP7)&"г.","")))))) -> 2028-11-01 | CQ4: =IF(OR($P$6="",$P$6=0,$P$7="",$P$7=0,$P$8="",$P$7<1),"", IF(CQ$8="","", IF($P$6=Lists!$I$6,CQ6, IF($P$6=Lists!$I$7,INT(MONTH(CQ7)/3)&"кв"&(YEAR(CQ7)-2000)&"г", IF($P$6=Lists!$I$8,CQ8&" год", IF($P$6=Lists!$I$9,YEAR(CQ7)&"г.","")))))) -> 2028-12-01 | CR4: =IF(OR($P$6="",$P$6=0,$P$7="",$P$7=0,$P$8="",$P$7<1),"", IF(CR$8="","", IF($P$6=Lists!$I$6,CR6, IF($P$6=Lists!$I$7,INT(MONTH(CR7)/3)&"кв"&(YEAR(CR7)-2000)&"г", IF($P$6=Lists!$I$8,CR8&" год", IF($P$6=Lists!$I$9,YEAR(CR7)&"г.","")))))) -> 2029-01-01 | CS4: =IF(OR($P$6="",$P$6=0,$P$7="",$P$7=0,$P$8="",$P$7<1),"", IF(CS$8="","", IF($P$6=Lists!$I$6,CS6, IF($P$6=Lists!$I$7,INT(MONTH(CS7)/3)&"кв"&(YEAR(CS7)-2000)&"г", IF($P$6=Lists!$I$8,CS8&" год", IF($P$6=Lists!$I$9,YEAR(CS7)&"г.","")))))) -> 2029-02-01 | CT4: =IF(OR($P$6="",$P$6=0,$P$7="",$P$7=0,$P$8="",$P$7<1),"", IF(CT$8="","", IF($P$6=Lists!$I$6,CT6, IF($P$6=Lists!$I$7,INT(MONTH(CT7)/3)&"кв"&(YEAR(CT7)-2000)&"г", IF($P$6=Lists!$I$8,CT8&" год", IF($P$6=Lists!$I$9,YEAR(CT7)&"г.","")))))) -> 2029-03-01 | CU4: =IF(OR($P$6="",$P$6=0,$P$7="",$P$7=0,$P$8="",$P$7<1),"", IF(CU$8="","", IF($P$6=Lists!$I$6,CU6, IF($P$6=Lists!$I$7,INT(MONTH(CU7)/3)&"кв"&(YEAR(CU7)-2000)&"г", IF($P$6=Lists!$I$8,CU8&" год", IF($P$6=Lists!$I$9,YEAR(CU7)&"г.","")))))) -> 2029-04-01 | CV4: =IF(OR($P$6="",$P$6=0,$P$7="",$P$7=0,$P$8="",$P$7<1),"", IF(CV$8="","", IF($P$6=Lists!$I$6,CV6, IF($P$6=Lists!$I$7,INT(MONTH(CV7)/3)&"кв"&(YEAR(CV7)-2000)&"г", IF($P$6=Lists!$I$8,CV8&" год", IF($P$6=Lists!$I$9,YEAR(CV7)&"г.","")))))) -> 2029-05-01 | CW4: =IF(OR($P$6="",$P$6=0,$P$7="",$P$7=0,$P$8="",$P$7<1),"", IF(CW$8="","", IF($P$6=Lists!$I$6,CW6, IF($P$6=Lists!$I$7,INT(MONTH(CW7)/3)&"кв"&(YEAR(CW7)-2000)&"г", IF($P$6=Lists!$I$8,CW8&" год", IF($P$6=Lists!$I$9,YEAR(CW7)&"г.","")))))) -> 2029-06-01 | CX4: =IF(OR($P$6="",$P$6=0,$P$7="",$P$7=0,$P$8="",$P$7<1),"", IF(CX$8="","", IF($P$6=Lists!$I$6,CX6, IF($P$6=Lists!$I$7,INT(MONTH(CX7)/3)&"кв"&(YEAR(CX7)-2000)&"г", IF($P$6=Lists!$I$8,CX8&" год", IF($P$6=Lists!$I$9,YEAR(CX7)&"г.","")))))) -> 2029-07-01 | CY4: =IF(OR($P$6="",$P$6=0,$P$7="",$P$7=0,$P$8="",$P$7<1),"", IF(CY$8="","", IF($P$6=Lists!$I$6,CY6, IF($P$6=Lists!$I$7,INT(MONTH(CY7)/3)&"кв"&(YEAR(CY7)-2000)&"г", IF($P$6=Lists!$I$8,CY8&" год", IF($P$6=Lists!$I$9,YEAR(CY7)&"г.","")))))) -> 2029-08-01 | CZ4: =IF(OR($P$6="",$P$6=0,$P$7="",$P$7=0,$P$8="",$P$7<1),"", IF(CZ$8="","", IF($P$6=Lists!$I$6,CZ6, IF($P$6=Lists!$I$7,INT(MONTH(CZ7)/3)&"кв"&(YEAR(CZ7)-2000)&"г", IF($P$6=Lists!$I$8,CZ8&" год", IF($P$6=Lists!$I$9,YEAR(CZ7)&"г.","")))))) -> 2029-09-01 | DA4: =IF(OR($P$6="",$P$6=0,$P$7="",$P$7=0,$P$8="",$P$7<1),"", IF(DA$8="","", IF($P$6=Lists!$I$6,DA6, IF($P$6=Lists!$I$7,INT(MONTH(DA7)/3)&"кв"&(YEAR(DA7)-2000)&"г", IF($P$6=Lists!$I$8,DA8&" год", IF($P$6=Lists!$I$9,YEAR(DA7)&"г.","")))))) -> 2029-10-01 | DB4: =IF(OR($P$6="",$P$6=0,$P$7="",$P$7=0,$P$8="",$P$7<1),"", IF(DB$8="","", IF($P$6=Lists!$I$6,DB6, IF($P$6=Lists!$I$7,INT(MONTH(DB7)/3)&"кв"&(YEAR(DB7)-2000)&"г", IF($P$6=Lists!$I$8,DB8&" год", IF($P$6=Lists!$I$9,YEAR(DB7)&"г.","")))))) -> 2029-11-01 | DC4: =IF(OR($P$6="",$P$6=0,$P$7="",$P$7=0,$P$8="",$P$7<1),"", IF(DC$8="","", IF($P$6=Lists!$I$6,DC6, IF($P$6=Lists!$I$7,INT(MONTH(DC7)/3)&"кв"&(YEAR(DC7)-2000)&"г", IF($P$6=Lists!$I$8,DC8&" год", IF($P$6=Lists!$I$9,YEAR(DC7)&"г.","")))))) -> 2029-12-01 | DD4: =IF(OR($P$6="",$P$6=0,$P$7="",$P$7=0,$P$8="",$P$7<1),"", IF(DD$8="","", IF($P$6=Lists!$I$6,DD6, IF($P$6=Lists!$I$7,INT(MONTH(DD7)/3)&"кв"&(YEAR(DD7)-2000)&"г", IF($P$6=Lists!$I$8,DD8&" год", IF($P$6=Lists!$I$9,YEAR(DD7)&"г.","")))))) -> 2030-01-01 | DE4: =IF(OR($P$6="",$P$6=0,$P$7="",$P$7=0,$P$8="",$P$7<1),"", IF(DE$8="","", IF($P$6=Lists!$I$6,DE6, IF($P$6=Lists!$I$7,INT(MONTH(DE7)/3)&"кв"&(YEAR(DE7)-2000)&"г", IF($P$6=Lists!$I$8,DE8&" год", IF($P$6=Lists!$I$9,YEAR(DE7)&"г.","")))))) -> 2030-02-01 | DF4: =IF(OR($P$6="",$P$6=0,$P$7="",$P$7=0,$P$8="",$P$7<1),"", IF(DF$8="","", IF($P$6=Lists!$I$6,DF6, IF($P$6=Lists!$I$7,INT(MONTH(DF7)/3)&"кв"&(YEAR(DF7)-2000)&"г", IF($P$6=Lists!$I$8,DF8&" год", IF($P$6=Lists!$I$9,YEAR(DF7)&"г.","")))))) -> 2030-03-01 | DG4: =IF(OR($P$6="",$P$6=0,$P$7="",$P$7=0,$P$8="",$P$7<1),"", IF(DG$8="","", IF($P$6=Lists!$I$6,DG6, IF($P$6=Lists!$I$7,INT(MONTH(DG7)/3)&"кв"&(YEAR(DG7)-2000)&"г", IF($P$6=Lists!$I$8,DG8&" год", IF($P$6=Lists!$I$9,YEAR(DG7)&"г.","")))))) -> 2030-04-01 | DH4: =IF(OR($P$6="",$P$6=0,$P$7="",$P$7=0,$P$8="",$P$7<1),"", IF(DH$8="","", IF($P$6=Lists!$I$6,DH6, IF($P$6=Lists!$I$7,INT(MONTH(DH7)/3)&"кв"&(YEAR(DH7)-2000)&"г", IF($P$6=Lists!$I$8,DH8&" год", IF($P$6=Lists!$I$9,YEAR(DH7)&"г.","")))))) -> 2030-05-01 | DI4: =IF(OR($P$6="",$P$6=0,$P$7="",$P$7=0,$P$8="",$P$7<1),"", IF(DI$8="","", IF($P$6=Lists!$I$6,DI6, IF($P$6=Lists!$I$7,INT(MONTH(DI7)/3)&"кв"&(YEAR(DI7)-2000)&"г", IF($P$6=Lists!$I$8,DI8&" год", IF($P$6=Lists!$I$9,YEAR(DI7)&"г.","")))))) -> 2030-06-01 | DJ4: =IF(OR($P$6="",$P$6=0,$P$7="",$P$7=0,$P$8="",$P$7<1),"", IF(DJ$8="","", IF($P$6=Lists!$I$6,DJ6, IF($P$6=Lists!$I$7,INT(MONTH(DJ7)/3)&"кв"&(YEAR(DJ7)-2000)&"г", IF($P$6=Lists!$I$8,DJ8&" год", IF($P$6=Lists!$I$9,YEAR(DJ7)&"г.","")))))) -> 2030-07-01 | DK4: =IF(OR($P$6="",$P$6=0,$P$7="",$P$7=0,$P$8="",$P$7<1),"", IF(DK$8="","", IF($P$6=Lists!$I$6,DK6, IF($P$6=Lists!$I$7,INT(MONTH(DK7)/3)&"кв"&(YEAR(DK7)-2000)&"г", IF($P$6=Lists!$I$8,DK8&" год", IF($P$6=Lists!$I$9,YEAR(DK7)&"г.","")))))) -> 2030-08-01 | DL4: =IF(OR($P$6="",$P$6=0,$P$7="",$P$7=0,$P$8="",$P$7<1),"", IF(DL$8="","", IF($P$6=Lists!$I$6,DL6, IF($P$6=Lists!$I$7,INT(MONTH(DL7)/3)&"кв"&(YEAR(DL7)-2000)&"г", IF($P$6=Lists!$I$8,DL8&" год", IF($P$6=Lists!$I$9,YEAR(DL7)&"г.","")))))) -> 2030-09-01 | DM4: =IF(OR($P$6="",$P$6=0,$P$7="",$P$7=0,$P$8="",$P$7<1),"", IF(DM$8="","", IF($P$6=Lists!$I$6,DM6, IF($P$6=Lists!$I$7,INT(MONTH(DM7)/3)&"кв"&(YEAR(DM7)-2000)&"г", IF($P$6=Lists!$I$8,DM8&" год", IF($P$6=Lists!$I$9,YEAR(DM7)&"г.","")))))) -> 2030-10-01 | DN4: =IF(OR($P$6="",$P$6=0,$P$7="",$P$7=0,$P$8="",$P$7<1),"", IF(DN$8="","", IF($P$6=Lists!$I$6,DN6, IF($P$6=Lists!$I$7,INT(MONTH(DN7)/3)&"кв"&(YEAR(DN7)-2000)&"г", IF($P$6=Lists!$I$8,DN8&" год", IF($P$6=Lists!$I$9,YEAR(DN7)&"г.","")))))) -> 2030-11-01 | DO4: =IF(OR($P$6="",$P$6=0,$P$7="",$P$7=0,$P$8="",$P$7<1),"", IF(DO$8="","", IF($P$6=Lists!$I$6,DO6, IF($P$6=Lists!$I$7,INT(MONTH(DO7)/3)&"кв"&(YEAR(DO7)-2000)&"г", IF($P$6=Lists!$I$8,DO8&" год", IF($P$6=Lists!$I$9,YEAR(DO7)&"г.","")))))) -> 2030-12-01 | DP4: =IF(OR($P$6="",$P$6=0,$P$7="",$P$7=0,$P$8="",$P$7<1),"", IF(DP$8="","", IF($P$6=Lists!$I$6,DP6, IF($P$6=Lists!$I$7,INT(MONTH(DP7)/3)&"кв"&(YEAR(DP7)-2000)&"г", IF($P$6=Lists!$I$8,DP8&" год", IF($P$6=Lists!$I$9,YEAR(DP7)&"г.","")))))) -> 2031-01-01 | DQ4: =IF(OR($P$6="",$P$6=0,$P$7="",$P$7=0,$P$8="",$P$7<1),"", IF(DQ$8="","", IF($P$6=Lists!$I$6,DQ6, IF($P$6=Lists!$I$7,INT(MONTH(DQ7)/3)&"кв"&(YEAR(DQ7)-2000)&"г", IF($P$6=Lists!$I$8,DQ8&" год", IF($P$6=Lists!$I$9,YEAR(DQ7)&"г.","")))))) -> 2031-02-01 | DR4: =IF(OR($P$6="",$P$6=0,$P$7="",$P$7=0,$P$8="",$P$7<1),"", IF(DR$8="","", IF($P$6=Lists!$I$6,DR6, IF($P$6=Lists!$I$7,INT(MONTH(DR7)/3)&"кв"&(YEAR(DR7)-2000)&"г", IF($P$6=Lists!$I$8,DR8&" год", IF($P$6=Lists!$I$9,YEAR(DR7)&"г.","")))))) -> 2031-03-01 | DS4: =IF(OR($P$6="",$P$6=0,$P$7="",$P$7=0,$P$8="",$P$7<1),"", IF(DS$8="","", IF($P$6=Lists!$I$6,DS6, IF($P$6=Lists!$I$7,INT(MONTH(DS7)/3)&"кв"&(YEAR(DS7)-2000)&"г", IF($P$6=Lists!$I$8,DS8&" год", IF($P$6=Lists!$I$9,YEAR(DS7)&"г.","")))))) -> 2031-04-01 | DT4: =IF(OR($P$6="",$P$6=0,$P$7="",$P$7=0,$P$8="",$P$7<1),"", IF(DT$8="","", IF($P$6=Lists!$I$6,DT6, IF($P$6=Lists!$I$7,INT(MONTH(DT7)/3)&"кв"&(YEAR(DT7)-2000)&"г", IF($P$6=Lists!$I$8,DT8&" год", IF($P$6=Lists!$I$9,YEAR(DT7)&"г.","")))))) -> 2031-05-01 | DU4: =IF(OR($P$6="",$P$6=0,$P$7="",$P$7=0,$P$8="",$P$7<1),"", IF(DU$8="","", IF($P$6=Lists!$I$6,DU6, IF($P$6=Lists!$I$7,INT(MONTH(DU7)/3)&"кв"&(YEAR(DU7)-2000)&"г", IF($P$6=Lists!$I$8,DU8&" год", IF($P$6=Lists!$I$9,YEAR(DU7)&"г.","")))))) -> 2031-06-01 | DV4: =IF(OR($P$6="",$P$6=0,$P$7="",$P$7=0,$P$8="",$P$7<1),"", IF(DV$8="","", IF($P$6=Lists!$I$6,DV6, IF($P$6=Lists!$I$7,INT(MONTH(DV7)/3)&"кв"&(YEAR(DV7)-2000)&"г", IF($P$6=Lists!$I$8,DV8&" год", IF($P$6=Lists!$I$9,YEAR(DV7)&"г.","")))))) -> 2031-07-01 | DW4: =IF(OR($P$6="",$P$6=0,$P$7="",$P$7=0,$P$8="",$P$7<1),"", IF(DW$8="","", IF($P$6=Lists!$I$6,DW6, IF($P$6=Lists!$I$7,INT(MONTH(DW7)/3)&"кв"&(YEAR(DW7)-2000)&"г", IF($P$6=Lists!$I$8,DW8&" год", IF($P$6=Lists!$I$9,YEAR(DW7)&"г.","")))))) -> 2031-08-01 | DX4: =IF(OR($P$6="",$P$6=0,$P$7="",$P$7=0,$P$8="",$P$7<1),"", IF(DX$8="","", IF($P$6=Lists!$I$6,DX6, IF($P$6=Lists!$I$7,INT(MONTH(DX7)/3)&"кв"&(YEAR(DX7)-2000)&"г", IF($P$6=Lists!$I$8,DX8&" год", IF($P$6=Lists!$I$9,YEAR(DX7)&"г.","")))))) -> 2031-09-01 | DY4: =IF(OR($P$6="",$P$6=0,$P$7="",$P$7=0,$P$8="",$P$7<1),"", IF(DY$8="","", IF($P$6=Lists!$I$6,DY6, IF($P$6=Lists!$I$7,INT(MONTH(DY7)/3)&"кв"&(YEAR(DY7)-2000)&"г", IF($P$6=Lists!$I$8,DY8&" год", IF($P$6=Lists!$I$9,YEAR(DY7)&"г.","")))))) -> 2031-10-01 | DZ4: =IF(OR($P$6="",$P$6=0,$P$7="",$P$7=0,$P$8="",$P$7<1),"", IF(DZ$8="","", IF($P$6=Lists!$I$6,DZ6, IF($P$6=Lists!$I$7,INT(MONTH(DZ7)/3)&"кв"&(YEAR(DZ7)-2000)&"г", IF($P$6=Lists!$I$8,DZ8&" год", IF($P$6=Lists!$I$9,YEAR(DZ7)&"г.","")))))) -> 2031-11-01 | EA4: =IF(OR($P$6="",$P$6=0,$P$7="",$P$7=0,$P$8="",$P$7<1),"", IF(EA$8="","", IF($P$6=Lists!$I$6,EA6, IF($P$6=Lists!$I$7,INT(MONTH(EA7)/3)&"кв"&(YEAR(EA7)-2000)&"г", IF($P$6=Lists!$I$8,EA8&" год", IF($P$6=Lists!$I$9,YEAR(EA7)&"г.","")))))) -> 2031-12-01 | EB4: =IF(OR($P$6="",$P$6=0,$P$7="",$P$7=0,$P$8="",$P$7<1),"", IF(EB$8="","", IF($P$6=Lists!$I$6,EB6, IF($P$6=Lists!$I$7,INT(MONTH(EB7)/3)&"кв"&(YEAR(EB7)-2000)&"г", IF($P$6=Lists!$I$8,EB8&" год", IF($P$6=Lists!$I$9,YEAR(EB7)&"г.","")))))) -> 2032-01-01 | EC4: =IF(OR($P$6="",$P$6=0,$P$7="",$P$7=0,$P$8="",$P$7<1),"", IF(EC$8="","", IF($P$6=Lists!$I$6,EC6, IF($P$6=Lists!$I$7,INT(MONTH(EC7)/3)&"кв"&(YEAR(EC7)-2000)&"г", IF($P$6=Lists!$I$8,EC8&" год", IF($P$6=Lists!$I$9,YEAR(EC7)&"г.","")))))) -> 2032-02-01 | ED4: =IF(OR($P$6="",$P$6=0,$P$7="",$P$7=0,$P$8="",$P$7<1),"", IF(ED$8="","", IF($P$6=Lists!$I$6,ED6, IF($P$6=Lists!$I$7,INT(MONTH(ED7)/3)&"кв"&(YEAR(ED7)-2000)&"г", IF($P$6=Lists!$I$8,ED8&" год", IF($P$6=Lists!$I$9,YEAR(ED7)&"г.","")))))) -> 2032-03-01 | EE4: =IF(OR($P$6="",$P$6=0,$P$7="",$P$7=0,$P$8="",$P$7<1),"", IF(EE$8="","", IF($P$6=Lists!$I$6,EE6, IF($P$6=Lists!$I$7,INT(MONTH(EE7)/3)&"кв"&(YEAR(EE7)-2000)&"г", IF($P$6=Lists!$I$8,EE8&" год", IF($P$6=Lists!$I$9,YEAR(EE7)&"г.","")))))) -> 2032-04-01 | EF4: =IF(OR($P$6="",$P$6=0,$P$7="",$P$7=0,$P$8="",$P$7<1),"", IF(EF$8="","", IF($P$6=Lists!$I$6,EF6, IF($P$6=Lists!$I$7,INT(MONTH(EF7)/3)&"кв"&(YEAR(EF7)-2000)&"г", IF($P$6=Lists!$I$8,EF8&" год", IF($P$6=Lists!$I$9,YEAR(EF7)&"г.","")))))) -> 2032-05-01 | EG4: =IF(OR($P$6="",$P$6=0,$P$7="",$P$7=0,$P$8="",$P$7<1),"", IF(EG$8="","", IF($P$6=Lists!$I$6,EG6, IF($P$6=Lists!$I$7,INT(MONTH(EG7)/3)&"кв"&(YEAR(EG7)-2000)&"г", IF($P$6=Lists!$I$8,EG8&" год", IF($P$6=Lists!$I$9,YEAR(EG7)&"г.","")))))) -> 2032-06-01 | EH4: =IF(OR($P$6="",$P$6=0,$P$7="",$P$7=0,$P$8="",$P$7<1),"", IF(EH$8="","", IF($P$6=Lists!$I$6,EH6, IF($P$6=Lists!$I$7,INT(MONTH(EH7)/3)&"кв"&(YEAR(EH7)-2000)&"г", IF($P$6=Lists!$I$8,EH8&" год", IF($P$6=Lists!$I$9,YEAR(EH7)&"г.","")))))) -> 2032-07-01 | EI4: =IF(OR($P$6="",$P$6=0,$P$7="",$P$7=0,$P$8="",$P$7<1),"", IF(EI$8="","", IF($P$6=Lists!$I$6,EI6, IF($P$6=Lists!$I$7,INT(MONTH(EI7)/3)&"кв"&(YEAR(EI7)-2000)&"г", IF($P$6=Lists!$I$8,EI8&" год", IF($P$6=Lists!$I$9,YEAR(EI7)&"г.","")))))) -> 2032-08-01 | EJ4: =IF(OR($P$6="",$P$6=0,$P$7="",$P$7=0,$P$8="",$P$7<1),"", IF(EJ$8="","", IF($P$6=Lists!$I$6,EJ6, IF($P$6=Lists!$I$7,INT(MONTH(EJ7)/3)&"кв"&(YEAR(EJ7)-2000)&"г", IF($P$6=Lists!$I$8,EJ8&" год", IF($P$6=Lists!$I$9,YEAR(EJ7)&"г.","")))))) -> 2032-09-01 | EK4: =IF(OR($P$6="",$P$6=0,$P$7="",$P$7=0,$P$8="",$P$7<1),"", IF(EK$8="","", IF($P$6=Lists!$I$6,EK6, IF($P$6=Lists!$I$7,INT(MONTH(EK7)/3)&"кв"&(YEAR(EK7)-2000)&"г", IF($P$6=Lists!$I$8,EK8&" год", IF($P$6=Lists!$I$9,YEAR(EK7)&"г.","")))))) -> 2032-10-01 | EL4: =IF(OR($P$6="",$P$6=0,$P$7="",$P$7=0,$P$8="",$P$7<1),"", IF(EL$8="","", IF($P$6=Lists!$I$6,EL6, IF($P$6=Lists!$I$7,INT(MONTH(EL7)/3)&"кв"&(YEAR(EL7)-2000)&"г", IF($P$6=Lists!$I$8,EL8&" год", IF($P$6=Lists!$I$9,YEAR(EL7)&"г.","")))))) -> 2032-11-01 | EM4: =IF(OR($P$6="",$P$6=0,$P$7="",$P$7=0,$P$8="",$P$7<1),"", IF(EM$8="","", IF($P$6=Lists!$I$6,EM6, IF($P$6=Lists!$I$7,INT(MONTH(EM7)/3)&"кв"&(YEAR(EM7)-2000)&"г", IF($P$6=Lists!$I$8,EM8&" год", IF($P$6=Lists!$I$9,YEAR(EM7)&"г.","")))))) -> 2032-12-01 | EN4: =IF(OR($P$6="",$P$6=0,$P$7="",$P$7=0,$P$8="",$P$7<1),"", IF(EN$8="","", IF($P$6=Lists!$I$6,EN6, IF($P$6=Lists!$I$7,INT(MONTH(EN7)/3)&"кв"&(YEAR(EN7)-2000)&"г", IF($P$6=Lists!$I$8,EN8&" год", IF($P$6=Lists!$I$9,YEAR(EN7)&"г.","")))))) ->  | EO4: =IF(OR($P$6="",$P$6=0,$P$7="",$P$7=0,$P$8="",$P$7<1),"", IF(EO$8="","", IF($P$6=Lists!$I$6,EO6, IF($P$6=Lists!$I$7,INT(MONTH(EO7)/3)&"кв"&(YEAR(EO7)-2000)&"г", IF($P$6=Lists!$I$8,EO8&" год", IF($P$6=Lists!$I$9,YEAR(EO7)&"г.","")))))) ->  | EP4: =IF(OR($P$6="",$P$6=0,$P$7="",$P$7=0,$P$8="",$P$7<1),"", IF(EP$8="","", IF($P$6=Lists!$I$6,EP6, IF($P$6=Lists!$I$7,INT(MONTH(EP7)/3)&"кв"&(YEAR(EP7)-2000)&"г", IF($P$6=Lists!$I$8,EP8&" год", IF($P$6=Lists!$I$9,YEAR(EP7)&"г.","")))))) ->  | EQ4: =IF(OR($P$6="",$P$6=0,$P$7="",$P$7=0,$P$8="",$P$7<1),"", IF(EQ$8="","", IF($P$6=Lists!$I$6,EQ6, IF($P$6=Lists!$I$7,INT(MONTH(EQ7)/3)&"кв"&(YEAR(EQ7)-2000)&"г", IF($P$6=Lists!$I$8,EQ8&" год", IF($P$6=Lists!$I$9,YEAR(EQ7)&"г.","")))))) ->  | ER4: =IF(OR($P$6="",$P$6=0,$P$7="",$P$7=0,$P$8="",$P$7<1),"", IF(ER$8="","", IF($P$6=Lists!$I$6,ER6, IF($P$6=Lists!$I$7,INT(MONTH(ER7)/3)&"кв"&(YEAR(ER7)-2000)&"г", IF($P$6=Lists!$I$8,ER8&" год", IF($P$6=Lists!$I$9,YEAR(ER7)&"г.","")))))) ->  | ES4: =IF(OR($P$6="",$P$6=0,$P$7="",$P$7=0,$P$8="",$P$7<1),"", IF(ES$8="","", IF($P$6=Lists!$I$6,ES6, IF($P$6=Lists!$I$7,INT(MONTH(ES7)/3)&"кв"&(YEAR(ES7)-2000)&"г", IF($P$6=Lists!$I$8,ES8&" год", IF($P$6=Lists!$I$9,YEAR(ES7)&"г.","")))))) ->  | ET4: =IF(OR($P$6="",$P$6=0,$P$7="",$P$7=0,$P$8="",$P$7<1),"", IF(ET$8="","", IF($P$6=Lists!$I$6,ET6, IF($P$6=Lists!$I$7,INT(MONTH(ET7)/3)&"кв"&(YEAR(ET7)-2000)&"г", IF($P$6=Lists!$I$8,ET8&" год", IF($P$6=Lists!$I$9,YEAR(ET7)&"г.","")))))) ->  | EU4: =IF(OR($P$6="",$P$6=0,$P$7="",$P$7=0,$P$8="",$P$7<1),"", IF(EU$8="","", IF($P$6=Lists!$I$6,EU6, IF($P$6=Lists!$I$7,INT(MONTH(EU7)/3)&"кв"&(YEAR(EU7)-2000)&"г", IF($P$6=Lists!$I$8,EU8&" год", IF($P$6=Lists!$I$9,YEAR(EU7)&"г.","")))))) ->  | EV4: =IF(OR($P$6="",$P$6=0,$P$7="",$P$7=0,$P$8="",$P$7<1),"", IF(EV$8="","", IF($P$6=Lists!$I$6,EV6, IF($P$6=Lists!$I$7,INT(MONTH(EV7)/3)&"кв"&(YEAR(EV7)-2000)&"г", IF($P$6=Lists!$I$8,EV8&" год", IF($P$6=Lists!$I$9,YEAR(EV7)&"г.","")))))) ->  | EW4: =IF(OR($P$6="",$P$6=0,$P$7="",$P$7=0,$P$8="",$P$7<1),"", IF(EW$8="","", IF($P$6=Lists!$I$6,EW6, IF($P$6=Lists!$I$7,INT(MONTH(EW7)/3)&"кв"&(YEAR(EW7)-2000)&"г", IF($P$6=Lists!$I$8,EW8&" год", IF($P$6=Lists!$I$9,YEAR(EW7)&"г.","")))))) ->  | EX4: =IF(OR($P$6="",$P$6=0,$P$7="",$P$7=0,$P$8="",$P$7<1),"", IF(EX$8="","", IF($P$6=Lists!$I$6,EX6, IF($P$6=Lists!$I$7,INT(MONTH(EX7)/3)&"кв"&(YEAR(EX7)-2000)&"г", IF($P$6=Lists!$I$8,EX8&" год", IF($P$6=Lists!$I$9,YEAR(EX7)&"г.","")))))) ->  | EY4: =IF(OR($P$6="",$P$6=0,$P$7="",$P$7=0,$P$8="",$P$7<1),"", IF(EY$8="","", IF($P$6=Lists!$I$6,EY6, IF($P$6=Lists!$I$7,INT(MONTH(EY7)/3)&"кв"&(YEAR(EY7)-2000)&"г", IF($P$6=Lists!$I$8,EY8&" год", IF($P$6=Lists!$I$9,YEAR(EY7)&"г.","")))))) ->  | EZ4: =IF(OR($P$6="",$P$6=0,$P$7="",$P$7=0,$P$8="",$P$7<1),"", IF(EZ$8="","", IF($P$6=Lists!$I$6,EZ6, IF($P$6=Lists!$I$7,INT(MONTH(EZ7)/3)&"кв"&(YEAR(EZ7)-2000)&"г", IF($P$6=Lists!$I$8,EZ8&" год", IF($P$6=Lists!$I$9,YEAR(EZ7)&"г.","")))))) ->  | FA4: =IF(OR($P$6="",$P$6=0,$P$7="",$P$7=0,$P$8="",$P$7<1),"", IF(FA$8="","", IF($P$6=Lists!$I$6,FA6, IF($P$6=Lists!$I$7,INT(MONTH(FA7)/3)&"кв"&(YEAR(FA7)-2000)&"г", IF($P$6=Lists!$I$8,FA8&" год", IF($P$6=Lists!$I$9,YEAR(FA7)&"г.","")))))) ->  | FB4: =IF(OR($P$6="",$P$6=0,$P$7="",$P$7=0,$P$8="",$P$7<1),"", IF(FB$8="","", IF($P$6=Lists!$I$6,FB6, IF($P$6=Lists!$I$7,INT(MONTH(FB7)/3)&"кв"&(YEAR(FB7)-2000)&"г", IF($P$6=Lists!$I$8,FB8&" год", IF($P$6=Lists!$I$9,YEAR(FB7)&"г.","")))))) ->  | FC4: =IF(OR($P$6="",$P$6=0,$P$7="",$P$7=0,$P$8="",$P$7<1),"", IF(FC$8="","", IF($P$6=Lists!$I$6,FC6, IF($P$6=Lists!$I$7,INT(MONTH(FC7)/3)&"кв"&(YEAR(FC7)-2000)&"г", IF($P$6=Lists!$I$8,FC8&" год", IF($P$6=Lists!$I$9,YEAR(FC7)&"г.","")))))) ->  | FD4: =IF(OR($P$6="",$P$6=0,$P$7="",$P$7=0,$P$8="",$P$7<1),"", IF(FD$8="","", IF($P$6=Lists!$I$6,FD6, IF($P$6=Lists!$I$7,INT(MONTH(FD7)/3)&"кв"&(YEAR(FD7)-2000)&"г", IF($P$6=Lists!$I$8,FD8&" год", IF($P$6=Lists!$I$9,YEAR(FD7)&"г.","")))))) ->  | FE4: =IF(OR($P$6="",$P$6=0,$P$7="",$P$7=0,$P$8="",$P$7<1),"", IF(FE$8="","", IF($P$6=Lists!$I$6,FE6, IF($P$6=Lists!$I$7,INT(MONTH(FE7)/3)&"кв"&(YEAR(FE7)-2000)&"г", IF($P$6=Lists!$I$8,FE8&" год", IF($P$6=Lists!$I$9,YEAR(FE7)&"г.","")))))) ->  | FF4: =IF(OR($P$6="",$P$6=0,$P$7="",$P$7=0,$P$8="",$P$7<1),"", IF(FF$8="","", IF($P$6=Lists!$I$6,FF6, IF($P$6=Lists!$I$7,INT(MONTH(FF7)/3)&"кв"&(YEAR(FF7)-2000)&"г", IF($P$6=Lists!$I$8,FF8&" год", IF($P$6=Lists!$I$9,YEAR(FF7)&"г.","")))))) ->  | FG4: =IF(OR($P$6="",$P$6=0,$P$7="",$P$7=0,$P$8="",$P$7<1),"", IF(FG$8="","", IF($P$6=Lists!$I$6,FG6, IF($P$6=Lists!$I$7,INT(MONTH(FG7)/3)&"кв"&(YEAR(FG7)-2000)&"г", IF($P$6=Lists!$I$8,FG8&" год", IF($P$6=Lists!$I$9,YEAR(FG7)&"г.","")))))) ->  | FH4: =IF(OR($P$6="",$P$6=0,$P$7="",$P$7=0,$P$8="",$P$7<1),"", IF(FH$8="","", IF($P$6=Lists!$I$6,FH6, IF($P$6=Lists!$I$7,INT(MONTH(FH7)/3)&"кв"&(YEAR(FH7)-2000)&"г", IF($P$6=Lists!$I$8,FH8&" год", IF($P$6=Lists!$I$9,YEAR(FH7)&"г.","")))))) ->  | FI4: =IF(OR($P$6="",$P$6=0,$P$7="",$P$7=0,$P$8="",$P$7<1),"", IF(FI$8="","", IF($P$6=Lists!$I$6,FI6, IF($P$6=Lists!$I$7,INT(MONTH(FI7)/3)&"кв"&(YEAR(FI7)-2000)&"г", IF($P$6=Lists!$I$8,FI8&" год", IF($P$6=Lists!$I$9,YEAR(FI7)&"г.","")))))) ->  | FJ4: =IF(OR($P$6="",$P$6=0,$P$7="",$P$7=0,$P$8="",$P$7<1),"", IF(FJ$8="","", IF($P$6=Lists!$I$6,FJ6, IF($P$6=Lists!$I$7,INT(MONTH(FJ7)/3)&"кв"&(YEAR(FJ7)-2000)&"г", IF($P$6=Lists!$I$8,FJ8&" год", IF($P$6=Lists!$I$9,YEAR(FJ7)&"г.","")))))) ->  | FK4: =IF(OR($P$6="",$P$6=0,$P$7="",$P$7=0,$P$8="",$P$7<1),"", IF(FK$8="","", IF($P$6=Lists!$I$6,FK6, IF($P$6=Lists!$I$7,INT(MONTH(FK7)/3)&"кв"&(YEAR(FK7)-2000)&"г", IF($P$6=Lists!$I$8,FK8&" год", IF($P$6=Lists!$I$9,YEAR(FK7)&"г.","")))))) ->  | FL4: =IF(OR($P$6="",$P$6=0,$P$7="",$P$7=0,$P$8="",$P$7<1),"", IF(FL$8="","", IF($P$6=Lists!$I$6,FL6, IF($P$6=Lists!$I$7,INT(MONTH(FL7)/3)&"кв"&(YEAR(FL7)-2000)&"г", IF($P$6=Lists!$I$8,FL8&" год", IF($P$6=Lists!$I$9,YEAR(FL7)&"г.","")))))) ->  | FM4: =IF(OR($P$6="",$P$6=0,$P$7="",$P$7=0,$P$8="",$P$7<1),"", IF(FM$8="","", IF($P$6=Lists!$I$6,FM6, IF($P$6=Lists!$I$7,INT(MONTH(FM7)/3)&"кв"&(YEAR(FM7)-2000)&"г", IF($P$6=Lists!$I$8,FM8&" год", IF($P$6=Lists!$I$9,YEAR(FM7)&"г.","")))))) ->  | FN4: =IF(OR($P$6="",$P$6=0,$P$7="",$P$7=0,$P$8="",$P$7<1),"", IF(FN$8="","", IF($P$6=Lists!$I$6,FN6, IF($P$6=Lists!$I$7,INT(MONTH(FN7)/3)&"кв"&(YEAR(FN7)-2000)&"г", IF($P$6=Lists!$I$8,FN8&" год", IF($P$6=Lists!$I$9,YEAR(FN7)&"г.","")))))) ->  | FO4: =IF(OR($P$6="",$P$6=0,$P$7="",$P$7=0,$P$8="",$P$7<1),"", IF(FO$8="","", IF($P$6=Lists!$I$6,FO6, IF($P$6=Lists!$I$7,INT(MONTH(FO7)/3)&"кв"&(YEAR(FO7)-2000)&"г", IF($P$6=Lists!$I$8,FO8&" год", IF($P$6=Lists!$I$9,YEAR(FO7)&"г.","")))))) ->  | FP4: =IF(OR($P$6="",$P$6=0,$P$7="",$P$7=0,$P$8="",$P$7<1),"", IF(FP$8="","", IF($P$6=Lists!$I$6,FP6, IF($P$6=Lists!$I$7,INT(MONTH(FP7)/3)&"кв"&(YEAR(FP7)-2000)&"г", IF($P$6=Lists!$I$8,FP8&" год", IF($P$6=Lists!$I$9,YEAR(FP7)&"г.","")))))) ->  | FQ4: =IF(OR($P$6="",$P$6=0,$P$7="",$P$7=0,$P$8="",$P$7<1),"", IF(FQ$8="","", IF($P$6=Lists!$I$6,FQ6, IF($P$6=Lists!$I$7,INT(MONTH(FQ7)/3)&"кв"&(YEAR(FQ7)-2000)&"г", IF($P$6=Lists!$I$8,FQ8&" год", IF($P$6=Lists!$I$9,YEAR(FQ7)&"г.","")))))) ->  | FR4: =IF(OR($P$6="",$P$6=0,$P$7="",$P$7=0,$P$8="",$P$7<1),"", IF(FR$8="","", IF($P$6=Lists!$I$6,FR6, IF($P$6=Lists!$I$7,INT(MONTH(FR7)/3)&"кв"&(YEAR(FR7)-2000)&"г", IF($P$6=Lists!$I$8,FR8&" год", IF($P$6=Lists!$I$9,YEAR(FR7)&"г.","")))))) ->  | FS4: =IF(OR($P$6="",$P$6=0,$P$7="",$P$7=0,$P$8="",$P$7<1),"", IF(FS$8="","", IF($P$6=Lists!$I$6,FS6, IF($P$6=Lists!$I$7,INT(MONTH(FS7)/3)&"кв"&(YEAR(FS7)-2000)&"г", IF($P$6=Lists!$I$8,FS8&" год", IF($P$6=Lists!$I$9,YEAR(FS7)&"г.","")))))) ->  | FT4: =IF(OR($P$6="",$P$6=0,$P$7="",$P$7=0,$P$8="",$P$7<1),"", IF(FT$8="","", IF($P$6=Lists!$I$6,FT6, IF($P$6=Lists!$I$7,INT(MONTH(FT7)/3)&"кв"&(YEAR(FT7)-2000)&"г", IF($P$6=Lists!$I$8,FT8&" год", IF($P$6=Lists!$I$9,YEAR(FT7)&"г.","")))))) ->  | FU4: =IF(OR($P$6="",$P$6=0,$P$7="",$P$7=0,$P$8="",$P$7<1),"", IF(FU$8="","", IF($P$6=Lists!$I$6,FU6, IF($P$6=Lists!$I$7,INT(MONTH(FU7)/3)&"кв"&(YEAR(FU7)-2000)&"г", IF($P$6=Lists!$I$8,FU8&" год", IF($P$6=Lists!$I$9,YEAR(FU7)&"г.","")))))) ->  | FV4: =IF(OR($P$6="",$P$6=0,$P$7="",$P$7=0,$P$8="",$P$7<1),"", IF(FV$8="","", IF($P$6=Lists!$I$6,FV6, IF($P$6=Lists!$I$7,INT(MONTH(FV7)/3)&"кв"&(YEAR(FV7)-2000)&"г", IF($P$6=Lists!$I$8,FV8&" год", IF($P$6=Lists!$I$9,YEAR(FV7)&"г.","")))))) ->  | FW4: =IF(OR($P$6="",$P$6=0,$P$7="",$P$7=0,$P$8="",$P$7<1),"", IF(FW$8="","", IF($P$6=Lists!$I$6,FW6, IF($P$6=Lists!$I$7,INT(MONTH(FW7)/3)&"кв"&(YEAR(FW7)-2000)&"г", IF($P$6=Lists!$I$8,FW8&" год", IF($P$6=Lists!$I$9,YEAR(FW7)&"г.","")))))) ->  | FX4: =IF(OR($P$6="",$P$6=0,$P$7="",$P$7=0,$P$8="",$P$7<1),"", IF(FX$8="","", IF($P$6=Lists!$I$6,FX6, IF($P$6=Lists!$I$7,INT(MONTH(FX7)/3)&"кв"&(YEAR(FX7)-2000)&"г", IF($P$6=Lists!$I$8,FX8&" год", IF($P$6=Lists!$I$9,YEAR(FX7)&"г.","")))))) ->  | FY4: =IF(OR($P$6="",$P$6=0,$P$7="",$P$7=0,$P$8="",$P$7<1),"", IF(FY$8="","", IF($P$6=Lists!$I$6,FY6, IF($P$6=Lists!$I$7,INT(MONTH(FY7)/3)&"кв"&(YEAR(FY7)-2000)&"г", IF($P$6=Lists!$I$8,FY8&" год", IF($P$6=Lists!$I$9,YEAR(FY7)&"г.","")))))) ->  | FZ4: =IF(OR($P$6="",$P$6=0,$P$7="",$P$7=0,$P$8="",$P$7<1),"", IF(FZ$8="","", IF($P$6=Lists!$I$6,FZ6, IF($P$6=Lists!$I$7,INT(MONTH(FZ7)/3)&"кв"&(YEAR(FZ7)-2000)&"г", IF($P$6=Lists!$I$8,FZ8&" год", IF($P$6=Lists!$I$9,YEAR(FZ7)&"г.","")))))) ->  | GA4: =IF(OR($P$6="",$P$6=0,$P$7="",$P$7=0,$P$8="",$P$7<1),"", IF(GA$8="","", IF($P$6=Lists!$I$6,GA6, IF($P$6=Lists!$I$7,INT(MONTH(GA7)/3)&"кв"&(YEAR(GA7)-2000)&"г", IF($P$6=Lists!$I$8,GA8&" год", IF($P$6=Lists!$I$9,YEAR(GA7)&"г.","")))))) ->  | GB4: =IF(OR($P$6="",$P$6=0,$P$7="",$P$7=0,$P$8="",$P$7<1),"", IF(GB$8="","", IF($P$6=Lists!$I$6,GB6, IF($P$6=Lists!$I$7,INT(MONTH(GB7)/3)&"кв"&(YEAR(GB7)-2000)&"г", IF($P$6=Lists!$I$8,GB8&" год", IF($P$6=Lists!$I$9,YEAR(GB7)&"г.","")))))) ->  | GC4: =IF(OR($P$6="",$P$6=0,$P$7="",$P$7=0,$P$8="",$P$7<1),"", IF(GC$8="","", IF($P$6=Lists!$I$6,GC6, IF($P$6=Lists!$I$7,INT(MONTH(GC7)/3)&"кв"&(YEAR(GC7)-2000)&"г", IF($P$6=Lists!$I$8,GC8&" год", IF($P$6=Lists!$I$9,YEAR(GC7)&"г.","")))))) ->  | GD4: =IF(OR($P$6="",$P$6=0,$P$7="",$P$7=0,$P$8="",$P$7<1),"", IF(GD$8="","", IF($P$6=Lists!$I$6,GD6, IF($P$6=Lists!$I$7,INT(MONTH(GD7)/3)&"кв"&(YEAR(GD7)-2000)&"г", IF($P$6=Lists!$I$8,GD8&" год", IF($P$6=Lists!$I$9,YEAR(GD7)&"г.","")))))) ->  | GE4: =IF(OR($P$6="",$P$6=0,$P$7="",$P$7=0,$P$8="",$P$7<1),"", IF(GE$8="","", IF($P$6=Lists!$I$6,GE6, IF($P$6=Lists!$I$7,INT(MONTH(GE7)/3)&"кв"&(YEAR(GE7)-2000)&"г", IF($P$6=Lists!$I$8,GE8&" год", IF($P$6=Lists!$I$9,YEAR(GE7)&"г.","")))))) ->  | GF4: =IF(OR($P$6="",$P$6=0,$P$7="",$P$7=0,$P$8="",$P$7<1),"", IF(GF$8="","", IF($P$6=Lists!$I$6,GF6, IF($P$6=Lists!$I$7,INT(MONTH(GF7)/3)&"кв"&(YEAR(GF7)-2000)&"г", IF($P$6=Lists!$I$8,GF8&" год", IF($P$6=Lists!$I$9,YEAR(GF7)&"г.","")))))) ->  | GG4: =IF(OR($P$6="",$P$6=0,$P$7="",$P$7=0,$P$8="",$P$7<1),"", IF(GG$8="","", IF($P$6=Lists!$I$6,GG6, IF($P$6=Lists!$I$7,INT(MONTH(GG7)/3)&"кв"&(YEAR(GG7)-2000)&"г", IF($P$6=Lists!$I$8,GG8&" год", IF($P$6=Lists!$I$9,YEAR(GG7)&"г.","")))))) ->  | GH4: =IF(OR($P$6="",$P$6=0,$P$7="",$P$7=0,$P$8="",$P$7<1),"", IF(GH$8="","", IF($P$6=Lists!$I$6,GH6, IF($P$6=Lists!$I$7,INT(MONTH(GH7)/3)&"кв"&(YEAR(GH7)-2000)&"г", IF($P$6=Lists!$I$8,GH8&" год", IF($P$6=Lists!$I$9,YEAR(GH7)&"г.","")))))) ->  | GI4: =IF(OR($P$6="",$P$6=0,$P$7="",$P$7=0,$P$8="",$P$7<1),"", IF(GI$8="","", IF($P$6=Lists!$I$6,GI6, IF($P$6=Lists!$I$7,INT(MONTH(GI7)/3)&"кв"&(YEAR(GI7)-2000)&"г", IF($P$6=Lists!$I$8,GI8&" год", IF($P$6=Lists!$I$9,YEAR(GI7)&"г.","")))))) ->  | GJ4: =IF(OR($P$6="",$P$6=0,$P$7="",$P$7=0,$P$8="",$P$7<1),"", IF(GJ$8="","", IF($P$6=Lists!$I$6,GJ6, IF($P$6=Lists!$I$7,INT(MONTH(GJ7)/3)&"кв"&(YEAR(GJ7)-2000)&"г", IF($P$6=Lists!$I$8,GJ8&" год", IF($P$6=Lists!$I$9,YEAR(GJ7)&"г.","")))))) ->  | GK4: =IF(OR($P$6="",$P$6=0,$P$7="",$P$7=0,$P$8="",$P$7<1),"", IF(GK$8="","", IF($P$6=Lists!$I$6,GK6, IF($P$6=Lists!$I$7,INT(MONTH(GK7)/3)&"кв"&(YEAR(GK7)-2000)&"г", IF($P$6=Lists!$I$8,GK8&" год", IF($P$6=Lists!$I$9,YEAR(GK7)&"г.","")))))) ->  | GL4: =IF(OR($P$6="",$P$6=0,$P$7="",$P$7=0,$P$8="",$P$7<1),"", IF(GL$8="","", IF($P$6=Lists!$I$6,GL6, IF($P$6=Lists!$I$7,INT(MONTH(GL7)/3)&"кв"&(YEAR(GL7)-2000)&"г", IF($P$6=Lists!$I$8,GL8&" год", IF($P$6=Lists!$I$9,YEAR(GL7)&"г.","")))))) ->  | GM4: =IF(OR($P$6="",$P$6=0,$P$7="",$P$7=0,$P$8="",$P$7<1),"", IF(GM$8="","", IF($P$6=Lists!$I$6,GM6, IF($P$6=Lists!$I$7,INT(MONTH(GM7)/3)&"кв"&(YEAR(GM7)-2000)&"г", IF($P$6=Lists!$I$8,GM8&" год", IF($P$6=Lists!$I$9,YEAR(GM7)&"г.","")))))) ->  | GN4: =IF(OR($P$6="",$P$6=0,$P$7="",$P$7=0,$P$8="",$P$7<1),"", IF(GN$8="","", IF($P$6=Lists!$I$6,GN6, IF($P$6=Lists!$I$7,INT(MONTH(GN7)/3)&"кв"&(YEAR(GN7)-2000)&"г", IF($P$6=Lists!$I$8,GN8&" год", IF($P$6=Lists!$I$9,YEAR(GN7)&"г.","")))))) ->  | GO4: =IF(OR($P$6="",$P$6=0,$P$7="",$P$7=0,$P$8="",$P$7<1),"", IF(GO$8="","", IF($P$6=Lists!$I$6,GO6, IF($P$6=Lists!$I$7,INT(MONTH(GO7)/3)&"кв"&(YEAR(GO7)-2000)&"г", IF($P$6=Lists!$I$8,GO8&" год", IF($P$6=Lists!$I$9,YEAR(GO7)&"г.","")))))) ->  | GP4: =IF(OR($P$6="",$P$6=0,$P$7="",$P$7=0,$P$8="",$P$7<1),"", IF(GP$8="","", IF($P$6=Lists!$I$6,GP6, IF($P$6=Lists!$I$7,INT(MONTH(GP7)/3)&"кв"&(YEAR(GP7)-2000)&"г", IF($P$6=Lists!$I$8,GP8&" год", IF($P$6=Lists!$I$9,YEAR(GP7)&"г.","")))))) ->  | GQ4: =IF(OR($P$6="",$P$6=0,$P$7="",$P$7=0,$P$8="",$P$7<1),"", IF(GQ$8="","", IF($P$6=Lists!$I$6,GQ6, IF($P$6=Lists!$I$7,INT(MONTH(GQ7)/3)&"кв"&(YEAR(GQ7)-2000)&"г", IF($P$6=Lists!$I$8,GQ8&" год", IF($P$6=Lists!$I$9,YEAR(GQ7)&"г.","")))))) ->  | GR4: =IF(OR($P$6="",$P$6=0,$P$7="",$P$7=0,$P$8="",$P$7<1),"", IF(GR$8="","", IF($P$6=Lists!$I$6,GR6, IF($P$6=Lists!$I$7,INT(MONTH(GR7)/3)&"кв"&(YEAR(GR7)-2000)&"г", IF($P$6=Lists!$I$8,GR8&" год", IF($P$6=Lists!$I$9,YEAR(GR7)&"г.","")))))) ->  | GS4: =IF(OR($P$6="",$P$6=0,$P$7="",$P$7=0,$P$8="",$P$7<1),"", IF(GS$8="","", IF($P$6=Lists!$I$6,GS6, IF($P$6=Lists!$I$7,INT(MONTH(GS7)/3)&"кв"&(YEAR(GS7)-2000)&"г", IF($P$6=Lists!$I$8,GS8&" год", IF($P$6=Lists!$I$9,YEAR(GS7)&"г.","")))))) ->  | GT4: =IF(OR($P$6="",$P$6=0,$P$7="",$P$7=0,$P$8="",$P$7<1),"", IF(GT$8="","", IF($P$6=Lists!$I$6,GT6, IF($P$6=Lists!$I$7,INT(MONTH(GT7)/3)&"кв"&(YEAR(GT7)-2000)&"г", IF($P$6=Lists!$I$8,GT8&" год", IF($P$6=Lists!$I$9,YEAR(GT7)&"г.","")))))) ->  | GU4: =IF(OR($P$6="",$P$6=0,$P$7="",$P$7=0,$P$8="",$P$7<1),"", IF(GU$8="","", IF($P$6=Lists!$I$6,GU6, IF($P$6=Lists!$I$7,INT(MONTH(GU7)/3)&"кв"&(YEAR(GU7)-2000)&"г", IF($P$6=Lists!$I$8,GU8&" год", IF($P$6=Lists!$I$9,YEAR(GU7)&"г.","")))))) ->  | GV4: =IF(OR($P$6="",$P$6=0,$P$7="",$P$7=0,$P$8="",$P$7<1),"", IF(GV$8="","", IF($P$6=Lists!$I$6,GV6, IF($P$6=Lists!$I$7,INT(MONTH(GV7)/3)&"кв"&(YEAR(GV7)-2000)&"г", IF($P$6=Lists!$I$8,GV8&" год", IF($P$6=Lists!$I$9,YEAR(GV7)&"г.","")))))) -> 
B6: =ROW() -> 6 | H6: минимальный период расчетов | I6: минимальный период расчетов | M6: тип периода | P6: месяц | U6: =X6 -> 2023-01-01 | X6: =IF(OR($P$6="",$P$6=0,$P$7="",$P$7=0,$P$8="",$P$7<1),"", IF(X$8="","", IF(X$8=1,EOMONTH($P$7,-1)+1,W7+1))) -> 2023-01-01 | Y6: =IF(OR($P$6="",$P$6=0,$P$7="",$P$7=0,$P$8="",$P$7<1),"", IF(Y$8="","", IF(Y$8=1,EOMONTH($P$7,-1)+1,X7+1))) -> 2023-02-01 | Z6: 2023-03-01 | AA6: 2023-04-01 | AB6: 2023-05-01 | AC6: 2023-06-01 | AD6: 2023-07-01 | AE6: =IF(OR($P$6="",$P$6=0,$P$7="",$P$7=0,$P$8="",$P$7<1),"", IF(AE$8="","", IF(AE$8=1,EOMONTH($P$7,-1)+1,AD7+1))) -> 2023-08-01 | AF6: =IF(OR($P$6="",$P$6=0,$P$7="",$P$7=0,$P$8="",$P$7<1),"", IF(AF$8="","", IF(AF$8=1,EOMONTH($P$7,-1)+1,AE7+1))) -> 2023-09-01 | AG6: =IF(OR($P$6="",$P$6=0,$P$7="",$P$7=0,$P$8="",$P$7<1),"", IF(AG$8="","", IF(AG$8=1,EOMONTH($P$7,-1)+1,AF7+1))) -> 2023-10-01 | AH6: =IF(OR($P$6="",$P$6=0,$P$7="",$P$7=0,$P$8="",$P$7<1),"", IF(AH$8="","", IF(AH$8=1,EOMONTH($P$7,-1)+1,AG7+1))) -> 2023-11-01 | AI6: =IF(OR($P$6="",$P$6=0,$P$7="",$P$7=0,$P$8="",$P$7<1),"", IF(AI$8="","", IF(AI$8=1,EOMONTH($P$7,-1)+1,AH7+1))) -> 2023-12-01 | AJ6: =IF(OR($P$6="",$P$6=0,$P$7="",$P$7=0,$P$8="",$P$7<1),"", IF(AJ$8="","", IF(AJ$8=1,EOMONTH($P$7,-1)+1,AI7+1))) -> 2024-01-01 | AK6: =IF(OR($P$6="",$P$6=0,$P$7="",$P$7=0,$P$8="",$P$7<1),"", IF(AK$8="","", IF(AK$8=1,EOMONTH($P$7,-1)+1,AJ7+1))) -> 2024-02-01 | AL6: =IF(OR($P$6="",$P$6=0,$P$7="",$P$7=0,$P$8="",$P$7<1),"", IF(AL$8="","", IF(AL$8=1,EOMONTH($P$7,-1)+1,AK7+1))) -> 2024-03-01 | AM6: =IF(OR($P$6="",$P$6=0,$P$7="",$P$7=0,$P$8="",$P$7<1),"", IF(AM$8="","", IF(AM$8=1,EOMONTH($P$7,-1)+1,AL7+1))) -> 2024-04-01 | AN6: =IF(OR($P$6="",$P$6=0,$P$7="",$P$7=0,$P$8="",$P$7<1),"", IF(AN$8="","", IF(AN$8=1,EOMONTH($P$7,-1)+1,AM7+1))) -> 2024-05-01 | AO6: =IF(OR($P$6="",$P$6=0,$P$7="",$P$7=0,$P$8="",$P$7<1),"", IF(AO$8="","", IF(AO$8=1,EOMONTH($P$7,-1)+1,AN7+1))) -> 2024-06-01 | AP6: =IF(OR($P$6="",$P$6=0,$P$7="",$P$7=0,$P$8="",$P$7<1),"", IF(AP$8="","", IF(AP$8=1,EOMONTH($P$7,-1)+1,AO7+1))) -> 2024-07-01 | AQ6: =IF(OR($P$6="",$P$6=0,$P$7="",$P$7=0,$P$8="",$P$7<1),"", IF(AQ$8="","", IF(AQ$8=1,EOMONTH($P$7,-1)+1,AP7+1))) -> 2024-08-01 | AR6: =IF(OR($P$6="",$P$6=0,$P$7="",$P$7=0,$P$8="",$P$7<1),"", IF(AR$8="","", IF(AR$8=1,EOMONTH($P$7,-1)+1,AQ7+1))) -> 2024-09-01 | AS6: =IF(OR($P$6="",$P$6=0,$P$7="",$P$7=0,$P$8="",$P$7<1),"", IF(AS$8="","", IF(AS$8=1,EOMONTH($P$7,-1)+1,AR7+1))) -> 2024-10-01 | AT6: =IF(OR($P$6="",$P$6=0,$P$7="",$P$7=0,$P$8="",$P$7<1),"", IF(AT$8="","", IF(AT$8=1,EOMONTH($P$7,-1)+1,AS7+1))) -> 2024-11-01 | AU6: =IF(OR($P$6="",$P$6=0,$P$7="",$P$7=0,$P$8="",$P$7<1),"", IF(AU$8="","", IF(AU$8=1,EOMONTH($P$7,-1)+1,AT7+1))) -> 2024-12-01 | AV6: =IF(OR($P$6="",$P$6=0,$P$7="",$P$7=0,$P$8="",$P$7<1),"", IF(AV$8="","", IF(AV$8=1,EOMONTH($P$7,-1)+1,AU7+1))) -> 2025-01-01 | AW6: =IF(OR($P$6="",$P$6=0,$P$7="",$P$7=0,$P$8="",$P$7<1),"", IF(AW$8="","", IF(AW$8=1,EOMONTH($P$7,-1)+1,AV7+1))) -> 2025-02-01 | AX6: =IF(OR($P$6="",$P$6=0,$P$7="",$P$7=0,$P$8="",$P$7<1),"", IF(AX$8="","", IF(AX$8=1,EOMONTH($P$7,-1)+1,AW7+1))) -> 2025-03-01 | AY6: =IF(OR($P$6="",$P$6=0,$P$7="",$P$7=0,$P$8="",$P$7<1),"", IF(AY$8="","", IF(AY$8=1,EOMONTH($P$7,-1)+1,AX7+1))) -> 2025-04-01 | AZ6: =IF(OR($P$6="",$P$6=0,$P$7="",$P$7=0,$P$8="",$P$7<1),"", IF(AZ$8="","", IF(AZ$8=1,EOMONTH($P$7,-1)+1,AY7+1))) -> 2025-05-01 | BA6: =IF(OR($P$6="",$P$6=0,$P$7="",$P$7=0,$P$8="",$P$7<1),"", IF(BA$8="","", IF(BA$8=1,EOMONTH($P$7,-1)+1,AZ7+1))) -> 2025-06-01 | BB6: =IF(OR($P$6="",$P$6=0,$P$7="",$P$7=0,$P$8="",$P$7<1),"", IF(BB$8="","", IF(BB$8=1,EOMONTH($P$7,-1)+1,BA7+1))) -> 2025-07-01 | BC6: =IF(OR($P$6="",$P$6=0,$P$7="",$P$7=0,$P$8="",$P$7<1),"", IF(BC$8="","", IF(BC$8=1,EOMONTH($P$7,-1)+1,BB7+1))) -> 2025-08-01 | BD6: =IF(OR($P$6="",$P$6=0,$P$7="",$P$7=0,$P$8="",$P$7<1),"", IF(BD$8="","", IF(BD$8=1,EOMONTH($P$7,-1)+1,BC7+1))) -> 2025-09-01 | BE6: =IF(OR($P$6="",$P$6=0,$P$7="",$P$7=0,$P$8="",$P$7<1),"", IF(BE$8="","", IF(BE$8=1,EOMONTH($P$7,-1)+1,BD7+1))) -> 2025-10-01 | BF6: =IF(OR($P$6="",$P$6=0,$P$7="",$P$7=0,$P$8="",$P$7<1),"", IF(BF$8="","", IF(BF$8=1,EOMONTH($P$7,-1)+1,BE7+1))) -> 2025-11-01 | BG6: =IF(OR($P$6="",$P$6=0,$P$7="",$P$7=0,$P$8="",$P$7<1),"", IF(BG$8="","", IF(BG$8=1,EOMONTH($P$7,-1)+1,BF7+1))) -> 2025-12-01 | BH6: =IF(OR($P$6="",$P$6=0,$P$7="",$P$7=0,$P$8="",$P$7<1),"", IF(BH$8="","", IF(BH$8=1,EOMONTH($P$7,-1)+1,BG7+1))) -> 2026-01-01 | BI6: =IF(OR($P$6="",$P$6=0,$P$7="",$P$7=0,$P$8="",$P$7<1),"", IF(BI$8="","", IF(BI$8=1,EOMONTH($P$7,-1)+1,BH7+1))) -> 2026-02-01 | BJ6: =IF(OR($P$6="",$P$6=0,$P$7="",$P$7=0,$P$8="",$P$7<1),"", IF(BJ$8="","", IF(BJ$8=1,EOMONTH($P$7,-1)+1,BI7+1))) -> 2026-03-01 | BK6: =IF(OR($P$6="",$P$6=0,$P$7="",$P$7=0,$P$8="",$P$7<1),"", IF(BK$8="","", IF(BK$8=1,EOMONTH($P$7,-1)+1,BJ7+1))) -> 2026-04-01 | BL6: =IF(OR($P$6="",$P$6=0,$P$7="",$P$7=0,$P$8="",$P$7<1),"", IF(BL$8="","", IF(BL$8=1,EOMONTH($P$7,-1)+1,BK7+1))) -> 2026-05-01 | BM6: =IF(OR($P$6="",$P$6=0,$P$7="",$P$7=0,$P$8="",$P$7<1),"", IF(BM$8="","", IF(BM$8=1,EOMONTH($P$7,-1)+1,BL7+1))) -> 2026-06-01 | BN6: =IF(OR($P$6="",$P$6=0,$P$7="",$P$7=0,$P$8="",$P$7<1),"", IF(BN$8="","", IF(BN$8=1,EOMONTH($P$7,-1)+1,BM7+1))) -> 2026-07-01 | BO6: =IF(OR($P$6="",$P$6=0,$P$7="",$P$7=0,$P$8="",$P$7<1),"", IF(BO$8="","", IF(BO$8=1,EOMONTH($P$7,-1)+1,BN7+1))) -> 2026-08-01 | BP6: =IF(OR($P$6="",$P$6=0,$P$7="",$P$7=0,$P$8="",$P$7<1),"", IF(BP$8="","", IF(BP$8=1,EOMONTH($P$7,-1)+1,BO7+1))) -> 2026-09-01 | BQ6: =IF(OR($P$6="",$P$6=0,$P$7="",$P$7=0,$P$8="",$P$7<1),"", IF(BQ$8="","", IF(BQ$8=1,EOMONTH($P$7,-1)+1,BP7+1))) -> 2026-10-01 | BR6: =IF(OR($P$6="",$P$6=0,$P$7="",$P$7=0,$P$8="",$P$7<1),"", IF(BR$8="","", IF(BR$8=1,EOMONTH($P$7,-1)+1,BQ7+1))) -> 2026-11-01 | BS6: =IF(OR($P$6="",$P$6=0,$P$7="",$P$7=0,$P$8="",$P$7<1),"", IF(BS$8="","", IF(BS$8=1,EOMONTH($P$7,-1)+1,BR7+1))) -> 2026-12-01 | BT6: =IF(OR($P$6="",$P$6=0,$P$7="",$P$7=0,$P$8="",$P$7<1),"", IF(BT$8="","", IF(BT$8=1,EOMONTH($P$7,-1)+1,BS7+1))) -> 2027-01-01 | BU6: =IF(OR($P$6="",$P$6=0,$P$7="",$P$7=0,$P$8="",$P$7<1),"", IF(BU$8="","", IF(BU$8=1,EOMONTH($P$7,-1)+1,BT7+1))) -> 2027-02-01 | BV6: =IF(OR($P$6="",$P$6=0,$P$7="",$P$7=0,$P$8="",$P$7<1),"", IF(BV$8="","", IF(BV$8=1,EOMONTH($P$7,-1)+1,BU7+1))) -> 2027-03-01 | BW6: =IF(OR($P$6="",$P$6=0,$P$7="",$P$7=0,$P$8="",$P$7<1),"", IF(BW$8="","", IF(BW$8=1,EOMONTH($P$7,-1)+1,BV7+1))) -> 2027-04-01 | BX6: =IF(OR($P$6="",$P$6=0,$P$7="",$P$7=0,$P$8="",$P$7<1),"", IF(BX$8="","", IF(BX$8=1,EOMONTH($P$7,-1)+1,BW7+1))) -> 2027-05-01 | BY6: =IF(OR($P$6="",$P$6=0,$P$7="",$P$7=0,$P$8="",$P$7<1),"", IF(BY$8="","", IF(BY$8=1,EOMONTH($P$7,-1)+1,BX7+1))) -> 2027-06-01 | BZ6: =IF(OR($P$6="",$P$6=0,$P$7="",$P$7=0,$P$8="",$P$7<1),"", IF(BZ$8="","", IF(BZ$8=1,EOMONTH($P$7,-1)+1,BY7+1))) -> 2027-07-01 | CA6: =IF(OR($P$6="",$P$6=0,$P$7="",$P$7=0,$P$8="",$P$7<1),"", IF(CA$8="","", IF(CA$8=1,EOMONTH($P$7,-1)+1,BZ7+1))) -> 2027-08-01 | CB6: =IF(OR($P$6="",$P$6=0,$P$7="",$P$7=0,$P$8="",$P$7<1),"", IF(CB$8="","", IF(CB$8=1,EOMONTH($P$7,-1)+1,CA7+1))) -> 2027-09-01 | CC6: =IF(OR($P$6="",$P$6=0,$P$7="",$P$7=0,$P$8="",$P$7<1),"", IF(CC$8="","", IF(CC$8=1,EOMONTH($P$7,-1)+1,CB7+1))) -> 2027-10-01 | CD6: =IF(OR($P$6="",$P$6=0,$P$7="",$P$7=0,$P$8="",$P$7<1),"", IF(CD$8="","", IF(CD$8=1,EOMONTH($P$7,-1)+1,CC7+1))) -> 2027-11-01 | CE6: =IF(OR($P$6="",$P$6=0,$P$7="",$P$7=0,$P$8="",$P$7<1),"", IF(CE$8="","", IF(CE$8=1,EOMONTH($P$7,-1)+1,CD7+1))) -> 2027-12-01 | CF6: =IF(OR($P$6="",$P$6=0,$P$7="",$P$7=0,$P$8="",$P$7<1),"", IF(CF$8="","", IF(CF$8=1,EOMONTH($P$7,-1)+1,CE7+1))) -> 2028-01-01 | CG6: =IF(OR($P$6="",$P$6=0,$P$7="",$P$7=0,$P$8="",$P$7<1),"", IF(CG$8="","", IF(CG$8=1,EOMONTH($P$7,-1)+1,CF7+1))) -> 2028-02-01 | CH6: =IF(OR($P$6="",$P$6=0,$P$7="",$P$7=0,$P$8="",$P$7<1),"", IF(CH$8="","", IF(CH$8=1,EOMONTH($P$7,-1)+1,CG7+1))) -> 2028-03-01 | CI6: =IF(OR($P$6="",$P$6=0,$P$7="",$P$7=0,$P$8="",$P$7<1),"", IF(CI$8="","", IF(CI$8=1,EOMONTH($P$7,-1)+1,CH7+1))) -> 2028-04-01 | CJ6: =IF(OR($P$6="",$P$6=0,$P$7="",$P$7=0,$P$8="",$P$7<1),"", IF(CJ$8="","", IF(CJ$8=1,EOMONTH($P$7,-1)+1,CI7+1))) -> 2028-05-01 | CK6: =IF(OR($P$6="",$P$6=0,$P$7="",$P$7=0,$P$8="",$P$7<1),"", IF(CK$8="","", IF(CK$8=1,EOMONTH($P$7,-1)+1,CJ7+1))) -> 2028-06-01 | CL6: =IF(OR($P$6="",$P$6=0,$P$7="",$P$7=0,$P$8="",$P$7<1),"", IF(CL$8="","", IF(CL$8=1,EOMONTH($P$7,-1)+1,CK7+1))) -> 2028-07-01 | CM6: =IF(OR($P$6="",$P$6=0,$P$7="",$P$7=0,$P$8="",$P$7<1),"", IF(CM$8="","", IF(CM$8=1,EOMONTH($P$7,-1)+1,CL7+1))) -> 2028-08-01 | CN6: =IF(OR($P$6="",$P$6=0,$P$7="",$P$7=0,$P$8="",$P$7<1),"", IF(CN$8="","", IF(CN$8=1,EOMONTH($P$7,-1)+1,CM7+1))) -> 2028-09-01 | CO6: =IF(OR($P$6="",$P$6=0,$P$7="",$P$7=0,$P$8="",$P$7<1),"", IF(CO$8="","", IF(CO$8=1,EOMONTH($P$7,-1)+1,CN7+1))) -> 2028-10-01 | CP6: =IF(OR($P$6="",$P$6=0,$P$7="",$P$7=0,$P$8="",$P$7<1),"", IF(CP$8="","", IF(CP$8=1,EOMONTH($P$7,-1)+1,CO7+1))) -> 2028-11-01 | CQ6: =IF(OR($P$6="",$P$6=0,$P$7="",$P$7=0,$P$8="",$P$7<1),"", IF(CQ$8="","", IF(CQ$8=1,EOMONTH($P$7,-1)+1,CP7+1))) -> 2028-12-01 | CR6: =IF(OR($P$6="",$P$6=0,$P$7="",$P$7=0,$P$8="",$P$7<1),"", IF(CR$8="","", IF(CR$8=1,EOMONTH($P$7,-1)+1,CQ7+1))) -> 2029-01-01 | CS6: =IF(OR($P$6="",$P$6=0,$P$7="",$P$7=0,$P$8="",$P$7<1),"", IF(CS$8="","", IF(CS$8=1,EOMONTH($P$7,-1)+1,CR7+1))) -> 2029-02-01 | CT6: =IF(OR($P$6="",$P$6=0,$P$7="",$P$7=0,$P$8="",$P$7<1),"", IF(CT$8="","", IF(CT$8=1,EOMONTH($P$7,-1)+1,CS7+1))) -> 2029-03-01 | CU6: =IF(OR($P$6="",$P$6=0,$P$7="",$P$7=0,$P$8="",$P$7<1),"", IF(CU$8="","", IF(CU$8=1,EOMONTH($P$7,-1)+1,CT7+1))) -> 2029-04-01 | CV6: =IF(OR($P$6="",$P$6=0,$P$7="",$P$7=0,$P$8="",$P$7<1),"", IF(CV$8="","", IF(CV$8=1,EOMONTH($P$7,-1)+1,CU7+1))) -> 2029-05-01 | CW6: =IF(OR($P$6="",$P$6=0,$P$7="",$P$7=0,$P$8="",$P$7<1),"", IF(CW$8="","", IF(CW$8=1,EOMONTH($P$7,-1)+1,CV7+1))) -> 2029-06-01 | CX6: =IF(OR($P$6="",$P$6=0,$P$7="",$P$7=0,$P$8="",$P$7<1),"", IF(CX$8="","", IF(CX$8=1,EOMONTH($P$7,-1)+1,CW7+1))) -> 2029-07-01 | CY6: =IF(OR($P$6="",$P$6=0,$P$7="",$P$7=0,$P$8="",$P$7<1),"", IF(CY$8="","", IF(CY$8=1,EOMONTH($P$7,-1)+1,CX7+1))) -> 2029-08-01 | CZ6: =IF(OR($P$6="",$P$6=0,$P$7="",$P$7=0,$P$8="",$P$7<1),"", IF(CZ$8="","", IF(CZ$8=1,EOMONTH($P$7,-1)+1,CY7+1))) -> 2029-09-01 | DA6: =IF(OR($P$6="",$P$6=0,$P$7="",$P$7=0,$P$8="",$P$7<1),"", IF(DA$8="","", IF(DA$8=1,EOMONTH($P$7,-1)+1,CZ7+1))) -> 2029-10-01 | DB6: =IF(OR($P$6="",$P$6=0,$P$7="",$P$7=0,$P$8="",$P$7<1),"", IF(DB$8="","", IF(DB$8=1,EOMONTH($P$7,-1)+1,DA7+1))) -> 2029-11-01 | DC6: =IF(OR($P$6="",$P$6=0,$P$7="",$P$7=0,$P$8="",$P$7<1),"", IF(DC$8="","", IF(DC$8=1,EOMONTH($P$7,-1)+1,DB7+1))) -> 2029-12-01 | DD6: =IF(OR($P$6="",$P$6=0,$P$7="",$P$7=0,$P$8="",$P$7<1),"", IF(DD$8="","", IF(DD$8=1,EOMONTH($P$7,-1)+1,DC7+1))) -> 2030-01-01 | DE6: =IF(OR($P$6="",$P$6=0,$P$7="",$P$7=0,$P$8="",$P$7<1),"", IF(DE$8="","", IF(DE$8=1,EOMONTH($P$7,-1)+1,DD7+1))) -> 2030-02-01 | DF6: =IF(OR($P$6="",$P$6=0,$P$7="",$P$7=0,$P$8="",$P$7<1),"", IF(DF$8="","", IF(DF$8=1,EOMONTH($P$7,-1)+1,DE7+1))) -> 2030-03-01 | DG6: =IF(OR($P$6="",$P$6=0,$P$7="",$P$7=0,$P$8="",$P$7<1),"", IF(DG$8="","", IF(DG$8=1,EOMONTH($P$7,-1)+1,DF7+1))) -> 2030-04-01 | DH6: =IF(OR($P$6="",$P$6=0,$P$7="",$P$7=0,$P$8="",$P$7<1),"", IF(DH$8="","", IF(DH$8=1,EOMONTH($P$7,-1)+1,DG7+1))) -> 2030-05-01 | DI6: =IF(OR($P$6="",$P$6=0,$P$7="",$P$7=0,$P$8="",$P$7<1),"", IF(DI$8="","", IF(DI$8=1,EOMONTH($P$7,-1)+1,DH7+1))) -> 2030-06-01 | DJ6: =IF(OR($P$6="",$P$6=0,$P$7="",$P$7=0,$P$8="",$P$7<1),"", IF(DJ$8="","", IF(DJ$8=1,EOMONTH($P$7,-1)+1,DI7+1))) -> 2030-07-01 | DK6: =IF(OR($P$6="",$P$6=0,$P$7="",$P$7=0,$P$8="",$P$7<1),"", IF(DK$8="","", IF(DK$8=1,EOMONTH($P$7,-1)+1,DJ7+1))) -> 2030-08-01 | DL6: =IF(OR($P$6="",$P$6=0,$P$7="",$P$7=0,$P$8="",$P$7<1),"", IF(DL$8="","", IF(DL$8=1,EOMONTH($P$7,-1)+1,DK7+1))) -> 2030-09-01 | DM6: =IF(OR($P$6="",$P$6=0,$P$7="",$P$7=0,$P$8="",$P$7<1),"", IF(DM$8="","", IF(DM$8=1,EOMONTH($P$7,-1)+1,DL7+1))) -> 2030-10-01 | DN6: =IF(OR($P$6="",$P$6=0,$P$7="",$P$7=0,$P$8="",$P$7<1),"", IF(DN$8="","", IF(DN$8=1,EOMONTH($P$7,-1)+1,DM7+1))) -> 2030-11-01 | DO6: =IF(OR($P$6="",$P$6=0,$P$7="",$P$7=0,$P$8="",$P$7<1),"", IF(DO$8="","", IF(DO$8=1,EOMONTH($P$7,-1)+1,DN7+1))) -> 2030-12-01 | DP6: =IF(OR($P$6="",$P$6=0,$P$7="",$P$7=0,$P$8="",$P$7<1),"", IF(DP$8="","", IF(DP$8=1,EOMONTH($P$7,-1)+1,DO7+1))) -> 2031-01-01 | DQ6: =IF(OR($P$6="",$P$6=0,$P$7="",$P$7=0,$P$8="",$P$7<1),"", IF(DQ$8="","", IF(DQ$8=1,EOMONTH($P$7,-1)+1,DP7+1))) -> 2031-02-01 | DR6: =IF(OR($P$6="",$P$6=0,$P$7="",$P$7=0,$P$8="",$P$7<1),"", IF(DR$8="","", IF(DR$8=1,EOMONTH($P$7,-1)+1,DQ7+1))) -> 2031-03-01 | DS6: =IF(OR($P$6="",$P$6=0,$P$7="",$P$7=0,$P$8="",$P$7<1),"", IF(DS$8="","", IF(DS$8=1,EOMONTH($P$7,-1)+1,DR7+1))) -> 2031-04-01 | DT6: =IF(OR($P$6="",$P$6=0,$P$7="",$P$7=0,$P$8="",$P$7<1),"", IF(DT$8="","", IF(DT$8=1,EOMONTH($P$7,-1)+1,DS7+1))) -> 2031-05-01 | DU6: =IF(OR($P$6="",$P$6=0,$P$7="",$P$7=0,$P$8="",$P$7<1),"", IF(DU$8="","", IF(DU$8=1,EOMONTH($P$7,-1)+1,DT7+1))) -> 2031-06-01 | DV6: =IF(OR($P$6="",$P$6=0,$P$7="",$P$7=0,$P$8="",$P$7<1),"", IF(DV$8="","", IF(DV$8=1,EOMONTH($P$7,-1)+1,DU7+1))) -> 2031-07-01 | DW6: =IF(OR($P$6="",$P$6=0,$P$7="",$P$7=0,$P$8="",$P$7<1),"", IF(DW$8="","", IF(DW$8=1,EOMONTH($P$7,-1)+1,DV7+1))) -> 2031-08-01 | DX6: =IF(OR($P$6="",$P$6=0,$P$7="",$P$7=0,$P$8="",$P$7<1),"", IF(DX$8="","", IF(DX$8=1,EOMONTH($P$7,-1)+1,DW7+1))) -> 2031-09-01 | DY6: =IF(OR($P$6="",$P$6=0,$P$7="",$P$7=0,$P$8="",$P$7<1),"", IF(DY$8="","", IF(DY$8=1,EOMONTH($P$7,-1)+1,DX7+1))) -> 2031-10-01 | DZ6: =IF(OR($P$6="",$P$6=0,$P$7="",$P$7=0,$P$8="",$P$7<1),"", IF(DZ$8="","", IF(DZ$8=1,EOMONTH($P$7,-1)+1,DY7+1))) -> 2031-11-01 | EA6: =IF(OR($P$6="",$P$6=0,$P$7="",$P$7=0,$P$8="",$P$7<1),"", IF(EA$8="","", IF(EA$8=1,EOMONTH($P$7,-1)+1,DZ7+1))) -> 2031-12-01 | EB6: =IF(OR($P$6="",$P$6=0,$P$7="",$P$7=0,$P$8="",$P$7<1),"", IF(EB$8="","", IF(EB$8=1,EOMONTH($P$7,-1)+1,EA7+1))) -> 2032-01-01 | EC6: =IF(OR($P$6="",$P$6=0,$P$7="",$P$7=0,$P$8="",$P$7<1),"", IF(EC$8="","", IF(EC$8=1,EOMONTH($P$7,-1)+1,EB7+1))) -> 2032-02-01 | ED6: =IF(OR($P$6="",$P$6=0,$P$7="",$P$7=0,$P$8="",$P$7<1),"", IF(ED$8="","", IF(ED$8=1,EOMONTH($P$7,-1)+1,EC7+1))) -> 2032-03-01 | EE6: =IF(OR($P$6="",$P$6=0,$P$7="",$P$7=0,$P$8="",$P$7<1),"", IF(EE$8="","", IF(EE$8=1,EOMONTH($P$7,-1)+1,ED7+1))) -> 2032-04-01 | EF6: =IF(OR($P$6="",$P$6=0,$P$7="",$P$7=0,$P$8="",$P$7<1),"", IF(EF$8="","", IF(EF$8=1,EOMONTH($P$7,-1)+1,EE7+1))) -> 2032-05-01 | EG6: =IF(OR($P$6="",$P$6=0,$P$7="",$P$7=0,$P$8="",$P$7<1),"", IF(EG$8="","", IF(EG$8=1,EOMONTH($P$7,-1)+1,EF7+1))) -> 2032-06-01 | EH6: =IF(OR($P$6="",$P$6=0,$P$7="",$P$7=0,$P$8="",$P$7<1),"", IF(EH$8="","", IF(EH$8=1,EOMONTH($P$7,-1)+1,EG7+1))) -> 2032-07-01 | EI6: =IF(OR($P$6="",$P$6=0,$P$7="",$P$7=0,$P$8="",$P$7<1),"", IF(EI$8="","", IF(EI$8=1,EOMONTH($P$7,-1)+1,EH7+1))) -> 2032-08-01 | EJ6: =IF(OR($P$6="",$P$6=0,$P$7="",$P$7=0,$P$8="",$P$7<1),"", IF(EJ$8="","", IF(EJ$8=1,EOMONTH($P$7,-1)+1,EI7+1))) -> 2032-09-01 | EK6: =IF(OR($P$6="",$P$6=0,$P$7="",$P$7=0,$P$8="",$P$7<1),"", IF(EK$8="","", IF(EK$8=1,EOMONTH($P$7,-1)+1,EJ7+1))) -> 2032-10-01 | EL6: =IF(OR($P$6="",$P$6=0,$P$7="",$P$7=0,$P$8="",$P$7<1),"", IF(EL$8="","", IF(EL$8=1,EOMONTH($P$7,-1)+1,EK7+1))) -> 2032-11-01 | EM6: =IF(OR($P$6="",$P$6=0,$P$7="",$P$7=0,$P$8="",$P$7<1),"", IF(EM$8="","", IF(EM$8=1,EOMONTH($P$7,-1)+1,EL7+1))) -> 2032-12-01 | EN6: =IF(OR($P$6="",$P$6=0,$P$7="",$P$7=0,$P$8="",$P$7<1),"", IF(EN$8="","", IF(EN$8=1,EOMONTH($P$7,-1)+1,EM7+1))) ->  | EO6: =IF(OR($P$6="",$P$6=0,$P$7="",$P$7=0,$P$8="",$P$7<1),"", IF(EO$8="","", IF(EO$8=1,EOMONTH($P$7,-1)+1,EN7+1))) ->  | EP6: =IF(OR($P$6="",$P$6=0,$P$7="",$P$7=0,$P$8="",$P$7<1),"", IF(EP$8="","", IF(EP$8=1,EOMONTH($P$7,-1)+1,EO7+1))) ->  | EQ6: =IF(OR($P$6="",$P$6=0,$P$7="",$P$7=0,$P$8="",$P$7<1),"", IF(EQ$8="","", IF(EQ$8=1,EOMONTH($P$7,-1)+1,EP7+1))) ->  | ER6: =IF(OR($P$6="",$P$6=0,$P$7="",$P$7=0,$P$8="",$P$7<1),"", IF(ER$8="","", IF(ER$8=1,EOMONTH($P$7,-1)+1,EQ7+1))) ->  | ES6: =IF(OR($P$6="",$P$6=0,$P$7="",$P$7=0,$P$8="",$P$7<1),"", IF(ES$8="","", IF(ES$8=1,EOMONTH($P$7,-1)+1,ER7+1))) ->  | ET6: =IF(OR($P$6="",$P$6=0,$P$7="",$P$7=0,$P$8="",$P$7<1),"", IF(ET$8="","", IF(ET$8=1,EOMONTH($P$7,-1)+1,ES7+1))) ->  | EU6: =IF(OR($P$6="",$P$6=0,$P$7="",$P$7=0,$P$8="",$P$7<1),"", IF(EU$8="","", IF(EU$8=1,EOMONTH($P$7,-1)+1,ET7+1))) ->  | EV6: =IF(OR($P$6="",$P$6=0,$P$7="",$P$7=0,$P$8="",$P$7<1),"", IF(EV$8="","", IF(EV$8=1,EOMONTH($P$7,-1)+1,EU7+1))) ->  | EW6: =IF(OR($P$6="",$P$6=0,$P$7="",$P$7=0,$P$8="",$P$7<1),"", IF(EW$8="","", IF(EW$8=1,EOMONTH($P$7,-1)+1,EV7+1))) ->  | EX6: =IF(OR($P$6="",$P$6=0,$P$7="",$P$7=0,$P$8="",$P$7<1),"", IF(EX$8="","", IF(EX$8=1,EOMONTH($P$7,-1)+1,EW7+1))) ->  | EY6: =IF(OR($P$6="",$P$6=0,$P$7="",$P$7=0,$P$8="",$P$7<1),"", IF(EY$8="","", IF(EY$8=1,EOMONTH($P$7,-1)+1,EX7+1))) ->  | EZ6: =IF(OR($P$6="",$P$6=0,$P$7="",$P$7=0,$P$8="",$P$7<1),"", IF(EZ$8="","", IF(EZ$8=1,EOMONTH($P$7,-1)+1,EY7+1))) ->  | FA6: =IF(OR($P$6="",$P$6=0,$P$7="",$P$7=0,$P$8="",$P$7<1),"", IF(FA$8="","", IF(FA$8=1,EOMONTH($P$7,-1)+1,EZ7+1))) ->  | FB6: =IF(OR($P$6="",$P$6=0,$P$7="",$P$7=0,$P$8="",$P$7<1),"", IF(FB$8="","", IF(FB$8=1,EOMONTH($P$7,-1)+1,FA7+1))) ->  | FC6: =IF(OR($P$6="",$P$6=0,$P$7="",$P$7=0,$P$8="",$P$7<1),"", IF(FC$8="","", IF(FC$8=1,EOMONTH($P$7,-1)+1,FB7+1))) ->  | FD6: =IF(OR($P$6="",$P$6=0,$P$7="",$P$7=0,$P$8="",$P$7<1),"", IF(FD$8="","", IF(FD$8=1,EOMONTH($P$7,-1)+1,FC7+1))) ->  | FE6: =IF(OR($P$6="",$P$6=0,$P$7="",$P$7=0,$P$8="",$P$7<1),"", IF(FE$8="","", IF(FE$8=1,EOMONTH($P$7,-1)+1,FD7+1))) ->  | FF6: =IF(OR($P$6="",$P$6=0,$P$7="",$P$7=0,$P$8="",$P$7<1),"", IF(FF$8="","", IF(FF$8=1,EOMONTH($P$7,-1)+1,FE7+1))) ->  | FG6: =IF(OR($P$6="",$P$6=0,$P$7="",$P$7=0,$P$8="",$P$7<1),"", IF(FG$8="","", IF(FG$8=1,EOMONTH($P$7,-1)+1,FF7+1))) ->  | FH6: =IF(OR($P$6="",$P$6=0,$P$7="",$P$7=0,$P$8="",$P$7<1),"", IF(FH$8="","", IF(FH$8=1,EOMONTH($P$7,-1)+1,FG7+1))) ->  | FI6: =IF(OR($P$6="",$P$6=0,$P$7="",$P$7=0,$P$8="",$P$7<1),"", IF(FI$8="","", IF(FI$8=1,EOMONTH($P$7,-1)+1,FH7+1))) ->  | FJ6: =IF(OR($P$6="",$P$6=0,$P$7="",$P$7=0,$P$8="",$P$7<1),"", IF(FJ$8="","", IF(FJ$8=1,EOMONTH($P$7,-1)+1,FI7+1))) ->  | FK6: =IF(OR($P$6="",$P$6=0,$P$7="",$P$7=0,$P$8="",$P$7<1),"", IF(FK$8="","", IF(FK$8=1,EOMONTH($P$7,-1)+1,FJ7+1))) ->  | FL6: =IF(OR($P$6="",$P$6=0,$P$7="",$P$7=0,$P$8="",$P$7<1),"", IF(FL$8="","", IF(FL$8=1,EOMONTH($P$7,-1)+1,FK7+1))) ->  | FM6: =IF(OR($P$6="",$P$6=0,$P$7="",$P$7=0,$P$8="",$P$7<1),"", IF(FM$8="","", IF(FM$8=1,EOMONTH($P$7,-1)+1,FL7+1))) ->  | FN6: =IF(OR($P$6="",$P$6=0,$P$7="",$P$7=0,$P$8="",$P$7<1),"", IF(FN$8="","", IF(FN$8=1,EOMONTH($P$7,-1)+1,FM7+1))) ->  | FO6: =IF(OR($P$6="",$P$6=0,$P$7="",$P$7=0,$P$8="",$P$7<1),"", IF(FO$8="","", IF(FO$8=1,EOMONTH($P$7,-1)+1,FN7+1))) ->  | FP6: =IF(OR($P$6="",$P$6=0,$P$7="",$P$7=0,$P$8="",$P$7<1),"", IF(FP$8="","", IF(FP$8=1,EOMONTH($P$7,-1)+1,FO7+1))) ->  | FQ6: =IF(OR($P$6="",$P$6=0,$P$7="",$P$7=0,$P$8="",$P$7<1),"", IF(FQ$8="","", IF(FQ$8=1,EOMONTH($P$7,-1)+1,FP7+1))) ->  | FR6: =IF(OR($P$6="",$P$6=0,$P$7="",$P$7=0,$P$8="",$P$7<1),"", IF(FR$8="","", IF(FR$8=1,EOMONTH($P$7,-1)+1,FQ7+1))) ->  | FS6: =IF(OR($P$6="",$P$6=0,$P$7="",$P$7=0,$P$8="",$P$7<1),"", IF(FS$8="","", IF(FS$8=1,EOMONTH($P$7,-1)+1,FR7+1))) ->  | FT6: =IF(OR($P$6="",$P$6=0,$P$7="",$P$7=0,$P$8="",$P$7<1),"", IF(FT$8="","", IF(FT$8=1,EOMONTH($P$7,-1)+1,FS7+1))) ->  | FU6: =IF(OR($P$6="",$P$6=0,$P$7="",$P$7=0,$P$8="",$P$7<1),"", IF(FU$8="","", IF(FU$8=1,EOMONTH($P$7,-1)+1,FT7+1))) ->  | FV6: =IF(OR($P$6="",$P$6=0,$P$7="",$P$7=0,$P$8="",$P$7<1),"", IF(FV$8="","", IF(FV$8=1,EOMONTH($P$7,-1)+1,FU7+1))) ->  | FW6: =IF(OR($P$6="",$P$6=0,$P$7="",$P$7=0,$P$8="",$P$7<1),"", IF(FW$8="","", IF(FW$8=1,EOMONTH($P$7,-1)+1,FV7+1))) ->  | FX6: =IF(OR($P$6="",$P$6=0,$P$7="",$P$7=0,$P$8="",$P$7<1),"", IF(FX$8="","", IF(FX$8=1,EOMONTH($P$7,-1)+1,FW7+1))) ->  | FY6: =IF(OR($P$6="",$P$6=0,$P$7="",$P$7=0,$P$8="",$P$7<1),"", IF(FY$8="","", IF(FY$8=1,EOMONTH($P$7,-1)+1,FX7+1))) ->  | FZ6: =IF(OR($P$6="",$P$6=0,$P$7="",$P$7=0,$P$8="",$P$7<1),"", IF(FZ$8="","", IF(FZ$8=1,EOMONTH($P$7,-1)+1,FY7+1))) ->  | GA6: =IF(OR($P$6="",$P$6=0,$P$7="",$P$7=0,$P$8="",$P$7<1),"", IF(GA$8="","", IF(GA$8=1,EOMONTH($P$7,-1)+1,FZ7+1))) ->  | GB6: =IF(OR($P$6="",$P$6=0,$P$7="",$P$7=0,$P$8="",$P$7<1),"", IF(GB$8="","", IF(GB$8=1,EOMONTH($P$7,-1)+1,GA7+1))) ->  | GC6: =IF(OR($P$6="",$P$6=0,$P$7="",$P$7=0,$P$8="",$P$7<1),"", IF(GC$8="","", IF(GC$8=1,EOMONTH($P$7,-1)+1,GB7+1))) ->  | GD6: =IF(OR($P$6="",$P$6=0,$P$7="",$P$7=0,$P$8="",$P$7<1),"", IF(GD$8="","", IF(GD$8=1,EOMONTH($P$7,-1)+1,GC7+1))) ->  | GE6: =IF(OR($P$6="",$P$6=0,$P$7="",$P$7=0,$P$8="",$P$7<1),"", IF(GE$8="","", IF(GE$8=1,EOMONTH($P$7,-1)+1,GD7+1))) ->  | GF6: =IF(OR($P$6="",$P$6=0,$P$7="",$P$7=0,$P$8="",$P$7<1),"", IF(GF$8="","", IF(GF$8=1,EOMONTH($P$7,-1)+1,GE7+1))) ->  | GG6: =IF(OR($P$6="",$P$6=0,$P$7="",$P$7=0,$P$8="",$P$7<1),"", IF(GG$8="","", IF(GG$8=1,EOMONTH($P$7,-1)+1,GF7+1))) ->  | GH6: =IF(OR($P$6="",$P$6=0,$P$7="",$P$7=0,$P$8="",$P$7<1),"", IF(GH$8="","", IF(GH$8=1,EOMONTH($P$7,-1)+1,GG7+1))) ->  | GI6: =IF(OR($P$6="",$P$6=0,$P$7="",$P$7=0,$P$8="",$P$7<1),"", IF(GI$8="","", IF(GI$8=1,EOMONTH($P$7,-1)+1,GH7+1))) ->  | GJ6: =IF(OR($P$6="",$P$6=0,$P$7="",$P$7=0,$P$8="",$P$7<1),"", IF(GJ$8="","", IF(GJ$8=1,EOMONTH($P$7,-1)+1,GI7+1))) ->  | GK6: =IF(OR($P$6="",$P$6=0,$P$7="",$P$7=0,$P$8="",$P$7<1),"", IF(GK$8="","", IF(GK$8=1,EOMONTH($P$7,-1)+1,GJ7+1))) ->  | GL6: =IF(OR($P$6="",$P$6=0,$P$7="",$P$7=0,$P$8="",$P$7<1),"", IF(GL$8="","", IF(GL$8=1,EOMONTH($P$7,-1)+1,GK7+1))) ->  | GM6: =IF(OR($P$6="",$P$6=0,$P$7="",$P$7=0,$P$8="",$P$7<1),"", IF(GM$8="","", IF(GM$8=1,EOMONTH($P$7,-1)+1,GL7+1))) ->  | GN6: =IF(OR($P$6="",$P$6=0,$P$7="",$P$7=0,$P$8="",$P$7<1),"", IF(GN$8="","", IF(GN$8=1,EOMONTH($P$7,-1)+1,GM7+1))) ->  | GO6: =IF(OR($P$6="",$P$6=0,$P$7="",$P$7=0,$P$8="",$P$7<1),"", IF(GO$8="","", IF(GO$8=1,EOMONTH($P$7,-1)+1,GN7+1))) ->  | GP6: =IF(OR($P$6="",$P$6=0,$P$7="",$P$7=0,$P$8="",$P$7<1),"", IF(GP$8="","", IF(GP$8=1,EOMONTH($P$7,-1)+1,GO7+1))) ->  | GQ6: =IF(OR($P$6="",$P$6=0,$P$7="",$P$7=0,$P$8="",$P$7<1),"", IF(GQ$8="","", IF(GQ$8=1,EOMONTH($P$7,-1)+1,GP7+1))) ->  | GR6: =IF(OR($P$6="",$P$6=0,$P$7="",$P$7=0,$P$8="",$P$7<1),"", IF(GR$8="","", IF(GR$8=1,EOMONTH($P$7,-1)+1,GQ7+1))) ->  | GS6: =IF(OR($P$6="",$P$6=0,$P$7="",$P$7=0,$P$8="",$P$7<1),"", IF(GS$8="","", IF(GS$8=1,EOMONTH($P$7,-1)+1,GR7+1))) ->  | GT6: =IF(OR($P$6="",$P$6=0,$P$7="",$P$7=0,$P$8="",$P$7<1),"", IF(GT$8="","", IF(GT$8=1,EOMONTH($P$7,-1)+1,GS7+1))) ->  | GU6: =IF(OR($P$6="",$P$6=0,$P$7="",$P$7=0,$P$8="",$P$7<1),"", IF(GU$8="","", IF(GU$8=1,EOMONTH($P$7,-1)+1,GT7+1))) ->  | GV6: =IF(OR($P$6="",$P$6=0,$P$7="",$P$7=0,$P$8="",$P$7<1),"", IF(GV$8="","", IF(GV$8=1,EOMONTH($P$7,-1)+1,GU7+1))) -> 
B7: =ROW() -> 7 | H7: старт моделирования | I7: старт моделирования | M7: месяц | O7: * | P7: 2023-01-01 | Q7: ^ | U7: =MAX(INDIRECT(ADDRESS($B7,X$2)&":"&ADDRESS($B7,MAX($2:$2)))) -> 2032-12-31 | X7: =IF(OR($P$6="",$P$6=0,$P$7="",$P$7=0,$P$8="",$P$7<1),"", IF(X$8="","", IF($P$6=Lists!$I$6,EOMONTH(X6,0), IF($P$6=Lists!$I$7,EOMONTH(X6,2-(MONTH(X6)-1-3*INT((MONTH(X6)-1)/3))), IF($P$6=Lists!$I$8,EOMONTH(X6,11), IF($P$6=Lists!$I$9,EOMONTH(X6,12-MONTH(X6)),"")))))) -> 2023-01-31 | Y7: =IF(OR($P$6="",$P$6=0,$P$7="",$P$7=0,$P$8="",$P$7<1),"", IF(Y$8="","", IF($P$6=Lists!$I$6,EOMONTH(Y6,0), IF($P$6=Lists!$I$7,EOMONTH(Y6,2-(MONTH(Y6)-1-3*INT((MONTH(Y6)-1)/3))), IF($P$6=Lists!$I$8,EOMONTH(Y6,11), IF($P$6=Lists!$I$9,EOMONTH(Y6,12-MONTH(Y6)),"")))))) -> 2023-02-28 | Z7: =IF(OR($P$6="",$P$6=0,$P$7="",$P$7=0,$P$8="",$P$7<1),"", IF(Z$8="","", IF($P$6=Lists!$I$6,EOMONTH(Z6,0), IF($P$6=Lists!$I$7,EOMONTH(Z6,2-(MONTH(Z6)-1-3*INT((MONTH(Z6)-1)/3))), IF($P$6=Lists!$I$8,EOMONTH(Z6,11), IF($P$6=Lists!$I$9,EOMONTH(Z6,12-MONTH(Z6)),"")))))) -> 2023-03-31 | AA7: =IF(OR($P$6="",$P$6=0,$P$7="",$P$7=0,$P$8="",$P$7<1),"", IF(AA$8="","", IF($P$6=Lists!$I$6,EOMONTH(AA6,0), IF($P$6=Lists!$I$7,EOMONTH(AA6,2-(MONTH(AA6)-1-3*INT((MONTH(AA6)-1)/3))), IF($P$6=Lists!$I$8,EOMONTH(AA6,11), IF($P$6=Lists!$I$9,EOMONTH(AA6,12-MONTH(AA6)),"")))))) -> 2023-04-30 | AB7: =IF(OR($P$6="",$P$6=0,$P$7="",$P$7=0,$P$8="",$P$7<1),"", IF(AB$8="","", IF($P$6=Lists!$I$6,EOMONTH(AB6,0), IF($P$6=Lists!$I$7,EOMONTH(AB6,2-(MONTH(AB6)-1-3*INT((MONTH(AB6)-1)/3))), IF($P$6=Lists!$I$8,EOMONTH(AB6,11), IF($P$6=Lists!$I$9,EOMONTH(AB6,12-MONTH(AB6)),"")))))) -> 2023-05-31 | AC7: =IF(OR($P$6="",$P$6=0,$P$7="",$P$7=0,$P$8="",$P$7<1),"", IF(AC$8="","", IF($P$6=Lists!$I$6,EOMONTH(AC6,0), IF($P$6=Lists!$I$7,EOMONTH(AC6,2-(MONTH(AC6)-1-3*INT((MONTH(AC6)-1)/3))), IF($P$6=Lists!$I$8,EOMONTH(AC6,11), IF($P$6=Lists!$I$9,EOMONTH(AC6,12-MONTH(AC6)),"")))))) -> 2023-06-30 | AD7: =IF(OR($P$6="",$P$6=0,$P$7="",$P$7=0,$P$8="",$P$7<1),"", IF(AD$8="","", IF($P$6=Lists!$I$6,EOMONTH(AD6,0), IF($P$6=Lists!$I$7,EOMONTH(AD6,2-(MONTH(AD6)-1-3*INT((MONTH(AD6)-1)/3))), IF($P$6=Lists!$I$8,EOMONTH(AD6,11), IF($P$6=Lists!$I$9,EOMONTH(AD6,12-MONTH(AD6)),"")))))) -> 2023-07-31 | AE7: =IF(OR($P$6="",$P$6=0,$P$7="",$P$7=0,$P$8="",$P$7<1),"", IF(AE$8="","", IF($P$6=Lists!$I$6,EOMONTH(AE6,0), IF($P$6=Lists!$I$7,EOMONTH(AE6,2-(MONTH(AE6)-1-3*INT((MONTH(AE6)-1)/3))), IF($P$6=Lists!$I$8,EOMONTH(AE6,11), IF($P$6=Lists!$I$9,EOMONTH(AE6,12-MONTH(AE6)),"")))))) -> 2023-08-31 | AF7: =IF(OR($P$6="",$P$6=0,$P$7="",$P$7=0,$P$8="",$P$7<1),"", IF(AF$8="","", IF($P$6=Lists!$I$6,EOMONTH(AF6,0), IF($P$6=Lists!$I$7,EOMONTH(AF6,2-(MONTH(AF6)-1-3*INT((MONTH(AF6)-1)/3))), IF($P$6=Lists!$I$8,EOMONTH(AF6,11), IF($P$6=Lists!$I$9,EOMONTH(AF6,12-MONTH(AF6)),"")))))) -> 2023-09-30 | AG7: =IF(OR($P$6="",$P$6=0,$P$7="",$P$7=0,$P$8="",$P$7<1),"", IF(AG$8="","", IF($P$6=Lists!$I$6,EOMONTH(AG6,0), IF($P$6=Lists!$I$7,EOMONTH(AG6,2-(MONTH(AG6)-1-3*INT((MONTH(AG6)-1)/3))), IF($P$6=Lists!$I$8,EOMONTH(AG6,11), IF($P$6=Lists!$I$9,EOMONTH(AG6,12-MONTH(AG6)),"")))))) -> 2023-10-31 | AH7: =IF(OR($P$6="",$P$6=0,$P$7="",$P$7=0,$P$8="",$P$7<1),"", IF(AH$8="","", IF($P$6=Lists!$I$6,EOMONTH(AH6,0), IF($P$6=Lists!$I$7,EOMONTH(AH6,2-(MONTH(AH6)-1-3*INT((MONTH(AH6)-1)/3))), IF($P$6=Lists!$I$8,EOMONTH(AH6,11), IF($P$6=Lists!$I$9,EOMONTH(AH6,12-MONTH(AH6)),"")))))) -> 2023-11-30 | AI7: =IF(OR($P$6="",$P$6=0,$P$7="",$P$7=0,$P$8="",$P$7<1),"", IF(AI$8="","", IF($P$6=Lists!$I$6,EOMONTH(AI6,0), IF($P$6=Lists!$I$7,EOMONTH(AI6,2-(MONTH(AI6)-1-3*INT((MONTH(AI6)-1)/3))), IF($P$6=Lists!$I$8,EOMONTH(AI6,11), IF($P$6=Lists!$I$9,EOMONTH(AI6,12-MONTH(AI6)),"")))))) -> 2023-12-31 | AJ7: =IF(OR($P$6="",$P$6=0,$P$7="",$P$7=0,$P$8="",$P$7<1),"", IF(AJ$8="","", IF($P$6=Lists!$I$6,EOMONTH(AJ6,0), IF($P$6=Lists!$I$7,EOMONTH(AJ6,2-(MONTH(AJ6)-1-3*INT((MONTH(AJ6)-1)/3))), IF($P$6=Lists!$I$8,EOMONTH(AJ6,11), IF($P$6=Lists!$I$9,EOMONTH(AJ6,12-MONTH(AJ6)),"")))))) -> 2024-01-31 | AK7: =IF(OR($P$6="",$P$6=0,$P$7="",$P$7=0,$P$8="",$P$7<1),"", IF(AK$8="","", IF($P$6=Lists!$I$6,EOMONTH(AK6,0), IF($P$6=Lists!$I$7,EOMONTH(AK6,2-(MONTH(AK6)-1-3*INT((MONTH(AK6)-1)/3))), IF($P$6=Lists!$I$8,EOMONTH(AK6,11), IF($P$6=Lists!$I$9,EOMONTH(AK6,12-MONTH(AK6)),"")))))) -> 2024-02-29 | AL7: =IF(OR($P$6="",$P$6=0,$P$7="",$P$7=0,$P$8="",$P$7<1),"", IF(AL$8="","", IF($P$6=Lists!$I$6,EOMONTH(AL6,0), IF($P$6=Lists!$I$7,EOMONTH(AL6,2-(MONTH(AL6)-1-3*INT((MONTH(AL6)-1)/3))), IF($P$6=Lists!$I$8,EOMONTH(AL6,11), IF($P$6=Lists!$I$9,EOMONTH(AL6,12-MONTH(AL6)),"")))))) -> 2024-03-31 | AM7: =IF(OR($P$6="",$P$6=0,$P$7="",$P$7=0,$P$8="",$P$7<1),"", IF(AM$8="","", IF($P$6=Lists!$I$6,EOMONTH(AM6,0), IF($P$6=Lists!$I$7,EOMONTH(AM6,2-(MONTH(AM6)-1-3*INT((MONTH(AM6)-1)/3))), IF($P$6=Lists!$I$8,EOMONTH(AM6,11), IF($P$6=Lists!$I$9,EOMONTH(AM6,12-MONTH(AM6)),"")))))) -> 2024-04-30 | AN7: =IF(OR($P$6="",$P$6=0,$P$7="",$P$7=0,$P$8="",$P$7<1),"", IF(AN$8="","", IF($P$6=Lists!$I$6,EOMONTH(AN6,0), IF($P$6=Lists!$I$7,EOMONTH(AN6,2-(MONTH(AN6)-1-3*INT((MONTH(AN6)-1)/3))), IF($P$6=Lists!$I$8,EOMONTH(AN6,11), IF($P$6=Lists!$I$9,EOMONTH(AN6,12-MONTH(AN6)),"")))))) -> 2024-05-31 | AO7: =IF(OR($P$6="",$P$6=0,$P$7="",$P$7=0,$P$8="",$P$7<1),"", IF(AO$8="","", IF($P$6=Lists!$I$6,EOMONTH(AO6,0), IF($P$6=Lists!$I$7,EOMONTH(AO6,2-(MONTH(AO6)-1-3*INT((MONTH(AO6)-1)/3))), IF($P$6=Lists!$I$8,EOMONTH(AO6,11), IF($P$6=Lists!$I$9,EOMONTH(AO6,12-MONTH(AO6)),"")))))) -> 2024-06-30 | AP7: =IF(OR($P$6="",$P$6=0,$P$7="",$P$7=0,$P$8="",$P$7<1),"", IF(AP$8="","", IF($P$6=Lists!$I$6,EOMONTH(AP6,0), IF($P$6=Lists!$I$7,EOMONTH(AP6,2-(MONTH(AP6)-1-3*INT((MONTH(AP6)-1)/3))), IF($P$6=Lists!$I$8,EOMONTH(AP6,11), IF($P$6=Lists!$I$9,EOMONTH(AP6,12-MONTH(AP6)),"")))))) -> 2024-07-31 | AQ7: =IF(OR($P$6="",$P$6=0,$P$7="",$P$7=0,$P$8="",$P$7<1),"", IF(AQ$8="","", IF($P$6=Lists!$I$6,EOMONTH(AQ6,0), IF($P$6=Lists!$I$7,EOMONTH(AQ6,2-(MONTH(AQ6)-1-3*INT((MONTH(AQ6)-1)/3))), IF($P$6=Lists!$I$8,EOMONTH(AQ6,11), IF($P$6=Lists!$I$9,EOMONTH(AQ6,12-MONTH(AQ6)),"")))))) -> 2024-08-31 | AR7: =IF(OR($P$6="",$P$6=0,$P$7="",$P$7=0,$P$8="",$P$7<1),"", IF(AR$8="","", IF($P$6=Lists!$I$6,EOMONTH(AR6,0), IF($P$6=Lists!$I$7,EOMONTH(AR6,2-(MONTH(AR6)-1-3*INT((MONTH(AR6)-1)/3))), IF($P$6=Lists!$I$8,EOMONTH(AR6,11), IF($P$6=Lists!$I$9,EOMONTH(AR6,12-MONTH(AR6)),"")))))) -> 2024-09-30 | AS7: =IF(OR($P$6="",$P$6=0,$P$7="",$P$7=0,$P$8="",$P$7<1),"", IF(AS$8="","", IF($P$6=Lists!$I$6,EOMONTH(AS6,0), IF($P$6=Lists!$I$7,EOMONTH(AS6,2-(MONTH(AS6)-1-3*INT((MONTH(AS6)-1)/3))), IF($P$6=Lists!$I$8,EOMONTH(AS6,11), IF($P$6=Lists!$I$9,EOMONTH(AS6,12-MONTH(AS6)),"")))))) -> 2024-10-31 | AT7: =IF(OR($P$6="",$P$6=0,$P$7="",$P$7=0,$P$8="",$P$7<1),"", IF(AT$8="","", IF($P$6=Lists!$I$6,EOMONTH(AT6,0), IF($P$6=Lists!$I$7,EOMONTH(AT6,2-(MONTH(AT6)-1-3*INT((MONTH(AT6)-1)/3))), IF($P$6=Lists!$I$8,EOMONTH(AT6,11), IF($P$6=Lists!$I$9,EOMONTH(AT6,12-MONTH(AT6)),"")))))) -> 2024-11-30 | AU7: =IF(OR($P$6="",$P$6=0,$P$7="",$P$7=0,$P$8="",$P$7<1),"", IF(AU$8="","", IF($P$6=Lists!$I$6,EOMONTH(AU6,0), IF($P$6=Lists!$I$7,EOMONTH(AU6,2-(MONTH(AU6)-1-3*INT((MONTH(AU6)-1)/3))), IF($P$6=Lists!$I$8,EOMONTH(AU6,11), IF($P$6=Lists!$I$9,EOMONTH(AU6,12-MONTH(AU6)),"")))))) -> 2024-12-31 | AV7: =IF(OR($P$6="",$P$6=0,$P$7="",$P$7=0,$P$8="",$P$7<1),"", IF(AV$8="","", IF($P$6=Lists!$I$6,EOMONTH(AV6,0), IF($P$6=Lists!$I$7,EOMONTH(AV6,2-(MONTH(AV6)-1-3*INT((MONTH(AV6)-1)/3))), IF($P$6=Lists!$I$8,EOMONTH(AV6,11), IF($P$6=Lists!$I$9,EOMONTH(AV6,12-MONTH(AV6)),"")))))) -> 2025-01-31 | AW7: =IF(OR($P$6="",$P$6=0,$P$7="",$P$7=0,$P$8="",$P$7<1),"", IF(AW$8="","", IF($P$6=Lists!$I$6,EOMONTH(AW6,0), IF($P$6=Lists!$I$7,EOMONTH(AW6,2-(MONTH(AW6)-1-3*INT((MONTH(AW6)-1)/3))), IF($P$6=Lists!$I$8,EOMONTH(AW6,11), IF($P$6=Lists!$I$9,EOMONTH(AW6,12-MONTH(AW6)),"")))))) -> 2025-02-28 | AX7: =IF(OR($P$6="",$P$6=0,$P$7="",$P$7=0,$P$8="",$P$7<1),"", IF(AX$8="","", IF($P$6=Lists!$I$6,EOMONTH(AX6,0), IF($P$6=Lists!$I$7,EOMONTH(AX6,2-(MONTH(AX6)-1-3*INT((MONTH(AX6)-1)/3))), IF($P$6=Lists!$I$8,EOMONTH(AX6,11), IF($P$6=Lists!$I$9,EOMONTH(AX6,12-MONTH(AX6)),"")))))) -> 2025-03-31 | AY7: =IF(OR($P$6="",$P$6=0,$P$7="",$P$7=0,$P$8="",$P$7<1),"", IF(AY$8="","", IF($P$6=Lists!$I$6,EOMONTH(AY6,0), IF($P$6=Lists!$I$7,EOMONTH(AY6,2-(MONTH(AY6)-1-3*INT((MONTH(AY6)-1)/3))), IF($P$6=Lists!$I$8,EOMONTH(AY6,11), IF($P$6=Lists!$I$9,EOMONTH(AY6,12-MONTH(AY6)),"")))))) -> 2025-04-30 | AZ7: =IF(OR($P$6="",$P$6=0,$P$7="",$P$7=0,$P$8="",$P$7<1),"", IF(AZ$8="","", IF($P$6=Lists!$I$6,EOMONTH(AZ6,0), IF($P$6=Lists!$I$7,EOMONTH(AZ6,2-(MONTH(AZ6)-1-3*INT((MONTH(AZ6)-1)/3))), IF($P$6=Lists!$I$8,EOMONTH(AZ6,11), IF($P$6=Lists!$I$9,EOMONTH(AZ6,12-MONTH(AZ6)),"")))))) -> 2025-05-31 | BA7: =IF(OR($P$6="",$P$6=0,$P$7="",$P$7=0,$P$8="",$P$7<1),"", IF(BA$8="","", IF($P$6=Lists!$I$6,EOMONTH(BA6,0), IF($P$6=Lists!$I$7,EOMONTH(BA6,2-(MONTH(BA6)-1-3*INT((MONTH(BA6)-1)/3))), IF($P$6=Lists!$I$8,EOMONTH(BA6,11), IF($P$6=Lists!$I$9,EOMONTH(BA6,12-MONTH(BA6)),"")))))) -> 2025-06-30 | BB7: =IF(OR($P$6="",$P$6=0,$P$7="",$P$7=0,$P$8="",$P$7<1),"", IF(BB$8="","", IF($P$6=Lists!$I$6,EOMONTH(BB6,0), IF($P$6=Lists!$I$7,EOMONTH(BB6,2-(MONTH(BB6)-1-3*INT((MONTH(BB6)-1)/3))), IF($P$6=Lists!$I$8,EOMONTH(BB6,11), IF($P$6=Lists!$I$9,EOMONTH(BB6,12-MONTH(BB6)),"")))))) -> 2025-07-31 | BC7: =IF(OR($P$6="",$P$6=0,$P$7="",$P$7=0,$P$8="",$P$7<1),"", IF(BC$8="","", IF($P$6=Lists!$I$6,EOMONTH(BC6,0), IF($P$6=Lists!$I$7,EOMONTH(BC6,2-(MONTH(BC6)-1-3*INT((MONTH(BC6)-1)/3))), IF($P$6=Lists!$I$8,EOMONTH(BC6,11), IF($P$6=Lists!$I$9,EOMONTH(BC6,12-MONTH(BC6)),"")))))) -> 2025-08-31 | BD7: =IF(OR($P$6="",$P$6=0,$P$7="",$P$7=0,$P$8="",$P$7<1),"", IF(BD$8="","", IF($P$6=Lists!$I$6,EOMONTH(BD6,0), IF($P$6=Lists!$I$7,EOMONTH(BD6,2-(MONTH(BD6)-1-3*INT((MONTH(BD6)-1)/3))), IF($P$6=Lists!$I$8,EOMONTH(BD6,11), IF($P$6=Lists!$I$9,EOMONTH(BD6,12-MONTH(BD6)),"")))))) -> 2025-09-30 | BE7: =IF(OR($P$6="",$P$6=0,$P$7="",$P$7=0,$P$8="",$P$7<1),"", IF(BE$8="","", IF($P$6=Lists!$I$6,EOMONTH(BE6,0), IF($P$6=Lists!$I$7,EOMONTH(BE6,2-(MONTH(BE6)-1-3*INT((MONTH(BE6)-1)/3))), IF($P$6=Lists!$I$8,EOMONTH(BE6,11), IF($P$6=Lists!$I$9,EOMONTH(BE6,12-MONTH(BE6)),"")))))) -> 2025-10-31 | BF7: =IF(OR($P$6="",$P$6=0,$P$7="",$P$7=0,$P$8="",$P$7<1),"", IF(BF$8="","", IF($P$6=Lists!$I$6,EOMONTH(BF6,0), IF($P$6=Lists!$I$7,EOMONTH(BF6,2-(MONTH(BF6)-1-3*INT((MONTH(BF6)-1)/3))), IF($P$6=Lists!$I$8,EOMONTH(BF6,11), IF($P$6=Lists!$I$9,EOMONTH(BF6,12-MONTH(BF6)),"")))))) -> 2025-11-30 | BG7: =IF(OR($P$6="",$P$6=0,$P$7="",$P$7=0,$P$8="",$P$7<1),"", IF(BG$8="","", IF($P$6=Lists!$I$6,EOMONTH(BG6,0), IF($P$6=Lists!$I$7,EOMONTH(BG6,2-(MONTH(BG6)-1-3*INT((MONTH(BG6)-1)/3))), IF($P$6=Lists!$I$8,EOMONTH(BG6,11), IF($P$6=Lists!$I$9,EOMONTH(BG6,12-MONTH(BG6)),"")))))) -> 2025-12-31 | BH7: =IF(OR($P$6="",$P$6=0,$P$7="",$P$7=0,$P$8="",$P$7<1),"", IF(BH$8="","", IF($P$6=Lists!$I$6,EOMONTH(BH6,0), IF($P$6=Lists!$I$7,EOMONTH(BH6,2-(MONTH(BH6)-1-3*INT((MONTH(BH6)-1)/3))), IF($P$6=Lists!$I$8,EOMONTH(BH6,11), IF($P$6=Lists!$I$9,EOMONTH(BH6,12-MONTH(BH6)),"")))))) -> 2026-01-31 | BI7: =IF(OR($P$6="",$P$6=0,$P$7="",$P$7=0,$P$8="",$P$7<1),"", IF(BI$8="","", IF($P$6=Lists!$I$6,EOMONTH(BI6,0), IF($P$6=Lists!$I$7,EOMONTH(BI6,2-(MONTH(BI6)-1-3*INT((MONTH(BI6)-1)/3))), IF($P$6=Lists!$I$8,EOMONTH(BI6,11), IF($P$6=Lists!$I$9,EOMONTH(BI6,12-MONTH(BI6)),"")))))) -> 2026-02-28 | BJ7: =IF(OR($P$6="",$P$6=0,$P$7="",$P$7=0,$P$8="",$P$7<1),"", IF(BJ$8="","", IF($P$6=Lists!$I$6,EOMONTH(BJ6,0), IF($P$6=Lists!$I$7,EOMONTH(BJ6,2-(MONTH(BJ6)-1-3*INT((MONTH(BJ6)-1)/3))), IF($P$6=Lists!$I$8,EOMONTH(BJ6,11), IF($P$6=Lists!$I$9,EOMONTH(BJ6,12-MONTH(BJ6)),"")))))) -> 2026-03-31 | BK7: =IF(OR($P$6="",$P$6=0,$P$7="",$P$7=0,$P$8="",$P$7<1),"", IF(BK$8="","", IF($P$6=Lists!$I$6,EOMONTH(BK6,0), IF($P$6=Lists!$I$7,EOMONTH(BK6,2-(MONTH(BK6)-1-3*INT((MONTH(BK6)-1)/3))), IF($P$6=Lists!$I$8,EOMONTH(BK6,11), IF($P$6=Lists!$I$9,EOMONTH(BK6,12-MONTH(BK6)),"")))))) -> 2026-04-30 | BL7: =IF(OR($P$6="",$P$6=0,$P$7="",$P$7=0,$P$8="",$P$7<1),"", IF(BL$8="","", IF($P$6=Lists!$I$6,EOMONTH(BL6,0), IF($P$6=Lists!$I$7,EOMONTH(BL6,2-(MONTH(BL6)-1-3*INT((MONTH(BL6)-1)/3))), IF($P$6=Lists!$I$8,EOMONTH(BL6,11), IF($P$6=Lists!$I$9,EOMONTH(BL6,12-MONTH(BL6)),"")))))) -> 2026-05-31 | BM7: =IF(OR($P$6="",$P$6=0,$P$7="",$P$7=0,$P$8="",$P$7<1),"", IF(BM$8="","", IF($P$6=Lists!$I$6,EOMONTH(BM6,0), IF($P$6=Lists!$I$7,EOMONTH(BM6,2-(MONTH(BM6)-1-3*INT((MONTH(BM6)-1)/3))), IF($P$6=Lists!$I$8,EOMONTH(BM6,11), IF($P$6=Lists!$I$9,EOMONTH(BM6,12-MONTH(BM6)),"")))))) -> 2026-06-30 | BN7: =IF(OR($P$6="",$P$6=0,$P$7="",$P$7=0,$P$8="",$P$7<1),"", IF(BN$8="","", IF($P$6=Lists!$I$6,EOMONTH(BN6,0), IF($P$6=Lists!$I$7,EOMONTH(BN6,2-(MONTH(BN6)-1-3*INT((MONTH(BN6)-1)/3))), IF($P$6=Lists!$I$8,EOMONTH(BN6,11), IF($P$6=Lists!$I$9,EOMONTH(BN6,12-MONTH(BN6)),"")))))) -> 2026-07-31 | BO7: =IF(OR($P$6="",$P$6=0,$P$7="",$P$7=0,$P$8="",$P$7<1),"", IF(BO$8="","", IF($P$6=Lists!$I$6,EOMONTH(BO6,0), IF($P$6=Lists!$I$7,EOMONTH(BO6,2-(MONTH(BO6)-1-3*INT((MONTH(BO6)-1)/3))), IF($P$6=Lists!$I$8,EOMONTH(BO6,11), IF($P$6=Lists!$I$9,EOMONTH(BO6,12-MONTH(BO6)),"")))))) -> 2026-08-31 | BP7: =IF(OR($P$6="",$P$6=0,$P$7="",$P$7=0,$P$8="",$P$7<1),"", IF(BP$8="","", IF($P$6=Lists!$I$6,EOMONTH(BP6,0), IF($P$6=Lists!$I$7,EOMONTH(BP6,2-(MONTH(BP6)-1-3*INT((MONTH(BP6)-1)/3))), IF($P$6=Lists!$I$8,EOMONTH(BP6,11), IF($P$6=Lists!$I$9,EOMONTH(BP6,12-MONTH(BP6)),"")))))) -> 2026-09-30 | BQ7: =IF(OR($P$6="",$P$6=0,$P$7="",$P$7=0,$P$8="",$P$7<1),"", IF(BQ$8="","", IF($P$6=Lists!$I$6,EOMONTH(BQ6,0), IF($P$6=Lists!$I$7,EOMONTH(BQ6,2-(MONTH(BQ6)-1-3*INT((MONTH(BQ6)-1)/3))), IF($P$6=Lists!$I$8,EOMONTH(BQ6,11), IF($P$6=Lists!$I$9,EOMONTH(BQ6,12-MONTH(BQ6)),"")))))) -> 2026-10-31 | BR7: =IF(OR($P$6="",$P$6=0,$P$7="",$P$7=0,$P$8="",$P$7<1),"", IF(BR$8="","", IF($P$6=Lists!$I$6,EOMONTH(BR6,0), IF($P$6=Lists!$I$7,EOMONTH(BR6,2-(MONTH(BR6)-1-3*INT((MONTH(BR6)-1)/3))), IF($P$6=Lists!$I$8,EOMONTH(BR6,11), IF($P$6=Lists!$I$9,EOMONTH(BR6,12-MONTH(BR6)),"")))))) -> 2026-11-30 | BS7: =IF(OR($P$6="",$P$6=0,$P$7="",$P$7=0,$P$8="",$P$7<1),"", IF(BS$8="","", IF($P$6=Lists!$I$6,EOMONTH(BS6,0), IF($P$6=Lists!$I$7,EOMONTH(BS6,2-(MONTH(BS6)-1-3*INT((MONTH(BS6)-1)/3))), IF($P$6=Lists!$I$8,EOMONTH(BS6,11), IF($P$6=Lists!$I$9,EOMONTH(BS6,12-MONTH(BS6)),"")))))) -> 2026-12-31 | BT7: =IF(OR($P$6="",$P$6=0,$P$7="",$P$7=0,$P$8="",$P$7<1),"", IF(BT$8="","", IF($P$6=Lists!$I$6,EOMONTH(BT6,0), IF($P$6=Lists!$I$7,EOMONTH(BT6,2-(MONTH(BT6)-1-3*INT((MONTH(BT6)-1)/3))), IF($P$6=Lists!$I$8,EOMONTH(BT6,11), IF($P$6=Lists!$I$9,EOMONTH(BT6,12-MONTH(BT6)),"")))))) -> 2027-01-31 | BU7: =IF(OR($P$6="",$P$6=0,$P$7="",$P$7=0,$P$8="",$P$7<1),"", IF(BU$8="","", IF($P$6=Lists!$I$6,EOMONTH(BU6,0), IF($P$6=Lists!$I$7,EOMONTH(BU6,2-(MONTH(BU6)-1-3*INT((MONTH(BU6)-1)/3))), IF($P$6=Lists!$I$8,EOMONTH(BU6,11), IF($P$6=Lists!$I$9,EOMONTH(BU6,12-MONTH(BU6)),"")))))) -> 2027-02-28 | BV7: =IF(OR($P$6="",$P$6=0,$P$7="",$P$7=0,$P$8="",$P$7<1),"", IF(BV$8="","", IF($P$6=Lists!$I$6,EOMONTH(BV6,0), IF($P$6=Lists!$I$7,EOMONTH(BV6,2-(MONTH(BV6)-1-3*INT((MONTH(BV6)-1)/3))), IF($P$6=Lists!$I$8,EOMONTH(BV6,11), IF($P$6=Lists!$I$9,EOMONTH(BV6,12-MONTH(BV6)),"")))))) -> 2027-03-31 | BW7: =IF(OR($P$6="",$P$6=0,$P$7="",$P$7=0,$P$8="",$P$7<1),"", IF(BW$8="","", IF($P$6=Lists!$I$6,EOMONTH(BW6,0), IF($P$6=Lists!$I$7,EOMONTH(BW6,2-(MONTH(BW6)-1-3*INT((MONTH(BW6)-1)/3))), IF($P$6=Lists!$I$8,EOMONTH(BW6,11), IF($P$6=Lists!$I$9,EOMONTH(BW6,12-MONTH(BW6)),"")))))) -> 2027-04-30 | BX7: =IF(OR($P$6="",$P$6=0,$P$7="",$P$7=0,$P$8="",$P$7<1),"", IF(BX$8="","", IF($P$6=Lists!$I$6,EOMONTH(BX6,0), IF($P$6=Lists!$I$7,EOMONTH(BX6,2-(MONTH(BX6)-1-3*INT((MONTH(BX6)-1)/3))), IF($P$6=Lists!$I$8,EOMONTH(BX6,11), IF($P$6=Lists!$I$9,EOMONTH(BX6,12-MONTH(BX6)),"")))))) -> 2027-05-31 | BY7: =IF(OR($P$6="",$P$6=0,$P$7="",$P$7=0,$P$8="",$P$7<1),"", IF(BY$8="","", IF($P$6=Lists!$I$6,EOMONTH(BY6,0), IF($P$6=Lists!$I$7,EOMONTH(BY6,2-(MONTH(BY6)-1-3*INT((MONTH(BY6)-1)/3))), IF($P$6=Lists!$I$8,EOMONTH(BY6,11), IF($P$6=Lists!$I$9,EOMONTH(BY6,12-MONTH(BY6)),"")))))) -> 2027-06-30 | BZ7: =IF(OR($P$6="",$P$6=0,$P$7="",$P$7=0,$P$8="",$P$7<1),"", IF(BZ$8="","", IF($P$6=Lists!$I$6,EOMONTH(BZ6,0), IF($P$6=Lists!$I$7,EOMONTH(BZ6,2-(MONTH(BZ6)-1-3*INT((MONTH(BZ6)-1)/3))), IF($P$6=Lists!$I$8,EOMONTH(BZ6,11), IF($P$6=Lists!$I$9,EOMONTH(BZ6,12-MONTH(BZ6)),"")))))) -> 2027-07-31 | CA7: =IF(OR($P$6="",$P$6=0,$P$7="",$P$7=0,$P$8="",$P$7<1),"", IF(CA$8="","", IF($P$6=Lists!$I$6,EOMONTH(CA6,0), IF($P$6=Lists!$I$7,EOMONTH(CA6,2-(MONTH(CA6)-1-3*INT((MONTH(CA6)-1)/3))), IF($P$6=Lists!$I$8,EOMONTH(CA6,11), IF($P$6=Lists!$I$9,EOMONTH(CA6,12-MONTH(CA6)),"")))))) -> 2027-08-31 | CB7: =IF(OR($P$6="",$P$6=0,$P$7="",$P$7=0,$P$8="",$P$7<1),"", IF(CB$8="","", IF($P$6=Lists!$I$6,EOMONTH(CB6,0), IF($P$6=Lists!$I$7,EOMONTH(CB6,2-(MONTH(CB6)-1-3*INT((MONTH(CB6)-1)/3))), IF($P$6=Lists!$I$8,EOMONTH(CB6,11), IF($P$6=Lists!$I$9,EOMONTH(CB6,12-MONTH(CB6)),"")))))) -> 2027-09-30 | CC7: =IF(OR($P$6="",$P$6=0,$P$7="",$P$7=0,$P$8="",$P$7<1),"", IF(CC$8="","", IF($P$6=Lists!$I$6,EOMONTH(CC6,0), IF($P$6=Lists!$I$7,EOMONTH(CC6,2-(MONTH(CC6)-1-3*INT((MONTH(CC6)-1)/3))), IF($P$6=Lists!$I$8,EOMONTH(CC6,11), IF($P$6=Lists!$I$9,EOMONTH(CC6,12-MONTH(CC6)),"")))))) -> 2027-10-31 | CD7: =IF(OR($P$6="",$P$6=0,$P$7="",$P$7=0,$P$8="",$P$7<1),"", IF(CD$8="","", IF($P$6=Lists!$I$6,EOMONTH(CD6,0), IF($P$6=Lists!$I$7,EOMONTH(CD6,2-(MONTH(CD6)-1-3*INT((MONTH(CD6)-1)/3))), IF($P$6=Lists!$I$8,EOMONTH(CD6,11), IF($P$6=Lists!$I$9,EOMONTH(CD6,12-MONTH(CD6)),"")))))) -> 2027-11-30 | CE7: =IF(OR($P$6="",$P$6=0,$P$7="",$P$7=0,$P$8="",$P$7<1),"", IF(CE$8="","", IF($P$6=Lists!$I$6,EOMONTH(CE6,0), IF($P$6=Lists!$I$7,EOMONTH(CE6,2-(MONTH(CE6)-1-3*INT((MONTH(CE6)-1)/3))), IF($P$6=Lists!$I$8,EOMONTH(CE6,11), IF($P$6=Lists!$I$9,EOMONTH(CE6,12-MONTH(CE6)),"")))))) -> 2027-12-31 | CF7: =IF(OR($P$6="",$P$6=0,$P$7="",$P$7=0,$P$8="",$P$7<1),"", IF(CF$8="","", IF($P$6=Lists!$I$6,EOMONTH(CF6,0), IF($P$6=Lists!$I$7,EOMONTH(CF6,2-(MONTH(CF6)-1-3*INT((MONTH(CF6)-1)/3))), IF($P$6=Lists!$I$8,EOMONTH(CF6,11), IF($P$6=Lists!$I$9,EOMONTH(CF6,12-MONTH(CF6)),"")))))) -> 2028-01-31 | CG7: =IF(OR($P$6="",$P$6=0,$P$7="",$P$7=0,$P$8="",$P$7<1),"", IF(CG$8="","", IF($P$6=Lists!$I$6,EOMONTH(CG6,0), IF($P$6=Lists!$I$7,EOMONTH(CG6,2-(MONTH(CG6)-1-3*INT((MONTH(CG6)-1)/3))), IF($P$6=Lists!$I$8,EOMONTH(CG6,11), IF($P$6=Lists!$I$9,EOMONTH(CG6,12-MONTH(CG6)),"")))))) -> 2028-02-29 | CH7: =IF(OR($P$6="",$P$6=0,$P$7="",$P$7=0,$P$8="",$P$7<1),"", IF(CH$8="","", IF($P$6=Lists!$I$6,EOMONTH(CH6,0), IF($P$6=Lists!$I$7,EOMONTH(CH6,2-(MONTH(CH6)-1-3*INT((MONTH(CH6)-1)/3))), IF($P$6=Lists!$I$8,EOMONTH(CH6,11), IF($P$6=Lists!$I$9,EOMONTH(CH6,12-MONTH(CH6)),"")))))) -> 2028-03-31 | CI7: =IF(OR($P$6="",$P$6=0,$P$7="",$P$7=0,$P$8="",$P$7<1),"", IF(CI$8="","", IF($P$6=Lists!$I$6,EOMONTH(CI6,0), IF($P$6=Lists!$I$7,EOMONTH(CI6,2-(MONTH(CI6)-1-3*INT((MONTH(CI6)-1)/3))), IF($P$6=Lists!$I$8,EOMONTH(CI6,11), IF($P$6=Lists!$I$9,EOMONTH(CI6,12-MONTH(CI6)),"")))))) -> 2028-04-30 | CJ7: =IF(OR($P$6="",$P$6=0,$P$7="",$P$7=0,$P$8="",$P$7<1),"", IF(CJ$8="","", IF($P$6=Lists!$I$6,EOMONTH(CJ6,0), IF($P$6=Lists!$I$7,EOMONTH(CJ6,2-(MONTH(CJ6)-1-3*INT((MONTH(CJ6)-1)/3))), IF($P$6=Lists!$I$8,EOMONTH(CJ6,11), IF($P$6=Lists!$I$9,EOMONTH(CJ6,12-MONTH(CJ6)),"")))))) -> 2028-05-31 | CK7: =IF(OR($P$6="",$P$6=0,$P$7="",$P$7=0,$P$8="",$P$7<1),"", IF(CK$8="","", IF($P$6=Lists!$I$6,EOMONTH(CK6,0), IF($P$6=Lists!$I$7,EOMONTH(CK6,2-(MONTH(CK6)-1-3*INT((MONTH(CK6)-1)/3))), IF($P$6=Lists!$I$8,EOMONTH(CK6,11), IF($P$6=Lists!$I$9,EOMONTH(CK6,12-MONTH(CK6)),"")))))) -> 2028-06-30 | CL7: =IF(OR($P$6="",$P$6=0,$P$7="",$P$7=0,$P$8="",$P$7<1),"", IF(CL$8="","", IF($P$6=Lists!$I$6,EOMONTH(CL6,0), IF($P$6=Lists!$I$7,EOMONTH(CL6,2-(MONTH(CL6)-1-3*INT((MONTH(CL6)-1)/3))), IF($P$6=Lists!$I$8,EOMONTH(CL6,11), IF($P$6=Lists!$I$9,EOMONTH(CL6,12-MONTH(CL6)),"")))))) -> 2028-07-31 | CM7: =IF(OR($P$6="",$P$6=0,$P$7="",$P$7=0,$P$8="",$P$7<1),"", IF(CM$8="","", IF($P$6=Lists!$I$6,EOMONTH(CM6,0), IF($P$6=Lists!$I$7,EOMONTH(CM6,2-(MONTH(CM6)-1-3*INT((MONTH(CM6)-1)/3))), IF($P$6=Lists!$I$8,EOMONTH(CM6,11), IF($P$6=Lists!$I$9,EOMONTH(CM6,12-MONTH(CM6)),"")))))) -> 2028-08-31 | CN7: =IF(OR($P$6="",$P$6=0,$P$7="",$P$7=0,$P$8="",$P$7<1),"", IF(CN$8="","", IF($P$6=Lists!$I$6,EOMONTH(CN6,0), IF($P$6=Lists!$I$7,EOMONTH(CN6,2-(MONTH(CN6)-1-3*INT((MONTH(CN6)-1)/3))), IF($P$6=Lists!$I$8,EOMONTH(CN6,11), IF($P$6=Lists!$I$9,EOMONTH(CN6,12-MONTH(CN6)),"")))))) -> 2028-09-30 | CO7: =IF(OR($P$6="",$P$6=0,$P$7="",$P$7=0,$P$8="",$P$7<1),"", IF(CO$8="","", IF($P$6=Lists!$I$6,EOMONTH(CO6,0), IF($P$6=Lists!$I$7,EOMONTH(CO6,2-(MONTH(CO6)-1-3*INT((MONTH(CO6)-1)/3))), IF($P$6=Lists!$I$8,EOMONTH(CO6,11), IF($P$6=Lists!$I$9,EOMONTH(CO6,12-MONTH(CO6)),"")))))) -> 2028-10-31 | CP7: =IF(OR($P$6="",$P$6=0,$P$7="",$P$7=0,$P$8="",$P$7<1),"", IF(CP$8="","", IF($P$6=Lists!$I$6,EOMONTH(CP6,0), IF($P$6=Lists!$I$7,EOMONTH(CP6,2-(MONTH(CP6)-1-3*INT((MONTH(CP6)-1)/3))), IF($P$6=Lists!$I$8,EOMONTH(CP6,11), IF($P$6=Lists!$I$9,EOMONTH(CP6,12-MONTH(CP6)),"")))))) -> 2028-11-30 | CQ7: =IF(OR($P$6="",$P$6=0,$P$7="",$P$7=0,$P$8="",$P$7<1),"", IF(CQ$8="","", IF($P$6=Lists!$I$6,EOMONTH(CQ6,0), IF($P$6=Lists!$I$7,EOMONTH(CQ6,2-(MONTH(CQ6)-1-3*INT((MONTH(CQ6)-1)/3))), IF($P$6=Lists!$I$8,EOMONTH(CQ6,11), IF($P$6=Lists!$I$9,EOMONTH(CQ6,12-MONTH(CQ6)),"")))))) -> 2028-12-31 | CR7: =IF(OR($P$6="",$P$6=0,$P$7="",$P$7=0,$P$8="",$P$7<1),"", IF(CR$8="","", IF($P$6=Lists!$I$6,EOMONTH(CR6,0), IF($P$6=Lists!$I$7,EOMONTH(CR6,2-(MONTH(CR6)-1-3*INT((MONTH(CR6)-1)/3))), IF($P$6=Lists!$I$8,EOMONTH(CR6,11), IF($P$6=Lists!$I$9,EOMONTH(CR6,12-MONTH(CR6)),"")))))) -> 2029-01-31 | CS7: =IF(OR($P$6="",$P$6=0,$P$7="",$P$7=0,$P$8="",$P$7<1),"", IF(CS$8="","", IF($P$6=Lists!$I$6,EOMONTH(CS6,0), IF($P$6=Lists!$I$7,EOMONTH(CS6,2-(MONTH(CS6)-1-3*INT((MONTH(CS6)-1)/3))), IF($P$6=Lists!$I$8,EOMONTH(CS6,11), IF($P$6=Lists!$I$9,EOMONTH(CS6,12-MONTH(CS6)),"")))))) -> 2029-02-28 | CT7: =IF(OR($P$6="",$P$6=0,$P$7="",$P$7=0,$P$8="",$P$7<1),"", IF(CT$8="","", IF($P$6=Lists!$I$6,EOMONTH(CT6,0), IF($P$6=Lists!$I$7,EOMONTH(CT6,2-(MONTH(CT6)-1-3*INT((MONTH(CT6)-1)/3))), IF($P$6=Lists!$I$8,EOMONTH(CT6,11), IF($P$6=Lists!$I$9,EOMONTH(CT6,12-MONTH(CT6)),"")))))) -> 2029-03-31 | CU7: =IF(OR($P$6="",$P$6=0,$P$7="",$P$7=0,$P$8="",$P$7<1),"", IF(CU$8="","", IF($P$6=Lists!$I$6,EOMONTH(CU6,0), IF($P$6=Lists!$I$7,EOMONTH(CU6,2-(MONTH(CU6)-1-3*INT((MONTH(CU6)-1)/3))), IF($P$6=Lists!$I$8,EOMONTH(CU6,11), IF($P$6=Lists!$I$9,EOMONTH(CU6,12-MONTH(CU6)),"")))))) -> 2029-04-30 | CV7: =IF(OR($P$6="",$P$6=0,$P$7="",$P$7=0,$P$8="",$P$7<1),"", IF(CV$8="","", IF($P$6=Lists!$I$6,EOMONTH(CV6,0), IF($P$6=Lists!$I$7,EOMONTH(CV6,2-(MONTH(CV6)-1-3*INT((MONTH(CV6)-1)/3))), IF($P$6=Lists!$I$8,EOMONTH(CV6,11), IF($P$6=Lists!$I$9,EOMONTH(CV6,12-MONTH(CV6)),"")))))) -> 2029-05-31 | CW7: =IF(OR($P$6="",$P$6=0,$P$7="",$P$7=0,$P$8="",$P$7<1),"", IF(CW$8="","", IF($P$6=Lists!$I$6,EOMONTH(CW6,0), IF($P$6=Lists!$I$7,EOMONTH(CW6,2-(MONTH(CW6)-1-3*INT((MONTH(CW6)-1)/3))), IF($P$6=Lists!$I$8,EOMONTH(CW6,11), IF($P$6=Lists!$I$9,EOMONTH(CW6,12-MONTH(CW6)),"")))))) -> 2029-06-30 | CX7: =IF(OR($P$6="",$P$6=0,$P$7="",$P$7=0,$P$8="",$P$7<1),"", IF(CX$8="","", IF($P$6=Lists!$I$6,EOMONTH(CX6,0), IF($P$6=Lists!$I$7,EOMONTH(CX6,2-(MONTH(CX6)-1-3*INT((MONTH(CX6)-1)/3))), IF($P$6=Lists!$I$8,EOMONTH(CX6,11), IF($P$6=Lists!$I$9,EOMONTH(CX6,12-MONTH(CX6)),"")))))) -> 2029-07-31 | CY7: =IF(OR($P$6="",$P$6=0,$P$7="",$P$7=0,$P$8="",$P$7<1),"", IF(CY$8="","", IF($P$6=Lists!$I$6,EOMONTH(CY6,0), IF($P$6=Lists!$I$7,EOMONTH(CY6,2-(MONTH(CY6)-1-3*INT((MONTH(CY6)-1)/3))), IF($P$6=Lists!$I$8,EOMONTH(CY6,11), IF($P$6=Lists!$I$9,EOMONTH(CY6,12-MONTH(CY6)),"")))))) -> 2029-08-31 | CZ7: =IF(OR($P$6="",$P$6=0,$P$7="",$P$7=0,$P$8="",$P$7<1),"", IF(CZ$8="","", IF($P$6=Lists!$I$6,EOMONTH(CZ6,0), IF($P$6=Lists!$I$7,EOMONTH(CZ6,2-(MONTH(CZ6)-1-3*INT((MONTH(CZ6)-1)/3))), IF($P$6=Lists!$I$8,EOMONTH(CZ6,11), IF($P$6=Lists!$I$9,EOMONTH(CZ6,12-MONTH(CZ6)),"")))))) -> 2029-09-30 | DA7: =IF(OR($P$6="",$P$6=0,$P$7="",$P$7=0,$P$8="",$P$7<1),"", IF(DA$8="","", IF($P$6=Lists!$I$6,EOMONTH(DA6,0), IF($P$6=Lists!$I$7,EOMONTH(DA6,2-(MONTH(DA6)-1-3*INT((MONTH(DA6)-1)/3))), IF($P$6=Lists!$I$8,EOMONTH(DA6,11), IF($P$6=Lists!$I$9,EOMONTH(DA6,12-MONTH(DA6)),"")))))) -> 2029-10-31 | DB7: =IF(OR($P$6="",$P$6=0,$P$7="",$P$7=0,$P$8="",$P$7<1),"", IF(DB$8="","", IF($P$6=Lists!$I$6,EOMONTH(DB6,0), IF($P$6=Lists!$I$7,EOMONTH(DB6,2-(MONTH(DB6)-1-3*INT((MONTH(DB6)-1)/3))), IF($P$6=Lists!$I$8,EOMONTH(DB6,11), IF($P$6=Lists!$I$9,EOMONTH(DB6,12-MONTH(DB6)),"")))))) -> 2029-11-30 | DC7: =IF(OR($P$6="",$P$6=0,$P$7="",$P$7=0,$P$8="",$P$7<1),"", IF(DC$8="","", IF($P$6=Lists!$I$6,EOMONTH(DC6,0), IF($P$6=Lists!$I$7,EOMONTH(DC6,2-(MONTH(DC6)-1-3*INT((MONTH(DC6)-1)/3))), IF($P$6=Lists!$I$8,EOMONTH(DC6,11), IF($P$6=Lists!$I$9,EOMONTH(DC6,12-MONTH(DC6)),"")))))) -> 2029-12-31 | DD7: =IF(OR($P$6="",$P$6=0,$P$7="",$P$7=0,$P$8="",$P$7<1),"", IF(DD$8="","", IF($P$6=Lists!$I$6,EOMONTH(DD6,0), IF($P$6=Lists!$I$7,EOMONTH(DD6,2-(MONTH(DD6)-1-3*INT((MONTH(DD6)-1)/3))), IF($P$6=Lists!$I$8,EOMONTH(DD6,11), IF($P$6=Lists!$I$9,EOMONTH(DD6,12-MONTH(DD6)),"")))))) -> 2030-01-31 | DE7: =IF(OR($P$6="",$P$6=0,$P$7="",$P$7=0,$P$8="",$P$7<1),"", IF(DE$8="","", IF($P$6=Lists!$I$6,EOMONTH(DE6,0), IF($P$6=Lists!$I$7,EOMONTH(DE6,2-(MONTH(DE6)-1-3*INT((MONTH(DE6)-1)/3))), IF($P$6=Lists!$I$8,EOMONTH(DE6,11), IF($P$6=Lists!$I$9,EOMONTH(DE6,12-MONTH(DE6)),"")))))) -> 2030-02-28 | DF7: =IF(OR($P$6="",$P$6=0,$P$7="",$P$7=0,$P$8="",$P$7<1),"", IF(DF$8="","", IF($P$6=Lists!$I$6,EOMONTH(DF6,0), IF($P$6=Lists!$I$7,EOMONTH(DF6,2-(MONTH(DF6)-1-3*INT((MONTH(DF6)-1)/3))), IF($P$6=Lists!$I$8,EOMONTH(DF6,11), IF($P$6=Lists!$I$9,EOMONTH(DF6,12-MONTH(DF6)),"")))))) -> 2030-03-31 | DG7: =IF(OR($P$6="",$P$6=0,$P$7="",$P$7=0,$P$8="",$P$7<1),"", IF(DG$8="","", IF($P$6=Lists!$I$6,EOMONTH(DG6,0), IF($P$6=Lists!$I$7,EOMONTH(DG6,2-(MONTH(DG6)-1-3*INT((MONTH(DG6)-1)/3))), IF($P$6=Lists!$I$8,EOMONTH(DG6,11), IF($P$6=Lists!$I$9,EOMONTH(DG6,12-MONTH(DG6)),"")))))) -> 2030-04-30 | DH7: =IF(OR($P$6="",$P$6=0,$P$7="",$P$7=0,$P$8="",$P$7<1),"", IF(DH$8="","", IF($P$6=Lists!$I$6,EOMONTH(DH6,0), IF($P$6=Lists!$I$7,EOMONTH(DH6,2-(MONTH(DH6)-1-3*INT((MONTH(DH6)-1)/3))), IF($P$6=Lists!$I$8,EOMONTH(DH6,11), IF($P$6=Lists!$I$9,EOMONTH(DH6,12-MONTH(DH6)),"")))))) -> 2030-05-31 | DI7: =IF(OR($P$6="",$P$6=0,$P$7="",$P$7=0,$P$8="",$P$7<1),"", IF(DI$8="","", IF($P$6=Lists!$I$6,EOMONTH(DI6,0), IF($P$6=Lists!$I$7,EOMONTH(DI6,2-(MONTH(DI6)-1-3*INT((MONTH(DI6)-1)/3))), IF($P$6=Lists!$I$8,EOMONTH(DI6,11), IF($P$6=Lists!$I$9,EOMONTH(DI6,12-MONTH(DI6)),"")))))) -> 2030-06-30 | DJ7: =IF(OR($P$6="",$P$6=0,$P$7="",$P$7=0,$P$8="",$P$7<1),"", IF(DJ$8="","", IF($P$6=Lists!$I$6,EOMONTH(DJ6,0), IF($P$6=Lists!$I$7,EOMONTH(DJ6,2-(MONTH(DJ6)-1-3*INT((MONTH(DJ6)-1)/3))), IF($P$6=Lists!$I$8,EOMONTH(DJ6,11), IF($P$6=Lists!$I$9,EOMONTH(DJ6,12-MONTH(DJ6)),"")))))) -> 2030-07-31 | DK7: =IF(OR($P$6="",$P$6=0,$P$7="",$P$7=0,$P$8="",$P$7<1),"", IF(DK$8="","", IF($P$6=Lists!$I$6,EOMONTH(DK6,0), IF($P$6=Lists!$I$7,EOMONTH(DK6,2-(MONTH(DK6)-1-3*INT((MONTH(DK6)-1)/3))), IF($P$6=Lists!$I$8,EOMONTH(DK6,11), IF($P$6=Lists!$I$9,EOMONTH(DK6,12-MONTH(DK6)),"")))))) -> 2030-08-31 | DL7: =IF(OR($P$6="",$P$6=0,$P$7="",$P$7=0,$P$8="",$P$7<1),"", IF(DL$8="","", IF($P$6=Lists!$I$6,EOMONTH(DL6,0), IF($P$6=Lists!$I$7,EOMONTH(DL6,2-(MONTH(DL6)-1-3*INT((MONTH(DL6)-1)/3))), IF($P$6=Lists!$I$8,EOMONTH(DL6,11), IF($P$6=Lists!$I$9,EOMONTH(DL6,12-MONTH(DL6)),"")))))) -> 2030-09-30 | DM7: =IF(OR($P$6="",$P$6=0,$P$7="",$P$7=0,$P$8="",$P$7<1),"", IF(DM$8="","", IF($P$6=Lists!$I$6,EOMONTH(DM6,0), IF($P$6=Lists!$I$7,EOMONTH(DM6,2-(MONTH(DM6)-1-3*INT((MONTH(DM6)-1)/3))), IF($P$6=Lists!$I$8,EOMONTH(DM6,11), IF($P$6=Lists!$I$9,EOMONTH(DM6,12-MONTH(DM6)),"")))))) -> 2030-10-31 | DN7: =IF(OR($P$6="",$P$6=0,$P$7="",$P$7=0,$P$8="",$P$7<1),"", IF(DN$8="","", IF($P$6=Lists!$I$6,EOMONTH(DN6,0), IF($P$6=Lists!$I$7,EOMONTH(DN6,2-(MONTH(DN6)-1-3*INT((MONTH(DN6)-1)/3))), IF($P$6=Lists!$I$8,EOMONTH(DN6,11), IF($P$6=Lists!$I$9,EOMONTH(DN6,12-MONTH(DN6)),"")))))) -> 2030-11-30 | DO7: =IF(OR($P$6="",$P$6=0,$P$7="",$P$7=0,$P$8="",$P$7<1),"", IF(DO$8="","", IF($P$6=Lists!$I$6,EOMONTH(DO6,0), IF($P$6=Lists!$I$7,EOMONTH(DO6,2-(MONTH(DO6)-1-3*INT((MONTH(DO6)-1)/3))), IF($P$6=Lists!$I$8,EOMONTH(DO6,11), IF($P$6=Lists!$I$9,EOMONTH(DO6,12-MONTH(DO6)),"")))))) -> 2030-12-31 | DP7: =IF(OR($P$6="",$P$6=0,$P$7="",$P$7=0,$P$8="",$P$7<1),"", IF(DP$8="","", IF($P$6=Lists!$I$6,EOMONTH(DP6,0), IF($P$6=Lists!$I$7,EOMONTH(DP6,2-(MONTH(DP6)-1-3*INT((MONTH(DP6)-1)/3))), IF($P$6=Lists!$I$8,EOMONTH(DP6,11), IF($P$6=Lists!$I$9,EOMONTH(DP6,12-MONTH(DP6)),"")))))) -> 2031-01-31 | DQ7: =IF(OR($P$6="",$P$6=0,$P$7="",$P$7=0,$P$8="",$P$7<1),"", IF(DQ$8="","", IF($P$6=Lists!$I$6,EOMONTH(DQ6,0), IF($P$6=Lists!$I$7,EOMONTH(DQ6,2-(MONTH(DQ6)-1-3*INT((MONTH(DQ6)-1)/3))), IF($P$6=Lists!$I$8,EOMONTH(DQ6,11), IF($P$6=Lists!$I$9,EOMONTH(DQ6,12-MONTH(DQ6)),"")))))) -> 2031-02-28 | DR7: =IF(OR($P$6="",$P$6=0,$P$7="",$P$7=0,$P$8="",$P$7<1),"", IF(DR$8="","", IF($P$6=Lists!$I$6,EOMONTH(DR6,0), IF($P$6=Lists!$I$7,EOMONTH(DR6,2-(MONTH(DR6)-1-3*INT((MONTH(DR6)-1)/3))), IF($P$6=Lists!$I$8,EOMONTH(DR6,11), IF($P$6=Lists!$I$9,EOMONTH(DR6,12-MONTH(DR6)),"")))))) -> 2031-03-31 | DS7: =IF(OR($P$6="",$P$6=0,$P$7="",$P$7=0,$P$8="",$P$7<1),"", IF(DS$8="","", IF($P$6=Lists!$I$6,EOMONTH(DS6,0), IF($P$6=Lists!$I$7,EOMONTH(DS6,2-(MONTH(DS6)-1-3*INT((MONTH(DS6)-1)/3))), IF($P$6=Lists!$I$8,EOMONTH(DS6,11), IF($P$6=Lists!$I$9,EOMONTH(DS6,12-MONTH(DS6)),"")))))) -> 2031-04-30 | DT7: =IF(OR($P$6="",$P$6=0,$P$7="",$P$7=0,$P$8="",$P$7<1),"", IF(DT$8="","", IF($P$6=Lists!$I$6,EOMONTH(DT6,0), IF($P$6=Lists!$I$7,EOMONTH(DT6,2-(MONTH(DT6)-1-3*INT((MONTH(DT6)-1)/3))), IF($P$6=Lists!$I$8,EOMONTH(DT6,11), IF($P$6=Lists!$I$9,EOMONTH(DT6,12-MONTH(DT6)),"")))))) -> 2031-05-31 | DU7: =IF(OR($P$6="",$P$6=0,$P$7="",$P$7=0,$P$8="",$P$7<1),"", IF(DU$8="","", IF($P$6=Lists!$I$6,EOMONTH(DU6,0), IF($P$6=Lists!$I$7,EOMONTH(DU6,2-(MONTH(DU6)-1-3*INT((MONTH(DU6)-1)/3))), IF($P$6=Lists!$I$8,EOMONTH(DU6,11), IF($P$6=Lists!$I$9,EOMONTH(DU6,12-MONTH(DU6)),"")))))) -> 2031-06-30 | DV7: =IF(OR($P$6="",$P$6=0,$P$7="",$P$7=0,$P$8="",$P$7<1),"", IF(DV$8="","", IF($P$6=Lists!$I$6,EOMONTH(DV6,0), IF($P$6=Lists!$I$7,EOMONTH(DV6,2-(MONTH(DV6)-1-3*INT((MONTH(DV6)-1)/3))), IF($P$6=Lists!$I$8,EOMONTH(DV6,11), IF($P$6=Lists!$I$9,EOMONTH(DV6,12-MONTH(DV6)),"")))))) -> 2031-07-31 | DW7: =IF(OR($P$6="",$P$6=0,$P$7="",$P$7=0,$P$8="",$P$7<1),"", IF(DW$8="","", IF($P$6=Lists!$I$6,EOMONTH(DW6,0), IF($P$6=Lists!$I$7,EOMONTH(DW6,2-(MONTH(DW6)-1-3*INT((MONTH(DW6)-1)/3))), IF($P$6=Lists!$I$8,EOMONTH(DW6,11), IF($P$6=Lists!$I$9,EOMONTH(DW6,12-MONTH(DW6)),"")))))) -> 2031-08-31 | DX7: =IF(OR($P$6="",$P$6=0,$P$7="",$P$7=0,$P$8="",$P$7<1),"", IF(DX$8="","", IF($P$6=Lists!$I$6,EOMONTH(DX6,0), IF($P$6=Lists!$I$7,EOMONTH(DX6,2-(MONTH(DX6)-1-3*INT((MONTH(DX6)-1)/3))), IF($P$6=Lists!$I$8,EOMONTH(DX6,11), IF($P$6=Lists!$I$9,EOMONTH(DX6,12-MONTH(DX6)),"")))))) -> 2031-09-30 | DY7: =IF(OR($P$6="",$P$6=0,$P$7="",$P$7=0,$P$8="",$P$7<1),"", IF(DY$8="","", IF($P$6=Lists!$I$6,EOMONTH(DY6,0), IF($P$6=Lists!$I$7,EOMONTH(DY6,2-(MONTH(DY6)-1-3*INT((MONTH(DY6)-1)/3))), IF($P$6=Lists!$I$8,EOMONTH(DY6,11), IF($P$6=Lists!$I$9,EOMONTH(DY6,12-MONTH(DY6)),"")))))) -> 2031-10-31 | DZ7: =IF(OR($P$6="",$P$6=0,$P$7="",$P$7=0,$P$8="",$P$7<1),"", IF(DZ$8="","", IF($P$6=Lists!$I$6,EOMONTH(DZ6,0), IF($P$6=Lists!$I$7,EOMONTH(DZ6,2-(MONTH(DZ6)-1-3*INT((MONTH(DZ6)-1)/3))), IF($P$6=Lists!$I$8,EOMONTH(DZ6,11), IF($P$6=Lists!$I$9,EOMONTH(DZ6,12-MONTH(DZ6)),"")))))) -> 2031-11-30 | EA7: =IF(OR($P$6="",$P$6=0,$P$7="",$P$7=0,$P$8="",$P$7<1),"", IF(EA$8="","", IF($P$6=Lists!$I$6,EOMONTH(EA6,0), IF($P$6=Lists!$I$7,EOMONTH(EA6,2-(MONTH(EA6)-1-3*INT((MONTH(EA6)-1)/3))), IF($P$6=Lists!$I$8,EOMONTH(EA6,11), IF($P$6=Lists!$I$9,EOMONTH(EA6,12-MONTH(EA6)),"")))))) -> 2031-12-31 | EB7: =IF(OR($P$6="",$P$6=0,$P$7="",$P$7=0,$P$8="",$P$7<1),"", IF(EB$8="","", IF($P$6=Lists!$I$6,EOMONTH(EB6,0), IF($P$6=Lists!$I$7,EOMONTH(EB6,2-(MONTH(EB6)-1-3*INT((MONTH(EB6)-1)/3))), IF($P$6=Lists!$I$8,EOMONTH(EB6,11), IF($P$6=Lists!$I$9,EOMONTH(EB6,12-MONTH(EB6)),"")))))) -> 2032-01-31 | EC7: =IF(OR($P$6="",$P$6=0,$P$7="",$P$7=0,$P$8="",$P$7<1),"", IF(EC$8="","", IF($P$6=Lists!$I$6,EOMONTH(EC6,0), IF($P$6=Lists!$I$7,EOMONTH(EC6,2-(MONTH(EC6)-1-3*INT((MONTH(EC6)-1)/3))), IF($P$6=Lists!$I$8,EOMONTH(EC6,11), IF($P$6=Lists!$I$9,EOMONTH(EC6,12-MONTH(EC6)),"")))))) -> 2032-02-29 | ED7: =IF(OR($P$6="",$P$6=0,$P$7="",$P$7=0,$P$8="",$P$7<1),"", IF(ED$8="","", IF($P$6=Lists!$I$6,EOMONTH(ED6,0), IF($P$6=Lists!$I$7,EOMONTH(ED6,2-(MONTH(ED6)-1-3*INT((MONTH(ED6)-1)/3))), IF($P$6=Lists!$I$8,EOMONTH(ED6,11), IF($P$6=Lists!$I$9,EOMONTH(ED6,12-MONTH(ED6)),"")))))) -> 2032-03-31 | EE7: =IF(OR($P$6="",$P$6=0,$P$7="",$P$7=0,$P$8="",$P$7<1),"", IF(EE$8="","", IF($P$6=Lists!$I$6,EOMONTH(EE6,0), IF($P$6=Lists!$I$7,EOMONTH(EE6,2-(MONTH(EE6)-1-3*INT((MONTH(EE6)-1)/3))), IF($P$6=Lists!$I$8,EOMONTH(EE6,11), IF($P$6=Lists!$I$9,EOMONTH(EE6,12-MONTH(EE6)),"")))))) -> 2032-04-30 | EF7: =IF(OR($P$6="",$P$6=0,$P$7="",$P$7=0,$P$8="",$P$7<1),"", IF(EF$8="","", IF($P$6=Lists!$I$6,EOMONTH(EF6,0), IF($P$6=Lists!$I$7,EOMONTH(EF6,2-(MONTH(EF6)-1-3*INT((MONTH(EF6)-1)/3))), IF($P$6=Lists!$I$8,EOMONTH(EF6,11), IF($P$6=Lists!$I$9,EOMONTH(EF6,12-MONTH(EF6)),"")))))) -> 2032-05-31 | EG7: =IF(OR($P$6="",$P$6=0,$P$7="",$P$7=0,$P$8="",$P$7<1),"", IF(EG$8="","", IF($P$6=Lists!$I$6,EOMONTH(EG6,0), IF($P$6=Lists!$I$7,EOMONTH(EG6,2-(MONTH(EG6)-1-3*INT((MONTH(EG6)-1)/3))), IF($P$6=Lists!$I$8,EOMONTH(EG6,11), IF($P$6=Lists!$I$9,EOMONTH(EG6,12-MONTH(EG6)),"")))))) -> 2032-06-30 | EH7: =IF(OR($P$6="",$P$6=0,$P$7="",$P$7=0,$P$8="",$P$7<1),"", IF(EH$8="","", IF($P$6=Lists!$I$6,EOMONTH(EH6,0), IF($P$6=Lists!$I$7,EOMONTH(EH6,2-(MONTH(EH6)-1-3*INT((MONTH(EH6)-1)/3))), IF($P$6=Lists!$I$8,EOMONTH(EH6,11), IF($P$6=Lists!$I$9,EOMONTH(EH6,12-MONTH(EH6)),"")))))) -> 2032-07-31 | EI7: =IF(OR($P$6="",$P$6=0,$P$7="",$P$7=0,$P$8="",$P$7<1),"", IF(EI$8="","", IF($P$6=Lists!$I$6,EOMONTH(EI6,0), IF($P$6=Lists!$I$7,EOMONTH(EI6,2-(MONTH(EI6)-1-3*INT((MONTH(EI6)-1)/3))), IF($P$6=Lists!$I$8,EOMONTH(EI6,11), IF($P$6=Lists!$I$9,EOMONTH(EI6,12-MONTH(EI6)),"")))))) -> 2032-08-31 | EJ7: =IF(OR($P$6="",$P$6=0,$P$7="",$P$7=0,$P$8="",$P$7<1),"", IF(EJ$8="","", IF($P$6=Lists!$I$6,EOMONTH(EJ6,0), IF($P$6=Lists!$I$7,EOMONTH(EJ6,2-(MONTH(EJ6)-1-3*INT((MONTH(EJ6)-1)/3))), IF($P$6=Lists!$I$8,EOMONTH(EJ6,11), IF($P$6=Lists!$I$9,EOMONTH(EJ6,12-MONTH(EJ6)),"")))))) -> 2032-09-30 | EK7: =IF(OR($P$6="",$P$6=0,$P$7="",$P$7=0,$P$8="",$P$7<1),"", IF(EK$8="","", IF($P$6=Lists!$I$6,EOMONTH(EK6,0), IF($P$6=Lists!$I$7,EOMONTH(EK6,2-(MONTH(EK6)-1-3*INT((MONTH(EK6)-1)/3))), IF($P$6=Lists!$I$8,EOMONTH(EK6,11), IF($P$6=Lists!$I$9,EOMONTH(EK6,12-MONTH(EK6)),"")))))) -> 2032-10-31 | EL7: =IF(OR($P$6="",$P$6=0,$P$7="",$P$7=0,$P$8="",$P$7<1),"", IF(EL$8="","", IF($P$6=Lists!$I$6,EOMONTH(EL6,0), IF($P$6=Lists!$I$7,EOMONTH(EL6,2-(MONTH(EL6)-1-3*INT((MONTH(EL6)-1)/3))), IF($P$6=Lists!$I$8,EOMONTH(EL6,11), IF($P$6=Lists!$I$9,EOMONTH(EL6,12-MONTH(EL6)),"")))))) -> 2032-11-30 | EM7: =IF(OR($P$6="",$P$6=0,$P$7="",$P$7=0,$P$8="",$P$7<1),"", IF(EM$8="","", IF($P$6=Lists!$I$6,EOMONTH(EM6,0), IF($P$6=Lists!$I$7,EOMONTH(EM6,2-(MONTH(EM6)-1-3*INT((MONTH(EM6)-1)/3))), IF($P$6=Lists!$I$8,EOMONTH(EM6,11), IF($P$6=Lists!$I$9,EOMONTH(EM6,12-MONTH(EM6)),"")))))) -> 2032-12-31 | EN7: =IF(OR($P$6="",$P$6=0,$P$7="",$P$7=0,$P$8="",$P$7<1),"", IF(EN$8="","", IF($P$6=Lists!$I$6,EOMONTH(EN6,0), IF($P$6=Lists!$I$7,EOMONTH(EN6,2-(MONTH(EN6)-1-3*INT((MONTH(EN6)-1)/3))), IF($P$6=Lists!$I$8,EOMONTH(EN6,11), IF($P$6=Lists!$I$9,EOMONTH(EN6,12-MONTH(EN6)),"")))))) ->  | EO7: =IF(OR($P$6="",$P$6=0,$P$7="",$P$7=0,$P$8="",$P$7<1),"", IF(EO$8="","", IF($P$6=Lists!$I$6,EOMONTH(EO6,0), IF($P$6=Lists!$I$7,EOMONTH(EO6,2-(MONTH(EO6)-1-3*INT((MONTH(EO6)-1)/3))), IF($P$6=Lists!$I$8,EOMONTH(EO6,11), IF($P$6=Lists!$I$9,EOMONTH(EO6,12-MONTH(EO6)),"")))))) ->  | EP7: =IF(OR($P$6="",$P$6=0,$P$7="",$P$7=0,$P$8="",$P$7<1),"", IF(EP$8="","", IF($P$6=Lists!$I$6,EOMONTH(EP6,0), IF($P$6=Lists!$I$7,EOMONTH(EP6,2-(MONTH(EP6)-1-3*INT((MONTH(EP6)-1)/3))), IF($P$6=Lists!$I$8,EOMONTH(EP6,11), IF($P$6=Lists!$I$9,EOMONTH(EP6,12-MONTH(EP6)),"")))))) ->  | EQ7: =IF(OR($P$6="",$P$6=0,$P$7="",$P$7=0,$P$8="",$P$7<1),"", IF(EQ$8="","", IF($P$6=Lists!$I$6,EOMONTH(EQ6,0), IF($P$6=Lists!$I$7,EOMONTH(EQ6,2-(MONTH(EQ6)-1-3*INT((MONTH(EQ6)-1)/3))), IF($P$6=Lists!$I$8,EOMONTH(EQ6,11), IF($P$6=Lists!$I$9,EOMONTH(EQ6,12-MONTH(EQ6)),"")))))) ->  | ER7: =IF(OR($P$6="",$P$6=0,$P$7="",$P$7=0,$P$8="",$P$7<1),"", IF(ER$8="","", IF($P$6=Lists!$I$6,EOMONTH(ER6,0), IF($P$6=Lists!$I$7,EOMONTH(ER6,2-(MONTH(ER6)-1-3*INT((MONTH(ER6)-1)/3))), IF($P$6=Lists!$I$8,EOMONTH(ER6,11), IF($P$6=Lists!$I$9,EOMONTH(ER6,12-MONTH(ER6)),"")))))) ->  | ES7: =IF(OR($P$6="",$P$6=0,$P$7="",$P$7=0,$P$8="",$P$7<1),"", IF(ES$8="","", IF($P$6=Lists!$I$6,EOMONTH(ES6,0), IF($P$6=Lists!$I$7,EOMONTH(ES6,2-(MONTH(ES6)-1-3*INT((MONTH(ES6)-1)/3))), IF($P$6=Lists!$I$8,EOMONTH(ES6,11), IF($P$6=Lists!$I$9,EOMONTH(ES6,12-MONTH(ES6)),"")))))) ->  | ET7: =IF(OR($P$6="",$P$6=0,$P$7="",$P$7=0,$P$8="",$P$7<1),"", IF(ET$8="","", IF($P$6=Lists!$I$6,EOMONTH(ET6,0), IF($P$6=Lists!$I$7,EOMONTH(ET6,2-(MONTH(ET6)-1-3*INT((MONTH(ET6)-1)/3))), IF($P$6=Lists!$I$8,EOMONTH(ET6,11), IF($P$6=Lists!$I$9,EOMONTH(ET6,12-MONTH(ET6)),"")))))) ->  | EU7: =IF(OR($P$6="",$P$6=0,$P$7="",$P$7=0,$P$8="",$P$7<1),"", IF(EU$8="","", IF($P$6=Lists!$I$6,EOMONTH(EU6,0), IF($P$6=Lists!$I$7,EOMONTH(EU6,2-(MONTH(EU6)-1-3*INT((MONTH(EU6)-1)/3))), IF($P$6=Lists!$I$8,EOMONTH(EU6,11), IF($P$6=Lists!$I$9,EOMONTH(EU6,12-MONTH(EU6)),"")))))) ->  | EV7: =IF(OR($P$6="",$P$6=0,$P$7="",$P$7=0,$P$8="",$P$7<1),"", IF(EV$8="","", IF($P$6=Lists!$I$6,EOMONTH(EV6,0), IF($P$6=Lists!$I$7,EOMONTH(EV6,2-(MONTH(EV6)-1-3*INT((MONTH(EV6)-1)/3))), IF($P$6=Lists!$I$8,EOMONTH(EV6,11), IF($P$6=Lists!$I$9,EOMONTH(EV6,12-MONTH(EV6)),"")))))) ->  | EW7: =IF(OR($P$6="",$P$6=0,$P$7="",$P$7=0,$P$8="",$P$7<1),"", IF(EW$8="","", IF($P$6=Lists!$I$6,EOMONTH(EW6,0), IF($P$6=Lists!$I$7,EOMONTH(EW6,2-(MONTH(EW6)-1-3*INT((MONTH(EW6)-1)/3))), IF($P$6=Lists!$I$8,EOMONTH(EW6,11), IF($P$6=Lists!$I$9,EOMONTH(EW6,12-MONTH(EW6)),"")))))) ->  | EX7: =IF(OR($P$6="",$P$6=0,$P$7="",$P$7=0,$P$8="",$P$7<1),"", IF(EX$8="","", IF($P$6=Lists!$I$6,EOMONTH(EX6,0), IF($P$6=Lists!$I$7,EOMONTH(EX6,2-(MONTH(EX6)-1-3*INT((MONTH(EX6)-1)/3))), IF($P$6=Lists!$I$8,EOMONTH(EX6,11), IF($P$6=Lists!$I$9,EOMONTH(EX6,12-MONTH(EX6)),"")))))) ->  | EY7: =IF(OR($P$6="",$P$6=0,$P$7="",$P$7=0,$P$8="",$P$7<1),"", IF(EY$8="","", IF($P$6=Lists!$I$6,EOMONTH(EY6,0), IF($P$6=Lists!$I$7,EOMONTH(EY6,2-(MONTH(EY6)-1-3*INT((MONTH(EY6)-1)/3))), IF($P$6=Lists!$I$8,EOMONTH(EY6,11), IF($P$6=Lists!$I$9,EOMONTH(EY6,12-MONTH(EY6)),"")))))) ->  | EZ7: =IF(OR($P$6="",$P$6=0,$P$7="",$P$7=0,$P$8="",$P$7<1),"", IF(EZ$8="","", IF($P$6=Lists!$I$6,EOMONTH(EZ6,0), IF($P$6=Lists!$I$7,EOMONTH(EZ6,2-(MONTH(EZ6)-1-3*INT((MONTH(EZ6)-1)/3))), IF($P$6=Lists!$I$8,EOMONTH(EZ6,11), IF($P$6=Lists!$I$9,EOMONTH(EZ6,12-MONTH(EZ6)),"")))))) ->  | FA7: =IF(OR($P$6="",$P$6=0,$P$7="",$P$7=0,$P$8="",$P$7<1),"", IF(FA$8="","", IF($P$6=Lists!$I$6,EOMONTH(FA6,0), IF($P$6=Lists!$I$7,EOMONTH(FA6,2-(MONTH(FA6)-1-3*INT((MONTH(FA6)-1)/3))), IF($P$6=Lists!$I$8,EOMONTH(FA6,11), IF($P$6=Lists!$I$9,EOMONTH(FA6,12-MONTH(FA6)),"")))))) ->  | FB7: =IF(OR($P$6="",$P$6=0,$P$7="",$P$7=0,$P$8="",$P$7<1),"", IF(FB$8="","", IF($P$6=Lists!$I$6,EOMONTH(FB6,0), IF($P$6=Lists!$I$7,EOMONTH(FB6,2-(MONTH(FB6)-1-3*INT((MONTH(FB6)-1)/3))), IF($P$6=Lists!$I$8,EOMONTH(FB6,11), IF($P$6=Lists!$I$9,EOMONTH(FB6,12-MONTH(FB6)),"")))))) ->  | FC7: =IF(OR($P$6="",$P$6=0,$P$7="",$P$7=0,$P$8="",$P$7<1),"", IF(FC$8="","", IF($P$6=Lists!$I$6,EOMONTH(FC6,0), IF($P$6=Lists!$I$7,EOMONTH(FC6,2-(MONTH(FC6)-1-3*INT((MONTH(FC6)-1)/3))), IF($P$6=Lists!$I$8,EOMONTH(FC6,11), IF($P$6=Lists!$I$9,EOMONTH(FC6,12-MONTH(FC6)),"")))))) ->  | FD7: =IF(OR($P$6="",$P$6=0,$P$7="",$P$7=0,$P$8="",$P$7<1),"", IF(FD$8="","", IF($P$6=Lists!$I$6,EOMONTH(FD6,0), IF($P$6=Lists!$I$7,EOMONTH(FD6,2-(MONTH(FD6)-1-3*INT((MONTH(FD6)-1)/3))), IF($P$6=Lists!$I$8,EOMONTH(FD6,11), IF($P$6=Lists!$I$9,EOMONTH(FD6,12-MONTH(FD6)),"")))))) ->  | FE7: =IF(OR($P$6="",$P$6=0,$P$7="",$P$7=0,$P$8="",$P$7<1),"", IF(FE$8="","", IF($P$6=Lists!$I$6,EOMONTH(FE6,0), IF($P$6=Lists!$I$7,EOMONTH(FE6,2-(MONTH(FE6)-1-3*INT((MONTH(FE6)-1)/3))), IF($P$6=Lists!$I$8,EOMONTH(FE6,11), IF($P$6=Lists!$I$9,EOMONTH(FE6,12-MONTH(FE6)),"")))))) ->  | FF7: =IF(OR($P$6="",$P$6=0,$P$7="",$P$7=0,$P$8="",$P$7<1),"", IF(FF$8="","", IF($P$6=Lists!$I$6,EOMONTH(FF6,0), IF($P$6=Lists!$I$7,EOMONTH(FF6,2-(MONTH(FF6)-1-3*INT((MONTH(FF6)-1)/3))), IF($P$6=Lists!$I$8,EOMONTH(FF6,11), IF($P$6=Lists!$I$9,EOMONTH(FF6,12-MONTH(FF6)),"")))))) ->  | FG7: =IF(OR($P$6="",$P$6=0,$P$7="",$P$7=0,$P$8="",$P$7<1),"", IF(FG$8="","", IF($P$6=Lists!$I$6,EOMONTH(FG6,0), IF($P$6=Lists!$I$7,EOMONTH(FG6,2-(MONTH(FG6)-1-3*INT((MONTH(FG6)-1)/3))), IF($P$6=Lists!$I$8,EOMONTH(FG6,11), IF($P$6=Lists!$I$9,EOMONTH(FG6,12-MONTH(FG6)),"")))))) ->  | FH7: =IF(OR($P$6="",$P$6=0,$P$7="",$P$7=0,$P$8="",$P$7<1),"", IF(FH$8="","", IF($P$6=Lists!$I$6,EOMONTH(FH6,0), IF($P$6=Lists!$I$7,EOMONTH(FH6,2-(MONTH(FH6)-1-3*INT((MONTH(FH6)-1)/3))), IF($P$6=Lists!$I$8,EOMONTH(FH6,11), IF($P$6=Lists!$I$9,EOMONTH(FH6,12-MONTH(FH6)),"")))))) ->  | FI7: =IF(OR($P$6="",$P$6=0,$P$7="",$P$7=0,$P$8="",$P$7<1),"", IF(FI$8="","", IF($P$6=Lists!$I$6,EOMONTH(FI6,0), IF($P$6=Lists!$I$7,EOMONTH(FI6,2-(MONTH(FI6)-1-3*INT((MONTH(FI6)-1)/3))), IF($P$6=Lists!$I$8,EOMONTH(FI6,11), IF($P$6=Lists!$I$9,EOMONTH(FI6,12-MONTH(FI6)),"")))))) ->  | FJ7: =IF(OR($P$6="",$P$6=0,$P$7="",$P$7=0,$P$8="",$P$7<1),"", IF(FJ$8="","", IF($P$6=Lists!$I$6,EOMONTH(FJ6,0), IF($P$6=Lists!$I$7,EOMONTH(FJ6,2-(MONTH(FJ6)-1-3*INT((MONTH(FJ6)-1)/3))), IF($P$6=Lists!$I$8,EOMONTH(FJ6,11), IF($P$6=Lists!$I$9,EOMONTH(FJ6,12-MONTH(FJ6)),"")))))) ->  | FK7: =IF(OR($P$6="",$P$6=0,$P$7="",$P$7=0,$P$8="",$P$7<1),"", IF(FK$8="","", IF($P$6=Lists!$I$6,EOMONTH(FK6,0), IF($P$6=Lists!$I$7,EOMONTH(FK6,2-(MONTH(FK6)-1-3*INT((MONTH(FK6)-1)/3))), IF($P$6=Lists!$I$8,EOMONTH(FK6,11), IF($P$6=Lists!$I$9,EOMONTH(FK6,12-MONTH(FK6)),"")))))) ->  | FL7: =IF(OR($P$6="",$P$6=0,$P$7="",$P$7=0,$P$8="",$P$7<1),"", IF(FL$8="","", IF($P$6=Lists!$I$6,EOMONTH(FL6,0), IF($P$6=Lists!$I$7,EOMONTH(FL6,2-(MONTH(FL6)-1-3*INT((MONTH(FL6)-1)/3))), IF($P$6=Lists!$I$8,EOMONTH(FL6,11), IF($P$6=Lists!$I$9,EOMONTH(FL6,12-MONTH(FL6)),"")))))) ->  | FM7: =IF(OR($P$6="",$P$6=0,$P$7="",$P$7=0,$P$8="",$P$7<1),"", IF(FM$8="","", IF($P$6=Lists!$I$6,EOMONTH(FM6,0), IF($P$6=Lists!$I$7,EOMONTH(FM6,2-(MONTH(FM6)-1-3*INT((MONTH(FM6)-1)/3))), IF($P$6=Lists!$I$8,EOMONTH(FM6,11), IF($P$6=Lists!$I$9,EOMONTH(FM6,12-MONTH(FM6)),"")))))) ->  | FN7: =IF(OR($P$6="",$P$6=0,$P$7="",$P$7=0,$P$8="",$P$7<1),"", IF(FN$8="","", IF($P$6=Lists!$I$6,EOMONTH(FN6,0), IF($P$6=Lists!$I$7,EOMONTH(FN6,2-(MONTH(FN6)-1-3*INT((MONTH(FN6)-1)/3))), IF($P$6=Lists!$I$8,EOMONTH(FN6,11), IF($P$6=Lists!$I$9,EOMONTH(FN6,12-MONTH(FN6)),"")))))) ->  | FO7: =IF(OR($P$6="",$P$6=0,$P$7="",$P$7=0,$P$8="",$P$7<1),"", IF(FO$8="","", IF($P$6=Lists!$I$6,EOMONTH(FO6,0), IF($P$6=Lists!$I$7,EOMONTH(FO6,2-(MONTH(FO6)-1-3*INT((MONTH(FO6)-1)/3))), IF($P$6=Lists!$I$8,EOMONTH(FO6,11), IF($P$6=Lists!$I$9,EOMONTH(FO6,12-MONTH(FO6)),"")))))) ->  | FP7: =IF(OR($P$6="",$P$6=0,$P$7="",$P$7=0,$P$8="",$P$7<1),"", IF(FP$8="","", IF($P$6=Lists!$I$6,EOMONTH(FP6,0), IF($P$6=Lists!$I$7,EOMONTH(FP6,2-(MONTH(FP6)-1-3*INT((MONTH(FP6)-1)/3))), IF($P$6=Lists!$I$8,EOMONTH(FP6,11), IF($P$6=Lists!$I$9,EOMONTH(FP6,12-MONTH(FP6)),"")))))) ->  | FQ7: =IF(OR($P$6="",$P$6=0,$P$7="",$P$7=0,$P$8="",$P$7<1),"", IF(FQ$8="","", IF($P$6=Lists!$I$6,EOMONTH(FQ6,0), IF($P$6=Lists!$I$7,EOMONTH(FQ6,2-(MONTH(FQ6)-1-3*INT((MONTH(FQ6)-1)/3))), IF($P$6=Lists!$I$8,EOMONTH(FQ6,11), IF($P$6=Lists!$I$9,EOMONTH(FQ6,12-MONTH(FQ6)),"")))))) ->  | FR7: =IF(OR($P$6="",$P$6=0,$P$7="",$P$7=0,$P$8="",$P$7<1),"", IF(FR$8="","", IF($P$6=Lists!$I$6,EOMONTH(FR6,0), IF($P$6=Lists!$I$7,EOMONTH(FR6,2-(MONTH(FR6)-1-3*INT((MONTH(FR6)-1)/3))), IF($P$6=Lists!$I$8,EOMONTH(FR6,11), IF($P$6=Lists!$I$9,EOMONTH(FR6,12-MONTH(FR6)),"")))))) ->  | FS7: =IF(OR($P$6="",$P$6=0,$P$7="",$P$7=0,$P$8="",$P$7<1),"", IF(FS$8="","", IF($P$6=Lists!$I$6,EOMONTH(FS6,0), IF($P$6=Lists!$I$7,EOMONTH(FS6,2-(MONTH(FS6)-1-3*INT((MONTH(FS6)-1)/3))), IF($P$6=Lists!$I$8,EOMONTH(FS6,11), IF($P$6=Lists!$I$9,EOMONTH(FS6,12-MONTH(FS6)),"")))))) ->  | FT7: =IF(OR($P$6="",$P$6=0,$P$7="",$P$7=0,$P$8="",$P$7<1),"", IF(FT$8="","", IF($P$6=Lists!$I$6,EOMONTH(FT6,0), IF($P$6=Lists!$I$7,EOMONTH(FT6,2-(MONTH(FT6)-1-3*INT((MONTH(FT6)-1)/3))), IF($P$6=Lists!$I$8,EOMONTH(FT6,11), IF($P$6=Lists!$I$9,EOMONTH(FT6,12-MONTH(FT6)),"")))))) ->  | FU7: =IF(OR($P$6="",$P$6=0,$P$7="",$P$7=0,$P$8="",$P$7<1),"", IF(FU$8="","", IF($P$6=Lists!$I$6,EOMONTH(FU6,0), IF($P$6=Lists!$I$7,EOMONTH(FU6,2-(MONTH(FU6)-1-3*INT((MONTH(FU6)-1)/3))), IF($P$6=Lists!$I$8,EOMONTH(FU6,11), IF($P$6=Lists!$I$9,EOMONTH(FU6,12-MONTH(FU6)),"")))))) ->  | FV7: =IF(OR($P$6="",$P$6=0,$P$7="",$P$7=0,$P$8="",$P$7<1),"", IF(FV$8="","", IF($P$6=Lists!$I$6,EOMONTH(FV6,0), IF($P$6=Lists!$I$7,EOMONTH(FV6,2-(MONTH(FV6)-1-3*INT((MONTH(FV6)-1)/3))), IF($P$6=Lists!$I$8,EOMONTH(FV6,11), IF($P$6=Lists!$I$9,EOMONTH(FV6,12-MONTH(FV6)),"")))))) ->  | FW7: =IF(OR($P$6="",$P$6=0,$P$7="",$P$7=0,$P$8="",$P$7<1),"", IF(FW$8="","", IF($P$6=Lists!$I$6,EOMONTH(FW6,0), IF($P$6=Lists!$I$7,EOMONTH(FW6,2-(MONTH(FW6)-1-3*INT((MONTH(FW6)-1)/3))), IF($P$6=Lists!$I$8,EOMONTH(FW6,11), IF($P$6=Lists!$I$9,EOMONTH(FW6,12-MONTH(FW6)),"")))))) ->  | FX7: =IF(OR($P$6="",$P$6=0,$P$7="",$P$7=0,$P$8="",$P$7<1),"", IF(FX$8="","", IF($P$6=Lists!$I$6,EOMONTH(FX6,0), IF($P$6=Lists!$I$7,EOMONTH(FX6,2-(MONTH(FX6)-1-3*INT((MONTH(FX6)-1)/3))), IF($P$6=Lists!$I$8,EOMONTH(FX6,11), IF($P$6=Lists!$I$9,EOMONTH(FX6,12-MONTH(FX6)),"")))))) ->  | FY7: =IF(OR($P$6="",$P$6=0,$P$7="",$P$7=0,$P$8="",$P$7<1),"", IF(FY$8="","", IF($P$6=Lists!$I$6,EOMONTH(FY6,0), IF($P$6=Lists!$I$7,EOMONTH(FY6,2-(MONTH(FY6)-1-3*INT((MONTH(FY6)-1)/3))), IF($P$6=Lists!$I$8,EOMONTH(FY6,11), IF($P$6=Lists!$I$9,EOMONTH(FY6,12-MONTH(FY6)),"")))))) ->  | FZ7: =IF(OR($P$6="",$P$6=0,$P$7="",$P$7=0,$P$8="",$P$7<1),"", IF(FZ$8="","", IF($P$6=Lists!$I$6,EOMONTH(FZ6,0), IF($P$6=Lists!$I$7,EOMONTH(FZ6,2-(MONTH(FZ6)-1-3*INT((MONTH(FZ6)-1)/3))), IF($P$6=Lists!$I$8,EOMONTH(FZ6,11), IF($P$6=Lists!$I$9,EOMONTH(FZ6,12-MONTH(FZ6)),"")))))) ->  | GA7: =IF(OR($P$6="",$P$6=0,$P$7="",$P$7=0,$P$8="",$P$7<1),"", IF(GA$8="","", IF($P$6=Lists!$I$6,EOMONTH(GA6,0), IF($P$6=Lists!$I$7,EOMONTH(GA6,2-(MONTH(GA6)-1-3*INT((MONTH(GA6)-1)/3))), IF($P$6=Lists!$I$8,EOMONTH(GA6,11), IF($P$6=Lists!$I$9,EOMONTH(GA6,12-MONTH(GA6)),"")))))) ->  | GB7: =IF(OR($P$6="",$P$6=0,$P$7="",$P$7=0,$P$8="",$P$7<1),"", IF(GB$8="","", IF($P$6=Lists!$I$6,EOMONTH(GB6,0), IF($P$6=Lists!$I$7,EOMONTH(GB6,2-(MONTH(GB6)-1-3*INT((MONTH(GB6)-1)/3))), IF($P$6=Lists!$I$8,EOMONTH(GB6,11), IF($P$6=Lists!$I$9,EOMONTH(GB6,12-MONTH(GB6)),"")))))) ->  | GC7: =IF(OR($P$6="",$P$6=0,$P$7="",$P$7=0,$P$8="",$P$7<1),"", IF(GC$8="","", IF($P$6=Lists!$I$6,EOMONTH(GC6,0), IF($P$6=Lists!$I$7,EOMONTH(GC6,2-(MONTH(GC6)-1-3*INT((MONTH(GC6)-1)/3))), IF($P$6=Lists!$I$8,EOMONTH(GC6,11), IF($P$6=Lists!$I$9,EOMONTH(GC6,12-MONTH(GC6)),"")))))) ->  | GD7: =IF(OR($P$6="",$P$6=0,$P$7="",$P$7=0,$P$8="",$P$7<1),"", IF(GD$8="","", IF($P$6=Lists!$I$6,EOMONTH(GD6,0), IF($P$6=Lists!$I$7,EOMONTH(GD6,2-(MONTH(GD6)-1-3*INT((MONTH(GD6)-1)/3))), IF($P$6=Lists!$I$8,EOMONTH(GD6,11), IF($P$6=Lists!$I$9,EOMONTH(GD6,12-MONTH(GD6)),"")))))) ->  | GE7: =IF(OR($P$6="",$P$6=0,$P$7="",$P$7=0,$P$8="",$P$7<1),"", IF(GE$8="","", IF($P$6=Lists!$I$6,EOMONTH(GE6,0), IF($P$6=Lists!$I$7,EOMONTH(GE6,2-(MONTH(GE6)-1-3*INT((MONTH(GE6)-1)/3))), IF($P$6=Lists!$I$8,EOMONTH(GE6,11), IF($P$6=Lists!$I$9,EOMONTH(GE6,12-MONTH(GE6)),"")))))) ->  | GF7: =IF(OR($P$6="",$P$6=0,$P$7="",$P$7=0,$P$8="",$P$7<1),"", IF(GF$8="","", IF($P$6=Lists!$I$6,EOMONTH(GF6,0), IF($P$6=Lists!$I$7,EOMONTH(GF6,2-(MONTH(GF6)-1-3*INT((MONTH(GF6)-1)/3))), IF($P$6=Lists!$I$8,EOMONTH(GF6,11), IF($P$6=Lists!$I$9,EOMONTH(GF6,12-MONTH(GF6)),"")))))) ->  | GG7: =IF(OR($P$6="",$P$6=0,$P$7="",$P$7=0,$P$8="",$P$7<1),"", IF(GG$8="","", IF($P$6=Lists!$I$6,EOMONTH(GG6,0), IF($P$6=Lists!$I$7,EOMONTH(GG6,2-(MONTH(GG6)-1-3*INT((MONTH(GG6)-1)/3))), IF($P$6=Lists!$I$8,EOMONTH(GG6,11), IF($P$6=Lists!$I$9,EOMONTH(GG6,12-MONTH(GG6)),"")))))) ->  | GH7: =IF(OR($P$6="",$P$6=0,$P$7="",$P$7=0,$P$8="",$P$7<1),"", IF(GH$8="","", IF($P$6=Lists!$I$6,EOMONTH(GH6,0), IF($P$6=Lists!$I$7,EOMONTH(GH6,2-(MONTH(GH6)-1-3*INT((MONTH(GH6)-1)/3))), IF($P$6=Lists!$I$8,EOMONTH(GH6,11), IF($P$6=Lists!$I$9,EOMONTH(GH6,12-MONTH(GH6)),"")))))) ->  | GI7: =IF(OR($P$6="",$P$6=0,$P$7="",$P$7=0,$P$8="",$P$7<1),"", IF(GI$8="","", IF($P$6=Lists!$I$6,EOMONTH(GI6,0), IF($P$6=Lists!$I$7,EOMONTH(GI6,2-(MONTH(GI6)-1-3*INT((MONTH(GI6)-1)/3))), IF($P$6=Lists!$I$8,EOMONTH(GI6,11), IF($P$6=Lists!$I$9,EOMONTH(GI6,12-MONTH(GI6)),"")))))) ->  | GJ7: =IF(OR($P$6="",$P$6=0,$P$7="",$P$7=0,$P$8="",$P$7<1),"", IF(GJ$8="","", IF($P$6=Lists!$I$6,EOMONTH(GJ6,0), IF($P$6=Lists!$I$7,EOMONTH(GJ6,2-(MONTH(GJ6)-1-3*INT((MONTH(GJ6)-1)/3))), IF($P$6=Lists!$I$8,EOMONTH(GJ6,11), IF($P$6=Lists!$I$9,EOMONTH(GJ6,12-MONTH(GJ6)),"")))))) ->  | GK7: =IF(OR($P$6="",$P$6=0,$P$7="",$P$7=0,$P$8="",$P$7<1),"", IF(GK$8="","", IF($P$6=Lists!$I$6,EOMONTH(GK6,0), IF($P$6=Lists!$I$7,EOMONTH(GK6,2-(MONTH(GK6)-1-3*INT((MONTH(GK6)-1)/3))), IF($P$6=Lists!$I$8,EOMONTH(GK6,11), IF($P$6=Lists!$I$9,EOMONTH(GK6,12-MONTH(GK6)),"")))))) ->  | GL7: =IF(OR($P$6="",$P$6=0,$P$7="",$P$7=0,$P$8="",$P$7<1),"", IF(GL$8="","", IF($P$6=Lists!$I$6,EOMONTH(GL6,0), IF($P$6=Lists!$I$7,EOMONTH(GL6,2-(MONTH(GL6)-1-3*INT((MONTH(GL6)-1)/3))), IF($P$6=Lists!$I$8,EOMONTH(GL6,11), IF($P$6=Lists!$I$9,EOMONTH(GL6,12-MONTH(GL6)),"")))))) ->  | GM7: =IF(OR($P$6="",$P$6=0,$P$7="",$P$7=0,$P$8="",$P$7<1),"", IF(GM$8="","", IF($P$6=Lists!$I$6,EOMONTH(GM6,0), IF($P$6=Lists!$I$7,EOMONTH(GM6,2-(MONTH(GM6)-1-3*INT((MONTH(GM6)-1)/3))), IF($P$6=Lists!$I$8,EOMONTH(GM6,11), IF($P$6=Lists!$I$9,EOMONTH(GM6,12-MONTH(GM6)),"")))))) ->  | GN7: =IF(OR($P$6="",$P$6=0,$P$7="",$P$7=0,$P$8="",$P$7<1),"", IF(GN$8="","", IF($P$6=Lists!$I$6,EOMONTH(GN6,0), IF($P$6=Lists!$I$7,EOMONTH(GN6,2-(MONTH(GN6)-1-3*INT((MONTH(GN6)-1)/3))), IF($P$6=Lists!$I$8,EOMONTH(GN6,11), IF($P$6=Lists!$I$9,EOMONTH(GN6,12-MONTH(GN6)),"")))))) ->  | GO7: =IF(OR($P$6="",$P$6=0,$P$7="",$P$7=0,$P$8="",$P$7<1),"", IF(GO$8="","", IF($P$6=Lists!$I$6,EOMONTH(GO6,0), IF($P$6=Lists!$I$7,EOMONTH(GO6,2-(MONTH(GO6)-1-3*INT((MONTH(GO6)-1)/3))), IF($P$6=Lists!$I$8,EOMONTH(GO6,11), IF($P$6=Lists!$I$9,EOMONTH(GO6,12-MONTH(GO6)),"")))))) ->  | GP7: =IF(OR($P$6="",$P$6=0,$P$7="",$P$7=0,$P$8="",$P$7<1),"", IF(GP$8="","", IF($P$6=Lists!$I$6,EOMONTH(GP6,0), IF($P$6=Lists!$I$7,EOMONTH(GP6,2-(MONTH(GP6)-1-3*INT((MONTH(GP6)-1)/3))), IF($P$6=Lists!$I$8,EOMONTH(GP6,11), IF($P$6=Lists!$I$9,EOMONTH(GP6,12-MONTH(GP6)),"")))))) ->  | GQ7: =IF(OR($P$6="",$P$6=0,$P$7="",$P$7=0,$P$8="",$P$7<1),"", IF(GQ$8="","", IF($P$6=Lists!$I$6,EOMONTH(GQ6,0), IF($P$6=Lists!$I$7,EOMONTH(GQ6,2-(MONTH(GQ6)-1-3*INT((MONTH(GQ6)-1)/3))), IF($P$6=Lists!$I$8,EOMONTH(GQ6,11), IF($P$6=Lists!$I$9,EOMONTH(GQ6,12-MONTH(GQ6)),"")))))) ->  | GR7: =IF(OR($P$6="",$P$6=0,$P$7="",$P$7=0,$P$8="",$P$7<1),"", IF(GR$8="","", IF($P$6=Lists!$I$6,EOMONTH(GR6,0), IF($P$6=Lists!$I$7,EOMONTH(GR6,2-(MONTH(GR6)-1-3*INT((MONTH(GR6)-1)/3))), IF($P$6=Lists!$I$8,EOMONTH(GR6,11), IF($P$6=Lists!$I$9,EOMONTH(GR6,12-MONTH(GR6)),"")))))) ->  | GS7: =IF(OR($P$6="",$P$6=0,$P$7="",$P$7=0,$P$8="",$P$7<1),"", IF(GS$8="","", IF($P$6=Lists!$I$6,EOMONTH(GS6,0), IF($P$6=Lists!$I$7,EOMONTH(GS6,2-(MONTH(GS6)-1-3*INT((MONTH(GS6)-1)/3))), IF($P$6=Lists!$I$8,EOMONTH(GS6,11), IF($P$6=Lists!$I$9,EOMONTH(GS6,12-MONTH(GS6)),"")))))) ->  | GT7: =IF(OR($P$6="",$P$6=0,$P$7="",$P$7=0,$P$8="",$P$7<1),"", IF(GT$8="","", IF($P$6=Lists!$I$6,EOMONTH(GT6,0), IF($P$6=Lists!$I$7,EOMONTH(GT6,2-(MONTH(GT6)-1-3*INT((MONTH(GT6)-1)/3))), IF($P$6=Lists!$I$8,EOMONTH(GT6,11), IF($P$6=Lists!$I$9,EOMONTH(GT6,12-MONTH(GT6)),"")))))) ->  | GU7: =IF(OR($P$6="",$P$6=0,$P$7="",$P$7=0,$P$8="",$P$7<1),"", IF(GU$8="","", IF($P$6=Lists!$I$6,EOMONTH(GU6,0), IF($P$6=Lists!$I$7,EOMONTH(GU6,2-(MONTH(GU6)-1-3*INT((MONTH(GU6)-1)/3))), IF($P$6=Lists!$I$8,EOMONTH(GU6,11), IF($P$6=Lists!$I$9,EOMONTH(GU6,12-MONTH(GU6)),"")))))) ->  | GV7: =IF(OR($P$6="",$P$6=0,$P$7="",$P$7=0,$P$8="",$P$7<1),"", IF(GV$8="","", IF($P$6=Lists!$I$6,EOMONTH(GV6,0), IF($P$6=Lists!$I$7,EOMONTH(GV6,2-(MONTH(GV6)-1-3*INT((MONTH(GV6)-1)/3))), IF($P$6=Lists!$I$8,EOMONTH(GV6,11), IF($P$6=Lists!$I$9,EOMONTH(GV6,12-MONTH(GV6)),"")))))) -> 
B8: =ROW() -> 8 | H8: горизонт моделирования | I8: горизонт моделирования | M8: кол-во пер. | O8: * | P8: 120 | U8: =MAX(INDIRECT(ADDRESS($B8,X$2)&":"&ADDRESS($B8,MAX($2:$2)))) -> 120 | X8: =IF(OR($P$6="",$P$6=0,$P$7="",$P$7=0,$P$8="",$P$7<1),"", IF(MAX($W8:W8)+1>$P$8,"",MAX($W8:W8)+1)) -> 1 | Y8: =IF(OR($P$6="",$P$6=0,$P$7="",$P$7=0,$P$8="",$P$7<1),"", IF(MAX($W8:X8)+1>$P$8,"",MAX($W8:X8)+1)) -> 2 | Z8: =IF(OR($P$6="",$P$6=0,$P$7="",$P$7=0,$P$8="",$P$7<1),"", IF(MAX($W8:Y8)+1>$P$8,"",MAX($W8:Y8)+1)) -> 3 | AA8: =IF(OR($P$6="",$P$6=0,$P$7="",$P$7=0,$P$8="",$P$7<1),"", IF(MAX($W8:Z8)+1>$P$8,"",MAX($W8:Z8)+1)) -> 4 | AB8: =IF(OR($P$6="",$P$6=0,$P$7="",$P$7=0,$P$8="",$P$7<1),"", IF(MAX($W8:AA8)+1>$P$8,"",MAX($W8:AA8)+1)) -> 5 | AC8: =IF(OR($P$6="",$P$6=0,$P$7="",$P$7=0,$P$8="",$P$7<1),"", IF(MAX($W8:AB8)+1>$P$8,"",MAX($W8:AB8)+1)) -> 6 | AD8: =IF(OR($P$6="",$P$6=0,$P$7="",$P$7=0,$P$8="",$P$7<1),"", IF(MAX($W8:AC8)+1>$P$8,"",MAX($W8:AC8)+1)) -> 7 | AE8: =IF(OR($P$6="",$P$6=0,$P$7="",$P$7=0,$P$8="",$P$7<1),"", IF(MAX($W8:AD8)+1>$P$8,"",MAX($W8:AD8)+1)) -> 8 | AF8: =IF(OR($P$6="",$P$6=0,$P$7="",$P$7=0,$P$8="",$P$7<1),"", IF(MAX($W8:AE8)+1>$P$8,"",MAX($W8:AE8)+1)) -> 9 | AG8: =IF(OR($P$6="",$P$6=0,$P$7="",$P$7=0,$P$8="",$P$7<1),"", IF(MAX($W8:AF8)+1>$P$8,"",MAX($W8:AF8)+1)) -> 10 | AH8: =IF(OR($P$6="",$P$6=0,$P$7="",$P$7=0,$P$8="",$P$7<1),"", IF(MAX($W8:AG8)+1>$P$8,"",MAX($W8:AG8)+1)) -> 11 | AI8: =IF(OR($P$6="",$P$6=0,$P$7="",$P$7=0,$P$8="",$P$7<1),"", IF(MAX($W8:AH8)+1>$P$8,"",MAX($W8:AH8)+1)) -> 12 | AJ8: =IF(OR($P$6="",$P$6=0,$P$7="",$P$7=0,$P$8="",$P$7<1),"", IF(MAX($W8:AI8)+1>$P$8,"",MAX($W8:AI8)+1)) -> 13 | AK8: =IF(OR($P$6="",$P$6=0,$P$7="",$P$7=0,$P$8="",$P$7<1),"", IF(MAX($W8:AJ8)+1>$P$8,"",MAX($W8:AJ8)+1)) -> 14 | AL8: =IF(OR($P$6="",$P$6=0,$P$7="",$P$7=0,$P$8="",$P$7<1),"", IF(MAX($W8:AK8)+1>$P$8,"",MAX($W8:AK8)+1)) -> 15 | AM8: =IF(OR($P$6="",$P$6=0,$P$7="",$P$7=0,$P$8="",$P$7<1),"", IF(MAX($W8:AL8)+1>$P$8,"",MAX($W8:AL8)+1)) -> 16 | AN8: =IF(OR($P$6="",$P$6=0,$P$7="",$P$7=0,$P$8="",$P$7<1),"", IF(MAX($W8:AM8)+1>$P$8,"",MAX($W8:AM8)+1)) -> 17 | AO8: =IF(OR($P$6="",$P$6=0,$P$7="",$P$7=0,$P$8="",$P$7<1),"", IF(MAX($W8:AN8)+1>$P$8,"",MAX($W8:AN8)+1)) -> 18 | AP8: =IF(OR($P$6="",$P$6=0,$P$7="",$P$7=0,$P$8="",$P$7<1),"", IF(MAX($W8:AO8)+1>$P$8,"",MAX($W8:AO8)+1)) -> 19 | AQ8: =IF(OR($P$6="",$P$6=0,$P$7="",$P$7=0,$P$8="",$P$7<1),"", IF(MAX($W8:AP8)+1>$P$8,"",MAX($W8:AP8)+1)) -> 20 | AR8: =IF(OR($P$6="",$P$6=0,$P$7="",$P$7=0,$P$8="",$P$7<1),"", IF(MAX($W8:AQ8)+1>$P$8,"",MAX($W8:AQ8)+1)) -> 21 | AS8: =IF(OR($P$6="",$P$6=0,$P$7="",$P$7=0,$P$8="",$P$7<1),"", IF(MAX($W8:AR8)+1>$P$8,"",MAX($W8:AR8)+1)) -> 22 | AT8: =IF(OR($P$6="",$P$6=0,$P$7="",$P$7=0,$P$8="",$P$7<1),"", IF(MAX($W8:AS8)+1>$P$8,"",MAX($W8:AS8)+1)) -> 23 | AU8: =IF(OR($P$6="",$P$6=0,$P$7="",$P$7=0,$P$8="",$P$7<1),"", IF(MAX($W8:AT8)+1>$P$8,"",MAX($W8:AT8)+1)) -> 24 | AV8: =IF(OR($P$6="",$P$6=0,$P$7="",$P$7=0,$P$8="",$P$7<1),"", IF(MAX($W8:AU8)+1>$P$8,"",MAX($W8:AU8)+1)) -> 25 | AW8: =IF(OR($P$6="",$P$6=0,$P$7="",$P$7=0,$P$8="",$P$7<1),"", IF(MAX($W8:AV8)+1>$P$8,"",MAX($W8:AV8)+1)) -> 26 | AX8: =IF(OR($P$6="",$P$6=0,$P$7="",$P$7=0,$P$8="",$P$7<1),"", IF(MAX($W8:AW8)+1>$P$8,"",MAX($W8:AW8)+1)) -> 27 | AY8: =IF(OR($P$6="",$P$6=0,$P$7="",$P$7=0,$P$8="",$P$7<1),"", IF(MAX($W8:AX8)+1>$P$8,"",MAX($W8:AX8)+1)) -> 28 | AZ8: =IF(OR($P$6="",$P$6=0,$P$7="",$P$7=0,$P$8="",$P$7<1),"", IF(MAX($W8:AY8)+1>$P$8,"",MAX($W8:AY8)+1)) -> 29 | BA8: =IF(OR($P$6="",$P$6=0,$P$7="",$P$7=0,$P$8="",$P$7<1),"", IF(MAX($W8:AZ8)+1>$P$8,"",MAX($W8:AZ8)+1)) -> 30 | BB8: =IF(OR($P$6="",$P$6=0,$P$7="",$P$7=0,$P$8="",$P$7<1),"", IF(MAX($W8:BA8)+1>$P$8,"",MAX($W8:BA8)+1)) -> 31 | BC8: =IF(OR($P$6="",$P$6=0,$P$7="",$P$7=0,$P$8="",$P$7<1),"", IF(MAX($W8:BB8)+1>$P$8,"",MAX($W8:BB8)+1)) -> 32 | BD8: =IF(OR($P$6="",$P$6=0,$P$7="",$P$7=0,$P$8="",$P$7<1),"", IF(MAX($W8:BC8)+1>$P$8,"",MAX($W8:BC8)+1)) -> 33 | BE8: =IF(OR($P$6="",$P$6=0,$P$7="",$P$7=0,$P$8="",$P$7<1),"", IF(MAX($W8:BD8)+1>$P$8,"",MAX($W8:BD8)+1)) -> 34 | BF8: =IF(OR($P$6="",$P$6=0,$P$7="",$P$7=0,$P$8="",$P$7<1),"", IF(MAX($W8:BE8)+1>$P$8,"",MAX($W8:BE8)+1)) -> 35 | BG8: =IF(OR($P$6="",$P$6=0,$P$7="",$P$7=0,$P$8="",$P$7<1),"", IF(MAX($W8:BF8)+1>$P$8,"",MAX($W8:BF8)+1)) -> 36 | BH8: =IF(OR($P$6="",$P$6=0,$P$7="",$P$7=0,$P$8="",$P$7<1),"", IF(MAX($W8:BG8)+1>$P$8,"",MAX($W8:BG8)+1)) -> 37 | BI8: =IF(OR($P$6="",$P$6=0,$P$7="",$P$7=0,$P$8="",$P$7<1),"", IF(MAX($W8:BH8)+1>$P$8,"",MAX($W8:BH8)+1)) -> 38 | BJ8: =IF(OR($P$6="",$P$6=0,$P$7="",$P$7=0,$P$8="",$P$7<1),"", IF(MAX($W8:BI8)+1>$P$8,"",MAX($W8:BI8)+1)) -> 39 | BK8: =IF(OR($P$6="",$P$6=0,$P$7="",$P$7=0,$P$8="",$P$7<1),"", IF(MAX($W8:BJ8)+1>$P$8,"",MAX($W8:BJ8)+1)) -> 40 | BL8: =IF(OR($P$6="",$P$6=0,$P$7="",$P$7=0,$P$8="",$P$7<1),"", IF(MAX($W8:BK8)+1>$P$8,"",MAX($W8:BK8)+1)) -> 41 | BM8: =IF(OR($P$6="",$P$6=0,$P$7="",$P$7=0,$P$8="",$P$7<1),"", IF(MAX($W8:BL8)+1>$P$8,"",MAX($W8:BL8)+1)) -> 42 | BN8: =IF(OR($P$6="",$P$6=0,$P$7="",$P$7=0,$P$8="",$P$7<1),"", IF(MAX($W8:BM8)+1>$P$8,"",MAX($W8:BM8)+1)) -> 43 | BO8: =IF(OR($P$6="",$P$6=0,$P$7="",$P$7=0,$P$8="",$P$7<1),"", IF(MAX($W8:BN8)+1>$P$8,"",MAX($W8:BN8)+1)) -> 44 | BP8: =IF(OR($P$6="",$P$6=0,$P$7="",$P$7=0,$P$8="",$P$7<1),"", IF(MAX($W8:BO8)+1>$P$8,"",MAX($W8:BO8)+1)) -> 45 | BQ8: =IF(OR($P$6="",$P$6=0,$P$7="",$P$7=0,$P$8="",$P$7<1),"", IF(MAX($W8:BP8)+1>$P$8,"",MAX($W8:BP8)+1)) -> 46 | BR8: =IF(OR($P$6="",$P$6=0,$P$7="",$P$7=0,$P$8="",$P$7<1),"", IF(MAX($W8:BQ8)+1>$P$8,"",MAX($W8:BQ8)+1)) -> 47 | BS8: =IF(OR($P$6="",$P$6=0,$P$7="",$P$7=0,$P$8="",$P$7<1),"", IF(MAX($W8:BR8)+1>$P$8,"",MAX($W8:BR8)+1)) -> 48 | BT8: =IF(OR($P$6="",$P$6=0,$P$7="",$P$7=0,$P$8="",$P$7<1),"", IF(MAX($W8:BS8)+1>$P$8,"",MAX($W8:BS8)+1)) -> 49 | BU8: =IF(OR($P$6="",$P$6=0,$P$7="",$P$7=0,$P$8="",$P$7<1),"", IF(MAX($W8:BT8)+1>$P$8,"",MAX($W8:BT8)+1)) -> 50 | BV8: =IF(OR($P$6="",$P$6=0,$P$7="",$P$7=0,$P$8="",$P$7<1),"", IF(MAX($W8:BU8)+1>$P$8,"",MAX($W8:BU8)+1)) -> 51 | BW8: =IF(OR($P$6="",$P$6=0,$P$7="",$P$7=0,$P$8="",$P$7<1),"", IF(MAX($W8:BV8)+1>$P$8,"",MAX($W8:BV8)+1)) -> 52 | BX8: =IF(OR($P$6="",$P$6=0,$P$7="",$P$7=0,$P$8="",$P$7<1),"", IF(MAX($W8:BW8)+1>$P$8,"",MAX($W8:BW8)+1)) -> 53 | BY8: =IF(OR($P$6="",$P$6=0,$P$7="",$P$7=0,$P$8="",$P$7<1),"", IF(MAX($W8:BX8)+1>$P$8,"",MAX($W8:BX8)+1)) -> 54 | BZ8: =IF(OR($P$6="",$P$6=0,$P$7="",$P$7=0,$P$8="",$P$7<1),"", IF(MAX($W8:BY8)+1>$P$8,"",MAX($W8:BY8)+1)) -> 55 | CA8: =IF(OR($P$6="",$P$6=0,$P$7="",$P$7=0,$P$8="",$P$7<1),"", IF(MAX($W8:BZ8)+1>$P$8,"",MAX($W8:BZ8)+1)) -> 56 | CB8: =IF(OR($P$6="",$P$6=0,$P$7="",$P$7=0,$P$8="",$P$7<1),"", IF(MAX($W8:CA8)+1>$P$8,"",MAX($W8:CA8)+1)) -> 57 | CC8: =IF(OR($P$6="",$P$6=0,$P$7="",$P$7=0,$P$8="",$P$7<1),"", IF(MAX($W8:CB8)+1>$P$8,"",MAX($W8:CB8)+1)) -> 58 | CD8: =IF(OR($P$6="",$P$6=0,$P$7="",$P$7=0,$P$8="",$P$7<1),"", IF(MAX($W8:CC8)+1>$P$8,"",MAX($W8:CC8)+1)) -> 59 | CE8: =IF(OR($P$6="",$P$6=0,$P$7="",$P$7=0,$P$8="",$P$7<1),"", IF(MAX($W8:CD8)+1>$P$8,"",MAX($W8:CD8)+1)) -> 60 | CF8: =IF(OR($P$6="",$P$6=0,$P$7="",$P$7=0,$P$8="",$P$7<1),"", IF(MAX($W8:CE8)+1>$P$8,"",MAX($W8:CE8)+1)) -> 61 | CG8: =IF(OR($P$6="",$P$6=0,$P$7="",$P$7=0,$P$8="",$P$7<1),"", IF(MAX($W8:CF8)+1>$P$8,"",MAX($W8:CF8)+1)) -> 62 | CH8: =IF(OR($P$6="",$P$6=0,$P$7="",$P$7=0,$P$8="",$P$7<1),"", IF(MAX($W8:CG8)+1>$P$8,"",MAX($W8:CG8)+1)) -> 63 | CI8: =IF(OR($P$6="",$P$6=0,$P$7="",$P$7=0,$P$8="",$P$7<1),"", IF(MAX($W8:CH8)+1>$P$8,"",MAX($W8:CH8)+1)) -> 64 | CJ8: =IF(OR($P$6="",$P$6=0,$P$7="",$P$7=0,$P$8="",$P$7<1),"", IF(MAX($W8:CI8)+1>$P$8,"",MAX($W8:CI8)+1)) -> 65 | CK8: =IF(OR($P$6="",$P$6=0,$P$7="",$P$7=0,$P$8="",$P$7<1),"", IF(MAX($W8:CJ8)+1>$P$8,"",MAX($W8:CJ8)+1)) -> 66 | CL8: =IF(OR($P$6="",$P$6=0,$P$7="",$P$7=0,$P$8="",$P$7<1),"", IF(MAX($W8:CK8)+1>$P$8,"",MAX($W8:CK8)+1)) -> 67 | CM8: =IF(OR($P$6="",$P$6=0,$P$7="",$P$7=0,$P$8="",$P$7<1),"", IF(MAX($W8:CL8)+1>$P$8,"",MAX($W8:CL8)+1)) -> 68 | CN8: =IF(OR($P$6="",$P$6=0,$P$7="",$P$7=0,$P$8="",$P$7<1),"", IF(MAX($W8:CM8)+1>$P$8,"",MAX($W8:CM8)+1)) -> 69 | CO8: =IF(OR($P$6="",$P$6=0,$P$7="",$P$7=0,$P$8="",$P$7<1),"", IF(MAX($W8:CN8)+1>$P$8,"",MAX($W8:CN8)+1)) -> 70 | CP8: =IF(OR($P$6="",$P$6=0,$P$7="",$P$7=0,$P$8="",$P$7<1),"", IF(MAX($W8:CO8)+1>$P$8,"",MAX($W8:CO8)+1)) -> 71 | CQ8: =IF(OR($P$6="",$P$6=0,$P$7="",$P$7=0,$P$8="",$P$7<1),"", IF(MAX($W8:CP8)+1>$P$8,"",MAX($W8:CP8)+1)) -> 72 | CR8: =IF(OR($P$6="",$P$6=0,$P$7="",$P$7=0,$P$8="",$P$7<1),"", IF(MAX($W8:CQ8)+1>$P$8,"",MAX($W8:CQ8)+1)) -> 73 | CS8: =IF(OR($P$6="",$P$6=0,$P$7="",$P$7=0,$P$8="",$P$7<1),"", IF(MAX($W8:CR8)+1>$P$8,"",MAX($W8:CR8)+1)) -> 74 | CT8: =IF(OR($P$6="",$P$6=0,$P$7="",$P$7=0,$P$8="",$P$7<1),"", IF(MAX($W8:CS8)+1>$P$8,"",MAX($W8:CS8)+1)) -> 75 | CU8: =IF(OR($P$6="",$P$6=0,$P$7="",$P$7=0,$P$8="",$P$7<1),"", IF(MAX($W8:CT8)+1>$P$8,"",MAX($W8:CT8)+1)) -> 76 | CV8: =IF(OR($P$6="",$P$6=0,$P$7="",$P$7=0,$P$8="",$P$7<1),"", IF(MAX($W8:CU8)+1>$P$8,"",MAX($W8:CU8)+1)) -> 77 | CW8: =IF(OR($P$6="",$P$6=0,$P$7="",$P$7=0,$P$8="",$P$7<1),"", IF(MAX($W8:CV8)+1>$P$8,"",MAX($W8:CV8)+1)) -> 78 | CX8: =IF(OR($P$6="",$P$6=0,$P$7="",$P$7=0,$P$8="",$P$7<1),"", IF(MAX($W8:CW8)+1>$P$8,"",MAX($W8:CW8)+1)) -> 79 | CY8: =IF(OR($P$6="",$P$6=0,$P$7="",$P$7=0,$P$8="",$P$7<1),"", IF(MAX($W8:CX8)+1>$P$8,"",MAX($W8:CX8)+1)) -> 80 | CZ8: =IF(OR($P$6="",$P$6=0,$P$7="",$P$7=0,$P$8="",$P$7<1),"", IF(MAX($W8:CY8)+1>$P$8,"",MAX($W8:CY8)+1)) -> 81 | DA8: =IF(OR($P$6="",$P$6=0,$P$7="",$P$7=0,$P$8="",$P$7<1),"", IF(MAX($W8:CZ8)+1>$P$8,"",MAX($W8:CZ8)+1)) -> 82 | DB8: =IF(OR($P$6="",$P$6=0,$P$7="",$P$7=0,$P$8="",$P$7<1),"", IF(MAX($W8:DA8)+1>$P$8,"",MAX($W8:DA8)+1)) -> 83 | DC8: =IF(OR($P$6="",$P$6=0,$P$7="",$P$7=0,$P$8="",$P$7<1),"", IF(MAX($W8:DB8)+1>$P$8,"",MAX($W8:DB8)+1)) -> 84 | DD8: =IF(OR($P$6="",$P$6=0,$P$7="",$P$7=0,$P$8="",$P$7<1),"", IF(MAX($W8:DC8)+1>$P$8,"",MAX($W8:DC8)+1)) -> 85 | DE8: =IF(OR($P$6="",$P$6=0,$P$7="",$P$7=0,$P$8="",$P$7<1),"", IF(MAX($W8:DD8)+1>$P$8,"",MAX($W8:DD8)+1)) -> 86 | DF8: =IF(OR($P$6="",$P$6=0,$P$7="",$P$7=0,$P$8="",$P$7<1),"", IF(MAX($W8:DE8)+1>$P$8,"",MAX($W8:DE8)+1)) -> 87 | DG8: =IF(OR($P$6="",$P$6=0,$P$7="",$P$7=0,$P$8="",$P$7<1),"", IF(MAX($W8:DF8)+1>$P$8,"",MAX($W8:DF8)+1)) -> 88 | DH8: =IF(OR($P$6="",$P$6=0,$P$7="",$P$7=0,$P$8="",$P$7<1),"", IF(MAX($W8:DG8)+1>$P$8,"",MAX($W8:DG8)+1)) -> 89 | DI8: =IF(OR($P$6="",$P$6=0,$P$7="",$P$7=0,$P$8="",$P$7<1),"", IF(MAX($W8:DH8)+1>$P$8,"",MAX($W8:DH8)+1)) -> 90 | DJ8: =IF(OR($P$6="",$P$6=0,$P$7="",$P$7=0,$P$8="",$P$7<1),"", IF(MAX($W8:DI8)+1>$P$8,"",MAX($W8:DI8)+1)) -> 91 | DK8: =IF(OR($P$6="",$P$6=0,$P$7="",$P$7=0,$P$8="",$P$7<1),"", IF(MAX($W8:DJ8)+1>$P$8,"",MAX($W8:DJ8)+1)) -> 92 | DL8: =IF(OR($P$6="",$P$6=0,$P$7="",$P$7=0,$P$8="",$P$7<1),"", IF(MAX($W8:DK8)+1>$P$8,"",MAX($W8:DK8)+1)) -> 93 | DM8: =IF(OR($P$6="",$P$6=0,$P$7="",$P$7=0,$P$8="",$P$7<1),"", IF(MAX($W8:DL8)+1>$P$8,"",MAX($W8:DL8)+1)) -> 94 | DN8: =IF(OR($P$6="",$P$6=0,$P$7="",$P$7=0,$P$8="",$P$7<1),"", IF(MAX($W8:DM8)+1>$P$8,"",MAX($W8:DM8)+1)) -> 95 | DO8: =IF(OR($P$6="",$P$6=0,$P$7="",$P$7=0,$P$8="",$P$7<1),"", IF(MAX($W8:DN8)+1>$P$8,"",MAX($W8:DN8)+1)) -> 96 | DP8: =IF(OR($P$6="",$P$6=0,$P$7="",$P$7=0,$P$8="",$P$7<1),"", IF(MAX($W8:DO8)+1>$P$8,"",MAX($W8:DO8)+1)) -> 97 | DQ8: =IF(OR($P$6="",$P$6=0,$P$7="",$P$7=0,$P$8="",$P$7<1),"", IF(MAX($W8:DP8)+1>$P$8,"",MAX($W8:DP8)+1)) -> 98 | DR8: =IF(OR($P$6="",$P$6=0,$P$7="",$P$7=0,$P$8="",$P$7<1),"", IF(MAX($W8:DQ8)+1>$P$8,"",MAX($W8:DQ8)+1)) -> 99 | DS8: =IF(OR($P$6="",$P$6=0,$P$7="",$P$7=0,$P$8="",$P$7<1),"", IF(MAX($W8:DR8)+1>$P$8,"",MAX($W8:DR8)+1)) -> 100 | DT8: =IF(OR($P$6="",$P$6=0,$P$7="",$P$7=0,$P$8="",$P$7<1),"", IF(MAX($W8:DS8)+1>$P$8,"",MAX($W8:DS8)+1)) -> 101 | DU8: =IF(OR($P$6="",$P$6=0,$P$7="",$P$7=0,$P$8="",$P$7<1),"", IF(MAX($W8:DT8)+1>$P$8,"",MAX($W8:DT8)+1)) -> 102 | DV8: =IF(OR($P$6="",$P$6=0,$P$7="",$P$7=0,$P$8="",$P$7<1),"", IF(MAX($W8:DU8)+1>$P$8,"",MAX($W8:DU8)+1)) -> 103 | DW8: =IF(OR($P$6="",$P$6=0,$P$7="",$P$7=0,$P$8="",$P$7<1),"", IF(MAX($W8:DV8)+1>$P$8,"",MAX($W8:DV8)+1)) -> 104 | DX8: =IF(OR($P$6="",$P$6=0,$P$7="",$P$7=0,$P$8="",$P$7<1),"", IF(MAX($W8:DW8)+1>$P$8,"",MAX($W8:DW8)+1)) -> 105 | DY8: =IF(OR($P$6="",$P$6=0,$P$7="",$P$7=0,$P$8="",$P$7<1),"", IF(MAX($W8:DX8)+1>$P$8,"",MAX($W8:DX8)+1)) -> 106 | DZ8: =IF(OR($P$6="",$P$6=0,$P$7="",$P$7=0,$P$8="",$P$7<1),"", IF(MAX($W8:DY8)+1>$P$8,"",MAX($W8:DY8)+1)) -> 107 | EA8: =IF(OR($P$6="",$P$6=0,$P$7="",$P$7=0,$P$8="",$P$7<1),"", IF(MAX($W8:DZ8)+1>$P$8,"",MAX($W8:DZ8)+1)) -> 108 | EB8: =IF(OR($P$6="",$P$6=0,$P$7="",$P$7=0,$P$8="",$P$7<1),"", IF(MAX($W8:EA8)+1>$P$8,"",MAX($W8:EA8)+1)) -> 109 | EC8: =IF(OR($P$6="",$P$6=0,$P$7="",$P$7=0,$P$8="",$P$7<1),"", IF(MAX($W8:EB8)+1>$P$8,"",MAX($W8:EB8)+1)) -> 110 | ED8: =IF(OR($P$6="",$P$6=0,$P$7="",$P$7=0,$P$8="",$P$7<1),"", IF(MAX($W8:EC8)+1>$P$8,"",MAX($W8:EC8)+1)) -> 111 | EE8: =IF(OR($P$6="",$P$6=0,$P$7="",$P$7=0,$P$8="",$P$7<1),"", IF(MAX($W8:ED8)+1>$P$8,"",MAX($W8:ED8)+1)) -> 112 | EF8: =IF(OR($P$6="",$P$6=0,$P$7="",$P$7=0,$P$8="",$P$7<1),"", IF(MAX($W8:EE8)+1>$P$8,"",MAX($W8:EE8)+1)) -> 113 | EG8: =IF(OR($P$6="",$P$6=0,$P$7="",$P$7=0,$P$8="",$P$7<1),"", IF(MAX($W8:EF8)+1>$P$8,"",MAX($W8:EF8)+1)) -> 114 | EH8: =IF(OR($P$6="",$P$6=0,$P$7="",$P$7=0,$P$8="",$P$7<1),"", IF(MAX($W8:EG8)+1>$P$8,"",MAX($W8:EG8)+1)) -> 115 | EI8: =IF(OR($P$6="",$P$6=0,$P$7="",$P$7=0,$P$8="",$P$7<1),"", IF(MAX($W8:EH8)+1>$P$8,"",MAX($W8:EH8)+1)) -> 116 | EJ8: =IF(OR($P$6="",$P$6=0,$P$7="",$P$7=0,$P$8="",$P$7<1),"", IF(MAX($W8:EI8)+1>$P$8,"",MAX($W8:EI8)+1)) -> 117 | EK8: =IF(OR($P$6="",$P$6=0,$P$7="",$P$7=0,$P$8="",$P$7<1),"", IF(MAX($W8:EJ8)+1>$P$8,"",MAX($W8:EJ8)+1)) -> 118 | EL8: =IF(OR($P$6="",$P$6=0,$P$7="",$P$7=0,$P$8="",$P$7<1),"", IF(MAX($W8:EK8)+1>$P$8,"",MAX($W8:EK8)+1)) -> 119 | EM8: =IF(OR($P$6="",$P$6=0,$P$7="",$P$7=0,$P$8="",$P$7<1),"", IF(MAX($W8:EL8)+1>$P$8,"",MAX($W8:EL8)+1)) -> 120 | EN8: =IF(OR($P$6="",$P$6=0,$P$7="",$P$7=0,$P$8="",$P$7<1),"", IF(MAX($W8:EM8)+1>$P$8,"",MAX($W8:EM8)+1)) ->  | EO8: =IF(OR($P$6="",$P$6=0,$P$7="",$P$7=0,$P$8="",$P$7<1),"", IF(MAX($W8:EN8)+1>$P$8,"",MAX($W8:EN8)+1)) ->  | EP8: =IF(OR($P$6="",$P$6=0,$P$7="",$P$7=0,$P$8="",$P$7<1),"", IF(MAX($W8:EO8)+1>$P$8,"",MAX($W8:EO8)+1)) ->  | EQ8: =IF(OR($P$6="",$P$6=0,$P$7="",$P$7=0,$P$8="",$P$7<1),"", IF(MAX($W8:EP8)+1>$P$8,"",MAX($W8:EP8)+1)) ->  | ER8: =IF(OR($P$6="",$P$6=0,$P$7="",$P$7=0,$P$8="",$P$7<1),"", IF(MAX($W8:EQ8)+1>$P$8,"",MAX($W8:EQ8)+1)) ->  | ES8: =IF(OR($P$6="",$P$6=0,$P$7="",$P$7=0,$P$8="",$P$7<1),"", IF(MAX($W8:ER8)+1>$P$8,"",MAX($W8:ER8)+1)) ->  | ET8: =IF(OR($P$6="",$P$6=0,$P$7="",$P$7=0,$P$8="",$P$7<1),"", IF(MAX($W8:ES8)+1>$P$8,"",MAX($W8:ES8)+1)) ->  | EU8: =IF(OR($P$6="",$P$6=0,$P$7="",$P$7=0,$P$8="",$P$7<1),"", IF(MAX($W8:ET8)+1>$P$8,"",MAX($W8:ET8)+1)) ->  | EV8: =IF(OR($P$6="",$P$6=0,$P$7="",$P$7=0,$P$8="",$P$7<1),"", IF(MAX($W8:EU8)+1>$P$8,"",MAX($W8:EU8)+1)) ->  | EW8: =IF(OR($P$6="",$P$6=0,$P$7="",$P$7=0,$P$8="",$P$7<1),"", IF(MAX($W8:EV8)+1>$P$8,"",MAX($W8:EV8)+1)) ->  | EX8: =IF(OR($P$6="",$P$6=0,$P$7="",$P$7=0,$P$8="",$P$7<1),"", IF(MAX($W8:EW8)+1>$P$8,"",MAX($W8:EW8)+1)) ->  | EY8: =IF(OR($P$6="",$P$6=0,$P$7="",$P$7=0,$P$8="",$P$7<1),"", IF(MAX($W8:EX8)+1>$P$8,"",MAX($W8:EX8)+1)) ->  | EZ8: =IF(OR($P$6="",$P$6=0,$P$7="",$P$7=0,$P$8="",$P$7<1),"", IF(MAX($W8:EY8)+1>$P$8,"",MAX($W8:EY8)+1)) ->  | FA8: =IF(OR($P$6="",$P$6=0,$P$7="",$P$7=0,$P$8="",$P$7<1),"", IF(MAX($W8:EZ8)+1>$P$8,"",MAX($W8:EZ8)+1)) ->  | FB8: =IF(OR($P$6="",$P$6=0,$P$7="",$P$7=0,$P$8="",$P$7<1),"", IF(MAX($W8:FA8)+1>$P$8,"",MAX($W8:FA8)+1)) ->  | FC8: =IF(OR($P$6="",$P$6=0,$P$7="",$P$7=0,$P$8="",$P$7<1),"", IF(MAX($W8:FB8)+1>$P$8,"",MAX($W8:FB8)+1)) ->  | FD8: =IF(OR($P$6="",$P$6=0,$P$7="",$P$7=0,$P$8="",$P$7<1),"", IF(MAX($W8:FC8)+1>$P$8,"",MAX($W8:FC8)+1)) ->  | FE8: =IF(OR($P$6="",$P$6=0,$P$7="",$P$7=0,$P$8="",$P$7<1),"", IF(MAX($W8:FD8)+1>$P$8,"",MAX($W8:FD8)+1)) ->  | FF8: =IF(OR($P$6="",$P$6=0,$P$7="",$P$7=0,$P$8="",$P$7<1),"", IF(MAX($W8:FE8)+1>$P$8,"",MAX($W8:FE8)+1)) ->  | FG8: =IF(OR($P$6="",$P$6=0,$P$7="",$P$7=0,$P$8="",$P$7<1),"", IF(MAX($W8:FF8)+1>$P$8,"",MAX($W8:FF8)+1)) ->  | FH8: =IF(OR($P$6="",$P$6=0,$P$7="",$P$7=0,$P$8="",$P$7<1),"", IF(MAX($W8:FG8)+1>$P$8,"",MAX($W8:FG8)+1)) ->  | FI8: =IF(OR($P$6="",$P$6=0,$P$7="",$P$7=0,$P$8="",$P$7<1),"", IF(MAX($W8:FH8)+1>$P$8,"",MAX($W8:FH8)+1)) ->  | FJ8: =IF(OR($P$6="",$P$6=0,$P$7="",$P$7=0,$P$8="",$P$7<1),"", IF(MAX($W8:FI8)+1>$P$8,"",MAX($W8:FI8)+1)) ->  | FK8: =IF(OR($P$6="",$P$6=0,$P$7="",$P$7=0,$P$8="",$P$7<1),"", IF(MAX($W8:FJ8)+1>$P$8,"",MAX($W8:FJ8)+1)) ->  | FL8: =IF(OR($P$6="",$P$6=0,$P$7="",$P$7=0,$P$8="",$P$7<1),"", IF(MAX($W8:FK8)+1>$P$8,"",MAX($W8:FK8)+1)) ->  | FM8: =IF(OR($P$6="",$P$6=0,$P$7="",$P$7=0,$P$8="",$P$7<1),"", IF(MAX($W8:FL8)+1>$P$8,"",MAX($W8:FL8)+1)) ->  | FN8: =IF(OR($P$6="",$P$6=0,$P$7="",$P$7=0,$P$8="",$P$7<1),"", IF(MAX($W8:FM8)+1>$P$8,"",MAX($W8:FM8)+1)) ->  | FO8: =IF(OR($P$6="",$P$6=0,$P$7="",$P$7=0,$P$8="",$P$7<1),"", IF(MAX($W8:FN8)+1>$P$8,"",MAX($W8:FN8)+1)) ->  | FP8: =IF(OR($P$6="",$P$6=0,$P$7="",$P$7=0,$P$8="",$P$7<1),"", IF(MAX($W8:FO8)+1>$P$8,"",MAX($W8:FO8)+1)) ->  | FQ8: =IF(OR($P$6="",$P$6=0,$P$7="",$P$7=0,$P$8="",$P$7<1),"", IF(MAX($W8:FP8)+1>$P$8,"",MAX($W8:FP8)+1)) ->  | FR8: =IF(OR($P$6="",$P$6=0,$P$7="",$P$7=0,$P$8="",$P$7<1),"", IF(MAX($W8:FQ8)+1>$P$8,"",MAX($W8:FQ8)+1)) ->  | FS8: =IF(OR($P$6="",$P$6=0,$P$7="",$P$7=0,$P$8="",$P$7<1),"", IF(MAX($W8:FR8)+1>$P$8,"",MAX($W8:FR8)+1)) ->  | FT8: =IF(OR($P$6="",$P$6=0,$P$7="",$P$7=0,$P$8="",$P$7<1),"", IF(MAX($W8:FS8)+1>$P$8,"",MAX($W8:FS8)+1)) ->  | FU8: =IF(OR($P$6="",$P$6=0,$P$7="",$P$7=0,$P$8="",$P$7<1),"", IF(MAX($W8:FT8)+1>$P$8,"",MAX($W8:FT8)+1)) ->  | FV8: =IF(OR($P$6="",$P$6=0,$P$7="",$P$7=0,$P$8="",$P$7<1),"", IF(MAX($W8:FU8)+1>$P$8,"",MAX($W8:FU8)+1)) ->  | FW8: =IF(OR($P$6="",$P$6=0,$P$7="",$P$7=0,$P$8="",$P$7<1),"", IF(MAX($W8:FV8)+1>$P$8,"",MAX($W8:FV8)+1)) ->  | FX8: =IF(OR($P$6="",$P$6=0,$P$7="",$P$7=0,$P$8="",$P$7<1),"", IF(MAX($W8:FW8)+1>$P$8,"",MAX($W8:FW8)+1)) ->  | FY8: =IF(OR($P$6="",$P$6=0,$P$7="",$P$7=0,$P$8="",$P$7<1),"", IF(MAX($W8:FX8)+1>$P$8,"",MAX($W8:FX8)+1)) ->  | FZ8: =IF(OR($P$6="",$P$6=0,$P$7="",$P$7=0,$P$8="",$P$7<1),"", IF(MAX($W8:FY8)+1>$P$8,"",MAX($W8:FY8)+1)) ->  | GA8: =IF(OR($P$6="",$P$6=0,$P$7="",$P$7=0,$P$8="",$P$7<1),"", IF(MAX($W8:FZ8)+1>$P$8,"",MAX($W8:FZ8)+1)) ->  | GB8: =IF(OR($P$6="",$P$6=0,$P$7="",$P$7=0,$P$8="",$P$7<1),"", IF(MAX($W8:GA8)+1>$P$8,"",MAX($W8:GA8)+1)) ->  | GC8: =IF(OR($P$6="",$P$6=0,$P$7="",$P$7=0,$P$8="",$P$7<1),"", IF(MAX($W8:GB8)+1>$P$8,"",MAX($W8:GB8)+1)) ->  | GD8: =IF(OR($P$6="",$P$6=0,$P$7="",$P$7=0,$P$8="",$P$7<1),"", IF(MAX($W8:GC8)+1>$P$8,"",MAX($W8:GC8)+1)) ->  | GE8: =IF(OR($P$6="",$P$6=0,$P$7="",$P$7=0,$P$8="",$P$7<1),"", IF(MAX($W8:GD8)+1>$P$8,"",MAX($W8:GD8)+1)) ->  | GF8: =IF(OR($P$6="",$P$6=0,$P$7="",$P$7=0,$P$8="",$P$7<1),"", IF(MAX($W8:GE8)+1>$P$8,"",MAX($W8:GE8)+1)) ->  | GG8: =IF(OR($P$6="",$P$6=0,$P$7="",$P$7=0,$P$8="",$P$7<1),"", IF(MAX($W8:GF8)+1>$P$8,"",MAX($W8:GF8)+1)) ->  | GH8: =IF(OR($P$6="",$P$6=0,$P$7="",$P$7=0,$P$8="",$P$7<1),"", IF(MAX($W8:GG8)+1>$P$8,"",MAX($W8:GG8)+1)) ->  | GI8: =IF(OR($P$6="",$P$6=0,$P$7="",$P$7=0,$P$8="",$P$7<1),"", IF(MAX($W8:GH8)+1>$P$8,"",MAX($W8:GH8)+1)) ->  | GJ8: =IF(OR($P$6="",$P$6=0,$P$7="",$P$7=0,$P$8="",$P$7<1),"", IF(MAX($W8:GI8)+1>$P$8,"",MAX($W8:GI8)+1)) ->  | GK8: =IF(OR($P$6="",$P$6=0,$P$7="",$P$7=0,$P$8="",$P$7<1),"", IF(MAX($W8:GJ8)+1>$P$8,"",MAX($W8:GJ8)+1)) ->  | GL8: =IF(OR($P$6="",$P$6=0,$P$7="",$P$7=0,$P$8="",$P$7<1),"", IF(MAX($W8:GK8)+1>$P$8,"",MAX($W8:GK8)+1)) ->  | GM8: =IF(OR($P$6="",$P$6=0,$P$7="",$P$7=0,$P$8="",$P$7<1),"", IF(MAX($W8:GL8)+1>$P$8,"",MAX($W8:GL8)+1)) ->  | GN8: =IF(OR($P$6="",$P$6=0,$P$7="",$P$7=0,$P$8="",$P$7<1),"", IF(MAX($W8:GM8)+1>$P$8,"",MAX($W8:GM8)+1)) ->  | GO8: =IF(OR($P$6="",$P$6=0,$P$7="",$P$7=0,$P$8="",$P$7<1),"", IF(MAX($W8:GN8)+1>$P$8,"",MAX($W8:GN8)+1)) ->  | GP8: =IF(OR($P$6="",$P$6=0,$P$7="",$P$7=0,$P$8="",$P$7<1),"", IF(MAX($W8:GO8)+1>$P$8,"",MAX($W8:GO8)+1)) ->  | GQ8: =IF(OR($P$6="",$P$6=0,$P$7="",$P$7=0,$P$8="",$P$7<1),"", IF(MAX($W8:GP8)+1>$P$8,"",MAX($W8:GP8)+1)) ->  | GR8: =IF(OR($P$6="",$P$6=0,$P$7="",$P$7=0,$P$8="",$P$7<1),"", IF(MAX($W8:GQ8)+1>$P$8,"",MAX($W8:GQ8)+1)) ->  | GS8: =IF(OR($P$6="",$P$6=0,$P$7="",$P$7=0,$P$8="",$P$7<1),"", IF(MAX($W8:GR8)+1>$P$8,"",MAX($W8:GR8)+1)) ->  | GT8: =IF(OR($P$6="",$P$6=0,$P$7="",$P$7=0,$P$8="",$P$7<1),"", IF(MAX($W8:GS8)+1>$P$8,"",MAX($W8:GS8)+1)) ->  | GU8: =IF(OR($P$6="",$P$6=0,$P$7="",$P$7=0,$P$8="",$P$7<1),"", IF(MAX($W8:GT8)+1>$P$8,"",MAX($W8:GT8)+1)) ->  | GV8: =IF(OR($P$6="",$P$6=0,$P$7="",$P$7=0,$P$8="",$P$7<1),"", IF(MAX($W8:GU8)+1>$P$8,"",MAX($W8:GU8)+1)) -> 
B9: =ROW() -> 9
B10: =ROW() -> 10
B11: 67 | H11: График оплат и ввода в экспл. оборуд-ия
B12: =ROW() -> 12
B13: =ROW() -> 13 | H13: Стоимость приобретаемого оборуд-я | M13: руб. | U13: =SUM(INDIRECT(ADDRESS($B13,X$2)&":"&ADDRESS($B13,MAX($2:$2)))) -> 0 | X13: =IF(X$4="",0,IF(X$8=1,$P14*$P15,0)) -> 0 | Y13: 0 | Z13: 0 | AA13: 0 | AB13: 0 | AC13: 0 | AD13: 0 | AE13: 0 | AF13: 0 | AG13: 0 | AH13: 0 | AI13: 0 | AJ13: 0 | AK13: 0 | AL13: 0 | AM13: 0 | AN13: 0 | AO13: 0 | AP13: 0 | AQ13: 0 | AR13: 0 | AS13: 0 | AT13: 0 | AU13: 0 | AV13: 0 | AW13: 0 | AX13: 0 | AY13: 0 | AZ13: 0 | BA13: 0 | BB13: 0 | BC13: =IF(BC$4="",0,IF(BC$8=1,$P14*$P15,0)) -> 0 | BD13: =IF(BD$4="",0,IF(BD$8=1,$P14*$P15,0)) -> 0 | BE13: =IF(BE$4="",0,IF(BE$8=1,$P14*$P15,0)) -> 0 | BF13: =IF(BF$4="",0,IF(BF$8=1,$P14*$P15,0)) -> 0 | BG13: =IF(BG$4="",0,IF(BG$8=1,$P14*$P15,0)) -> 0 | BH13: =IF(BH$4="",0,IF(BH$8=1,$P14*$P15,0)) -> 0 | BI13: =IF(BI$4="",0,IF(BI$8=1,$P14*$P15,0)) -> 0 | BJ13: =IF(BJ$4="",0,IF(BJ$8=1,$P14*$P15,0)) -> 0 | BK13: =IF(BK$4="",0,IF(BK$8=1,$P14*$P15,0)) -> 0 | BL13: =IF(BL$4="",0,IF(BL$8=1,$P14*$P15,0)) -> 0 | BM13: =IF(BM$4="",0,IF(BM$8=1,$P14*$P15,0)) -> 0 | BN13: =IF(BN$4="",0,IF(BN$8=1,$P14*$P15,0)) -> 0 | BO13: =IF(BO$4="",0,IF(BO$8=1,$P14*$P15,0)) -> 0 | BP13: =IF(BP$4="",0,IF(BP$8=1,$P14*$P15,0)) -> 0 | BQ13: =IF(BQ$4="",0,IF(BQ$8=1,$P14*$P15,0)) -> 0 | BR13: =IF(BR$4="",0,IF(BR$8=1,$P14*$P15,0)) -> 0 | BS13: =IF(BS$4="",0,IF(BS$8=1,$P14*$P15,0)) -> 0 | BT13: =IF(BT$4="",0,IF(BT$8=1,$P14*$P15,0)) -> 0 | BU13: =IF(BU$4="",0,IF(BU$8=1,$P14*$P15,0)) -> 0 | BV13: =IF(BV$4="",0,IF(BV$8=1,$P14*$P15,0)) -> 0 | BW13: =IF(BW$4="",0,IF(BW$8=1,$P14*$P15,0)) -> 0 | BX13: =IF(BX$4="",0,IF(BX$8=1,$P14*$P15,0)) -> 0 | BY13: =IF(BY$4="",0,IF(BY$8=1,$P14*$P15,0)) -> 0 | BZ13: =IF(BZ$4="",0,IF(BZ$8=1,$P14*$P15,0)) -> 0 | CA13: =IF(CA$4="",0,IF(CA$8=1,$P14*$P15,0)) -> 0 | CB13: =IF(CB$4="",0,IF(CB$8=1,$P14*$P15,0)) -> 0 | CC13: =IF(CC$4="",0,IF(CC$8=1,$P14*$P15,0)) -> 0 | CD13: =IF(CD$4="",0,IF(CD$8=1,$P14*$P15,0)) -> 0 | CE13: =IF(CE$4="",0,IF(CE$8=1,$P14*$P15,0)) -> 0 | CF13: =IF(CF$4="",0,IF(CF$8=1,$P14*$P15,0)) -> 0 | CG13: =IF(CG$4="",0,IF(CG$8=1,$P14*$P15,0)) -> 0 | CH13: =IF(CH$4="",0,IF(CH$8=1,$P14*$P15,0)) -> 0 | CI13: =IF(CI$4="",0,IF(CI$8=1,$P14*$P15,0)) -> 0 | CJ13: =IF(CJ$4="",0,IF(CJ$8=1,$P14*$P15,0)) -> 0 | CK13: =IF(CK$4="",0,IF(CK$8=1,$P14*$P15,0)) -> 0 | CL13: =IF(CL$4="",0,IF(CL$8=1,$P14*$P15,0)) -> 0 | CM13: =IF(CM$4="",0,IF(CM$8=1,$P14*$P15,0)) -> 0 | CN13: =IF(CN$4="",0,IF(CN$8=1,$P14*$P15,0)) -> 0 | CO13: =IF(CO$4="",0,IF(CO$8=1,$P14*$P15,0)) -> 0 | CP13: =IF(CP$4="",0,IF(CP$8=1,$P14*$P15,0)) -> 0 | CQ13: =IF(CQ$4="",0,IF(CQ$8=1,$P14*$P15,0)) -> 0 | CR13: =IF(CR$4="",0,IF(CR$8=1,$P14*$P15,0)) -> 0 | CS13: =IF(CS$4="",0,IF(CS$8=1,$P14*$P15,0)) -> 0 | CT13: =IF(CT$4="",0,IF(CT$8=1,$P14*$P15,0)) -> 0 | CU13: =IF(CU$4="",0,IF(CU$8=1,$P14*$P15,0)) -> 0 | CV13: =IF(CV$4="",0,IF(CV$8=1,$P14*$P15,0)) -> 0 | CW13: =IF(CW$4="",0,IF(CW$8=1,$P14*$P15,0)) -> 0 | CX13: =IF(CX$4="",0,IF(CX$8=1,$P14*$P15,0)) -> 0 | CY13: =IF(CY$4="",0,IF(CY$8=1,$P14*$P15,0)) -> 0 | CZ13: =IF(CZ$4="",0,IF(CZ$8=1,$P14*$P15,0)) -> 0 | DA13: =IF(DA$4="",0,IF(DA$8=1,$P14*$P15,0)) -> 0 | DB13: =IF(DB$4="",0,IF(DB$8=1,$P14*$P15,0)) -> 0 | DC13: =IF(DC$4="",0,IF(DC$8=1,$P14*$P15,0)) -> 0 | DD13: =IF(DD$4="",0,IF(DD$8=1,$P14*$P15,0)) -> 0 | DE13: =IF(DE$4="",0,IF(DE$8=1,$P14*$P15,0)) -> 0 | DF13: =IF(DF$4="",0,IF(DF$8=1,$P14*$P15,0)) -> 0 | DG13: =IF(DG$4="",0,IF(DG$8=1,$P14*$P15,0)) -> 0 | DH13: =IF(DH$4="",0,IF(DH$8=1,$P14*$P15,0)) -> 0 | DI13: =IF(DI$4="",0,IF(DI$8=1,$P14*$P15,0)) -> 0 | DJ13: =IF(DJ$4="",0,IF(DJ$8=1,$P14*$P15,0)) -> 0 | DK13: =IF(DK$4="",0,IF(DK$8=1,$P14*$P15,0)) -> 0 | DL13: =IF(DL$4="",0,IF(DL$8=1,$P14*$P15,0)) -> 0 | DM13: =IF(DM$4="",0,IF(DM$8=1,$P14*$P15,0)) -> 0 | DN13: =IF(DN$4="",0,IF(DN$8=1,$P14*$P15,0)) -> 0 | DO13: =IF(DO$4="",0,IF(DO$8=1,$P14*$P15,0)) -> 0 | DP13: =IF(DP$4="",0,IF(DP$8=1,$P14*$P15,0)) -> 0 | DQ13: =IF(DQ$4="",0,IF(DQ$8=1,$P14*$P15,0)) -> 0 | DR13: =IF(DR$4="",0,IF(DR$8=1,$P14*$P15,0)) -> 0 | DS13: =IF(DS$4="",0,IF(DS$8=1,$P14*$P15,0)) -> 0 | DT13: =IF(DT$4="",0,IF(DT$8=1,$P14*$P15,0)) -> 0 | DU13: =IF(DU$4="",0,IF(DU$8=1,$P14*$P15,0)) -> 0 | DV13: =IF(DV$4="",0,IF(DV$8=1,$P14*$P15,0)) -> 0 | DW13: =IF(DW$4="",0,IF(DW$8=1,$P14*$P15,0)) -> 0 | DX13: =IF(DX$4="",0,IF(DX$8=1,$P14*$P15,0)) -> 0 | DY13: =IF(DY$4="",0,IF(DY$8=1,$P14*$P15,0)) -> 0 | DZ13: =IF(DZ$4="",0,IF(DZ$8=1,$P14*$P15,0)) -> 0 | EA13: =IF(EA$4="",0,IF(EA$8=1,$P14*$P15,0)) -> 0 | EB13: =IF(EB$4="",0,IF(EB$8=1,$P14*$P15,0)) -> 0 | EC13: =IF(EC$4="",0,IF(EC$8=1,$P14*$P15,0)) -> 0 | ED13: =IF(ED$4="",0,IF(ED$8=1,$P14*$P15,0)) -> 0 | EE13: =IF(EE$4="",0,IF(EE$8=1,$P14*$P15,0)) -> 0 | EF13: =IF(EF$4="",0,IF(EF$8=1,$P14*$P15,0)) -> 0 | EG13: =IF(EG$4="",0,IF(EG$8=1,$P14*$P15,0)) -> 0 | EH13: =IF(EH$4="",0,IF(EH$8=1,$P14*$P15,0)) -> 0 | EI13: =IF(EI$4="",0,IF(EI$8=1,$P14*$P15,0)) -> 0 | EJ13: =IF(EJ$4="",0,IF(EJ$8=1,$P14*$P15,0)) -> 0 | EK13: =IF(EK$4="",0,IF(EK$8=1,$P14*$P15,0)) -> 0 | EL13: =IF(EL$4="",0,IF(EL$8=1,$P14*$P15,0)) -> 0 | EM13: =IF(EM$4="",0,IF(EM$8=1,$P14*$P15,0)) -> 0 | EN13: =IF(EN$4="",0,IF(EN$8=1,$P14*$P15,0)) -> 0 | EO13: =IF(EO$4="",0,IF(EO$8=1,$P14*$P15,0)) -> 0 | EP13: =IF(EP$4="",0,IF(EP$8=1,$P14*$P15,0)) -> 0 | EQ13: =IF(EQ$4="",0,IF(EQ$8=1,$P14*$P15,0)) -> 0 | ER13: =IF(ER$4="",0,IF(ER$8=1,$P14*$P15,0)) -> 0 | ES13: =IF(ES$4="",0,IF(ES$8=1,$P14*$P15,0)) -> 0 | ET13: =IF(ET$4="",0,IF(ET$8=1,$P14*$P15,0)) -> 0 | EU13: =IF(EU$4="",0,IF(EU$8=1,$P14*$P15,0)) -> 0 | EV13: =IF(EV$4="",0,IF(EV$8=1,$P14*$P15,0)) -> 0 | EW13: =IF(EW$4="",0,IF(EW$8=1,$P14*$P15,0)) -> 0 | EX13: =IF(EX$4="",0,IF(EX$8=1,$P14*$P15,0)) -> 0 | EY13: =IF(EY$4="",0,IF(EY$8=1,$P14*$P15,0)) -> 0 | EZ13: =IF(EZ$4="",0,IF(EZ$8=1,$P14*$P15,0)) -> 0 | FA13: =IF(FA$4="",0,IF(FA$8=1,$P14*$P15,0)) -> 0 | FB13: =IF(FB$4="",0,IF(FB$8=1,$P14*$P15,0)) -> 0 | FC13: =IF(FC$4="",0,IF(FC$8=1,$P14*$P15,0)) -> 0 | FD13: =IF(FD$4="",0,IF(FD$8=1,$P14*$P15,0)) -> 0 | FE13: =IF(FE$4="",0,IF(FE$8=1,$P14*$P15,0)) -> 0 | FF13: =IF(FF$4="",0,IF(FF$8=1,$P14*$P15,0)) -> 0 | FG13: =IF(FG$4="",0,IF(FG$8=1,$P14*$P15,0)) -> 0 | FH13: =IF(FH$4="",0,IF(FH$8=1,$P14*$P15,0)) -> 0 | FI13: =IF(FI$4="",0,IF(FI$8=1,$P14*$P15,0)) -> 0 | FJ13: =IF(FJ$4="",0,IF(FJ$8=1,$P14*$P15,0)) -> 0 | FK13: =IF(FK$4="",0,IF(FK$8=1,$P14*$P15,0)) -> 0 | FL13: =IF(FL$4="",0,IF(FL$8=1,$P14*$P15,0)) -> 0 | FM13: =IF(FM$4="",0,IF(FM$8=1,$P14*$P15,0)) -> 0 | FN13: =IF(FN$4="",0,IF(FN$8=1,$P14*$P15,0)) -> 0 | FO13: =IF(FO$4="",0,IF(FO$8=1,$P14*$P15,0)) -> 0 | FP13: =IF(FP$4="",0,IF(FP$8=1,$P14*$P15,0)) -> 0 | FQ13: =IF(FQ$4="",0,IF(FQ$8=1,$P14*$P15,0)) -> 0 | FR13: =IF(FR$4="",0,IF(FR$8=1,$P14*$P15,0)) -> 0 | FS13: =IF(FS$4="",0,IF(FS$8=1,$P14*$P15,0)) -> 0 | FT13: =IF(FT$4="",0,IF(FT$8=1,$P14*$P15,0)) -> 0 | FU13: =IF(FU$4="",0,IF(FU$8=1,$P14*$P15,0)) -> 0 | FV13: =IF(FV$4="",0,IF(FV$8=1,$P14*$P15,0)) -> 0 | FW13: =IF(FW$4="",0,IF(FW$8=1,$P14*$P15,0)) -> 0 | FX13: =IF(FX$4="",0,IF(FX$8=1,$P14*$P15,0)) -> 0 | FY13: =IF(FY$4="",0,IF(FY$8=1,$P14*$P15,0)) -> 0 | FZ13: =IF(FZ$4="",0,IF(FZ$8=1,$P14*$P15,0)) -> 0 | GA13: =IF(GA$4="",0,IF(GA$8=1,$P14*$P15,0)) -> 0 | GB13: =IF(GB$4="",0,IF(GB$8=1,$P14*$P15,0)) -> 0 | GC13: =IF(GC$4="",0,IF(GC$8=1,$P14*$P15,0)) -> 0 | GD13: =IF(GD$4="",0,IF(GD$8=1,$P14*$P15,0)) -> 0 | GE13: =IF(GE$4="",0,IF(GE$8=1,$P14*$P15,0)) -> 0 | GF13: =IF(GF$4="",0,IF(GF$8=1,$P14*$P15,0)) -> 0 | GG13: =IF(GG$4="",0,IF(GG$8=1,$P14*$P15,0)) -> 0 | GH13: =IF(GH$4="",0,IF(GH$8=1,$P14*$P15,0)) -> 0 | GI13: =IF(GI$4="",0,IF(GI$8=1,$P14*$P15,0)) -> 0 | GJ13: =IF(GJ$4="",0,IF(GJ$8=1,$P14*$P15,0)) -> 0 | GK13: =IF(GK$4="",0,IF(GK$8=1,$P14*$P15,0)) -> 0 | GL13: =IF(GL$4="",0,IF(GL$8=1,$P14*$P15,0)) -> 0 | GM13: =IF(GM$4="",0,IF(GM$8=1,$P14*$P15,0)) -> 0 | GN13: =IF(GN$4="",0,IF(GN$8=1,$P14*$P15,0)) -> 0 | GO13: =IF(GO$4="",0,IF(GO$8=1,$P14*$P15,0)) -> 0 | GP13: =IF(GP$4="",0,IF(GP$8=1,$P14*$P15,0)) -> 0 | GQ13: =IF(GQ$4="",0,IF(GQ$8=1,$P14*$P15,0)) -> 0 | GR13: =IF(GR$4="",0,IF(GR$8=1,$P14*$P15,0)) -> 0 | GS13: =IF(GS$4="",0,IF(GS$8=1,$P14*$P15,0)) -> 0 | GT13: =IF(GT$4="",0,IF(GT$8=1,$P14*$P15,0)) -> 0 | GU13: =IF(GU$4="",0,IF(GU$8=1,$P14*$P15,0)) -> 0 | GV13: =IF(GV$4="",0,IF(GV$8=1,$P14*$P15,0)) -> 0
B14: =ROW() -> 14 | H14: =H13 -> Стоимость приобретаемого оборуд-я | I14: Стоимость 1ед. оборудования | M14: руб./1ед.||шт. | O14: *
B15: =ROW() -> 15 | H15: =H14 -> Стоимость приобретаемого оборуд-я | I15: Количество единиц оборудования | M15: руб./1ед.||шт. | O15: *
B16: =ROW() -> 16
B17: =ROW() -> 17 | H17: График оплат оборудования | P17: CF(-) | U17: =SUM(INDIRECT(ADDRESS($B17,X$2)&":"&ADDRESS($B17,MAX($2:$2)))) -> 0 | X17: =IF(X$4="",0,$U13*X18) -> 0 | Y17: =IF(Y$4="",0,$U13*Y18) -> 0 | Z17: 0 | AA17: 0 | AB17: 0 | AC17: 0 | AD17: 0 | AE17: 0 | AF17: 0 | AG17: 0 | AH17: 0 | AI17: 0 | AJ17: 0 | AK17: 0 | AL17: 0 | AM17: 0 | AN17: 0 | AO17: 0 | AP17: 0 | AQ17: 0 | AR17: 0 | AS17: 0 | AT17: 0 | AU17: 0 | AV17: 0 | AW17: 0 | AX17: 0 | AY17: 0 | AZ17: 0 | BA17: 0 | BB17: 0 | BC17: =IF(BC$4="",0,$U13*BC18) -> 0 | BD17: 0 | BE17: 0 | BF17: 0 | BG17: 0 | BH17: 0 | BI17: 0 | BJ17: 0 | BK17: 0 | BL17: 0 | BM17: 0 | BN17: 0 | BO17: 0 | BP17: 0 | BQ17: 0 | BR17: 0 | BS17: 0 | BT17: 0 | BU17: 0 | BV17: 0 | BW17: 0 | BX17: 0 | BY17: 0 | BZ17: 0 | CA17: 0 | CB17: 0 | CC17: 0 | CD17: 0 | CE17: 0 | CF17: 0 | CG17: 0 | CH17: 0 | CI17: 0 | CJ17: 0 | CK17: 0 | CL17: 0 | CM17: 0 | CN17: 0 | CO17: 0 | CP17: 0 | CQ17: 0 | CR17: 0 | CS17: 0 | CT17: 0 | CU17: 0 | CV17: 0 | CW17: 0 | CX17: 0 | CY17: 0 | CZ17: 0 | DA17: 0 | DB17: 0 | DC17: 0 | DD17: 0 | DE17: 0 | DF17: 0 | DG17: 0 | DH17: 0 | DI17: 0 | DJ17: 0 | DK17: 0 | DL17: 0 | DM17: 0 | DN17: 0 | DO17: =IF(DO$4="",0,$U13*DO18) -> 0 | DP17: 0 | DQ17: 0 | DR17: 0 | DS17: 0 | DT17: 0 | DU17: 0 | DV17: 0 | DW17: 0 | DX17: 0 | DY17: 0 | DZ17: 0 | EA17: 0 | EB17: 0 | EC17: 0 | ED17: 0 | EE17: 0 | EF17: 0 | EG17: 0 | EH17: 0 | EI17: 0 | EJ17: 0 | EK17: 0 | EL17: 0 | EM17: 0 | EN17: 0 | EO17: 0 | EP17: 0 | EQ17: 0 | ER17: 0 | ES17: 0 | ET17: 0 | EU17: 0 | EV17: 0 | EW17: 0 | EX17: 0 | EY17: 0 | EZ17: 0 | FA17: 0 | FB17: 0 | FC17: 0 | FD17: 0 | FE17: 0 | FF17: 0 | FG17: 0 | FH17: 0 | FI17: 0 | FJ17: 0 | FK17: 0 | FL17: 0 | FM17: 0 | FN17: 0 | FO17: 0 | FP17: 0 | FQ17: 0 | FR17: 0 | FS17: 0 | FT17: 0 | FU17: 0 | FV17: 0 | FW17: 0 | FX17: 0 | FY17: 0 | FZ17: 0 | GA17: =IF(GA$4="",0,$U13*GA18) -> 0 | GB17: 0 | GC17: 0 | GD17: 0 | GE17: 0 | GF17: 0 | GG17: 0 | GH17: 0 | GI17: 0 | GJ17: 0 | GK17: 0 | GL17: 0 | GM17: 0 | GN17: 0 | GO17: 0 | GP17: 0 | GQ17: 0 | GR17: 0 | GS17: 0 | GT17: 0 | GU17: 0 | GV17: 0
B18: =ROW() -> 18 | H18: =H17 -> График оплат оборудования | I18: Процентное распределение оплаты | M18: % | U18: =SUM(INDIRECT(ADDRESS($B18,X$2)&":"&ADDRESS($B18,MAX($2:$2)))) -> 0 | W18: *
B19: =ROW() -> 19
B20: =ROW() -> 20 | H20: Ввод в эксплуатацию оборудования | M20: руб. | U20: =SUM(INDIRECT(ADDRESS($B20,X$2)&":"&ADDRESS($B20,MAX($2:$2)))) -> 0 | X20: =IF(X$4="",0,$P14*X21) -> 0 | Y20: =IF(Y$4="",0,$P14*Y21) -> 0 | Z20: 0 | AA20: 0 | AB20: 0 | AC20: 0 | AD20: 0 | AE20: 0 | AF20: 0 | AG20: 0 | AH20: 0 | AI20: 0 | AJ20: 0 | AK20: 0 | AL20: 0 | AM20: 0 | AN20: 0 | AO20: 0 | AP20: 0 | AQ20: 0 | AR20: 0 | AS20: 0 | AT20: 0 | AU20: 0 | AV20: 0 | AW20: 0 | AX20: 0 | AY20: 0 | AZ20: 0 | BA20: 0 | BB20: 0 | BC20: =IF(BC$4="",0,$P14*BC21) -> 0 | BD20: 0 | BE20: 0 | BF20: 0 | BG20: 0 | BH20: 0 | BI20: 0 | BJ20: 0 | BK20: 0 | BL20: 0 | BM20: 0 | BN20: 0 | BO20: 0 | BP20: 0 | BQ20: 0 | BR20: 0 | BS20: 0 | BT20: 0 | BU20: 0 | BV20: 0 | BW20: 0 | BX20: 0 | BY20: 0 | BZ20: 0 | CA20: 0 | CB20: 0 | CC20: 0 | CD20: 0 | CE20: 0 | CF20: 0 | CG20: 0 | CH20: 0 | CI20: 0 | CJ20: 0 | CK20: 0 | CL20: 0 | CM20: 0 | CN20: 0 | CO20: 0 | CP20: 0 | CQ20: 0 | CR20: 0 | CS20: 0 | CT20: 0 | CU20: 0 | CV20: 0 | CW20: 0 | CX20: 0 | CY20: 0 | CZ20: 0 | DA20: 0 | DB20: 0 | DC20: 0 | DD20: 0 | DE20: 0 | DF20: 0 | DG20: 0 | DH20: 0 | DI20: 0 | DJ20: 0 | DK20: 0 | DL20: 0 | DM20: 0 | DN20: 0 | DO20: =IF(DO$4="",0,$P14*DO21) -> 0 | DP20: 0 | DQ20: 0 | DR20: 0 | DS20: 0 | DT20: 0 | DU20: 0 | DV20: 0 | DW20: 0 | DX20: 0 | DY20: 0 | DZ20: 0 | EA20: 0 | EB20: 0 | EC20: 0 | ED20: 0 | EE20: 0 | EF20: 0 | EG20: 0 | EH20: 0 | EI20: 0 | EJ20: 0 | EK20: 0 | EL20: 0 | EM20: 0 | EN20: 0 | EO20: 0 | EP20: 0 | EQ20: 0 | ER20: 0 | ES20: 0 | ET20: 0 | EU20: 0 | EV20: 0 | EW20: 0 | EX20: 0 | EY20: 0 | EZ20: 0 | FA20: 0 | FB20: 0 | FC20: 0 | FD20: 0 | FE20: 0 | FF20: 0 | FG20: 0 | FH20: 0 | FI20: 0 | FJ20: 0 | FK20: 0 | FL20: 0 | FM20: 0 | FN20: 0 | FO20: 0 | FP20: 0 | FQ20: 0 | FR20: 0 | FS20: 0 | FT20: 0 | FU20: 0 | FV20: 0 | FW20: 0 | FX20: 0 | FY20: 0 | FZ20: 0 | GA20: =IF(GA$4="",0,$P14*GA21) -> 0 | GB20: 0 | GC20: 0 | GD20: 0 | GE20: 0 | GF20: 0 | GG20: 0 | GH20: 0 | GI20: 0 | GJ20: 0 | GK20: 0 | GL20: 0 | GM20: 0 | GN20: 0 | GO20: 0 | GP20: 0 | GQ20: 0 | GR20: 0 | GS20: 0 | GT20: 0 | GU20: 0 | GV20: 0
B21: =ROW() -> 21 | H21: =H20 -> Ввод в эксплуатацию оборудования | M21: шт | U21: =SUM(INDIRECT(ADDRESS($B21,X$2)&":"&ADDRESS($B21,MAX($2:$2)))) -> 0 | X21: =IF(X$4="",0,IF($U22=0,IF($P14=0,0,SUMIFS($17:$17,$1:$1,X$1-$P23)/$P14),X22)) -> 0 | Y21: =IF(Y$4="",0,IF($U22=0,IF($P14=0,0,SUMIFS($17:$17,$1:$1,Y$1-$P23)/$P14),Y22)) -> 0 | Z21: 0 | AA21: 0 | AB21: 0 | AC21: 0 | AD21: 0 | AE21: 0 | AF21: 0 | AG21: 0 | AH21: 0 | AI21: 0 | AJ21: 0 | AK21: 0 | AL21: 0 | AM21: 0 | AN21: 0 | AO21: 0 | AP21: 0 | AQ21: 0 | AR21: 0 | AS21: 0 | AT21: 0 | AU21: 0 | AV21: 0 | AW21: 0 | AX21: 0 | AY21: 0 | AZ21: 0 | BA21: 0 | BB21: 0 | BC21: =IF(BC$4="",0,IF($U22=0,IF($P14=0,0,SUMIFS($17:$17,$1:$1,BC$1-$P23)/$P14),BC22)) -> 0 | BD21: 0 | BE21: 0 | BF21: 0 | BG21: 0 | BH21: 0 | BI21: 0 | BJ21: 0 | BK21: 0 | BL21: 0 | BM21: 0 | BN21: 0 | BO21: 0 | BP21: 0 | BQ21: 0 | BR21: 0 | BS21: 0 | BT21: 0 | BU21: 0 | BV21: 0 | BW21: 0 | BX21: 0 | BY21: 0 | BZ21: 0 | CA21: 0 | CB21: 0 | CC21: 0 | CD21: 0 | CE21: 0 | CF21: 0 | CG21: 0 | CH21: 0 | CI21: 0 | CJ21: 0 | CK21: 0 | CL21: 0 | CM21: 0 | CN21: 0 | CO21: 0 | CP21: 0 | CQ21: 0 | CR21: 0 | CS21: 0 | CT21: 0 | CU21: 0 | CV21: 0 | CW21: 0 | CX21: 0 | CY21: 0 | CZ21: 0 | DA21: 0 | DB21: 0 | DC21: 0 | DD21: 0 | DE21: 0 | DF21: 0 | DG21: 0 | DH21: 0 | DI21: 0 | DJ21: 0 | DK21: 0 | DL21: 0 | DM21: 0 | DN21: 0 | DO21: =IF(DO$4="",0,IF($U22=0,IF($P14=0,0,SUMIFS($17:$17,$1:$1,DO$1-$P23)/$P14),DO22)) -> 0 | DP21: 0 | DQ21: 0 | DR21: 0 | DS21: 0 | DT21: 0 | DU21: 0 | DV21: 0 | DW21: 0 | DX21: 0 | DY21: 0 | DZ21: 0 | EA21: 0 | EB21: 0 | EC21: 0 | ED21: 0 | EE21: 0 | EF21: 0 | EG21: 0 | EH21: 0 | EI21: 0 | EJ21: 0 | EK21: 0 | EL21: 0 | EM21: 0 | EN21: 0 | EO21: 0 | EP21: 0 | EQ21: 0 | ER21: 0 | ES21: 0 | ET21: 0 | EU21: 0 | EV21: 0 | EW21: 0 | EX21: 0 | EY21: 0 | EZ21: 0 | FA21: 0 | FB21: 0 | FC21: 0 | FD21: 0 | FE21: 0 | FF21: 0 | FG21: 0 | FH21: 0 | FI21: 0 | FJ21: 0 | FK21: 0 | FL21: 0 | FM21: 0 | FN21: 0 | FO21: 0 | FP21: 0 | FQ21: 0 | FR21: 0 | FS21: 0 | FT21: 0 | FU21: 0 | FV21: 0 | FW21: 0 | FX21: 0 | FY21: 0 | FZ21: 0 | GA21: =IF(GA$4="",0,IF($U22=0,IF($P14=0,0,SUMIFS($17:$17,$1:$1,GA$1-$P23)/$P14),GA22)) -> 0 | GB21: 0 | GC21: 0 | GD21: 0 | GE21: 0 | GF21: 0 | GG21: 0 | GH21: 0 | GI21: 0 | GJ21: 0 | GK21: 0 | GL21: 0 | GM21: 0 | GN21: 0 | GO21: 0 | GP21: 0 | GQ21: 0 | GR21: 0 | GS21: 0 | GT21: 0 | GU21: 0 | GV21: 0
B22: =ROW() -> 22 | H22: =H20 -> Ввод в эксплуатацию оборудования | I22: Вручную укажите ввод в экспл-ию | M22: шт | U22: =SUM(INDIRECT(ADDRESS($B22,X$2)&":"&ADDRESS($B22,MAX($2:$2)))) -> 0 | W22: *
B23: =ROW() -> 23 | H23: Возврат %% по кредиту | I23: Либо укажите срок ввода с момента оплаты | M23: кол-во мес. | O23: *
B24: =ROW() -> 24
B25: 67 | H25: Операц. финпоток от экспл-ции оборуд-ия
B26: =ROW() -> 26
B27: =ROW() -> 27 | H27: Поступление операционного финпотока | P27: CF(+) | U27: =SUM(INDIRECT(ADDRESS($B27,X$2)&":"&ADDRESS($B27,MAX($2:$2)))) -> 0 | X27: =IF(X$4="",0,SUM($W21:X21)*$P28) -> 0 | Y27: =IF(Y$4="",0,SUM($W21:Y21)*$P28) -> 0 | Z27: =IF(Z$4="",0,SUM($W21:Z21)*$P28) -> 0 | AA27: =IF(AA$4="",0,SUM($W21:AA21)*$P28) -> 0 | AB27: =IF(AB$4="",0,SUM($W21:AB21)*$P28) -> 0 | AC27: =IF(AC$4="",0,SUM($W21:AC21)*$P28) -> 0 | AD27: =IF(AD$4="",0,SUM($W21:AD21)*$P28) -> 0 | AE27: =IF(AE$4="",0,SUM($W21:AE21)*$P28) -> 0 | AF27: =IF(AF$4="",0,SUM($W21:AF21)*$P28) -> 0 | AG27: =IF(AG$4="",0,SUM($W21:AG21)*$P28) -> 0 | AH27: =IF(AH$4="",0,SUM($W21:AH21)*$P28) -> 0 | AI27: =IF(AI$4="",0,SUM($W21:AI21)*$P28) -> 0 | AJ27: =IF(AJ$4="",0,SUM($W21:AJ21)*$P28) -> 0 | AK27: =IF(AK$4="",0,SUM($W21:AK21)*$P28) -> 0 | AL27: =IF(AL$4="",0,SUM($W21:AL21)*$P28) -> 0 | AM27: =IF(AM$4="",0,SUM($W21:AM21)*$P28) -> 0 | AN27: =IF(AN$4="",0,SUM($W21:AN21)*$P28) -> 0 | AO27: =IF(AO$4="",0,SUM($W21:AO21)*$P28) -> 0 | AP27: =IF(AP$4="",0,SUM($W21:AP21)*$P28) -> 0 | AQ27: =IF(AQ$4="",0,SUM($W21:AQ21)*$P28) -> 0 | AR27: =IF(AR$4="",0,SUM($W21:AR21)*$P28) -> 0 | AS27: =IF(AS$4="",0,SUM($W21:AS21)*$P28) -> 0 | AT27: =IF(AT$4="",0,SUM($W21:AT21)*$P28) -> 0 | AU27: =IF(AU$4="",0,SUM($W21:AU21)*$P28) -> 0 | AV27: =IF(AV$4="",0,SUM($W21:AV21)*$P28) -> 0 | AW27: =IF(AW$4="",0,SUM($W21:AW21)*$P28) -> 0 | AX27: =IF(AX$4="",0,SUM($W21:AX21)*$P28) -> 0 | AY27: =IF(AY$4="",0,SUM($W21:AY21)*$P28) -> 0 | AZ27: =IF(AZ$4="",0,SUM($W21:AZ21)*$P28) -> 0 | BA27: =IF(BA$4="",0,SUM($W21:BA21)*$P28) -> 0 | BB27: =IF(BB$4="",0,SUM($W21:BB21)*$P28) -> 0 | BC27: =IF(BC$4="",0,SUM($W21:BC21)*$P28) -> 0 | BD27: =IF(BD$4="",0,SUM($W21:BD21)*$P28) -> 0 | BE27: =IF(BE$4="",0,SUM($W21:BE21)*$P28) -> 0 | BF27: =IF(BF$4="",0,SUM($W21:BF21)*$P28) -> 0 | BG27: =IF(BG$4="",0,SUM($W21:BG21)*$P28) -> 0 | BH27: =IF(BH$4="",0,SUM($W21:BH21)*$P28) -> 0 | BI27: =IF(BI$4="",0,SUM($W21:BI21)*$P28) -> 0 | BJ27: =IF(BJ$4="",0,SUM($W21:BJ21)*$P28) -> 0 | BK27: =IF(BK$4="",0,SUM($W21:BK21)*$P28) -> 0 | BL27: =IF(BL$4="",0,SUM($W21:BL21)*$P28) -> 0 | BM27: =IF(BM$4="",0,SUM($W21:BM21)*$P28) -> 0 | BN27: =IF(BN$4="",0,SUM($W21:BN21)*$P28) -> 0 | BO27: =IF(BO$4="",0,SUM($W21:BO21)*$P28) -> 0 | BP27: =IF(BP$4="",0,SUM($W21:BP21)*$P28) -> 0 | BQ27: =IF(BQ$4="",0,SUM($W21:BQ21)*$P28) -> 0 | BR27: =IF(BR$4="",0,SUM($W21:BR21)*$P28) -> 0 | BS27: =IF(BS$4="",0,SUM($W21:BS21)*$P28) -> 0 | BT27: =IF(BT$4="",0,SUM($W21:BT21)*$P28) -> 0 | BU27: =IF(BU$4="",0,SUM($W21:BU21)*$P28) -> 0 | BV27: =IF(BV$4="",0,SUM($W21:BV21)*$P28) -> 0 | BW27: =IF(BW$4="",0,SUM($W21:BW21)*$P28) -> 0 | BX27: =IF(BX$4="",0,SUM($W21:BX21)*$P28) -> 0 | BY27: =IF(BY$4="",0,SUM($W21:BY21)*$P28) -> 0 | BZ27: =IF(BZ$4="",0,SUM($W21:BZ21)*$P28) -> 0 | CA27: =IF(CA$4="",0,SUM($W21:CA21)*$P28) -> 0 | CB27: =IF(CB$4="",0,SUM($W21:CB21)*$P28) -> 0 | CC27: =IF(CC$4="",0,SUM($W21:CC21)*$P28) -> 0 | CD27: =IF(CD$4="",0,SUM($W21:CD21)*$P28) -> 0 | CE27: =IF(CE$4="",0,SUM($W21:CE21)*$P28) -> 0 | CF27: =IF(CF$4="",0,SUM($W21:CF21)*$P28) -> 0 | CG27: =IF(CG$4="",0,SUM($W21:CG21)*$P28) -> 0 | CH27: =IF(CH$4="",0,SUM($W21:CH21)*$P28) -> 0 | CI27: =IF(CI$4="",0,SUM($W21:CI21)*$P28) -> 0 | CJ27: =IF(CJ$4="",0,SUM($W21:CJ21)*$P28) -> 0 | CK27: =IF(CK$4="",0,SUM($W21:CK21)*$P28) -> 0 | CL27: =IF(CL$4="",0,SUM($W21:CL21)*$P28) -> 0 | CM27: =IF(CM$4="",0,SUM($W21:CM21)*$P28) -> 0 | CN27: =IF(CN$4="",0,SUM($W21:CN21)*$P28) -> 0 | CO27: =IF(CO$4="",0,SUM($W21:CO21)*$P28) -> 0 | CP27: =IF(CP$4="",0,SUM($W21:CP21)*$P28) -> 0 | CQ27: =IF(CQ$4="",0,SUM($W21:CQ21)*$P28) -> 0 | CR27: =IF(CR$4="",0,SUM($W21:CR21)*$P28) -> 0 | CS27: =IF(CS$4="",0,SUM($W21:CS21)*$P28) -> 0 | CT27: =IF(CT$4="",0,SUM($W21:CT21)*$P28) -> 0 | CU27: =IF(CU$4="",0,SUM($W21:CU21)*$P28) -> 0 | CV27: =IF(CV$4="",0,SUM($W21:CV21)*$P28) -> 0 | CW27: =IF(CW$4="",0,SUM($W21:CW21)*$P28) -> 0 | CX27: =IF(CX$4="",0,SUM($W21:CX21)*$P28) -> 0 | CY27: =IF(CY$4="",0,SUM($W21:CY21)*$P28) -> 0 | CZ27: =IF(CZ$4="",0,SUM($W21:CZ21)*$P28) -> 0 | DA27: =IF(DA$4="",0,SUM($W21:DA21)*$P28) -> 0 | DB27: =IF(DB$4="",0,SUM($W21:DB21)*$P28) -> 0 | DC27: =IF(DC$4="",0,SUM($W21:DC21)*$P28) -> 0 | DD27: =IF(DD$4="",0,SUM($W21:DD21)*$P28) -> 0 | DE27: =IF(DE$4="",0,SUM($W21:DE21)*$P28) -> 0 | DF27: =IF(DF$4="",0,SUM($W21:DF21)*$P28) -> 0 | DG27: =IF(DG$4="",0,SUM($W21:DG21)*$P28) -> 0 | DH27: =IF(DH$4="",0,SUM($W21:DH21)*$P28) -> 0 | DI27: =IF(DI$4="",0,SUM($W21:DI21)*$P28) -> 0 | DJ27: =IF(DJ$4="",0,SUM($W21:DJ21)*$P28) -> 0 | DK27: =IF(DK$4="",0,SUM($W21:DK21)*$P28) -> 0 | DL27: =IF(DL$4="",0,SUM($W21:DL21)*$P28) -> 0 | DM27: =IF(DM$4="",0,SUM($W21:DM21)*$P28) -> 0 | DN27: =IF(DN$4="",0,SUM($W21:DN21)*$P28) -> 0 | DO27: =IF(DO$4="",0,SUM($W21:DO21)*$P28) -> 0 | DP27: =IF(DP$4="",0,SUM($W21:DP21)*$P28) -> 0 | DQ27: =IF(DQ$4="",0,SUM($W21:DQ21)*$P28) -> 0 | DR27: =IF(DR$4="",0,SUM($W21:DR21)*$P28) -> 0 | DS27: =IF(DS$4="",0,SUM($W21:DS21)*$P28) -> 0 | DT27: =IF(DT$4="",0,SUM($W21:DT21)*$P28) -> 0 | DU27: =IF(DU$4="",0,SUM($W21:DU21)*$P28) -> 0 | DV27: =IF(DV$4="",0,SUM($W21:DV21)*$P28) -> 0 | DW27: =IF(DW$4="",0,SUM($W21:DW21)*$P28) -> 0 | DX27: =IF(DX$4="",0,SUM($W21:DX21)*$P28) -> 0 | DY27: =IF(DY$4="",0,SUM($W21:DY21)*$P28) -> 0 | DZ27: =IF(DZ$4="",0,SUM($W21:DZ21)*$P28) -> 0 | EA27: =IF(EA$4="",0,SUM($W21:EA21)*$P28) -> 0 | EB27: =IF(EB$4="",0,SUM($W21:EB21)*$P28) -> 0 | EC27: =IF(EC$4="",0,SUM($W21:EC21)*$P28) -> 0 | ED27: =IF(ED$4="",0,SUM($W21:ED21)*$P28) -> 0 | EE27: =IF(EE$4="",0,SUM($W21:EE21)*$P28) -> 0 | EF27: =IF(EF$4="",0,SUM($W21:EF21)*$P28) -> 0 | EG27: =IF(EG$4="",0,SUM($W21:EG21)*$P28) -> 0 | EH27: =IF(EH$4="",0,SUM($W21:EH21)*$P28) -> 0 | EI27: =IF(EI$4="",0,SUM($W21:EI21)*$P28) -> 0 | EJ27: =IF(EJ$4="",0,SUM($W21:EJ21)*$P28) -> 0 | EK27: =IF(EK$4="",0,SUM($W21:EK21)*$P28) -> 0 | EL27: =IF(EL$4="",0,SUM($W21:EL21)*$P28) -> 0 | EM27: =IF(EM$4="",0,SUM($W21:EM21)*$P28) -> 0 | EN27: =IF(EN$4="",0,SUM($W21:EN21)*$P28) -> 0 | EO27: =IF(EO$4="",0,SUM($W21:EO21)*$P28) -> 0 | EP27: =IF(EP$4="",0,SUM($W21:EP21)*$P28) -> 0 | EQ27: =IF(EQ$4="",0,SUM($W21:EQ21)*$P28) -> 0 | ER27: =IF(ER$4="",0,SUM($W21:ER21)*$P28) -> 0 | ES27: =IF(ES$4="",0,SUM($W21:ES21)*$P28) -> 0 | ET27: =IF(ET$4="",0,SUM($W21:ET21)*$P28) -> 0 | EU27: =IF(EU$4="",0,SUM($W21:EU21)*$P28) -> 0 | EV27: =IF(EV$4="",0,SUM($W21:EV21)*$P28) -> 0 | EW27: =IF(EW$4="",0,SUM($W21:EW21)*$P28) -> 0 | EX27: =IF(EX$4="",0,SUM($W21:EX21)*$P28) -> 0 | EY27: =IF(EY$4="",0,SUM($W21:EY21)*$P28) -> 0 | EZ27: =IF(EZ$4="",0,SUM($W21:EZ21)*$P28) -> 0 | FA27: =IF(FA$4="",0,SUM($W21:FA21)*$P28) -> 0 | FB27: =IF(FB$4="",0,SUM($W21:FB21)*$P28) -> 0 | FC27: =IF(FC$4="",0,SUM($W21:FC21)*$P28) -> 0 | FD27: =IF(FD$4="",0,SUM($W21:FD21)*$P28) -> 0 | FE27: =IF(FE$4="",0,SUM($W21:FE21)*$P28) -> 0 | FF27: =IF(FF$4="",0,SUM($W21:FF21)*$P28) -> 0 | FG27: =IF(FG$4="",0,SUM($W21:FG21)*$P28) -> 0 | FH27: =IF(FH$4="",0,SUM($W21:FH21)*$P28) -> 0 | FI27: =IF(FI$4="",0,SUM($W21:FI21)*$P28) -> 0 | FJ27: =IF(FJ$4="",0,SUM($W21:FJ21)*$P28) -> 0 | FK27: =IF(FK$4="",0,SUM($W21:FK21)*$P28) -> 0 | FL27: =IF(FL$4="",0,SUM($W21:FL21)*$P28) -> 0 | FM27: =IF(FM$4="",0,SUM($W21:FM21)*$P28) -> 0 | FN27: =IF(FN$4="",0,SUM($W21:FN21)*$P28) -> 0 | FO27: =IF(FO$4="",0,SUM($W21:FO21)*$P28) -> 0 | FP27: =IF(FP$4="",0,SUM($W21:FP21)*$P28) -> 0 | FQ27: =IF(FQ$4="",0,SUM($W21:FQ21)*$P28) -> 0 | FR27: =IF(FR$4="",0,SUM($W21:FR21)*$P28) -> 0 | FS27: =IF(FS$4="",0,SUM($W21:FS21)*$P28) -> 0 | FT27: =IF(FT$4="",0,SUM($W21:FT21)*$P28) -> 0 | FU27: =IF(FU$4="",0,SUM($W21:FU21)*$P28) -> 0 | FV27: =IF(FV$4="",0,SUM($W21:FV21)*$P28) -> 0 | FW27: =IF(FW$4="",0,SUM($W21:FW21)*$P28) -> 0 | FX27: =IF(FX$4="",0,SUM($W21:FX21)*$P28) -> 0 | FY27: =IF(FY$4="",0,SUM($W21:FY21)*$P28) -> 0 | FZ27: =IF(FZ$4="",0,SUM($W21:FZ21)*$P28) -> 0 | GA27: =IF(GA$4="",0,SUM($W21:GA21)*$P28) -> 0 | GB27: =IF(GB$4="",0,SUM($W21:GB21)*$P28) -> 0 | GC27: =IF(GC$4="",0,SUM($W21:GC21)*$P28) -> 0 | GD27: =IF(GD$4="",0,SUM($W21:GD21)*$P28) -> 0 | GE27: =IF(GE$4="",0,SUM($W21:GE21)*$P28) -> 0 | GF27: =IF(GF$4="",0,SUM($W21:GF21)*$P28) -> 0 | GG27: =IF(GG$4="",0,SUM($W21:GG21)*$P28) -> 0 | GH27: =IF(GH$4="",0,SUM($W21:GH21)*$P28) -> 0 | GI27: =IF(GI$4="",0,SUM($W21:GI21)*$P28) -> 0 | GJ27: =IF(GJ$4="",0,SUM($W21:GJ21)*$P28) -> 0 | GK27: =IF(GK$4="",0,SUM($W21:GK21)*$P28) -> 0 | GL27: =IF(GL$4="",0,SUM($W21:GL21)*$P28) -> 0 | GM27: =IF(GM$4="",0,SUM($W21:GM21)*$P28) -> 0 | GN27: =IF(GN$4="",0,SUM($W21:GN21)*$P28) -> 0 | GO27: =IF(GO$4="",0,SUM($W21:GO21)*$P28) -> 0 | GP27: =IF(GP$4="",0,SUM($W21:GP21)*$P28) -> 0 | GQ27: =IF(GQ$4="",0,SUM($W21:GQ21)*$P28) -> 0 | GR27: =IF(GR$4="",0,SUM($W21:GR21)*$P28) -> 0 | GS27: =IF(GS$4="",0,SUM($W21:GS21)*$P28) -> 0 | GT27: =IF(GT$4="",0,SUM($W21:GT21)*$P28) -> 0 | GU27: =IF(GU$4="",0,SUM($W21:GU21)*$P28) -> 0 | GV27: =IF(GV$4="",0,SUM($W21:GV21)*$P28) -> 0
B28: =ROW() -> 28 | H28: Поступление лимитированного кредита | I28: размер финпотока с 1ед. оборуд-ия | M28: руб./мес. | O28: *
B29: =ROW() -> 29
B30: 67 | H30: Расчет источников финансирования оборуд-я
B31: =ROW() -> 31
B32: =ROW() -> 32 | H32: Оплата собственными средствами | P32: CF(+) | U32: =SUM(INDIRECT(ADDRESS($B32,X$2)&":"&ADDRESS($B32,MAX($2:$2)))) -> 0 | X32: =IF(X$4="",0,X17*$P33) -> 0 | Y32: =IF(Y$4="",0,Y17*$P33) -> 0 | Z32: 0 | AA32: 0 | AB32: 0 | AC32: 0 | AD32: 0 | AE32: 0 | AF32: 0 | AG32: 0 | AH32: 0 | AI32: 0 | AJ32: 0 | AK32: 0 | AL32: 0 | AM32: 0 | AN32: 0 | AO32: 0 | AP32: 0 | AQ32: 0 | AR32: 0 | AS32: 0 | AT32: 0 | AU32: 0 | AV32: 0 | AW32: 0 | AX32: 0 | AY32: 0 | AZ32: 0 | BA32: 0 | BB32: 0 | BC32: =IF(BC$4="",0,BC17*$P33) -> 0 | BD32: 0 | BE32: 0 | BF32: 0 | BG32: 0 | BH32: 0 | BI32: 0 | BJ32: 0 | BK32: 0 | BL32: 0 | BM32: 0 | BN32: 0 | BO32: 0 | BP32: 0 | BQ32: 0 | BR32: 0 | BS32: 0 | BT32: 0 | BU32: 0 | BV32: 0 | BW32: 0 | BX32: 0 | BY32: 0 | BZ32: 0 | CA32: 0 | CB32: 0 | CC32: 0 | CD32: 0 | CE32: 0 | CF32: 0 | CG32: 0 | CH32: 0 | CI32: 0 | CJ32: 0 | CK32: 0 | CL32: 0 | CM32: 0 | CN32: 0 | CO32: 0 | CP32: 0 | CQ32: 0 | CR32: 0 | CS32: 0 | CT32: 0 | CU32: 0 | CV32: 0 | CW32: 0 | CX32: 0 | CY32: 0 | CZ32: 0 | DA32: 0 | DB32: 0 | DC32: 0 | DD32: 0 | DE32: 0 | DF32: 0 | DG32: 0 | DH32: 0 | DI32: 0 | DJ32: 0 | DK32: 0 | DL32: 0 | DM32: 0 | DN32: 0 | DO32: =IF(DO$4="",0,DO17*$P33) -> 0 | DP32: 0 | DQ32: 0 | DR32: 0 | DS32: 0 | DT32: 0 | DU32: 0 | DV32: 0 | DW32: 0 | DX32: 0 | DY32: 0 | DZ32: 0 | EA32: 0 | EB32: 0 | EC32: 0 | ED32: 0 | EE32: 0 | EF32: 0 | EG32: 0 | EH32: 0 | EI32: 0 | EJ32: 0 | EK32: 0 | EL32: 0 | EM32: 0 | EN32: 0 | EO32: 0 | EP32: 0 | EQ32: 0 | ER32: 0 | ES32: 0 | ET32: 0 | EU32: 0 | EV32: 0 | EW32: 0 | EX32: 0 | EY32: 0 | EZ32: 0 | FA32: 0 | FB32: 0 | FC32: 0 | FD32: 0 | FE32: 0 | FF32: 0 | FG32: 0 | FH32: 0 | FI32: 0 | FJ32: 0 | FK32: 0 | FL32: 0 | FM32: 0 | FN32: 0 | FO32: 0 | FP32: 0 | FQ32: 0 | FR32: 0 | FS32: 0 | FT32: 0 | FU32: 0 | FV32: 0 | FW32: 0 | FX32: 0 | FY32: 0 | FZ32: 0 | GA32: =IF(GA$4="",0,GA17*$P33) -> 0 | GB32: 0 | GC32: 0 | GD32: 0 | GE32: 0 | GF32: 0 | GG32: 0 | GH32: 0 | GI32: 0 | GJ32: 0 | GK32: 0 | GL32: 0 | GM32: 0 | GN32: 0 | GO32: 0 | GP32: 0 | GQ32: 0 | GR32: 0 | GS32: 0 | GT32: 0 | GU32: 0 | GV32: 0
B33: =ROW() -> 33 | H33: Поступление лимитированного кредита | I33: Доля собственных средств | M33: % | O33: *
B34: =ROW() -> 34
B35: =ROW() -> 35 | H35: Поступление ДС по лизингу | P35: CF(+) | U35: =SUM(INDIRECT(ADDRESS($B35,X$2)&":"&ADDRESS($B35,MAX($2:$2)))) -> 0 | X35: =IF(X$4="",0,X17-X32) -> 0 | Y35: =IF(Y$4="",0,Y17-Y32) -> 0 | Z35: 0 | AA35: 0 | AB35: 0 | AC35: 0 | AD35: 0 | AE35: 0 | AF35: 0 | AG35: 0 | AH35: 0 | AI35: 0 | AJ35: 0 | AK35: 0 | AL35: 0 | AM35: 0 | AN35: 0 | AO35: 0 | AP35: 0 | AQ35: 0 | AR35: 0 | AS35: 0 | AT35: 0 | AU35: 0 | AV35: 0 | AW35: 0 | AX35: 0 | AY35: 0 | AZ35: 0 | BA35: 0 | BB35: 0 | BC35: =IF(BC$4="",0,BC17-BC32) -> 0 | BD35: 0 | BE35: 0 | BF35: 0 | BG35: 0 | BH35: 0 | BI35: 0 | BJ35: 0 | BK35: 0 | BL35: 0 | BM35: 0 | BN35: 0 | BO35: 0 | BP35: 0 | BQ35: 0 | BR35: 0 | BS35: 0 | BT35: 0 | BU35: 0 | BV35: 0 | BW35: 0 | BX35: 0 | BY35: 0 | BZ35: 0 | CA35: 0 | CB35: 0 | CC35: 0 | CD35: 0 | CE35: 0 | CF35: 0 | CG35: 0 | CH35: 0 | CI35: 0 | CJ35: 0 | CK35: 0 | CL35: 0 | CM35: 0 | CN35: 0 | CO35: 0 | CP35: 0 | CQ35: 0 | CR35: 0 | CS35: 0 | CT35: 0 | CU35: 0 | CV35: 0 | CW35: 0 | CX35: 0 | CY35: 0 | CZ35: 0 | DA35: 0 | DB35: 0 | DC35: 0 | DD35: 0 | DE35: 0 | DF35: 0 | DG35: 0 | DH35: 0 | DI35: 0 | DJ35: 0 | DK35: 0 | DL35: 0 | DM35: 0 | DN35: 0 | DO35: =IF(DO$4="",0,DO17-DO32) -> 0 | DP35: 0 | DQ35: 0 | DR35: 0 | DS35: 0 | DT35: 0 | DU35: 0 | DV35: 0 | DW35: 0 | DX35: 0 | DY35: 0 | DZ35: 0 | EA35: 0 | EB35: 0 | EC35: 0 | ED35: 0 | EE35: 0 | EF35: 0 | EG35: 0 | EH35: 0 | EI35: 0 | EJ35: 0 | EK35: 0 | EL35: 0 | EM35: 0 | EN35: 0 | EO35: 0 | EP35: 0 | EQ35: 0 | ER35: 0 | ES35: 0 | ET35: 0 | EU35: 0 | EV35: 0 | EW35: 0 | EX35: 0 | EY35: 0 | EZ35: 0 | FA35: 0 | FB35: 0 | FC35: 0 | FD35: 0 | FE35: 0 | FF35: 0 | FG35: 0 | FH35: 0 | FI35: 0 | FJ35: 0 | FK35: 0 | FL35: 0 | FM35: 0 | FN35: 0 | FO35: 0 | FP35: 0 | FQ35: 0 | FR35: 0 | FS35: 0 | FT35: 0 | FU35: 0 | FV35: 0 | FW35: 0 | FX35: 0 | FY35: 0 | FZ35: 0 | GA35: =IF(GA$4="",0,GA17-GA32) -> 0 | GB35: 0 | GC35: 0 | GD35: 0 | GE35: 0 | GF35: 0 | GG35: 0 | GH35: 0 | GI35: 0 | GJ35: 0 | GK35: 0 | GL35: 0 | GM35: 0 | GN35: 0 | GO35: 0 | GP35: 0 | GQ35: 0 | GR35: 0 | GS35: 0 | GT35: 0 | GU35: 0 | GV35: 0
B36: =ROW() -> 36 | X36: =IF(X$4="",0,IF(X$8>$P40,0,SUMPRODUCT($W40:X40,$W41:X41))) -> 0 | Y36: =IF(Y$4="",0,IF(Y$8>$P40,0,SUMPRODUCT($W40:Y40,$W41:Y41))) -> 0 | Z36: =IF(Z$4="",0,IF(Z$8>$P40,0,SUMPRODUCT($W40:Z40,$W41:Z41))) -> 0 | AA36: =IF(AA$4="",0,IF(AA$8>$P40,0,SUMPRODUCT($W40:AA40,$W41:AA41))) -> 0 | AB36: =IF(AB$4="",0,IF(AB$8>$P40,0,SUMPRODUCT($W40:AB40,$W41:AB41))) -> 0 | AC36: =IF(AC$4="",0,IF(AC$8>$P40,0,SUMPRODUCT($W40:AC40,$W41:AC41))) -> 0 | AD36: =IF(AD$4="",0,IF(AD$8>$P40,0,SUMPRODUCT($W40:AD40,$W41:AD41))) -> 0 | AE36: =IF(AE$4="",0,IF(AE$8>$P40,0,SUMPRODUCT($W40:AE40,$W41:AE41))) -> 0 | AF36: =IF(AF$4="",0,IF(AF$8>$P40,0,SUMPRODUCT($W40:AF40,$W41:AF41))) -> 0 | AG36: =IF(AG$4="",0,IF(AG$8>$P40,0,SUMPRODUCT($W40:AG40,$W41:AG41))) -> 0 | AH36: =IF(AH$4="",0,IF(AH$8>$P40,0,SUMPRODUCT($W40:AH40,$W41:AH41))) -> 0 | AI36: =IF(AI$4="",0,IF(AI$8>$P40,0,SUMPRODUCT($W40:AI40,$W41:AI41))) -> 0 | AJ36: =IF(AJ$4="",0,IF(AJ$8>$P40,0,SUMPRODUCT($W40:AJ40,$W41:AJ41))) -> 0 | AK36: =IF(AK$4="",0,IF(AK$8>$P40,0,SUMPRODUCT($W40:AK40,$W41:AK41))) -> 0 | AL36: =IF(AL$4="",0,IF(AL$8>$P40,0,SUMPRODUCT($W40:AL40,$W41:AL41))) -> 0 | AM36: =IF(AM$4="",0,IF(AM$8>$P40,0,SUMPRODUCT($W40:AM40,$W41:AM41))) -> 0 | AN36: =IF(AN$4="",0,IF(AN$8>$P40,0,SUMPRODUCT($W40:AN40,$W41:AN41))) -> 0 | AO36: =IF(AO$4="",0,IF(AO$8>$P40,0,SUMPRODUCT($W40:AO40,$W41:AO41))) -> 0 | AP36: =IF(AP$4="",0,IF(AP$8>$P40,0,SUMPRODUCT($W40:AP40,$W41:AP41))) -> 0 | AQ36: =IF(AQ$4="",0,IF(AQ$8>$P40,0,SUMPRODUCT($W40:AQ40,$W41:AQ41))) -> 0 | AR36: =IF(AR$4="",0,IF(AR$8>$P40,0,SUMPRODUCT($W40:AR40,$W41:AR41))) -> 0 | AS36: =IF(AS$4="",0,IF(AS$8>$P40,0,SUMPRODUCT($W40:AS40,$W41:AS41))) -> 0 | AT36: =IF(AT$4="",0,IF(AT$8>$P40,0,SUMPRODUCT($W40:AT40,$W41:AT41))) -> 0 | AU36: =IF(AU$4="",0,IF(AU$8>$P40,0,SUMPRODUCT($W40:AU40,$W41:AU41))) -> 0 | AV36: =IF(AV$4="",0,IF(AV$8>$P40,0,SUMPRODUCT($W40:AV40,$W41:AV41))) -> 0 | AW36: =IF(AW$4="",0,IF(AW$8>$P40,0,SUMPRODUCT($W40:AW40,$W41:AW41))) -> 0 | AX36: =IF(AX$4="",0,IF(AX$8>$P40,0,SUMPRODUCT($W40:AX40,$W41:AX41))) -> 0 | AY36: =IF(AY$4="",0,IF(AY$8>$P40,0,SUMPRODUCT($W40:AY40,$W41:AY41))) -> 0 | AZ36: =IF(AZ$4="",0,IF(AZ$8>$P40,0,SUMPRODUCT($W40:AZ40,$W41:AZ41))) -> 0 | BA36: =IF(BA$4="",0,IF(BA$8>$P40,0,SUMPRODUCT($W40:BA40,$W41:BA41))) -> 0 | BB36: =IF(BB$4="",0,IF(BB$8>$P40,0,SUMPRODUCT($W40:BB40,$W41:BB41))) -> 0 | BC36: =IF(BC$4="",0,IF(BC$8>$P40,0,SUMPRODUCT($W40:BC40,$W41:BC41))) -> 0 | BD36: =IF(BD$4="",0,IF(BD$8>$P40,0,SUMPRODUCT($W40:BD40,$W41:BD41))) -> 0 | BE36: =IF(BE$4="",0,IF(BE$8>$P40,0,SUMPRODUCT($W40:BE40,$W41:BE41))) -> 0 | BF36: =IF(BF$4="",0,IF(BF$8>$P40,0,SUMPRODUCT($W40:BF40,$W41:BF41))) -> 0 | BG36: =IF(BG$4="",0,IF(BG$8>$P40,0,SUMPRODUCT($W40:BG40,$W41:BG41))) -> 0 | BH36: =IF(BH$4="",0,IF(BH$8>$P40,0,SUMPRODUCT($W40:BH40,$W41:BH41))) -> 0 | BI36: =IF(BI$4="",0,IF(BI$8>$P40,0,SUMPRODUCT($W40:BI40,$W41:BI41))) -> 0 | BJ36: =IF(BJ$4="",0,IF(BJ$8>$P40,0,SUMPRODUCT($W40:BJ40,$W41:BJ41))) -> 0 | BK36: =IF(BK$4="",0,IF(BK$8>$P40,0,SUMPRODUCT($W40:BK40,$W41:BK41))) -> 0 | BL36: =IF(BL$4="",0,IF(BL$8>$P40,0,SUMPRODUCT($W40:BL40,$W41:BL41))) -> 0 | BM36: =IF(BM$4="",0,IF(BM$8>$P40,0,SUMPRODUCT($W40:BM40,$W41:BM41))) -> 0 | BN36: =IF(BN$4="",0,IF(BN$8>$P40,0,SUMPRODUCT($W40:BN40,$W41:BN41))) -> 0 | BO36: =IF(BO$4="",0,IF(BO$8>$P40,0,SUMPRODUCT($W40:BO40,$W41:BO41))) -> 0 | BP36: =IF(BP$4="",0,IF(BP$8>$P40,0,SUMPRODUCT($W40:BP40,$W41:BP41))) -> 0 | BQ36: =IF(BQ$4="",0,IF(BQ$8>$P40,0,SUMPRODUCT($W40:BQ40,$W41:BQ41))) -> 0 | BR36: =IF(BR$4="",0,IF(BR$8>$P40,0,SUMPRODUCT($W40:BR40,$W41:BR41))) -> 0 | BS36: =IF(BS$4="",0,IF(BS$8>$P40,0,SUMPRODUCT($W40:BS40,$W41:BS41))) -> 0 | BT36: =IF(BT$4="",0,IF(BT$8>$P40,0,SUMPRODUCT($W40:BT40,$W41:BT41))) -> 0 | BU36: =IF(BU$4="",0,IF(BU$8>$P40,0,SUMPRODUCT($W40:BU40,$W41:BU41))) -> 0 | BV36: =IF(BV$4="",0,IF(BV$8>$P40,0,SUMPRODUCT($W40:BV40,$W41:BV41))) -> 0 | BW36: =IF(BW$4="",0,IF(BW$8>$P40,0,SUMPRODUCT($W40:BW40,$W41:BW41))) -> 0 | BX36: =IF(BX$4="",0,IF(BX$8>$P40,0,SUMPRODUCT($W40:BX40,$W41:BX41))) -> 0 | BY36: =IF(BY$4="",0,IF(BY$8>$P40,0,SUMPRODUCT($W40:BY40,$W41:BY41))) -> 0 | BZ36: =IF(BZ$4="",0,IF(BZ$8>$P40,0,SUMPRODUCT($W40:BZ40,$W41:BZ41))) -> 0 | CA36: =IF(CA$4="",0,IF(CA$8>$P40,0,SUMPRODUCT($W40:CA40,$W41:CA41))) -> 0 | CB36: =IF(CB$4="",0,IF(CB$8>$P40,0,SUMPRODUCT($W40:CB40,$W41:CB41))) -> 0 | CC36: =IF(CC$4="",0,IF(CC$8>$P40,0,SUMPRODUCT($W40:CC40,$W41:CC41))) -> 0 | CD36: =IF(CD$4="",0,IF(CD$8>$P40,0,SUMPRODUCT($W40:CD40,$W41:CD41))) -> 0 | CE36: =IF(CE$4="",0,IF(CE$8>$P40,0,SUMPRODUCT($W40:CE40,$W41:CE41))) -> 0 | CF36: =IF(CF$4="",0,IF(CF$8>$P40,0,SUMPRODUCT($W40:CF40,$W41:CF41))) -> 0 | CG36: =IF(CG$4="",0,IF(CG$8>$P40,0,SUMPRODUCT($W40:CG40,$W41:CG41))) -> 0 | CH36: =IF(CH$4="",0,IF(CH$8>$P40,0,SUMPRODUCT($W40:CH40,$W41:CH41))) -> 0 | CI36: =IF(CI$4="",0,IF(CI$8>$P40,0,SUMPRODUCT($W40:CI40,$W41:CI41))) -> 0 | CJ36: =IF(CJ$4="",0,IF(CJ$8>$P40,0,SUMPRODUCT($W40:CJ40,$W41:CJ41))) -> 0 | CK36: =IF(CK$4="",0,IF(CK$8>$P40,0,SUMPRODUCT($W40:CK40,$W41:CK41))) -> 0 | CL36: =IF(CL$4="",0,IF(CL$8>$P40,0,SUMPRODUCT($W40:CL40,$W41:CL41))) -> 0 | CM36: =IF(CM$4="",0,IF(CM$8>$P40,0,SUMPRODUCT($W40:CM40,$W41:CM41))) -> 0 | CN36: =IF(CN$4="",0,IF(CN$8>$P40,0,SUMPRODUCT($W40:CN40,$W41:CN41))) -> 0 | CO36: =IF(CO$4="",0,IF(CO$8>$P40,0,SUMPRODUCT($W40:CO40,$W41:CO41))) -> 0 | CP36: =IF(CP$4="",0,IF(CP$8>$P40,0,SUMPRODUCT($W40:CP40,$W41:CP41))) -> 0 | CQ36: =IF(CQ$4="",0,IF(CQ$8>$P40,0,SUMPRODUCT($W40:CQ40,$W41:CQ41))) -> 0 | CR36: =IF(CR$4="",0,IF(CR$8>$P40,0,SUMPRODUCT($W40:CR40,$W41:CR41))) -> 0 | CS36: =IF(CS$4="",0,IF(CS$8>$P40,0,SUMPRODUCT($W40:CS40,$W41:CS41))) -> 0 | CT36: =IF(CT$4="",0,IF(CT$8>$P40,0,SUMPRODUCT($W40:CT40,$W41:CT41))) -> 0 | CU36: =IF(CU$4="",0,IF(CU$8>$P40,0,SUMPRODUCT($W40:CU40,$W41:CU41))) -> 0 | CV36: =IF(CV$4="",0,IF(CV$8>$P40,0,SUMPRODUCT($W40:CV40,$W41:CV41))) -> 0 | CW36: =IF(CW$4="",0,IF(CW$8>$P40,0,SUMPRODUCT($W40:CW40,$W41:CW41))) -> 0 | CX36: =IF(CX$4="",0,IF(CX$8>$P40,0,SUMPRODUCT($W40:CX40,$W41:CX41))) -> 0 | CY36: =IF(CY$4="",0,IF(CY$8>$P40,0,SUMPRODUCT($W40:CY40,$W41:CY41))) -> 0 | CZ36: =IF(CZ$4="",0,IF(CZ$8>$P40,0,SUMPRODUCT($W40:CZ40,$W41:CZ41))) -> 0 | DA36: =IF(DA$4="",0,IF(DA$8>$P40,0,SUMPRODUCT($W40:DA40,$W41:DA41))) -> 0 | DB36: =IF(DB$4="",0,IF(DB$8>$P40,0,SUMPRODUCT($W40:DB40,$W41:DB41))) -> 0 | DC36: =IF(DC$4="",0,IF(DC$8>$P40,0,SUMPRODUCT($W40:DC40,$W41:DC41))) -> 0 | DD36: =IF(DD$4="",0,IF(DD$8>$P40,0,SUMPRODUCT($W40:DD40,$W41:DD41))) -> 0 | DE36: =IF(DE$4="",0,IF(DE$8>$P40,0,SUMPRODUCT($W40:DE40,$W41:DE41))) -> 0 | DF36: =IF(DF$4="",0,IF(DF$8>$P40,0,SUMPRODUCT($W40:DF40,$W41:DF41))) -> 0 | DG36: =IF(DG$4="",0,IF(DG$8>$P40,0,SUMPRODUCT($W40:DG40,$W41:DG41))) -> 0 | DH36: =IF(DH$4="",0,IF(DH$8>$P40,0,SUMPRODUCT($W40:DH40,$W41:DH41))) -> 0 | DI36: =IF(DI$4="",0,IF(DI$8>$P40,0,SUMPRODUCT($W40:DI40,$W41:DI41))) -> 0 | DJ36: =IF(DJ$4="",0,IF(DJ$8>$P40,0,SUMPRODUCT($W40:DJ40,$W41:DJ41))) -> 0 | DK36: =IF(DK$4="",0,IF(DK$8>$P40,0,SUMPRODUCT($W40:DK40,$W41:DK41))) -> 0 | DL36: =IF(DL$4="",0,IF(DL$8>$P40,0,SUMPRODUCT($W40:DL40,$W41:DL41))) -> 0 | DM36: =IF(DM$4="",0,IF(DM$8>$P40,0,SUMPRODUCT($W40:DM40,$W41:DM41))) -> 0 | DN36: =IF(DN$4="",0,IF(DN$8>$P40,0,SUMPRODUCT($W40:DN40,$W41:DN41))) -> 0 | DO36: =IF(DO$4="",0,IF(DO$8>$P40,0,SUMPRODUCT($W40:DO40,$W41:DO41))) -> 0 | DP36: =IF(DP$4="",0,IF(DP$8>$P40,0,SUMPRODUCT($W40:DP40,$W41:DP41))) -> 0 | DQ36: =IF(DQ$4="",0,IF(DQ$8>$P40,0,SUMPRODUCT($W40:DQ40,$W41:DQ41))) -> 0 | DR36: =IF(DR$4="",0,IF(DR$8>$P40,0,SUMPRODUCT($W40:DR40,$W41:DR41))) -> 0 | DS36: =IF(DS$4="",0,IF(DS$8>$P40,0,SUMPRODUCT($W40:DS40,$W41:DS41))) -> 0 | DT36: =IF(DT$4="",0,IF(DT$8>$P40,0,SUMPRODUCT($W40:DT40,$W41:DT41))) -> 0 | DU36: =IF(DU$4="",0,IF(DU$8>$P40,0,SUMPRODUCT($W40:DU40,$W41:DU41))) -> 0 | DV36: =IF(DV$4="",0,IF(DV$8>$P40,0,SUMPRODUCT($W40:DV40,$W41:DV41))) -> 0 | DW36: =IF(DW$4="",0,IF(DW$8>$P40,0,SUMPRODUCT($W40:DW40,$W41:DW41))) -> 0 | DX36: =IF(DX$4="",0,IF(DX$8>$P40,0,SUMPRODUCT($W40:DX40,$W41:DX41))) -> 0 | DY36: =IF(DY$4="",0,IF(DY$8>$P40,0,SUMPRODUCT($W40:DY40,$W41:DY41))) -> 0 | DZ36: =IF(DZ$4="",0,IF(DZ$8>$P40,0,SUMPRODUCT($W40:DZ40,$W41:DZ41))) -> 0 | EA36: =IF(EA$4="",0,IF(EA$8>$P40,0,SUMPRODUCT($W40:EA40,$W41:EA41))) -> 0 | EB36: =IF(EB$4="",0,IF(EB$8>$P40,0,SUMPRODUCT($W40:EB40,$W41:EB41))) -> 0 | EC36: =IF(EC$4="",0,IF(EC$8>$P40,0,SUMPRODUCT($W40:EC40,$W41:EC41))) -> 0 | ED36: =IF(ED$4="",0,IF(ED$8>$P40,0,SUMPRODUCT($W40:ED40,$W41:ED41))) -> 0 | EE36: =IF(EE$4="",0,IF(EE$8>$P40,0,SUMPRODUCT($W40:EE40,$W41:EE41))) -> 0 | EF36: =IF(EF$4="",0,IF(EF$8>$P40,0,SUMPRODUCT($W40:EF40,$W41:EF41))) -> 0 | EG36: =IF(EG$4="",0,IF(EG$8>$P40,0,SUMPRODUCT($W40:EG40,$W41:EG41))) -> 0 | EH36: =IF(EH$4="",0,IF(EH$8>$P40,0,SUMPRODUCT($W40:EH40,$W41:EH41))) -> 0 | EI36: =IF(EI$4="",0,IF(EI$8>$P40,0,SUMPRODUCT($W40:EI40,$W41:EI41))) -> 0 | EJ36: =IF(EJ$4="",0,IF(EJ$8>$P40,0,SUMPRODUCT($W40:EJ40,$W41:EJ41))) -> 0 | EK36: =IF(EK$4="",0,IF(EK$8>$P40,0,SUMPRODUCT($W40:EK40,$W41:EK41))) -> 0 | EL36: =IF(EL$4="",0,IF(EL$8>$P40,0,SUMPRODUCT($W40:EL40,$W41:EL41))) -> 0 | EM36: =IF(EM$4="",0,IF(EM$8>$P40,0,SUMPRODUCT($W40:EM40,$W41:EM41))) -> 0 | EN36: =IF(EN$4="",0,IF(EN$8>$P40,0,SUMPRODUCT($W40:EN40,$W41:EN41))) -> 0 | EO36: =IF(EO$4="",0,IF(EO$8>$P40,0,SUMPRODUCT($W40:EO40,$W41:EO41))) -> 0 | EP36: =IF(EP$4="",0,IF(EP$8>$P40,0,SUMPRODUCT($W40:EP40,$W41:EP41))) -> 0 | EQ36: =IF(EQ$4="",0,IF(EQ$8>$P40,0,SUMPRODUCT($W40:EQ40,$W41:EQ41))) -> 0 | ER36: =IF(ER$4="",0,IF(ER$8>$P40,0,SUMPRODUCT($W40:ER40,$W41:ER41))) -> 0 | ES36: =IF(ES$4="",0,IF(ES$8>$P40,0,SUMPRODUCT($W40:ES40,$W41:ES41))) -> 0 | ET36: =IF(ET$4="",0,IF(ET$8>$P40,0,SUMPRODUCT($W40:ET40,$W41:ET41))) -> 0 | EU36: =IF(EU$4="",0,IF(EU$8>$P40,0,SUMPRODUCT($W40:EU40,$W41:EU41))) -> 0 | EV36: =IF(EV$4="",0,IF(EV$8>$P40,0,SUMPRODUCT($W40:EV40,$W41:EV41))) -> 0 | EW36: =IF(EW$4="",0,IF(EW$8>$P40,0,SUMPRODUCT($W40:EW40,$W41:EW41))) -> 0 | EX36: =IF(EX$4="",0,IF(EX$8>$P40,0,SUMPRODUCT($W40:EX40,$W41:EX41))) -> 0 | EY36: =IF(EY$4="",0,IF(EY$8>$P40,0,SUMPRODUCT($W40:EY40,$W41:EY41))) -> 0 | EZ36: =IF(EZ$4="",0,IF(EZ$8>$P40,0,SUMPRODUCT($W40:EZ40,$W41:EZ41))) -> 0 | FA36: =IF(FA$4="",0,IF(FA$8>$P40,0,SUMPRODUCT($W40:FA40,$W41:FA41))) -> 0 | FB36: =IF(FB$4="",0,IF(FB$8>$P40,0,SUMPRODUCT($W40:FB40,$W41:FB41))) -> 0 | FC36: =IF(FC$4="",0,IF(FC$8>$P40,0,SUMPRODUCT($W40:FC40,$W41:FC41))) -> 0 | FD36: =IF(FD$4="",0,IF(FD$8>$P40,0,SUMPRODUCT($W40:FD40,$W41:FD41))) -> 0 | FE36: =IF(FE$4="",0,IF(FE$8>$P40,0,SUMPRODUCT($W40:FE40,$W41:FE41))) -> 0 | FF36: =IF(FF$4="",0,IF(FF$8>$P40,0,SUMPRODUCT($W40:FF40,$W41:FF41))) -> 0 | FG36: =IF(FG$4="",0,IF(FG$8>$P40,0,SUMPRODUCT($W40:FG40,$W41:FG41))) -> 0 | FH36: =IF(FH$4="",0,IF(FH$8>$P40,0,SUMPRODUCT($W40:FH40,$W41:FH41))) -> 0 | FI36: =IF(FI$4="",0,IF(FI$8>$P40,0,SUMPRODUCT($W40:FI40,$W41:FI41))) -> 0 | FJ36: =IF(FJ$4="",0,IF(FJ$8>$P40,0,SUMPRODUCT($W40:FJ40,$W41:FJ41))) -> 0 | FK36: =IF(FK$4="",0,IF(FK$8>$P40,0,SUMPRODUCT($W40:FK40,$W41:FK41))) -> 0 | FL36: =IF(FL$4="",0,IF(FL$8>$P40,0,SUMPRODUCT($W40:FL40,$W41:FL41))) -> 0 | FM36: =IF(FM$4="",0,IF(FM$8>$P40,0,SUMPRODUCT($W40:FM40,$W41:FM41))) -> 0 | FN36: =IF(FN$4="",0,IF(FN$8>$P40,0,SUMPRODUCT($W40:FN40,$W41:FN41))) -> 0 | FO36: =IF(FO$4="",0,IF(FO$8>$P40,0,SUMPRODUCT($W40:FO40,$W41:FO41))) -> 0 | FP36: =IF(FP$4="",0,IF(FP$8>$P40,0,SUMPRODUCT($W40:FP40,$W41:FP41))) -> 0 | FQ36: =IF(FQ$4="",0,IF(FQ$8>$P40,0,SUMPRODUCT($W40:FQ40,$W41:FQ41))) -> 0 | FR36: =IF(FR$4="",0,IF(FR$8>$P40,0,SUMPRODUCT($W40:FR40,$W41:FR41))) -> 0 | FS36: =IF(FS$4="",0,IF(FS$8>$P40,0,SUMPRODUCT($W40:FS40,$W41:FS41))) -> 0 | FT36: =IF(FT$4="",0,IF(FT$8>$P40,0,SUMPRODUCT($W40:FT40,$W41:FT41))) -> 0 | FU36: =IF(FU$4="",0,IF(FU$8>$P40,0,SUMPRODUCT($W40:FU40,$W41:FU41))) -> 0 | FV36: =IF(FV$4="",0,IF(FV$8>$P40,0,SUMPRODUCT($W40:FV40,$W41:FV41))) -> 0 | FW36: =IF(FW$4="",0,IF(FW$8>$P40,0,SUMPRODUCT($W40:FW40,$W41:FW41))) -> 0 | FX36: =IF(FX$4="",0,IF(FX$8>$P40,0,SUMPRODUCT($W40:FX40,$W41:FX41))) -> 0 | FY36: =IF(FY$4="",0,IF(FY$8>$P40,0,SUMPRODUCT($W40:FY40,$W41:FY41))) -> 0 | FZ36: =IF(FZ$4="",0,IF(FZ$8>$P40,0,SUMPRODUCT($W40:FZ40,$W41:FZ41))) -> 0 | GA36: =IF(GA$4="",0,IF(GA$8>$P40,0,SUMPRODUCT($W40:GA40,$W41:GA41))) -> 0 | GB36: =IF(GB$4="",0,IF(GB$8>$P40,0,SUMPRODUCT($W40:GB40,$W41:GB41))) -> 0 | GC36: =IF(GC$4="",0,IF(GC$8>$P40,0,SUMPRODUCT($W40:GC40,$W41:GC41))) -> 0 | GD36: =IF(GD$4="",0,IF(GD$8>$P40,0,SUMPRODUCT($W40:GD40,$W41:GD41))) -> 0 | GE36: =IF(GE$4="",0,IF(GE$8>$P40,0,SUMPRODUCT($W40:GE40,$W41:GE41))) -> 0 | GF36: =IF(GF$4="",0,IF(GF$8>$P40,0,SUMPRODUCT($W40:GF40,$W41:GF41))) -> 0 | GG36: =IF(GG$4="",0,IF(GG$8>$P40,0,SUMPRODUCT($W40:GG40,$W41:GG41))) -> 0 | GH36: =IF(GH$4="",0,IF(GH$8>$P40,0,SUMPRODUCT($W40:GH40,$W41:GH41))) -> 0 | GI36: =IF(GI$4="",0,IF(GI$8>$P40,0,SUMPRODUCT($W40:GI40,$W41:GI41))) -> 0 | GJ36: =IF(GJ$4="",0,IF(GJ$8>$P40,0,SUMPRODUCT($W40:GJ40,$W41:GJ41))) -> 0 | GK36: =IF(GK$4="",0,IF(GK$8>$P40,0,SUMPRODUCT($W40:GK40,$W41:GK41))) -> 0 | GL36: =IF(GL$4="",0,IF(GL$8>$P40,0,SUMPRODUCT($W40:GL40,$W41:GL41))) -> 0 | GM36: =IF(GM$4="",0,IF(GM$8>$P40,0,SUMPRODUCT($W40:GM40,$W41:GM41))) -> 0 | GN36: =IF(GN$4="",0,IF(GN$8>$P40,0,SUMPRODUCT($W40:GN40,$W41:GN41))) -> 0 | GO36: =IF(GO$4="",0,IF(GO$8>$P40,0,SUMPRODUCT($W40:GO40,$W41:GO41))) -> 0 | GP36: =IF(GP$4="",0,IF(GP$8>$P40,0,SUMPRODUCT($W40:GP40,$W41:GP41))) -> 0 | GQ36: =IF(GQ$4="",0,IF(GQ$8>$P40,0,SUMPRODUCT($W40:GQ40,$W41:GQ41))) -> 0 | GR36: =IF(GR$4="",0,IF(GR$8>$P40,0,SUMPRODUCT($W40:GR40,$W41:GR41))) -> 0 | GS36: =IF(GS$4="",0,IF(GS$8>$P40,0,SUMPRODUCT($W40:GS40,$W41:GS41))) -> 0 | GT36: =IF(GT$4="",0,IF(GT$8>$P40,0,SUMPRODUCT($W40:GT40,$W41:GT41))) -> 0 | GU36: =IF(GU$4="",0,IF(GU$8>$P40,0,SUMPRODUCT($W40:GU40,$W41:GU41))) -> 0 | GV36: =IF(GV$4="",0,IF(GV$8>$P40,0,SUMPRODUCT($W40:GV40,$W41:GV41))) -> 0
B37: =ROW() -> 37 | H37: Ежемесячные платежи по лизингу | M37: руб. | P37: CF(-) | U37: =SUM(INDIRECT(ADDRESS($B37,X$2)&":"&ADDRESS($B37,MAX($2:$2)))) -> 0 | X37: =IF(X$4="",0,X38+X39) -> 0 | Y37: 0 | Z37: 0 | AA37: 0 | AB37: 0 | AC37: 0 | AD37: 0 | AE37: 0 | AF37: 0 | AG37: 0 | AH37: 0 | AI37: 0 | AJ37: 0 | AK37: 0 | AL37: 0 | AM37: 0 | AN37: 0 | AO37: 0 | AP37: 0 | AQ37: 0 | AR37: 0 | AS37: 0 | AT37: 0 | AU37: 0 | AV37: 0 | AW37: 0 | AX37: 0 | AY37: 0 | AZ37: 0 | BA37: 0 | BB37: 0 | BC37: 0 | BD37: 0 | BE37: 0 | BF37: 0 | BG37: 0 | BH37: 0 | BI37: 0 | BJ37: 0 | BK37: 0 | BL37: 0 | BM37: 0 | BN37: 0 | BO37: 0 | BP37: 0 | BQ37: 0 | BR37: 0 | BS37: 0 | BT37: 0 | BU37: 0 | BV37: 0 | BW37: 0 | BX37: 0 | BY37: 0 | BZ37: 0 | CA37: 0 | CB37: 0 | CC37: 0 | CD37: 0 | CE37: 0 | CF37: 0 | CG37: 0 | CH37: 0 | CI37: 0 | CJ37: =IF(CJ$4="",0,CJ38+CJ39) -> 0 | CK37: 0 | CL37: 0 | CM37: 0 | CN37: 0 | CO37: 0 | CP37: 0 | CQ37: 0 | CR37: 0 | CS37: 0 | CT37: 0 | CU37: 0 | CV37: 0 | CW37: 0 | CX37: 0 | CY37: 0 | CZ37: 0 | DA37: 0 | DB37: 0 | DC37: 0 | DD37: 0 | DE37: 0 | DF37: 0 | DG37: 0 | DH37: 0 | DI37: 0 | DJ37: 0 | DK37: 0 | DL37: 0 | DM37: 0 | DN37: 0 | DO37: 0 | DP37: 0 | DQ37: 0 | DR37: 0 | DS37: 0 | DT37: 0 | DU37: 0 | DV37: 0 | DW37: 0 | DX37: 0 | DY37: 0 | DZ37: 0 | EA37: 0 | EB37: 0 | EC37: 0 | ED37: 0 | EE37: 0 | EF37: 0 | EG37: 0 | EH37: 0 | EI37: 0 | EJ37: 0 | EK37: 0 | EL37: 0 | EM37: 0 | EN37: 0 | EO37: 0 | EP37: 0 | EQ37: 0 | ER37: 0 | ES37: 0 | ET37: 0 | EU37: 0 | EV37: =IF(EV$4="",0,EV38+EV39) -> 0 | EW37: 0 | EX37: 0 | EY37: 0 | EZ37: 0 | FA37: 0 | FB37: 0 | FC37: 0 | FD37: 0 | FE37: 0 | FF37: 0 | FG37: 0 | FH37: 0 | FI37: 0 | FJ37: 0 | FK37: 0 | FL37: 0 | FM37: 0 | FN37: 0 | FO37: 0 | FP37: 0 | FQ37: 0 | FR37: 0 | FS37: 0 | FT37: 0 | FU37: 0 | FV37: 0 | FW37: 0 | FX37: 0 | FY37: 0 | FZ37: 0 | GA37: 0 | GB37: 0 | GC37: 0 | GD37: 0 | GE37: 0 | GF37: 0 | GG37: 0 | GH37: 0 | GI37: 0 | GJ37: 0 | GK37: 0 | GL37: 0 | GM37: 0 | GN37: 0 | GO37: 0 | GP37: 0 | GQ37: 0 | GR37: 0 | GS37: 0 | GT37: 0 | GU37: 0 | GV37: =IF(GV$4="",0,GV38+GV39) -> 0
B38: =ROW() -> 38 | H38: =H37 -> Ежемесячные платежи по лизингу | I38: Возврат тела кредита | M38: руб. | U38: =SUM(INDIRECT(ADDRESS($B38,X$2)&":"&ADDRESS($B38,MAX($2:$2)))) -> 0 | X38: =IF(X$4="",0,IF(X$8<=IF($P43>=$P40,0,$P43),0,IF(X$8=$P40,SUM($W35:X35)*$P42,0)+IF(X$8>$P40,0,X36-X39+SUM($W35:X35)*$P42*$P41/12))) -> 0 | Y38: =IF(Y$4="",0,IF(Y$8<=IF($P43>=$P40,0,$P43),0,IF(Y$8=$P40,SUM($W35:Y35)*$P42,0)+IF(Y$8>$P40,0,Y36-Y39+SUM($W35:Y35)*$P42*$P41/12))) -> 0 | Z38: =IF(Z$4="",0,IF(Z$8<=IF($P43>=$P40,0,$P43),0,IF(Z$8=$P40,SUM($W35:Z35)*$P42,0)+IF(Z$8>$P40,0,Z36-Z39+SUM($W35:Z35)*$P42*$P41/12))) -> 0 | AA38: =IF(AA$4="",0,IF(AA$8<=IF($P43>=$P40,0,$P43),0,IF(AA$8=$P40,SUM($W35:AA35)*$P42,0)+IF(AA$8>$P40,0,AA36-AA39+SUM($W35:AA35)*$P42*$P41/12))) -> 0 | AB38: =IF(AB$4="",0,IF(AB$8<=IF($P43>=$P40,0,$P43),0,IF(AB$8=$P40,SUM($W35:AB35)*$P42,0)+IF(AB$8>$P40,0,AB36-AB39+SUM($W35:AB35)*$P42*$P41/12))) -> 0 | AC38: =IF(AC$4="",0,IF(AC$8<=IF($P43>=$P40,0,$P43),0,IF(AC$8=$P40,SUM($W35:AC35)*$P42,0)+IF(AC$8>$P40,0,AC36-AC39+SUM($W35:AC35)*$P42*$P41/12))) -> 0 | AD38: =IF(AD$4="",0,IF(AD$8<=IF($P43>=$P40,0,$P43),0,IF(AD$8=$P40,SUM($W35:AD35)*$P42,0)+IF(AD$8>$P40,0,AD36-AD39+SUM($W35:AD35)*$P42*$P41/12))) -> 0 | AE38: =IF(AE$4="",0,IF(AE$8<=IF($P43>=$P40,0,$P43),0,IF(AE$8=$P40,SUM($W35:AE35)*$P42,0)+IF(AE$8>$P40,0,AE36-AE39+SUM($W35:AE35)*$P42*$P41/12))) -> 0 | AF38: =IF(AF$4="",0,IF(AF$8<=IF($P43>=$P40,0,$P43),0,IF(AF$8=$P40,SUM($W35:AF35)*$P42,0)+IF(AF$8>$P40,0,AF36-AF39+SUM($W35:AF35)*$P42*$P41/12))) -> 0 | AG38: =IF(AG$4="",0,IF(AG$8<=IF($P43>=$P40,0,$P43),0,IF(AG$8=$P40,SUM($W35:AG35)*$P42,0)+IF(AG$8>$P40,0,AG36-AG39+SUM($W35:AG35)*$P42*$P41/12))) -> 0 | AH38: =IF(AH$4="",0,IF(AH$8<=IF($P43>=$P40,0,$P43),0,IF(AH$8=$P40,SUM($W35:AH35)*$P42,0)+IF(AH$8>$P40,0,AH36-AH39+SUM($W35:AH35)*$P42*$P41/12))) -> 0 | AI38: =IF(AI$4="",0,IF(AI$8<=IF($P43>=$P40,0,$P43),0,IF(AI$8=$P40,SUM($W35:AI35)*$P42,0)+IF(AI$8>$P40,0,AI36-AI39+SUM($W35:AI35)*$P42*$P41/12))) -> 0 | AJ38: =IF(AJ$4="",0,IF(AJ$8<=IF($P43>=$P40,0,$P43),0,IF(AJ$8=$P40,SUM($W35:AJ35)*$P42,0)+IF(AJ$8>$P40,0,AJ36-AJ39+SUM($W35:AJ35)*$P42*$P41/12))) -> 0 | AK38: =IF(AK$4="",0,IF(AK$8<=IF($P43>=$P40,0,$P43),0,IF(AK$8=$P40,SUM($W35:AK35)*$P42,0)+IF(AK$8>$P40,0,AK36-AK39+SUM($W35:AK35)*$P42*$P41/12))) -> 0 | AL38: =IF(AL$4="",0,IF(AL$8<=IF($P43>=$P40,0,$P43),0,IF(AL$8=$P40,SUM($W35:AL35)*$P42,0)+IF(AL$8>$P40,0,AL36-AL39+SUM($W35:AL35)*$P42*$P41/12))) -> 0 | AM38: =IF(AM$4="",0,IF(AM$8<=IF($P43>=$P40,0,$P43),0,IF(AM$8=$P40,SUM($W35:AM35)*$P42,0)+IF(AM$8>$P40,0,AM36-AM39+SUM($W35:AM35)*$P42*$P41/12))) -> 0 | AN38: =IF(AN$4="",0,IF(AN$8<=IF($P43>=$P40,0,$P43),0,IF(AN$8=$P40,SUM($W35:AN35)*$P42,0)+IF(AN$8>$P40,0,AN36-AN39+SUM($W35:AN35)*$P42*$P41/12))) -> 0 | AO38: =IF(AO$4="",0,IF(AO$8<=IF($P43>=$P40,0,$P43),0,IF(AO$8=$P40,SUM($W35:AO35)*$P42,0)+IF(AO$8>$P40,0,AO36-AO39+SUM($W35:AO35)*$P42*$P41/12))) -> 0 | AP38: =IF(AP$4="",0,IF(AP$8<=IF($P43>=$P40,0,$P43),0,IF(AP$8=$P40,SUM($W35:AP35)*$P42,0)+IF(AP$8>$P40,0,AP36-AP39+SUM($W35:AP35)*$P42*$P41/12))) -> 0 | AQ38: =IF(AQ$4="",0,IF(AQ$8<=IF($P43>=$P40,0,$P43),0,IF(AQ$8=$P40,SUM($W35:AQ35)*$P42,0)+IF(AQ$8>$P40,0,AQ36-AQ39+SUM($W35:AQ35)*$P42*$P41/12))) -> 0 | AR38: =IF(AR$4="",0,IF(AR$8<=IF($P43>=$P40,0,$P43),0,IF(AR$8=$P40,SUM($W35:AR35)*$P42,0)+IF(AR$8>$P40,0,AR36-AR39+SUM($W35:AR35)*$P42*$P41/12))) -> 0 | AS38: =IF(AS$4="",0,IF(AS$8<=IF($P43>=$P40,0,$P43),0,IF(AS$8=$P40,SUM($W35:AS35)*$P42,0)+IF(AS$8>$P40,0,AS36-AS39+SUM($W35:AS35)*$P42*$P41/12))) -> 0 | AT38: =IF(AT$4="",0,IF(AT$8<=IF($P43>=$P40,0,$P43),0,IF(AT$8=$P40,SUM($W35:AT35)*$P42,0)+IF(AT$8>$P40,0,AT36-AT39+SUM($W35:AT35)*$P42*$P41/12))) -> 0 | AU38: =IF(AU$4="",0,IF(AU$8<=IF($P43>=$P40,0,$P43),0,IF(AU$8=$P40,SUM($W35:AU35)*$P42,0)+IF(AU$8>$P40,0,AU36-AU39+SUM($W35:AU35)*$P42*$P41/12))) -> 0 | AV38: =IF(AV$4="",0,IF(AV$8<=IF($P43>=$P40,0,$P43),0,IF(AV$8=$P40,SUM($W35:AV35)*$P42,0)+IF(AV$8>$P40,0,AV36-AV39+SUM($W35:AV35)*$P42*$P41/12))) -> 0 | AW38: =IF(AW$4="",0,IF(AW$8<=IF($P43>=$P40,0,$P43),0,IF(AW$8=$P40,SUM($W35:AW35)*$P42,0)+IF(AW$8>$P40,0,AW36-AW39+SUM($W35:AW35)*$P42*$P41/12))) -> 0 | AX38: =IF(AX$4="",0,IF(AX$8<=IF($P43>=$P40,0,$P43),0,IF(AX$8=$P40,SUM($W35:AX35)*$P42,0)+IF(AX$8>$P40,0,AX36-AX39+SUM($W35:AX35)*$P42*$P41/12))) -> 0 | AY38: =IF(AY$4="",0,IF(AY$8<=IF($P43>=$P40,0,$P43),0,IF(AY$8=$P40,SUM($W35:AY35)*$P42,0)+IF(AY$8>$P40,0,AY36-AY39+SUM($W35:AY35)*$P42*$P41/12))) -> 0 | AZ38: =IF(AZ$4="",0,IF(AZ$8<=IF($P43>=$P40,0,$P43),0,IF(AZ$8=$P40,SUM($W35:AZ35)*$P42,0)+IF(AZ$8>$P40,0,AZ36-AZ39+SUM($W35:AZ35)*$P42*$P41/12))) -> 0 | BA38: =IF(BA$4="",0,IF(BA$8<=IF($P43>=$P40,0,$P43),0,IF(BA$8=$P40,SUM($W35:BA35)*$P42,0)+IF(BA$8>$P40,0,BA36-BA39+SUM($W35:BA35)*$P42*$P41/12))) -> 0 | BB38: =IF(BB$4="",0,IF(BB$8<=IF($P43>=$P40,0,$P43),0,IF(BB$8=$P40,SUM($W35:BB35)*$P42,0)+IF(BB$8>$P40,0,BB36-BB39+SUM($W35:BB35)*$P42*$P41/12))) -> 0 | BC38: =IF(BC$4="",0,IF(BC$8<=IF($P43>=$P40,0,$P43),0,IF(BC$8=$P40,SUM($W35:BC35)*$P42,0)+IF(BC$8>$P40,0,BC36-BC39+SUM($W35:BC35)*$P42*$P41/12))) -> 0 | BD38: =IF(BD$4="",0,IF(BD$8<=IF($P43>=$P40,0,$P43),0,IF(BD$8=$P40,SUM($W35:BD35)*$P42,0)+IF(BD$8>$P40,0,BD36-BD39+SUM($W35:BD35)*$P42*$P41/12))) -> 0 | BE38: =IF(BE$4="",0,IF(BE$8<=IF($P43>=$P40,0,$P43),0,IF(BE$8=$P40,SUM($W35:BE35)*$P42,0)+IF(BE$8>$P40,0,BE36-BE39+SUM($W35:BE35)*$P42*$P41/12))) -> 0 | BF38: =IF(BF$4="",0,IF(BF$8<=IF($P43>=$P40,0,$P43),0,IF(BF$8=$P40,SUM($W35:BF35)*$P42,0)+IF(BF$8>$P40,0,BF36-BF39+SUM($W35:BF35)*$P42*$P41/12))) -> 0 | BG38: =IF(BG$4="",0,IF(BG$8<=IF($P43>=$P40,0,$P43),0,IF(BG$8=$P40,SUM($W35:BG35)*$P42,0)+IF(BG$8>$P40,0,BG36-BG39+SUM($W35:BG35)*$P42*$P41/12))) -> 0 | BH38: =IF(BH$4="",0,IF(BH$8<=IF($P43>=$P40,0,$P43),0,IF(BH$8=$P40,SUM($W35:BH35)*$P42,0)+IF(BH$8>$P40,0,BH36-BH39+SUM($W35:BH35)*$P42*$P41/12))) -> 0 | BI38: =IF(BI$4="",0,IF(BI$8<=IF($P43>=$P40,0,$P43),0,IF(BI$8=$P40,SUM($W35:BI35)*$P42,0)+IF(BI$8>$P40,0,BI36-BI39+SUM($W35:BI35)*$P42*$P41/12))) -> 0 | BJ38: =IF(BJ$4="",0,IF(BJ$8<=IF($P43>=$P40,0,$P43),0,IF(BJ$8=$P40,SUM($W35:BJ35)*$P42,0)+IF(BJ$8>$P40,0,BJ36-BJ39+SUM($W35:BJ35)*$P42*$P41/12))) -> 0 | BK38: =IF(BK$4="",0,IF(BK$8<=IF($P43>=$P40,0,$P43),0,IF(BK$8=$P40,SUM($W35:BK35)*$P42,0)+IF(BK$8>$P40,0,BK36-BK39+SUM($W35:BK35)*$P42*$P41/12))) -> 0 | BL38: =IF(BL$4="",0,IF(BL$8<=IF($P43>=$P40,0,$P43),0,IF(BL$8=$P40,SUM($W35:BL35)*$P42,0)+IF(BL$8>$P40,0,BL36-BL39+SUM($W35:BL35)*$P42*$P41/12))) -> 0 | BM38: =IF(BM$4="",0,IF(BM$8<=IF($P43>=$P40,0,$P43),0,IF(BM$8=$P40,SUM($W35:BM35)*$P42,0)+IF(BM$8>$P40,0,BM36-BM39+SUM($W35:BM35)*$P42*$P41/12))) -> 0 | BN38: =IF(BN$4="",0,IF(BN$8<=IF($P43>=$P40,0,$P43),0,IF(BN$8=$P40,SUM($W35:BN35)*$P42,0)+IF(BN$8>$P40,0,BN36-BN39+SUM($W35:BN35)*$P42*$P41/12))) -> 0 | BO38: =IF(BO$4="",0,IF(BO$8<=IF($P43>=$P40,0,$P43),0,IF(BO$8=$P40,SUM($W35:BO35)*$P42,0)+IF(BO$8>$P40,0,BO36-BO39+SUM($W35:BO35)*$P42*$P41/12))) -> 0 | BP38: =IF(BP$4="",0,IF(BP$8<=IF($P43>=$P40,0,$P43),0,IF(BP$8=$P40,SUM($W35:BP35)*$P42,0)+IF(BP$8>$P40,0,BP36-BP39+SUM($W35:BP35)*$P42*$P41/12))) -> 0 | BQ38: =IF(BQ$4="",0,IF(BQ$8<=IF($P43>=$P40,0,$P43),0,IF(BQ$8=$P40,SUM($W35:BQ35)*$P42,0)+IF(BQ$8>$P40,0,BQ36-BQ39+SUM($W35:BQ35)*$P42*$P41/12))) -> 0 | BR38: =IF(BR$4="",0,IF(BR$8<=IF($P43>=$P40,0,$P43),0,IF(BR$8=$P40,SUM($W35:BR35)*$P42,0)+IF(BR$8>$P40,0,BR36-BR39+SUM($W35:BR35)*$P42*$P41/12))) -> 0 | BS38: =IF(BS$4="",0,IF(BS$8<=IF($P43>=$P40,0,$P43),0,IF(BS$8=$P40,SUM($W35:BS35)*$P42,0)+IF(BS$8>$P40,0,BS36-BS39+SUM($W35:BS35)*$P42*$P41/12))) -> 0 | BT38: =IF(BT$4="",0,IF(BT$8<=IF($P43>=$P40,0,$P43),0,IF(BT$8=$P40,SUM($W35:BT35)*$P42,0)+IF(BT$8>$P40,0,BT36-BT39+SUM($W35:BT35)*$P42*$P41/12))) -> 0 | BU38: =IF(BU$4="",0,IF(BU$8<=IF($P43>=$P40,0,$P43),0,IF(BU$8=$P40,SUM($W35:BU35)*$P42,0)+IF(BU$8>$P40,0,BU36-BU39+SUM($W35:BU35)*$P42*$P41/12))) -> 0 | BV38: =IF(BV$4="",0,IF(BV$8<=IF($P43>=$P40,0,$P43),0,IF(BV$8=$P40,SUM($W35:BV35)*$P42,0)+IF(BV$8>$P40,0,BV36-BV39+SUM($W35:BV35)*$P42*$P41/12))) -> 0 | BW38: =IF(BW$4="",0,IF(BW$8<=IF($P43>=$P40,0,$P43),0,IF(BW$8=$P40,SUM($W35:BW35)*$P42,0)+IF(BW$8>$P40,0,BW36-BW39+SUM($W35:BW35)*$P42*$P41/12))) -> 0 | BX38: =IF(BX$4="",0,IF(BX$8<=IF($P43>=$P40,0,$P43),0,IF(BX$8=$P40,SUM($W35:BX35)*$P42,0)+IF(BX$8>$P40,0,BX36-BX39+SUM($W35:BX35)*$P42*$P41/12))) -> 0 | BY38: =IF(BY$4="",0,IF(BY$8<=IF($P43>=$P40,0,$P43),0,IF(BY$8=$P40,SUM($W35:BY35)*$P42,0)+IF(BY$8>$P40,0,BY36-BY39+SUM($W35:BY35)*$P42*$P41/12))) -> 0 | BZ38: =IF(BZ$4="",0,IF(BZ$8<=IF($P43>=$P40,0,$P43),0,IF(BZ$8=$P40,SUM($W35:BZ35)*$P42,0)+IF(BZ$8>$P40,0,BZ36-BZ39+SUM($W35:BZ35)*$P42*$P41/12))) -> 0 | CA38: =IF(CA$4="",0,IF(CA$8<=IF($P43>=$P40,0,$P43),0,IF(CA$8=$P40,SUM($W35:CA35)*$P42,0)+IF(CA$8>$P40,0,CA36-CA39+SUM($W35:CA35)*$P42*$P41/12))) -> 0 | CB38: =IF(CB$4="",0,IF(CB$8<=IF($P43>=$P40,0,$P43),0,IF(CB$8=$P40,SUM($W35:CB35)*$P42,0)+IF(CB$8>$P40,0,CB36-CB39+SUM($W35:CB35)*$P42*$P41/12))) -> 0 | CC38: =IF(CC$4="",0,IF(CC$8<=IF($P43>=$P40,0,$P43),0,IF(CC$8=$P40,SUM($W35:CC35)*$P42,0)+IF(CC$8>$P40,0,CC36-CC39+SUM($W35:CC35)*$P42*$P41/12))) -> 0 | CD38: =IF(CD$4="",0,IF(CD$8<=IF($P43>=$P40,0,$P43),0,IF(CD$8=$P40,SUM($W35:CD35)*$P42,0)+IF(CD$8>$P40,0,CD36-CD39+SUM($W35:CD35)*$P42*$P41/12))) -> 0 | CE38: =IF(CE$4="",0,IF(CE$8<=IF($P43>=$P40,0,$P43),0,IF(CE$8=$P40,SUM($W35:CE35)*$P42,0)+IF(CE$8>$P40,0,CE36-CE39+SUM($W35:CE35)*$P42*$P41/12))) -> 0 | CF38: =IF(CF$4="",0,IF(CF$8<=IF($P43>=$P40,0,$P43),0,IF(CF$8=$P40,SUM($W35:CF35)*$P42,0)+IF(CF$8>$P40,0,CF36-CF39+SUM($W35:CF35)*$P42*$P41/12))) -> 0 | CG38: =IF(CG$4="",0,IF(CG$8<=IF($P43>=$P40,0,$P43),0,IF(CG$8=$P40,SUM($W35:CG35)*$P42,0)+IF(CG$8>$P40,0,CG36-CG39+SUM($W35:CG35)*$P42*$P41/12))) -> 0 | CH38: =IF(CH$4="",0,IF(CH$8<=IF($P43>=$P40,0,$P43),0,IF(CH$8=$P40,SUM($W35:CH35)*$P42,0)+IF(CH$8>$P40,0,CH36-CH39+SUM($W35:CH35)*$P42*$P41/12))) -> 0 | CI38: =IF(CI$4="",0,IF(CI$8<=IF($P43>=$P40,0,$P43),0,IF(CI$8=$P40,SUM($W35:CI35)*$P42,0)+IF(CI$8>$P40,0,CI36-CI39+SUM($W35:CI35)*$P42*$P41/12))) -> 0 | CJ38: =IF(CJ$4="",0,IF(CJ$8<=IF($P43>=$P40,0,$P43),0,IF(CJ$8=$P40,SUM($W35:CJ35)*$P42,0)+IF(CJ$8>$P40,0,CJ36-CJ39+SUM($W35:CJ35)*$P42*$P41/12))) -> 0 | CK38: =IF(CK$4="",0,IF(CK$8<=IF($P43>=$P40,0,$P43),0,IF(CK$8=$P40,SUM($W35:CK35)*$P42,0)+IF(CK$8>$P40,0,CK36-CK39+SUM($W35:CK35)*$P42*$P41/12))) -> 0 | CL38: =IF(CL$4="",0,IF(CL$8<=IF($P43>=$P40,0,$P43),0,IF(CL$8=$P40,SUM($W35:CL35)*$P42,0)+IF(CL$8>$P40,0,CL36-CL39+SUM($W35:CL35)*$P42*$P41/12))) -> 0 | CM38: =IF(CM$4="",0,IF(CM$8<=IF($P43>=$P40,0,$P43),0,IF(CM$8=$P40,SUM($W35:CM35)*$P42,0)+IF(CM$8>$P40,0,CM36-CM39+SUM($W35:CM35)*$P42*$P41/12))) -> 0 | CN38: =IF(CN$4="",0,IF(CN$8<=IF($P43>=$P40,0,$P43),0,IF(CN$8=$P40,SUM($W35:CN35)*$P42,0)+IF(CN$8>$P40,0,CN36-CN39+SUM($W35:CN35)*$P42*$P41/12))) -> 0 | CO38: =IF(CO$4="",0,IF(CO$8<=IF($P43>=$P40,0,$P43),0,IF(CO$8=$P40,SUM($W35:CO35)*$P42,0)+IF(CO$8>$P40,0,CO36-CO39+SUM($W35:CO35)*$P42*$P41/12))) -> 0 | CP38: =IF(CP$4="",0,IF(CP$8<=IF($P43>=$P40,0,$P43),0,IF(CP$8=$P40,SUM($W35:CP35)*$P42,0)+IF(CP$8>$P40,0,CP36-CP39+SUM($W35:CP35)*$P42*$P41/12))) -> 0 | CQ38: =IF(CQ$4="",0,IF(CQ$8<=IF($P43>=$P40,0,$P43),0,IF(CQ$8=$P40,SUM($W35:CQ35)*$P42,0)+IF(CQ$8>$P40,0,CQ36-CQ39+SUM($W35:CQ35)*$P42*$P41/12))) -> 0 | CR38: =IF(CR$4="",0,IF(CR$8<=IF($P43>=$P40,0,$P43),0,IF(CR$8=$P40,SUM($W35:CR35)*$P42,0)+IF(CR$8>$P40,0,CR36-CR39+SUM($W35:CR35)*$P42*$P41/12))) -> 0 | CS38: =IF(CS$4="",0,IF(CS$8<=IF($P43>=$P40,0,$P43),0,IF(CS$8=$P40,SUM($W35:CS35)*$P42,0)+IF(CS$8>$P40,0,CS36-CS39+SUM($W35:CS35)*$P42*$P41/12))) -> 0 | CT38: =IF(CT$4="",0,IF(CT$8<=IF($P43>=$P40,0,$P43),0,IF(CT$8=$P40,SUM($W35:CT35)*$P42,0)+IF(CT$8>$P40,0,CT36-CT39+SUM($W35:CT35)*$P42*$P41/12))) -> 0 | CU38: =IF(CU$4="",0,IF(CU$8<=IF($P43>=$P40,0,$P43),0,IF(CU$8=$P40,SUM($W35:CU35)*$P42,0)+IF(CU$8>$P40,0,CU36-CU39+SUM($W35:CU35)*$P42*$P41/12))) -> 0 | CV38: =IF(CV$4="",0,IF(CV$8<=IF($P43>=$P40,0,$P43),0,IF(CV$8=$P40,SUM($W35:CV35)*$P42,0)+IF(CV$8>$P40,0,CV36-CV39+SUM($W35:CV35)*$P42*$P41/12))) -> 0 | CW38: =IF(CW$4="",0,IF(CW$8<=IF($P43>=$P40,0,$P43),0,IF(CW$8=$P40,SUM($W35:CW35)*$P42,0)+IF(CW$8>$P40,0,CW36-CW39+SUM($W35:CW35)*$P42*$P41/12))) -> 0 | CX38: =IF(CX$4="",0,IF(CX$8<=IF($P43>=$P40,0,$P43),0,IF(CX$8=$P40,SUM($W35:CX35)*$P42,0)+IF(CX$8>$P40,0,CX36-CX39+SUM($W35:CX35)*$P42*$P41/12))) -> 0 | CY38: =IF(CY$4="",0,IF(CY$8<=IF($P43>=$P40,0,$P43),0,IF(CY$8=$P40,SUM($W35:CY35)*$P42,0)+IF(CY$8>$P40,0,CY36-CY39+SUM($W35:CY35)*$P42*$P41/12))) -> 0 | CZ38: =IF(CZ$4="",0,IF(CZ$8<=IF($P43>=$P40,0,$P43),0,IF(CZ$8=$P40,SUM($W35:CZ35)*$P42,0)+IF(CZ$8>$P40,0,CZ36-CZ39+SUM($W35:CZ35)*$P42*$P41/12))) -> 0 | DA38: =IF(DA$4="",0,IF(DA$8<=IF($P43>=$P40,0,$P43),0,IF(DA$8=$P40,SUM($W35:DA35)*$P42,0)+IF(DA$8>$P40,0,DA36-DA39+SUM($W35:DA35)*$P42*$P41/12))) -> 0 | DB38: =IF(DB$4="",0,IF(DB$8<=IF($P43>=$P40,0,$P43),0,IF(DB$8=$P40,SUM($W35:DB35)*$P42,0)+IF(DB$8>$P40,0,DB36-DB39+SUM($W35:DB35)*$P42*$P41/12))) -> 0 | DC38: =IF(DC$4="",0,IF(DC$8<=IF($P43>=$P40,0,$P43),0,IF(DC$8=$P40,SUM($W35:DC35)*$P42,0)+IF(DC$8>$P40,0,DC36-DC39+SUM($W35:DC35)*$P42*$P41/12))) -> 0 | DD38: =IF(DD$4="",0,IF(DD$8<=IF($P43>=$P40,0,$P43),0,IF(DD$8=$P40,SUM($W35:DD35)*$P42,0)+IF(DD$8>$P40,0,DD36-DD39+SUM($W35:DD35)*$P42*$P41/12))) -> 0 | DE38: =IF(DE$4="",0,IF(DE$8<=IF($P43>=$P40,0,$P43),0,IF(DE$8=$P40,SUM($W35:DE35)*$P42,0)+IF(DE$8>$P40,0,DE36-DE39+SUM($W35:DE35)*$P42*$P41/12))) -> 0 | DF38: =IF(DF$4="",0,IF(DF$8<=IF($P43>=$P40,0,$P43),0,IF(DF$8=$P40,SUM($W35:DF35)*$P42,0)+IF(DF$8>$P40,0,DF36-DF39+SUM($W35:DF35)*$P42*$P41/12))) -> 0 | DG38: =IF(DG$4="",0,IF(DG$8<=IF($P43>=$P40,0,$P43),0,IF(DG$8=$P40,SUM($W35:DG35)*$P42,0)+IF(DG$8>$P40,0,DG36-DG39+SUM($W35:DG35)*$P42*$P41/12))) -> 0 | DH38: =IF(DH$4="",0,IF(DH$8<=IF($P43>=$P40,0,$P43),0,IF(DH$8=$P40,SUM($W35:DH35)*$P42,0)+IF(DH$8>$P40,0,DH36-DH39+SUM($W35:DH35)*$P42*$P41/12))) -> 0 | DI38: =IF(DI$4="",0,IF(DI$8<=IF($P43>=$P40,0,$P43),0,IF(DI$8=$P40,SUM($W35:DI35)*$P42,0)+IF(DI$8>$P40,0,DI36-DI39+SUM($W35:DI35)*$P42*$P41/12))) -> 0 | DJ38: =IF(DJ$4="",0,IF(DJ$8<=IF($P43>=$P40,0,$P43),0,IF(DJ$8=$P40,SUM($W35:DJ35)*$P42,0)+IF(DJ$8>$P40,0,DJ36-DJ39+SUM($W35:DJ35)*$P42*$P41/12))) -> 0 | DK38: =IF(DK$4="",0,IF(DK$8<=IF($P43>=$P40,0,$P43),0,IF(DK$8=$P40,SUM($W35:DK35)*$P42,0)+IF(DK$8>$P40,0,DK36-DK39+SUM($W35:DK35)*$P42*$P41/12))) -> 0 | DL38: =IF(DL$4="",0,IF(DL$8<=IF($P43>=$P40,0,$P43),0,IF(DL$8=$P40,SUM($W35:DL35)*$P42,0)+IF(DL$8>$P40,0,DL36-DL39+SUM($W35:DL35)*$P42*$P41/12))) -> 0 | DM38: =IF(DM$4="",0,IF(DM$8<=IF($P43>=$P40,0,$P43),0,IF(DM$8=$P40,SUM($W35:DM35)*$P42,0)+IF(DM$8>$P40,0,DM36-DM39+SUM($W35:DM35)*$P42*$P41/12))) -> 0 | DN38: =IF(DN$4="",0,IF(DN$8<=IF($P43>=$P40,0,$P43),0,IF(DN$8=$P40,SUM($W35:DN35)*$P42,0)+IF(DN$8>$P40,0,DN36-DN39+SUM($W35:DN35)*$P42*$P41/12))) -> 0 | DO38: =IF(DO$4="",0,IF(DO$8<=IF($P43>=$P40,0,$P43),0,IF(DO$8=$P40,SUM($W35:DO35)*$P42,0)+IF(DO$8>$P40,0,DO36-DO39+SUM($W35:DO35)*$P42*$P41/12))) -> 0 | DP38: =IF(DP$4="",0,IF(DP$8<=IF($P43>=$P40,0,$P43),0,IF(DP$8=$P40,SUM($W35:DP35)*$P42,0)+IF(DP$8>$P40,0,DP36-DP39+SUM($W35:DP35)*$P42*$P41/12))) -> 0 | DQ38: =IF(DQ$4="",0,IF(DQ$8<=IF($P43>=$P40,0,$P43),0,IF(DQ$8=$P40,SUM($W35:DQ35)*$P42,0)+IF(DQ$8>$P40,0,DQ36-DQ39+SUM($W35:DQ35)*$P42*$P41/12))) -> 0 | DR38: =IF(DR$4="",0,IF(DR$8<=IF($P43>=$P40,0,$P43),0,IF(DR$8=$P40,SUM($W35:DR35)*$P42,0)+IF(DR$8>$P40,0,DR36-DR39+SUM($W35:DR35)*$P42*$P41/12))) -> 0 | DS38: =IF(DS$4="",0,IF(DS$8<=IF($P43>=$P40,0,$P43),0,IF(DS$8=$P40,SUM($W35:DS35)*$P42,0)+IF(DS$8>$P40,0,DS36-DS39+SUM($W35:DS35)*$P42*$P41/12))) -> 0 | DT38: =IF(DT$4="",0,IF(DT$8<=IF($P43>=$P40,0,$P43),0,IF(DT$8=$P40,SUM($W35:DT35)*$P42,0)+IF(DT$8>$P40,0,DT36-DT39+SUM($W35:DT35)*$P42*$P41/12))) -> 0 | DU38: =IF(DU$4="",0,IF(DU$8<=IF($P43>=$P40,0,$P43),0,IF(DU$8=$P40,SUM($W35:DU35)*$P42,0)+IF(DU$8>$P40,0,DU36-DU39+SUM($W35:DU35)*$P42*$P41/12))) -> 0 | DV38: =IF(DV$4="",0,IF(DV$8<=IF($P43>=$P40,0,$P43),0,IF(DV$8=$P40,SUM($W35:DV35)*$P42,0)+IF(DV$8>$P40,0,DV36-DV39+SUM($W35:DV35)*$P42*$P41/12))) -> 0 | DW38: =IF(DW$4="",0,IF(DW$8<=IF($P43>=$P40,0,$P43),0,IF(DW$8=$P40,SUM($W35:DW35)*$P42,0)+IF(DW$8>$P40,0,DW36-DW39+SUM($W35:DW35)*$P42*$P41/12))) -> 0 | DX38: =IF(DX$4="",0,IF(DX$8<=IF($P43>=$P40,0,$P43),0,IF(DX$8=$P40,SUM($W35:DX35)*$P42,0)+IF(DX$8>$P40,0,DX36-DX39+SUM($W35:DX35)*$P42*$P41/12))) -> 0 | DY38: =IF(DY$4="",0,IF(DY$8<=IF($P43>=$P40,0,$P43),0,IF(DY$8=$P40,SUM($W35:DY35)*$P42,0)+IF(DY$8>$P40,0,DY36-DY39+SUM($W35:DY35)*$P42*$P41/12))) -> 0 | DZ38: =IF(DZ$4="",0,IF(DZ$8<=IF($P43>=$P40,0,$P43),0,IF(DZ$8=$P40,SUM($W35:DZ35)*$P42,0)+IF(DZ$8>$P40,0,DZ36-DZ39+SUM($W35:DZ35)*$P42*$P41/12))) -> 0 | EA38: =IF(EA$4="",0,IF(EA$8<=IF($P43>=$P40,0,$P43),0,IF(EA$8=$P40,SUM($W35:EA35)*$P42,0)+IF(EA$8>$P40,0,EA36-EA39+SUM($W35:EA35)*$P42*$P41/12))) -> 0 | EB38: =IF(EB$4="",0,IF(EB$8<=IF($P43>=$P40,0,$P43),0,IF(EB$8=$P40,SUM($W35:EB35)*$P42,0)+IF(EB$8>$P40,0,EB36-EB39+SUM($W35:EB35)*$P42*$P41/12))) -> 0 | EC38: =IF(EC$4="",0,IF(EC$8<=IF($P43>=$P40,0,$P43),0,IF(EC$8=$P40,SUM($W35:EC35)*$P42,0)+IF(EC$8>$P40,0,EC36-EC39+SUM($W35:EC35)*$P42*$P41/12))) -> 0 | ED38: =IF(ED$4="",0,IF(ED$8<=IF($P43>=$P40,0,$P43),0,IF(ED$8=$P40,SUM($W35:ED35)*$P42,0)+IF(ED$8>$P40,0,ED36-ED39+SUM($W35:ED35)*$P42*$P41/12))) -> 0 | EE38: =IF(EE$4="",0,IF(EE$8<=IF($P43>=$P40,0,$P43),0,IF(EE$8=$P40,SUM($W35:EE35)*$P42,0)+IF(EE$8>$P40,0,EE36-EE39+SUM($W35:EE35)*$P42*$P41/12))) -> 0 | EF38: =IF(EF$4="",0,IF(EF$8<=IF($P43>=$P40,0,$P43),0,IF(EF$8=$P40,SUM($W35:EF35)*$P42,0)+IF(EF$8>$P40,0,EF36-EF39+SUM($W35:EF35)*$P42*$P41/12))) -> 0 | EG38: =IF(EG$4="",0,IF(EG$8<=IF($P43>=$P40,0,$P43),0,IF(EG$8=$P40,SUM($W35:EG35)*$P42,0)+IF(EG$8>$P40,0,EG36-EG39+SUM($W35:EG35)*$P42*$P41/12))) -> 0 | EH38: =IF(EH$4="",0,IF(EH$8<=IF($P43>=$P40,0,$P43),0,IF(EH$8=$P40,SUM($W35:EH35)*$P42,0)+IF(EH$8>$P40,0,EH36-EH39+SUM($W35:EH35)*$P42*$P41/12))) -> 0 | EI38: =IF(EI$4="",0,IF(EI$8<=IF($P43>=$P40,0,$P43),0,IF(EI$8=$P40,SUM($W35:EI35)*$P42,0)+IF(EI$8>$P40,0,EI36-EI39+SUM($W35:EI35)*$P42*$P41/12))) -> 0 | EJ38: =IF(EJ$4="",0,IF(EJ$8<=IF($P43>=$P40,0,$P43),0,IF(EJ$8=$P40,SUM($W35:EJ35)*$P42,0)+IF(EJ$8>$P40,0,EJ36-EJ39+SUM($W35:EJ35)*$P42*$P41/12))) -> 0 | EK38: =IF(EK$4="",0,IF(EK$8<=IF($P43>=$P40,0,$P43),0,IF(EK$8=$P40,SUM($W35:EK35)*$P42,0)+IF(EK$8>$P40,0,EK36-EK39+SUM($W35:EK35)*$P42*$P41/12))) -> 0 | EL38: =IF(EL$4="",0,IF(EL$8<=IF($P43>=$P40,0,$P43),0,IF(EL$8=$P40,SUM($W35:EL35)*$P42,0)+IF(EL$8>$P40,0,EL36-EL39+SUM($W35:EL35)*$P42*$P41/12))) -> 0 | EM38: =IF(EM$4="",0,IF(EM$8<=IF($P43>=$P40,0,$P43),0,IF(EM$8=$P40,SUM($W35:EM35)*$P42,0)+IF(EM$8>$P40,0,EM36-EM39+SUM($W35:EM35)*$P42*$P41/12))) -> 0 | EN38: =IF(EN$4="",0,IF(EN$8<=IF($P43>=$P40,0,$P43),0,IF(EN$8=$P40,SUM($W35:EN35)*$P42,0)+IF(EN$8>$P40,0,EN36-EN39+SUM($W35:EN35)*$P42*$P41/12))) -> 0 | EO38: =IF(EO$4="",0,IF(EO$8<=IF($P43>=$P40,0,$P43),0,IF(EO$8=$P40,SUM($W35:EO35)*$P42,0)+IF(EO$8>$P40,0,EO36-EO39+SUM($W35:EO35)*$P42*$P41/12))) -> 0 | EP38: =IF(EP$4="",0,IF(EP$8<=IF($P43>=$P40,0,$P43),0,IF(EP$8=$P40,SUM($W35:EP35)*$P42,0)+IF(EP$8>$P40,0,EP36-EP39+SUM($W35:EP35)*$P42*$P41/12))) -> 0 | EQ38: =IF(EQ$4="",0,IF(EQ$8<=IF($P43>=$P40,0,$P43),0,IF(EQ$8=$P40,SUM($W35:EQ35)*$P42,0)+IF(EQ$8>$P40,0,EQ36-EQ39+SUM($W35:EQ35)*$P42*$P41/12))) -> 0 | ER38: =IF(ER$4="",0,IF(ER$8<=IF($P43>=$P40,0,$P43),0,IF(ER$8=$P40,SUM($W35:ER35)*$P42,0)+IF(ER$8>$P40,0,ER36-ER39+SUM($W35:ER35)*$P42*$P41/12))) -> 0 | ES38: =IF(ES$4="",0,IF(ES$8<=IF($P43>=$P40,0,$P43),0,IF(ES$8=$P40,SUM($W35:ES35)*$P42,0)+IF(ES$8>$P40,0,ES36-ES39+SUM($W35:ES35)*$P42*$P41/12))) -> 0 | ET38: =IF(ET$4="",0,IF(ET$8<=IF($P43>=$P40,0,$P43),0,IF(ET$8=$P40,SUM($W35:ET35)*$P42,0)+IF(ET$8>$P40,0,ET36-ET39+SUM($W35:ET35)*$P42*$P41/12))) -> 0 | EU38: =IF(EU$4="",0,IF(EU$8<=IF($P43>=$P40,0,$P43),0,IF(EU$8=$P40,SUM($W35:EU35)*$P42,0)+IF(EU$8>$P40,0,EU36-EU39+SUM($W35:EU35)*$P42*$P41/12))) -> 0 | EV38: =IF(EV$4="",0,IF(EV$8<=IF($P43>=$P40,0,$P43),0,IF(EV$8=$P40,SUM($W35:EV35)*$P42,0)+IF(EV$8>$P40,0,EV36-EV39+SUM($W35:EV35)*$P42*$P41/12))) -> 0 | EW38: =IF(EW$4="",0,IF(EW$8<=IF($P43>=$P40,0,$P43),0,IF(EW$8=$P40,SUM($W35:EW35)*$P42,0)+IF(EW$8>$P40,0,EW36-EW39+SUM($W35:EW35)*$P42*$P41/12))) -> 0 | EX38: =IF(EX$4="",0,IF(EX$8<=IF($P43>=$P40,0,$P43),0,IF(EX$8=$P40,SUM($W35:EX35)*$P42,0)+IF(EX$8>$P40,0,EX36-EX39+SUM($W35:EX35)*$P42*$P41/12))) -> 0 | EY38: =IF(EY$4="",0,IF(EY$8<=IF($P43>=$P40,0,$P43),0,IF(EY$8=$P40,SUM($W35:EY35)*$P42,0)+IF(EY$8>$P40,0,EY36-EY39+SUM($W35:EY35)*$P42*$P41/12))) -> 0 | EZ38: =IF(EZ$4="",0,IF(EZ$8<=IF($P43>=$P40,0,$P43),0,IF(EZ$8=$P40,SUM($W35:EZ35)*$P42,0)+IF(EZ$8>$P40,0,EZ36-EZ39+SUM($W35:EZ35)*$P42*$P41/12))) -> 0 | FA38: =IF(FA$4="",0,IF(FA$8<=IF($P43>=$P40,0,$P43),0,IF(FA$8=$P40,SUM($W35:FA35)*$P42,0)+IF(FA$8>$P40,0,FA36-FA39+SUM($W35:FA35)*$P42*$P41/12))) -> 0 | FB38: =IF(FB$4="",0,IF(FB$8<=IF($P43>=$P40,0,$P43),0,IF(FB$8=$P40,SUM($W35:FB35)*$P42,0)+IF(FB$8>$P40,0,FB36-FB39+SUM($W35:FB35)*$P42*$P41/12))) -> 0 | FC38: =IF(FC$4="",0,IF(FC$8<=IF($P43>=$P40,0,$P43),0,IF(FC$8=$P40,SUM($W35:FC35)*$P42,0)+IF(FC$8>$P40,0,FC36-FC39+SUM($W35:FC35)*$P42*$P41/12))) -> 0 | FD38: =IF(FD$4="",0,IF(FD$8<=IF($P43>=$P40,0,$P43),0,IF(FD$8=$P40,SUM($W35:FD35)*$P42,0)+IF(FD$8>$P40,0,FD36-FD39+SUM($W35:FD35)*$P42*$P41/12))) -> 0 | FE38: =IF(FE$4="",0,IF(FE$8<=IF($P43>=$P40,0,$P43),0,IF(FE$8=$P40,SUM($W35:FE35)*$P42,0)+IF(FE$8>$P40,0,FE36-FE39+SUM($W35:FE35)*$P42*$P41/12))) -> 0 | FF38: =IF(FF$4="",0,IF(FF$8<=IF($P43>=$P40,0,$P43),0,IF(FF$8=$P40,SUM($W35:FF35)*$P42,0)+IF(FF$8>$P40,0,FF36-FF39+SUM($W35:FF35)*$P42*$P41/12))) -> 0 | FG38: =IF(FG$4="",0,IF(FG$8<=IF($P43>=$P40,0,$P43),0,IF(FG$8=$P40,SUM($W35:FG35)*$P42,0)+IF(FG$8>$P40,0,FG36-FG39+SUM($W35:FG35)*$P42*$P41/12))) -> 0 | FH38: =IF(FH$4="",0,IF(FH$8<=IF($P43>=$P40,0,$P43),0,IF(FH$8=$P40,SUM($W35:FH35)*$P42,0)+IF(FH$8>$P40,0,FH36-FH39+SUM($W35:FH35)*$P42*$P41/12))) -> 0 | FI38: =IF(FI$4="",0,IF(FI$8<=IF($P43>=$P40,0,$P43),0,IF(FI$8=$P40,SUM($W35:FI35)*$P42,0)+IF(FI$8>$P40,0,FI36-FI39+SUM($W35:FI35)*$P42*$P41/12))) -> 0 | FJ38: =IF(FJ$4="",0,IF(FJ$8<=IF($P43>=$P40,0,$P43),0,IF(FJ$8=$P40,SUM($W35:FJ35)*$P42,0)+IF(FJ$8>$P40,0,FJ36-FJ39+SUM($W35:FJ35)*$P42*$P41/12))) -> 0 | FK38: =IF(FK$4="",0,IF(FK$8<=IF($P43>=$P40,0,$P43),0,IF(FK$8=$P40,SUM($W35:FK35)*$P42,0)+IF(FK$8>$P40,0,FK36-FK39+SUM($W35:FK35)*$P42*$P41/12))) -> 0 | FL38: =IF(FL$4="",0,IF(FL$8<=IF($P43>=$P40,0,$P43),0,IF(FL$8=$P40,SUM($W35:FL35)*$P42,0)+IF(FL$8>$P40,0,FL36-FL39+SUM($W35:FL35)*$P42*$P41/12))) -> 0 | FM38: =IF(FM$4="",0,IF(FM$8<=IF($P43>=$P40,0,$P43),0,IF(FM$8=$P40,SUM($W35:FM35)*$P42,0)+IF(FM$8>$P40,0,FM36-FM39+SUM($W35:FM35)*$P42*$P41/12))) -> 0 | FN38: =IF(FN$4="",0,IF(FN$8<=IF($P43>=$P40,0,$P43),0,IF(FN$8=$P40,SUM($W35:FN35)*$P42,0)+IF(FN$8>$P40,0,FN36-FN39+SUM($W35:FN35)*$P42*$P41/12))) -> 0 | FO38: =IF(FO$4="",0,IF(FO$8<=IF($P43>=$P40,0,$P43),0,IF(FO$8=$P40,SUM($W35:FO35)*$P42,0)+IF(FO$8>$P40,0,FO36-FO39+SUM($W35:FO35)*$P42*$P41/12))) -> 0 | FP38: =IF(FP$4="",0,IF(FP$8<=IF($P43>=$P40,0,$P43),0,IF(FP$8=$P40,SUM($W35:FP35)*$P42,0)+IF(FP$8>$P40,0,FP36-FP39+SUM($W35:FP35)*$P42*$P41/12))) -> 0 | FQ38: =IF(FQ$4="",0,IF(FQ$8<=IF($P43>=$P40,0,$P43),0,IF(FQ$8=$P40,SUM($W35:FQ35)*$P42,0)+IF(FQ$8>$P40,0,FQ36-FQ39+SUM($W35:FQ35)*$P42*$P41/12))) -> 0 | FR38: =IF(FR$4="",0,IF(FR$8<=IF($P43>=$P40,0,$P43),0,IF(FR$8=$P40,SUM($W35:FR35)*$P42,0)+IF(FR$8>$P40,0,FR36-FR39+SUM($W35:FR35)*$P42*$P41/12))) -> 0 | FS38: =IF(FS$4="",0,IF(FS$8<=IF($P43>=$P40,0,$P43),0,IF(FS$8=$P40,SUM($W35:FS35)*$P42,0)+IF(FS$8>$P40,0,FS36-FS39+SUM($W35:FS35)*$P42*$P41/12))) -> 0 | FT38: =IF(FT$4="",0,IF(FT$8<=IF($P43>=$P40,0,$P43),0,IF(FT$8=$P40,SUM($W35:FT35)*$P42,0)+IF(FT$8>$P40,0,FT36-FT39+SUM($W35:FT35)*$P42*$P41/12))) -> 0 | FU38: =IF(FU$4="",0,IF(FU$8<=IF($P43>=$P40,0,$P43),0,IF(FU$8=$P40,SUM($W35:FU35)*$P42,0)+IF(FU$8>$P40,0,FU36-FU39+SUM($W35:FU35)*$P42*$P41/12))) -> 0 | FV38: =IF(FV$4="",0,IF(FV$8<=IF($P43>=$P40,0,$P43),0,IF(FV$8=$P40,SUM($W35:FV35)*$P42,0)+IF(FV$8>$P40,0,FV36-FV39+SUM($W35:FV35)*$P42*$P41/12))) -> 0 | FW38: =IF(FW$4="",0,IF(FW$8<=IF($P43>=$P40,0,$P43),0,IF(FW$8=$P40,SUM($W35:FW35)*$P42,0)+IF(FW$8>$P40,0,FW36-FW39+SUM($W35:FW35)*$P42*$P41/12))) -> 0 | FX38: =IF(FX$4="",0,IF(FX$8<=IF($P43>=$P40,0,$P43),0,IF(FX$8=$P40,SUM($W35:FX35)*$P42,0)+IF(FX$8>$P40,0,FX36-FX39+SUM($W35:FX35)*$P42*$P41/12))) -> 0 | FY38: =IF(FY$4="",0,IF(FY$8<=IF($P43>=$P40,0,$P43),0,IF(FY$8=$P40,SUM($W35:FY35)*$P42,0)+IF(FY$8>$P40,0,FY36-FY39+SUM($W35:FY35)*$P42*$P41/12))) -> 0 | FZ38: =IF(FZ$4="",0,IF(FZ$8<=IF($P43>=$P40,0,$P43),0,IF(FZ$8=$P40,SUM($W35:FZ35)*$P42,0)+IF(FZ$8>$P40,0,FZ36-FZ39+SUM($W35:FZ35)*$P42*$P41/12))) -> 0 | GA38: =IF(GA$4="",0,IF(GA$8<=IF($P43>=$P40,0,$P43),0,IF(GA$8=$P40,SUM($W35:GA35)*$P42,0)+IF(GA$8>$P40,0,GA36-GA39+SUM($W35:GA35)*$P42*$P41/12))) -> 0 | GB38: =IF(GB$4="",0,IF(GB$8<=IF($P43>=$P40,0,$P43),0,IF(GB$8=$P40,SUM($W35:GB35)*$P42,0)+IF(GB$8>$P40,0,GB36-GB39+SUM($W35:GB35)*$P42*$P41/12))) -> 0 | GC38: =IF(GC$4="",0,IF(GC$8<=IF($P43>=$P40,0,$P43),0,IF(GC$8=$P40,SUM($W35:GC35)*$P42,0)+IF(GC$8>$P40,0,GC36-GC39+SUM($W35:GC35)*$P42*$P41/12))) -> 0 | GD38: =IF(GD$4="",0,IF(GD$8<=IF($P43>=$P40,0,$P43),0,IF(GD$8=$P40,SUM($W35:GD35)*$P42,0)+IF(GD$8>$P40,0,GD36-GD39+SUM($W35:GD35)*$P42*$P41/12))) -> 0 | GE38: =IF(GE$4="",0,IF(GE$8<=IF($P43>=$P40,0,$P43),0,IF(GE$8=$P40,SUM($W35:GE35)*$P42,0)+IF(GE$8>$P40,0,GE36-GE39+SUM($W35:GE35)*$P42*$P41/12))) -> 0 | GF38: =IF(GF$4="",0,IF(GF$8<=IF($P43>=$P40,0,$P43),0,IF(GF$8=$P40,SUM($W35:GF35)*$P42,0)+IF(GF$8>$P40,0,GF36-GF39+SUM($W35:GF35)*$P42*$P41/12))) -> 0 | GG38: =IF(GG$4="",0,IF(GG$8<=IF($P43>=$P40,0,$P43),0,IF(GG$8=$P40,SUM($W35:GG35)*$P42,0)+IF(GG$8>$P40,0,GG36-GG39+SUM($W35:GG35)*$P42*$P41/12))) -> 0 | GH38: =IF(GH$4="",0,IF(GH$8<=IF($P43>=$P40,0,$P43),0,IF(GH$8=$P40,SUM($W35:GH35)*$P42,0)+IF(GH$8>$P40,0,GH36-GH39+SUM($W35:GH35)*$P42*$P41/12))) -> 0 | GI38: =IF(GI$4="",0,IF(GI$8<=IF($P43>=$P40,0,$P43),0,IF(GI$8=$P40,SUM($W35:GI35)*$P42,0)+IF(GI$8>$P40,0,GI36-GI39+SUM($W35:GI35)*$P42*$P41/12))) -> 0 | GJ38: =IF(GJ$4="",0,IF(GJ$8<=IF($P43>=$P40,0,$P43),0,IF(GJ$8=$P40,SUM($W35:GJ35)*$P42,0)+IF(GJ$8>$P40,0,GJ36-GJ39+SUM($W35:GJ35)*$P42*$P41/12))) -> 0 | GK38: =IF(GK$4="",0,IF(GK$8<=IF($P43>=$P40,0,$P43),0,IF(GK$8=$P40,SUM($W35:GK35)*$P42,0)+IF(GK$8>$P40,0,GK36-GK39+SUM($W35:GK35)*$P42*$P41/12))) -> 0 | GL38: =IF(GL$4="",0,IF(GL$8<=IF($P43>=$P40,0,$P43),0,IF(GL$8=$P40,SUM($W35:GL35)*$P42,0)+IF(GL$8>$P40,0,GL36-GL39+SUM($W35:GL35)*$P42*$P41/12))) -> 0 | GM38: =IF(GM$4="",0,IF(GM$8<=IF($P43>=$P40,0,$P43),0,IF(GM$8=$P40,SUM($W35:GM35)*$P42,0)+IF(GM$8>$P40,0,GM36-GM39+SUM($W35:GM35)*$P42*$P41/12))) -> 0 | GN38: =IF(GN$4="",0,IF(GN$8<=IF($P43>=$P40,0,$P43),0,IF(GN$8=$P40,SUM($W35:GN35)*$P42,0)+IF(GN$8>$P40,0,GN36-GN39+SUM($W35:GN35)*$P42*$P41/12))) -> 0 | GO38: =IF(GO$4="",0,IF(GO$8<=IF($P43>=$P40,0,$P43),0,IF(GO$8=$P40,SUM($W35:GO35)*$P42,0)+IF(GO$8>$P40,0,GO36-GO39+SUM($W35:GO35)*$P42*$P41/12))) -> 0 | GP38: =IF(GP$4="",0,IF(GP$8<=IF($P43>=$P40,0,$P43),0,IF(GP$8=$P40,SUM($W35:GP35)*$P42,0)+IF(GP$8>$P40,0,GP36-GP39+SUM($W35:GP35)*$P42*$P41/12))) -> 0 | GQ38: =IF(GQ$4="",0,IF(GQ$8<=IF($P43>=$P40,0,$P43),0,IF(GQ$8=$P40,SUM($W35:GQ35)*$P42,0)+IF(GQ$8>$P40,0,GQ36-GQ39+SUM($W35:GQ35)*$P42*$P41/12))) -> 0 | GR38: =IF(GR$4="",0,IF(GR$8<=IF($P43>=$P40,0,$P43),0,IF(GR$8=$P40,SUM($W35:GR35)*$P42,0)+IF(GR$8>$P40,0,GR36-GR39+SUM($W35:GR35)*$P42*$P41/12))) -> 0 | GS38: =IF(GS$4="",0,IF(GS$8<=IF($P43>=$P40,0,$P43),0,IF(GS$8=$P40,SUM($W35:GS35)*$P42,0)+IF(GS$8>$P40,0,GS36-GS39+SUM($W35:GS35)*$P42*$P41/12))) -> 0 | GT38: =IF(GT$4="",0,IF(GT$8<=IF($P43>=$P40,0,$P43),0,IF(GT$8=$P40,SUM($W35:GT35)*$P42,0)+IF(GT$8>$P40,0,GT36-GT39+SUM($W35:GT35)*$P42*$P41/12))) -> 0 | GU38: =IF(GU$4="",0,IF(GU$8<=IF($P43>=$P40,0,$P43),0,IF(GU$8=$P40,SUM($W35:GU35)*$P42,0)+IF(GU$8>$P40,0,GU36-GU39+SUM($W35:GU35)*$P42*$P41/12))) -> 0 | GV38: =IF(GV$4="",0,IF(GV$8<=IF($P43>=$P40,0,$P43),0,IF(GV$8=$P40,SUM($W35:GV35)*$P42,0)+IF(GV$8>$P40,0,GV36-GV39+SUM($W35:GV35)*$P42*$P41/12))) -> 0
B39: =ROW() -> 39 | H39: =H38 -> Ежемесячные платежи по лизингу | I39: Возврат %% по кредиту | M39: руб. | U39: =SUM(INDIRECT(ADDRESS($B39,X$2)&":"&ADDRESS($B39,MAX($2:$2)))) -> 0 | X39: =IF(X$4="",0,(SUM($W35:X35)-SUM($W38:W38))*$P41/12) -> 0 | Y39: =IF(Y$4="",0,(SUM($W35:Y35)-SUM($W38:X38))*$P41/12) -> 0 | Z39: =IF(Z$4="",0,(SUM($W35:Z35)-SUM($W38:Y38))*$P41/12) -> 0 | AA39: =IF(AA$4="",0,(SUM($W35:AA35)-SUM($W38:Z38))*$P41/12) -> 0 | AB39: =IF(AB$4="",0,(SUM($W35:AB35)-SUM($W38:AA38))*$P41/12) -> 0 | AC39: =IF(AC$4="",0,(SUM($W35:AC35)-SUM($W38:AB38))*$P41/12) -> 0 | AD39: =IF(AD$4="",0,(SUM($W35:AD35)-SUM($W38:AC38))*$P41/12) -> 0 | AE39: =IF(AE$4="",0,(SUM($W35:AE35)-SUM($W38:AD38))*$P41/12) -> 0 | AF39: =IF(AF$4="",0,(SUM($W35:AF35)-SUM($W38:AE38))*$P41/12) -> 0 | AG39: =IF(AG$4="",0,(SUM($W35:AG35)-SUM($W38:AF38))*$P41/12) -> 0 | AH39: =IF(AH$4="",0,(SUM($W35:AH35)-SUM($W38:AG38))*$P41/12) -> 0 | AI39: =IF(AI$4="",0,(SUM($W35:AI35)-SUM($W38:AH38))*$P41/12) -> 0 | AJ39: =IF(AJ$4="",0,(SUM($W35:AJ35)-SUM($W38:AI38))*$P41/12) -> 0 | AK39: =IF(AK$4="",0,(SUM($W35:AK35)-SUM($W38:AJ38))*$P41/12) -> 0 | AL39: =IF(AL$4="",0,(SUM($W35:AL35)-SUM($W38:AK38))*$P41/12) -> 0 | AM39: =IF(AM$4="",0,(SUM($W35:AM35)-SUM($W38:AL38))*$P41/12) -> 0 | AN39: =IF(AN$4="",0,(SUM($W35:AN35)-SUM($W38:AM38))*$P41/12) -> 0 | AO39: =IF(AO$4="",0,(SUM($W35:AO35)-SUM($W38:AN38))*$P41/12) -> 0 | AP39: =IF(AP$4="",0,(SUM($W35:AP35)-SUM($W38:AO38))*$P41/12) -> 0 | AQ39: =IF(AQ$4="",0,(SUM($W35:AQ35)-SUM($W38:AP38))*$P41/12) -> 0 | AR39: =IF(AR$4="",0,(SUM($W35:AR35)-SUM($W38:AQ38))*$P41/12) -> 0 | AS39: =IF(AS$4="",0,(SUM($W35:AS35)-SUM($W38:AR38))*$P41/12) -> 0 | AT39: =IF(AT$4="",0,(SUM($W35:AT35)-SUM($W38:AS38))*$P41/12) -> 0 | AU39: =IF(AU$4="",0,(SUM($W35:AU35)-SUM($W38:AT38))*$P41/12) -> 0 | AV39: =IF(AV$4="",0,(SUM($W35:AV35)-SUM($W38:AU38))*$P41/12) -> 0 | AW39: =IF(AW$4="",0,(SUM($W35:AW35)-SUM($W38:AV38))*$P41/12) -> 0 | AX39: =IF(AX$4="",0,(SUM($W35:AX35)-SUM($W38:AW38))*$P41/12) -> 0 | AY39: =IF(AY$4="",0,(SUM($W35:AY35)-SUM($W38:AX38))*$P41/12) -> 0 | AZ39: =IF(AZ$4="",0,(SUM($W35:AZ35)-SUM($W38:AY38))*$P41/12) -> 0 | BA39: =IF(BA$4="",0,(SUM($W35:BA35)-SUM($W38:AZ38))*$P41/12) -> 0 | BB39: =IF(BB$4="",0,(SUM($W35:BB35)-SUM($W38:BA38))*$P41/12) -> 0 | BC39: =IF(BC$4="",0,(SUM($W35:BC35)-SUM($W38:BB38))*$P41/12) -> 0 | BD39: =IF(BD$4="",0,(SUM($W35:BD35)-SUM($W38:BC38))*$P41/12) -> 0 | BE39: =IF(BE$4="",0,(SUM($W35:BE35)-SUM($W38:BD38))*$P41/12) -> 0 | BF39: =IF(BF$4="",0,(SUM($W35:BF35)-SUM($W38:BE38))*$P41/12) -> 0 | BG39: =IF(BG$4="",0,(SUM($W35:BG35)-SUM($W38:BF38))*$P41/12) -> 0 | BH39: =IF(BH$4="",0,(SUM($W35:BH35)-SUM($W38:BG38))*$P41/12) -> 0 | BI39: =IF(BI$4="",0,(SUM($W35:BI35)-SUM($W38:BH38))*$P41/12) -> 0 | BJ39: =IF(BJ$4="",0,(SUM($W35:BJ35)-SUM($W38:BI38))*$P41/12) -> 0 | BK39: =IF(BK$4="",0,(SUM($W35:BK35)-SUM($W38:BJ38))*$P41/12) -> 0 | BL39: =IF(BL$4="",0,(SUM($W35:BL35)-SUM($W38:BK38))*$P41/12) -> 0 | BM39: =IF(BM$4="",0,(SUM($W35:BM35)-SUM($W38:BL38))*$P41/12) -> 0 | BN39: =IF(BN$4="",0,(SUM($W35:BN35)-SUM($W38:BM38))*$P41/12) -> 0 | BO39: =IF(BO$4="",0,(SUM($W35:BO35)-SUM($W38:BN38))*$P41/12) -> 0 | BP39: =IF(BP$4="",0,(SUM($W35:BP35)-SUM($W38:BO38))*$P41/12) -> 0 | BQ39: =IF(BQ$4="",0,(SUM($W35:BQ35)-SUM($W38:BP38))*$P41/12) -> 0 | BR39: =IF(BR$4="",0,(SUM($W35:BR35)-SUM($W38:BQ38))*$P41/12) -> 0 | BS39: =IF(BS$4="",0,(SUM($W35:BS35)-SUM($W38:BR38))*$P41/12) -> 0 | BT39: =IF(BT$4="",0,(SUM($W35:BT35)-SUM($W38:BS38))*$P41/12) -> 0 | BU39: =IF(BU$4="",0,(SUM($W35:BU35)-SUM($W38:BT38))*$P41/12) -> 0 | BV39: =IF(BV$4="",0,(SUM($W35:BV35)-SUM($W38:BU38))*$P41/12) -> 0 | BW39: =IF(BW$4="",0,(SUM($W35:BW35)-SUM($W38:BV38))*$P41/12) -> 0 | BX39: =IF(BX$4="",0,(SUM($W35:BX35)-SUM($W38:BW38))*$P41/12) -> 0 | BY39: =IF(BY$4="",0,(SUM($W35:BY35)-SUM($W38:BX38))*$P41/12) -> 0 | BZ39: =IF(BZ$4="",0,(SUM($W35:BZ35)-SUM($W38:BY38))*$P41/12) -> 0 | CA39: =IF(CA$4="",0,(SUM($W35:CA35)-SUM($W38:BZ38))*$P41/12) -> 0 | CB39: =IF(CB$4="",0,(SUM($W35:CB35)-SUM($W38:CA38))*$P41/12) -> 0 | CC39: =IF(CC$4="",0,(SUM($W35:CC35)-SUM($W38:CB38))*$P41/12) -> 0 | CD39: =IF(CD$4="",0,(SUM($W35:CD35)-SUM($W38:CC38))*$P41/12) -> 0 | CE39: =IF(CE$4="",0,(SUM($W35:CE35)-SUM($W38:CD38))*$P41/12) -> 0 | CF39: =IF(CF$4="",0,(SUM($W35:CF35)-SUM($W38:CE38))*$P41/12) -> 0 | CG39: =IF(CG$4="",0,(SUM($W35:CG35)-SUM($W38:CF38))*$P41/12) -> 0 | CH39: =IF(CH$4="",0,(SUM($W35:CH35)-SUM($W38:CG38))*$P41/12) -> 0 | CI39: =IF(CI$4="",0,(SUM($W35:CI35)-SUM($W38:CH38))*$P41/12) -> 0 | CJ39: =IF(CJ$4="",0,(SUM($W35:CJ35)-SUM($W38:CI38))*$P41/12) -> 0 | CK39: =IF(CK$4="",0,(SUM($W35:CK35)-SUM($W38:CJ38))*$P41/12) -> 0 | CL39: =IF(CL$4="",0,(SUM($W35:CL35)-SUM($W38:CK38))*$P41/12) -> 0 | CM39: =IF(CM$4="",0,(SUM($W35:CM35)-SUM($W38:CL38))*$P41/12) -> 0 | CN39: =IF(CN$4="",0,(SUM($W35:CN35)-SUM($W38:CM38))*$P41/12) -> 0 | CO39: =IF(CO$4="",0,(SUM($W35:CO35)-SUM($W38:CN38))*$P41/12) -> 0 | CP39: =IF(CP$4="",0,(SUM($W35:CP35)-SUM($W38:CO38))*$P41/12) -> 0 | CQ39: =IF(CQ$4="",0,(SUM($W35:CQ35)-SUM($W38:CP38))*$P41/12) -> 0 | CR39: =IF(CR$4="",0,(SUM($W35:CR35)-SUM($W38:CQ38))*$P41/12) -> 0 | CS39: =IF(CS$4="",0,(SUM($W35:CS35)-SUM($W38:CR38))*$P41/12) -> 0 | CT39: =IF(CT$4="",0,(SUM($W35:CT35)-SUM($W38:CS38))*$P41/12) -> 0 | CU39: =IF(CU$4="",0,(SUM($W35:CU35)-SUM($W38:CT38))*$P41/12) -> 0 | CV39: =IF(CV$4="",0,(SUM($W35:CV35)-SUM($W38:CU38))*$P41/12) -> 0 | CW39: =IF(CW$4="",0,(SUM($W35:CW35)-SUM($W38:CV38))*$P41/12) -> 0 | CX39: =IF(CX$4="",0,(SUM($W35:CX35)-SUM($W38:CW38))*$P41/12) -> 0 | CY39: =IF(CY$4="",0,(SUM($W35:CY35)-SUM($W38:CX38))*$P41/12) -> 0 | CZ39: =IF(CZ$4="",0,(SUM($W35:CZ35)-SUM($W38:CY38))*$P41/12) -> 0 | DA39: =IF(DA$4="",0,(SUM($W35:DA35)-SUM($W38:CZ38))*$P41/12) -> 0 | DB39: =IF(DB$4="",0,(SUM($W35:DB35)-SUM($W38:DA38))*$P41/12) -> 0 | DC39: =IF(DC$4="",0,(SUM($W35:DC35)-SUM($W38:DB38))*$P41/12) -> 0 | DD39: =IF(DD$4="",0,(SUM($W35:DD35)-SUM($W38:DC38))*$P41/12) -> 0 | DE39: =IF(DE$4="",0,(SUM($W35:DE35)-SUM($W38:DD38))*$P41/12) -> 0 | DF39: =IF(DF$4="",0,(SUM($W35:DF35)-SUM($W38:DE38))*$P41/12) -> 0 | DG39: =IF(DG$4="",0,(SUM($W35:DG35)-SUM($W38:DF38))*$P41/12) -> 0 | DH39: =IF(DH$4="",0,(SUM($W35:DH35)-SUM($W38:DG38))*$P41/12) -> 0 | DI39: =IF(DI$4="",0,(SUM($W35:DI35)-SUM($W38:DH38))*$P41/12) -> 0 | DJ39: =IF(DJ$4="",0,(SUM($W35:DJ35)-SUM($W38:DI38))*$P41/12) -> 0 | DK39: =IF(DK$4="",0,(SUM($W35:DK35)-SUM($W38:DJ38))*$P41/12) -> 0 | DL39: =IF(DL$4="",0,(SUM($W35:DL35)-SUM($W38:DK38))*$P41/12) -> 0 | DM39: =IF(DM$4="",0,(SUM($W35:DM35)-SUM($W38:DL38))*$P41/12) -> 0 | DN39: =IF(DN$4="",0,(SUM($W35:DN35)-SUM($W38:DM38))*$P41/12) -> 0 | DO39: =IF(DO$4="",0,(SUM($W35:DO35)-SUM($W38:DN38))*$P41/12) -> 0 | DP39: =IF(DP$4="",0,(SUM($W35:DP35)-SUM($W38:DO38))*$P41/12) -> 0 | DQ39: =IF(DQ$4="",0,(SUM($W35:DQ35)-SUM($W38:DP38))*$P41/12) -> 0 | DR39: =IF(DR$4="",0,(SUM($W35:DR35)-SUM($W38:DQ38))*$P41/12) -> 0 | DS39: =IF(DS$4="",0,(SUM($W35:DS35)-SUM($W38:DR38))*$P41/12) -> 0 | DT39: =IF(DT$4="",0,(SUM($W35:DT35)-SUM($W38:DS38))*$P41/12) -> 0 | DU39: =IF(DU$4="",0,(SUM($W35:DU35)-SUM($W38:DT38))*$P41/12) -> 0 | DV39: =IF(DV$4="",0,(SUM($W35:DV35)-SUM($W38:DU38))*$P41/12) -> 0 | DW39: =IF(DW$4="",0,(SUM($W35:DW35)-SUM($W38:DV38))*$P41/12) -> 0 | DX39: =IF(DX$4="",0,(SUM($W35:DX35)-SUM($W38:DW38))*$P41/12) -> 0 | DY39: =IF(DY$4="",0,(SUM($W35:DY35)-SUM($W38:DX38))*$P41/12) -> 0 | DZ39: =IF(DZ$4="",0,(SUM($W35:DZ35)-SUM($W38:DY38))*$P41/12) -> 0 | EA39: =IF(EA$4="",0,(SUM($W35:EA35)-SUM($W38:DZ38))*$P41/12) -> 0 | EB39: =IF(EB$4="",0,(SUM($W35:EB35)-SUM($W38:EA38))*$P41/12) -> 0 | EC39: =IF(EC$4="",0,(SUM($W35:EC35)-SUM($W38:EB38))*$P41/12) -> 0 | ED39: =IF(ED$4="",0,(SUM($W35:ED35)-SUM($W38:EC38))*$P41/12) -> 0 | EE39: =IF(EE$4="",0,(SUM($W35:EE35)-SUM($W38:ED38))*$P41/12) -> 0 | EF39: =IF(EF$4="",0,(SUM($W35:EF35)-SUM($W38:EE38))*$P41/12) -> 0 | EG39: =IF(EG$4="",0,(SUM($W35:EG35)-SUM($W38:EF38))*$P41/12) -> 0 | EH39: =IF(EH$4="",0,(SUM($W35:EH35)-SUM($W38:EG38))*$P41/12) -> 0 | EI39: =IF(EI$4="",0,(SUM($W35:EI35)-SUM($W38:EH38))*$P41/12) -> 0 | EJ39: =IF(EJ$4="",0,(SUM($W35:EJ35)-SUM($W38:EI38))*$P41/12) -> 0 | EK39: =IF(EK$4="",0,(SUM($W35:EK35)-SUM($W38:EJ38))*$P41/12) -> 0 | EL39: =IF(EL$4="",0,(SUM($W35:EL35)-SUM($W38:EK38))*$P41/12) -> 0 | EM39: =IF(EM$4="",0,(SUM($W35:EM35)-SUM($W38:EL38))*$P41/12) -> 0 | EN39: =IF(EN$4="",0,(SUM($W35:EN35)-SUM($W38:EM38))*$P41/12) -> 0 | EO39: =IF(EO$4="",0,(SUM($W35:EO35)-SUM($W38:EN38))*$P41/12) -> 0 | EP39: =IF(EP$4="",0,(SUM($W35:EP35)-SUM($W38:EO38))*$P41/12) -> 0 | EQ39: =IF(EQ$4="",0,(SUM($W35:EQ35)-SUM($W38:EP38))*$P41/12) -> 0 | ER39: =IF(ER$4="",0,(SUM($W35:ER35)-SUM($W38:EQ38))*$P41/12) -> 0 | ES39: =IF(ES$4="",0,(SUM($W35:ES35)-SUM($W38:ER38))*$P41/12) -> 0 | ET39: =IF(ET$4="",0,(SUM($W35:ET35)-SUM($W38:ES38))*$P41/12) -> 0 | EU39: =IF(EU$4="",0,(SUM($W35:EU35)-SUM($W38:ET38))*$P41/12) -> 0 | EV39: =IF(EV$4="",0,(SUM($W35:EV35)-SUM($W38:EU38))*$P41/12) -> 0 | EW39: =IF(EW$4="",0,(SUM($W35:EW35)-SUM($W38:EV38))*$P41/12) -> 0 | EX39: =IF(EX$4="",0,(SUM($W35:EX35)-SUM($W38:EW38))*$P41/12) -> 0 | EY39: =IF(EY$4="",0,(SUM($W35:EY35)-SUM($W38:EX38))*$P41/12) -> 0 | EZ39: =IF(EZ$4="",0,(SUM($W35:EZ35)-SUM($W38:EY38))*$P41/12) -> 0 | FA39: =IF(FA$4="",0,(SUM($W35:FA35)-SUM($W38:EZ38))*$P41/12) -> 0 | FB39: =IF(FB$4="",0,(SUM($W35:FB35)-SUM($W38:FA38))*$P41/12) -> 0 | FC39: =IF(FC$4="",0,(SUM($W35:FC35)-SUM($W38:FB38))*$P41/12) -> 0 | FD39: =IF(FD$4="",0,(SUM($W35:FD35)-SUM($W38:FC38))*$P41/12) -> 0 | FE39: =IF(FE$4="",0,(SUM($W35:FE35)-SUM($W38:FD38))*$P41/12) -> 0 | FF39: =IF(FF$4="",0,(SUM($W35:FF35)-SUM($W38:FE38))*$P41/12) -> 0 | FG39: =IF(FG$4="",0,(SUM($W35:FG35)-SUM($W38:FF38))*$P41/12) -> 0 | FH39: =IF(FH$4="",0,(SUM($W35:FH35)-SUM($W38:FG38))*$P41/12) -> 0 | FI39: =IF(FI$4="",0,(SUM($W35:FI35)-SUM($W38:FH38))*$P41/12) -> 0 | FJ39: =IF(FJ$4="",0,(SUM($W35:FJ35)-SUM($W38:FI38))*$P41/12) -> 0 | FK39: =IF(FK$4="",0,(SUM($W35:FK35)-SUM($W38:FJ38))*$P41/12) -> 0 | FL39: =IF(FL$4="",0,(SUM($W35:FL35)-SUM($W38:FK38))*$P41/12) -> 0 | FM39: =IF(FM$4="",0,(SUM($W35:FM35)-SUM($W38:FL38))*$P41/12) -> 0 | FN39: =IF(FN$4="",0,(SUM($W35:FN35)-SUM($W38:FM38))*$P41/12) -> 0 | FO39: =IF(FO$4="",0,(SUM($W35:FO35)-SUM($W38:FN38))*$P41/12) -> 0 | FP39: =IF(FP$4="",0,(SUM($W35:FP35)-SUM($W38:FO38))*$P41/12) -> 0 | FQ39: =IF(FQ$4="",0,(SUM($W35:FQ35)-SUM($W38:FP38))*$P41/12) -> 0 | FR39: =IF(FR$4="",0,(SUM($W35:FR35)-SUM($W38:FQ38))*$P41/12) -> 0 | FS39: =IF(FS$4="",0,(SUM($W35:FS35)-SUM($W38:FR38))*$P41/12) -> 0 | FT39: =IF(FT$4="",0,(SUM($W35:FT35)-SUM($W38:FS38))*$P41/12) -> 0 | FU39: =IF(FU$4="",0,(SUM($W35:FU35)-SUM($W38:FT38))*$P41/12) -> 0 | FV39: =IF(FV$4="",0,(SUM($W35:FV35)-SUM($W38:FU38))*$P41/12) -> 0 | FW39: =IF(FW$4="",0,(SUM($W35:FW35)-SUM($W38:FV38))*$P41/12) -> 0 | FX39: =IF(FX$4="",0,(SUM($W35:FX35)-SUM($W38:FW38))*$P41/12) -> 0 | FY39: =IF(FY$4="",0,(SUM($W35:FY35)-SUM($W38:FX38))*$P41/12) -> 0 | FZ39: =IF(FZ$4="",0,(SUM($W35:FZ35)-SUM($W38:FY38))*$P41/12) -> 0 | GA39: =IF(GA$4="",0,(SUM($W35:GA35)-SUM($W38:FZ38))*$P41/12) -> 0 | GB39: =IF(GB$4="",0,(SUM($W35:GB35)-SUM($W38:GA38))*$P41/12) -> 0 | GC39: =IF(GC$4="",0,(SUM($W35:GC35)-SUM($W38:GB38))*$P41/12) -> 0 | GD39: =IF(GD$4="",0,(SUM($W35:GD35)-SUM($W38:GC38))*$P41/12) -> 0 | GE39: =IF(GE$4="",0,(SUM($W35:GE35)-SUM($W38:GD38))*$P41/12) -> 0 | GF39: =IF(GF$4="",0,(SUM($W35:GF35)-SUM($W38:GE38))*$P41/12) -> 0 | GG39: =IF(GG$4="",0,(SUM($W35:GG35)-SUM($W38:GF38))*$P41/12) -> 0 | GH39: =IF(GH$4="",0,(SUM($W35:GH35)-SUM($W38:GG38))*$P41/12) -> 0 | GI39: =IF(GI$4="",0,(SUM($W35:GI35)-SUM($W38:GH38))*$P41/12) -> 0 | GJ39: =IF(GJ$4="",0,(SUM($W35:GJ35)-SUM($W38:GI38))*$P41/12) -> 0 | GK39: =IF(GK$4="",0,(SUM($W35:GK35)-SUM($W38:GJ38))*$P41/12) -> 0 | GL39: =IF(GL$4="",0,(SUM($W35:GL35)-SUM($W38:GK38))*$P41/12) -> 0 | GM39: =IF(GM$4="",0,(SUM($W35:GM35)-SUM($W38:GL38))*$P41/12) -> 0 | GN39: =IF(GN$4="",0,(SUM($W35:GN35)-SUM($W38:GM38))*$P41/12) -> 0 | GO39: =IF(GO$4="",0,(SUM($W35:GO35)-SUM($W38:GN38))*$P41/12) -> 0 | GP39: =IF(GP$4="",0,(SUM($W35:GP35)-SUM($W38:GO38))*$P41/12) -> 0 | GQ39: =IF(GQ$4="",0,(SUM($W35:GQ35)-SUM($W38:GP38))*$P41/12) -> 0 | GR39: =IF(GR$4="",0,(SUM($W35:GR35)-SUM($W38:GQ38))*$P41/12) -> 0 | GS39: =IF(GS$4="",0,(SUM($W35:GS35)-SUM($W38:GR38))*$P41/12) -> 0 | GT39: =IF(GT$4="",0,(SUM($W35:GT35)-SUM($W38:GS38))*$P41/12) -> 0 | GU39: =IF(GU$4="",0,(SUM($W35:GU35)-SUM($W38:GT38))*$P41/12) -> 0 | GV39: =IF(GV$4="",0,(SUM($W35:GV35)-SUM($W38:GU38))*$P41/12) -> 0
B40: =ROW() -> 40 | H40: Ежемесячные платежи по лизингу | I40: =I39 -> Возврат %% по кредиту | J40: срок кредитования | M40: кол-во мес. | O40: * | X40: =IF(X$4="",0,IF(X$8>$P40,0,IF((POWER(1+$P41/12,($P40-X$8+1))-1)=0,0,((POWER(1+$P41/12,($P40-X$8+1)))/(POWER(1+$P41/12,($P40-X$8+1))-1))))) -> 0 | Y40: 0 | Z40: 0 | AA40: 0 | AB40: 0 | AC40: 0 | AD40: 0 | AE40: 0 | AF40: 0 | AG40: 0 | AH40: 0 | AI40: 0 | AJ40: 0 | AK40: 0 | AL40: 0 | AM40: 0 | AN40: 0 | AO40: 0 | AP40: 0 | AQ40: 0 | AR40: 0 | AS40: 0 | AT40: 0 | AU40: 0 | AV40: 0 | AW40: 0 | AX40: 0 | AY40: 0 | AZ40: 0 | BA40: 0 | BB40: 0 | BC40: 0 | BD40: 0 | BE40: 0 | BF40: 0 | BG40: 0 | BH40: 0 | BI40: 0 | BJ40: 0 | BK40: 0 | BL40: 0 | BM40: 0 | BN40: 0 | BO40: 0 | BP40: 0 | BQ40: 0 | BR40: 0 | BS40: 0 | BT40: 0 | BU40: 0 | BV40: 0 | BW40: 0 | BX40: 0 | BY40: 0 | BZ40: 0 | CA40: 0 | CB40: 0 | CC40: 0 | CD40: 0 | CE40: 0 | CF40: 0 | CG40: 0 | CH40: 0 | CI40: 0 | CJ40: =IF(CJ$4="",0,IF(CJ$8>$P40,0,IF((POWER(1+$P41/12,($P40-CJ$8+1))-1)=0,0,((POWER(1+$P41/12,($P40-CJ$8+1)))/(POWER(1+$P41/12,($P40-CJ$8+1))-1))))) -> 0 | CK40: 0 | CL40: 0 | CM40: 0 | CN40: 0 | CO40: 0 | CP40: 0 | CQ40: 0 | CR40: 0 | CS40: 0 | CT40: 0 | CU40: 0 | CV40: 0 | CW40: 0 | CX40: 0 | CY40: 0 | CZ40: 0 | DA40: 0 | DB40: 0 | DC40: 0 | DD40: 0 | DE40: 0 | DF40: 0 | DG40: 0 | DH40: 0 | DI40: 0 | DJ40: 0 | DK40: 0 | DL40: 0 | DM40: 0 | DN40: 0 | DO40: 0 | DP40: 0 | DQ40: 0 | DR40: 0 | DS40: 0 | DT40: 0 | DU40: 0 | DV40: 0 | DW40: 0 | DX40: 0 | DY40: 0 | DZ40: 0 | EA40: 0 | EB40: 0 | EC40: 0 | ED40: 0 | EE40: 0 | EF40: 0 | EG40: 0 | EH40: 0 | EI40: 0 | EJ40: 0 | EK40: 0 | EL40: 0 | EM40: 0 | EN40: 0 | EO40: 0 | EP40: 0 | EQ40: 0 | ER40: 0 | ES40: 0 | ET40: 0 | EU40: 0 | EV40: =IF(EV$4="",0,IF(EV$8>$P40,0,IF((POWER(1+$P41/12,($P40-EV$8+1))-1)=0,0,((POWER(1+$P41/12,($P40-EV$8+1)))/(POWER(1+$P41/12,($P40-EV$8+1))-1))))) -> 0 | EW40: 0 | EX40: 0 | EY40: 0 | EZ40: 0 | FA40: 0 | FB40: 0 | FC40: 0 | FD40: 0 | FE40: 0 | FF40: 0 | FG40: 0 | FH40: 0 | FI40: 0 | FJ40: 0 | FK40: 0 | FL40: 0 | FM40: 0 | FN40: 0 | FO40: 0 | FP40: 0 | FQ40: 0 | FR40: 0 | FS40: 0 | FT40: 0 | FU40: 0 | FV40: 0 | FW40: 0 | FX40: 0 | FY40: 0 | FZ40: 0 | GA40: 0 | GB40: 0 | GC40: 0 | GD40: 0 | GE40: 0 | GF40: 0 | GG40: 0 | GH40: 0 | GI40: 0 | GJ40: 0 | GK40: 0 | GL40: 0 | GM40: 0 | GN40: 0 | GO40: 0 | GP40: 0 | GQ40: 0 | GR40: 0 | GS40: 0 | GT40: 0 | GU40: 0 | GV40: =IF(GV$4="",0,IF(GV$8>$P40,0,IF((POWER(1+$P41/12,($P40-GV$8+1))-1)=0,0,((POWER(1+$P41/12,($P40-GV$8+1)))/(POWER(1+$P41/12,($P40-GV$8+1))-1))))) -> 0
B41: =ROW() -> 41 | H41: Ежемесячные платежи по лизингу | I41: =I40 -> Возврат %% по кредиту | J41: годовая ставка по кредиту | M41: %г | O41: * | X41: =IF(X$4="",0,IF(X$8>$P40,0,IF(X$8<=IF($P43>=$P40,0,$P43),0,IF(X$8=IF($P43>=$P40,0,$P43)+1,SUM($W35:X35),X35))*(1-$P42)*$P41/12)) -> 0 | Y41: =IF(Y$4="",0,IF(Y$8>$P40,0,IF(Y$8<=IF($P43>=$P40,0,$P43),0,IF(Y$8=IF($P43>=$P40,0,$P43)+1,SUM($W35:Y35),Y35))*(1-$P42)*$P41/12)) -> 0 | Z41: =IF(Z$4="",0,IF(Z$8>$P40,0,IF(Z$8<=IF($P43>=$P40,0,$P43),0,IF(Z$8=IF($P43>=$P40,0,$P43)+1,SUM($W35:Z35),Z35))*(1-$P42)*$P41/12)) -> 0 | AA41: =IF(AA$4="",0,IF(AA$8>$P40,0,IF(AA$8<=IF($P43>=$P40,0,$P43),0,IF(AA$8=IF($P43>=$P40,0,$P43)+1,SUM($W35:AA35),AA35))*(1-$P42)*$P41/12)) -> 0 | AB41: =IF(AB$4="",0,IF(AB$8>$P40,0,IF(AB$8<=IF($P43>=$P40,0,$P43),0,IF(AB$8=IF($P43>=$P40,0,$P43)+1,SUM($W35:AB35),AB35))*(1-$P42)*$P41/12)) -> 0 | AC41: =IF(AC$4="",0,IF(AC$8>$P40,0,IF(AC$8<=IF($P43>=$P40,0,$P43),0,IF(AC$8=IF($P43>=$P40,0,$P43)+1,SUM($W35:AC35),AC35))*(1-$P42)*$P41/12)) -> 0 | AD41: =IF(AD$4="",0,IF(AD$8>$P40,0,IF(AD$8<=IF($P43>=$P40,0,$P43),0,IF(AD$8=IF($P43>=$P40,0,$P43)+1,SUM($W35:AD35),AD35))*(1-$P42)*$P41/12)) -> 0 | AE41: =IF(AE$4="",0,IF(AE$8>$P40,0,IF(AE$8<=IF($P43>=$P40,0,$P43),0,IF(AE$8=IF($P43>=$P40,0,$P43)+1,SUM($W35:AE35),AE35))*(1-$P42)*$P41/12)) -> 0 | AF41: =IF(AF$4="",0,IF(AF$8>$P40,0,IF(AF$8<=IF($P43>=$P40,0,$P43),0,IF(AF$8=IF($P43>=$P40,0,$P43)+1,SUM($W35:AF35),AF35))*(1-$P42)*$P41/12)) -> 0 | AG41: =IF(AG$4="",0,IF(AG$8>$P40,0,IF(AG$8<=IF($P43>=$P40,0,$P43),0,IF(AG$8=IF($P43>=$P40,0,$P43)+1,SUM($W35:AG35),AG35))*(1-$P42)*$P41/12)) -> 0 | AH41: =IF(AH$4="",0,IF(AH$8>$P40,0,IF(AH$8<=IF($P43>=$P40,0,$P43),0,IF(AH$8=IF($P43>=$P40,0,$P43)+1,SUM($W35:AH35),AH35))*(1-$P42)*$P41/12)) -> 0 | AI41: =IF(AI$4="",0,IF(AI$8>$P40,0,IF(AI$8<=IF($P43>=$P40,0,$P43),0,IF(AI$8=IF($P43>=$P40,0,$P43)+1,SUM($W35:AI35),AI35))*(1-$P42)*$P41/12)) -> 0 | AJ41: =IF(AJ$4="",0,IF(AJ$8>$P40,0,IF(AJ$8<=IF($P43>=$P40,0,$P43),0,IF(AJ$8=IF($P43>=$P40,0,$P43)+1,SUM($W35:AJ35),AJ35))*(1-$P42)*$P41/12)) -> 0 | AK41: =IF(AK$4="",0,IF(AK$8>$P40,0,IF(AK$8<=IF($P43>=$P40,0,$P43),0,IF(AK$8=IF($P43>=$P40,0,$P43)+1,SUM($W35:AK35),AK35))*(1-$P42)*$P41/12)) -> 0 | AL41: =IF(AL$4="",0,IF(AL$8>$P40,0,IF(AL$8<=IF($P43>=$P40,0,$P43),0,IF(AL$8=IF($P43>=$P40,0,$P43)+1,SUM($W35:AL35),AL35))*(1-$P42)*$P41/12)) -> 0 | AM41: =IF(AM$4="",0,IF(AM$8>$P40,0,IF(AM$8<=IF($P43>=$P40,0,$P43),0,IF(AM$8=IF($P43>=$P40,0,$P43)+1,SUM($W35:AM35),AM35))*(1-$P42)*$P41/12)) -> 0 | AN41: =IF(AN$4="",0,IF(AN$8>$P40,0,IF(AN$8<=IF($P43>=$P40,0,$P43),0,IF(AN$8=IF($P43>=$P40,0,$P43)+1,SUM($W35:AN35),AN35))*(1-$P42)*$P41/12)) -> 0 | AO41: =IF(AO$4="",0,IF(AO$8>$P40,0,IF(AO$8<=IF($P43>=$P40,0,$P43),0,IF(AO$8=IF($P43>=$P40,0,$P43)+1,SUM($W35:AO35),AO35))*(1-$P42)*$P41/12)) -> 0 | AP41: =IF(AP$4="",0,IF(AP$8>$P40,0,IF(AP$8<=IF($P43>=$P40,0,$P43),0,IF(AP$8=IF($P43>=$P40,0,$P43)+1,SUM($W35:AP35),AP35))*(1-$P42)*$P41/12)) -> 0 | AQ41: =IF(AQ$4="",0,IF(AQ$8>$P40,0,IF(AQ$8<=IF($P43>=$P40,0,$P43),0,IF(AQ$8=IF($P43>=$P40,0,$P43)+1,SUM($W35:AQ35),AQ35))*(1-$P42)*$P41/12)) -> 0 | AR41: =IF(AR$4="",0,IF(AR$8>$P40,0,IF(AR$8<=IF($P43>=$P40,0,$P43),0,IF(AR$8=IF($P43>=$P40,0,$P43)+1,SUM($W35:AR35),AR35))*(1-$P42)*$P41/12)) -> 0 | AS41: =IF(AS$4="",0,IF(AS$8>$P40,0,IF(AS$8<=IF($P43>=$P40,0,$P43),0,IF(AS$8=IF($P43>=$P40,0,$P43)+1,SUM($W35:AS35),AS35))*(1-$P42)*$P41/12)) -> 0 | AT41: =IF(AT$4="",0,IF(AT$8>$P40,0,IF(AT$8<=IF($P43>=$P40,0,$P43),0,IF(AT$8=IF($P43>=$P40,0,$P43)+1,SUM($W35:AT35),AT35))*(1-$P42)*$P41/12)) -> 0 | AU41: =IF(AU$4="",0,IF(AU$8>$P40,0,IF(AU$8<=IF($P43>=$P40,0,$P43),0,IF(AU$8=IF($P43>=$P40,0,$P43)+1,SUM($W35:AU35),AU35))*(1-$P42)*$P41/12)) -> 0 | AV41: =IF(AV$4="",0,IF(AV$8>$P40,0,IF(AV$8<=IF($P43>=$P40,0,$P43),0,IF(AV$8=IF($P43>=$P40,0,$P43)+1,SUM($W35:AV35),AV35))*(1-$P42)*$P41/12)) -> 0 | AW41: =IF(AW$4="",0,IF(AW$8>$P40,0,IF(AW$8<=IF($P43>=$P40,0,$P43),0,IF(AW$8=IF($P43>=$P40,0,$P43)+1,SUM($W35:AW35),AW35))*(1-$P42)*$P41/12)) -> 0 | AX41: =IF(AX$4="",0,IF(AX$8>$P40,0,IF(AX$8<=IF($P43>=$P40,0,$P43),0,IF(AX$8=IF($P43>=$P40,0,$P43)+1,SUM($W35:AX35),AX35))*(1-$P42)*$P41/12)) -> 0 | AY41: =IF(AY$4="",0,IF(AY$8>$P40,0,IF(AY$8<=IF($P43>=$P40,0,$P43),0,IF(AY$8=IF($P43>=$P40,0,$P43)+1,SUM($W35:AY35),AY35))*(1-$P42)*$P41/12)) -> 0 | AZ41: =IF(AZ$4="",0,IF(AZ$8>$P40,0,IF(AZ$8<=IF($P43>=$P40,0,$P43),0,IF(AZ$8=IF($P43>=$P40,0,$P43)+1,SUM($W35:AZ35),AZ35))*(1-$P42)*$P41/12)) -> 0 | BA41: =IF(BA$4="",0,IF(BA$8>$P40,0,IF(BA$8<=IF($P43>=$P40,0,$P43),0,IF(BA$8=IF($P43>=$P40,0,$P43)+1,SUM($W35:BA35),BA35))*(1-$P42)*$P41/12)) -> 0 | BB41: =IF(BB$4="",0,IF(BB$8>$P40,0,IF(BB$8<=IF($P43>=$P40,0,$P43),0,IF(BB$8=IF($P43>=$P40,0,$P43)+1,SUM($W35:BB35),BB35))*(1-$P42)*$P41/12)) -> 0 | BC41: =IF(BC$4="",0,IF(BC$8>$P40,0,IF(BC$8<=IF($P43>=$P40,0,$P43),0,IF(BC$8=IF($P43>=$P40,0,$P43)+1,SUM($W35:BC35),BC35))*(1-$P42)*$P41/12)) -> 0 | BD41: =IF(BD$4="",0,IF(BD$8>$P40,0,IF(BD$8<=IF($P43>=$P40,0,$P43),0,IF(BD$8=IF($P43>=$P40,0,$P43)+1,SUM($W35:BD35),BD35))*(1-$P42)*$P41/12)) -> 0 | BE41: =IF(BE$4="",0,IF(BE$8>$P40,0,IF(BE$8<=IF($P43>=$P40,0,$P43),0,IF(BE$8=IF($P43>=$P40,0,$P43)+1,SUM($W35:BE35),BE35))*(1-$P42)*$P41/12)) -> 0 | BF41: =IF(BF$4="",0,IF(BF$8>$P40,0,IF(BF$8<=IF($P43>=$P40,0,$P43),0,IF(BF$8=IF($P43>=$P40,0,$P43)+1,SUM($W35:BF35),BF35))*(1-$P42)*$P41/12)) -> 0 | BG41: =IF(BG$4="",0,IF(BG$8>$P40,0,IF(BG$8<=IF($P43>=$P40,0,$P43),0,IF(BG$8=IF($P43>=$P40,0,$P43)+1,SUM($W35:BG35),BG35))*(1-$P42)*$P41/12)) -> 0 | BH41: =IF(BH$4="",0,IF(BH$8>$P40,0,IF(BH$8<=IF($P43>=$P40,0,$P43),0,IF(BH$8=IF($P43>=$P40,0,$P43)+1,SUM($W35:BH35),BH35))*(1-$P42)*$P41/12)) -> 0 | BI41: =IF(BI$4="",0,IF(BI$8>$P40,0,IF(BI$8<=IF($P43>=$P40,0,$P43),0,IF(BI$8=IF($P43>=$P40,0,$P43)+1,SUM($W35:BI35),BI35))*(1-$P42)*$P41/12)) -> 0 | BJ41: =IF(BJ$4="",0,IF(BJ$8>$P40,0,IF(BJ$8<=IF($P43>=$P40,0,$P43),0,IF(BJ$8=IF($P43>=$P40,0,$P43)+1,SUM($W35:BJ35),BJ35))*(1-$P42)*$P41/12)) -> 0 | BK41: =IF(BK$4="",0,IF(BK$8>$P40,0,IF(BK$8<=IF($P43>=$P40,0,$P43),0,IF(BK$8=IF($P43>=$P40,0,$P43)+1,SUM($W35:BK35),BK35))*(1-$P42)*$P41/12)) -> 0 | BL41: =IF(BL$4="",0,IF(BL$8>$P40,0,IF(BL$8<=IF($P43>=$P40,0,$P43),0,IF(BL$8=IF($P43>=$P40,0,$P43)+1,SUM($W35:BL35),BL35))*(1-$P42)*$P41/12)) -> 0 | BM41: =IF(BM$4="",0,IF(BM$8>$P40,0,IF(BM$8<=IF($P43>=$P40,0,$P43),0,IF(BM$8=IF($P43>=$P40,0,$P43)+1,SUM($W35:BM35),BM35))*(1-$P42)*$P41/12)) -> 0 | BN41: =IF(BN$4="",0,IF(BN$8>$P40,0,IF(BN$8<=IF($P43>=$P40,0,$P43),0,IF(BN$8=IF($P43>=$P40,0,$P43)+1,SUM($W35:BN35),BN35))*(1-$P42)*$P41/12)) -> 0 | BO41: =IF(BO$4="",0,IF(BO$8>$P40,0,IF(BO$8<=IF($P43>=$P40,0,$P43),0,IF(BO$8=IF($P43>=$P40,0,$P43)+1,SUM($W35:BO35),BO35))*(1-$P42)*$P41/12)) -> 0 | BP41: =IF(BP$4="",0,IF(BP$8>$P40,0,IF(BP$8<=IF($P43>=$P40,0,$P43),0,IF(BP$8=IF($P43>=$P40,0,$P43)+1,SUM($W35:BP35),BP35))*(1-$P42)*$P41/12)) -> 0 | BQ41: =IF(BQ$4="",0,IF(BQ$8>$P40,0,IF(BQ$8<=IF($P43>=$P40,0,$P43),0,IF(BQ$8=IF($P43>=$P40,0,$P43)+1,SUM($W35:BQ35),BQ35))*(1-$P42)*$P41/12)) -> 0 | BR41: =IF(BR$4="",0,IF(BR$8>$P40,0,IF(BR$8<=IF($P43>=$P40,0,$P43),0,IF(BR$8=IF($P43>=$P40,0,$P43)+1,SUM($W35:BR35),BR35))*(1-$P42)*$P41/12)) -> 0 | BS41: =IF(BS$4="",0,IF(BS$8>$P40,0,IF(BS$8<=IF($P43>=$P40,0,$P43),0,IF(BS$8=IF($P43>=$P40,0,$P43)+1,SUM($W35:BS35),BS35))*(1-$P42)*$P41/12)) -> 0 | BT41: =IF(BT$4="",0,IF(BT$8>$P40,0,IF(BT$8<=IF($P43>=$P40,0,$P43),0,IF(BT$8=IF($P43>=$P40,0,$P43)+1,SUM($W35:BT35),BT35))*(1-$P42)*$P41/12)) -> 0 | BU41: =IF(BU$4="",0,IF(BU$8>$P40,0,IF(BU$8<=IF($P43>=$P40,0,$P43),0,IF(BU$8=IF($P43>=$P40,0,$P43)+1,SUM($W35:BU35),BU35))*(1-$P42)*$P41/12)) -> 0 | BV41: =IF(BV$4="",0,IF(BV$8>$P40,0,IF(BV$8<=IF($P43>=$P40,0,$P43),0,IF(BV$8=IF($P43>=$P40,0,$P43)+1,SUM($W35:BV35),BV35))*(1-$P42)*$P41/12)) -> 0 | BW41: =IF(BW$4="",0,IF(BW$8>$P40,0,IF(BW$8<=IF($P43>=$P40,0,$P43),0,IF(BW$8=IF($P43>=$P40,0,$P43)+1,SUM($W35:BW35),BW35))*(1-$P42)*$P41/12)) -> 0 | BX41: =IF(BX$4="",0,IF(BX$8>$P40,0,IF(BX$8<=IF($P43>=$P40,0,$P43),0,IF(BX$8=IF($P43>=$P40,0,$P43)+1,SUM($W35:BX35),BX35))*(1-$P42)*$P41/12)) -> 0 | BY41: =IF(BY$4="",0,IF(BY$8>$P40,0,IF(BY$8<=IF($P43>=$P40,0,$P43),0,IF(BY$8=IF($P43>=$P40,0,$P43)+1,SUM($W35:BY35),BY35))*(1-$P42)*$P41/12)) -> 0 | BZ41: =IF(BZ$4="",0,IF(BZ$8>$P40,0,IF(BZ$8<=IF($P43>=$P40,0,$P43),0,IF(BZ$8=IF($P43>=$P40,0,$P43)+1,SUM($W35:BZ35),BZ35))*(1-$P42)*$P41/12)) -> 0 | CA41: =IF(CA$4="",0,IF(CA$8>$P40,0,IF(CA$8<=IF($P43>=$P40,0,$P43),0,IF(CA$8=IF($P43>=$P40,0,$P43)+1,SUM($W35:CA35),CA35))*(1-$P42)*$P41/12)) -> 0 | CB41: =IF(CB$4="",0,IF(CB$8>$P40,0,IF(CB$8<=IF($P43>=$P40,0,$P43),0,IF(CB$8=IF($P43>=$P40,0,$P43)+1,SUM($W35:CB35),CB35))*(1-$P42)*$P41/12)) -> 0 | CC41: =IF(CC$4="",0,IF(CC$8>$P40,0,IF(CC$8<=IF($P43>=$P40,0,$P43),0,IF(CC$8=IF($P43>=$P40,0,$P43)+1,SUM($W35:CC35),CC35))*(1-$P42)*$P41/12)) -> 0 | CD41: =IF(CD$4="",0,IF(CD$8>$P40,0,IF(CD$8<=IF($P43>=$P40,0,$P43),0,IF(CD$8=IF($P43>=$P40,0,$P43)+1,SUM($W35:CD35),CD35))*(1-$P42)*$P41/12)) -> 0 | CE41: =IF(CE$4="",0,IF(CE$8>$P40,0,IF(CE$8<=IF($P43>=$P40,0,$P43),0,IF(CE$8=IF($P43>=$P40,0,$P43)+1,SUM($W35:CE35),CE35))*(1-$P42)*$P41/12)) -> 0 | CF41: =IF(CF$4="",0,IF(CF$8>$P40,0,IF(CF$8<=IF($P43>=$P40,0,$P43),0,IF(CF$8=IF($P43>=$P40,0,$P43)+1,SUM($W35:CF35),CF35))*(1-$P42)*$P41/12)) -> 0 | CG41: =IF(CG$4="",0,IF(CG$8>$P40,0,IF(CG$8<=IF($P43>=$P40,0,$P43),0,IF(CG$8=IF($P43>=$P40,0,$P43)+1,SUM($W35:CG35),CG35))*(1-$P42)*$P41/12)) -> 0 | CH41: =IF(CH$4="",0,IF(CH$8>$P40,0,IF(CH$8<=IF($P43>=$P40,0,$P43),0,IF(CH$8=IF($P43>=$P40,0,$P43)+1,SUM($W35:CH35),CH35))*(1-$P42)*$P41/12)) -> 0 | CI41: =IF(CI$4="",0,IF(CI$8>$P40,0,IF(CI$8<=IF($P43>=$P40,0,$P43),0,IF(CI$8=IF($P43>=$P40,0,$P43)+1,SUM($W35:CI35),CI35))*(1-$P42)*$P41/12)) -> 0 | CJ41: =IF(CJ$4="",0,IF(CJ$8>$P40,0,IF(CJ$8<=IF($P43>=$P40,0,$P43),0,IF(CJ$8=IF($P43>=$P40,0,$P43)+1,SUM($W35:CJ35),CJ35))*(1-$P42)*$P41/12)) -> 0 | CK41: =IF(CK$4="",0,IF(CK$8>$P40,0,IF(CK$8<=IF($P43>=$P40,0,$P43),0,IF(CK$8=IF($P43>=$P40,0,$P43)+1,SUM($W35:CK35),CK35))*(1-$P42)*$P41/12)) -> 0 | CL41: =IF(CL$4="",0,IF(CL$8>$P40,0,IF(CL$8<=IF($P43>=$P40,0,$P43),0,IF(CL$8=IF($P43>=$P40,0,$P43)+1,SUM($W35:CL35),CL35))*(1-$P42)*$P41/12)) -> 0 | CM41: =IF(CM$4="",0,IF(CM$8>$P40,0,IF(CM$8<=IF($P43>=$P40,0,$P43),0,IF(CM$8=IF($P43>=$P40,0,$P43)+1,SUM($W35:CM35),CM35))*(1-$P42)*$P41/12)) -> 0 | CN41: =IF(CN$4="",0,IF(CN$8>$P40,0,IF(CN$8<=IF($P43>=$P40,0,$P43),0,IF(CN$8=IF($P43>=$P40,0,$P43)+1,SUM($W35:CN35),CN35))*(1-$P42)*$P41/12)) -> 0 | CO41: =IF(CO$4="",0,IF(CO$8>$P40,0,IF(CO$8<=IF($P43>=$P40,0,$P43),0,IF(CO$8=IF($P43>=$P40,0,$P43)+1,SUM($W35:CO35),CO35))*(1-$P42)*$P41/12)) -> 0 | CP41: =IF(CP$4="",0,IF(CP$8>$P40,0,IF(CP$8<=IF($P43>=$P40,0,$P43),0,IF(CP$8=IF($P43>=$P40,0,$P43)+1,SUM($W35:CP35),CP35))*(1-$P42)*$P41/12)) -> 0 | CQ41: =IF(CQ$4="",0,IF(CQ$8>$P40,0,IF(CQ$8<=IF($P43>=$P40,0,$P43),0,IF(CQ$8=IF($P43>=$P40,0,$P43)+1,SUM($W35:CQ35),CQ35))*(1-$P42)*$P41/12)) -> 0 | CR41: =IF(CR$4="",0,IF(CR$8>$P40,0,IF(CR$8<=IF($P43>=$P40,0,$P43),0,IF(CR$8=IF($P43>=$P40,0,$P43)+1,SUM($W35:CR35),CR35))*(1-$P42)*$P41/12)) -> 0 | CS41: =IF(CS$4="",0,IF(CS$8>$P40,0,IF(CS$8<=IF($P43>=$P40,0,$P43),0,IF(CS$8=IF($P43>=$P40,0,$P43)+1,SUM($W35:CS35),CS35))*(1-$P42)*$P41/12)) -> 0 | CT41: =IF(CT$4="",0,IF(CT$8>$P40,0,IF(CT$8<=IF($P43>=$P40,0,$P43),0,IF(CT$8=IF($P43>=$P40,0,$P43)+1,SUM($W35:CT35),CT35))*(1-$P42)*$P41/12)) -> 0 | CU41: =IF(CU$4="",0,IF(CU$8>$P40,0,IF(CU$8<=IF($P43>=$P40,0,$P43),0,IF(CU$8=IF($P43>=$P40,0,$P43)+1,SUM($W35:CU35),CU35))*(1-$P42)*$P41/12)) -> 0 | CV41: =IF(CV$4="",0,IF(CV$8>$P40,0,IF(CV$8<=IF($P43>=$P40,0,$P43),0,IF(CV$8=IF($P43>=$P40,0,$P43)+1,SUM($W35:CV35),CV35))*(1-$P42)*$P41/12)) -> 0 | CW41: =IF(CW$4="",0,IF(CW$8>$P40,0,IF(CW$8<=IF($P43>=$P40,0,$P43),0,IF(CW$8=IF($P43>=$P40,0,$P43)+1,SUM($W35:CW35),CW35))*(1-$P42)*$P41/12)) -> 0 | CX41: =IF(CX$4="",0,IF(CX$8>$P40,0,IF(CX$8<=IF($P43>=$P40,0,$P43),0,IF(CX$8=IF($P43>=$P40,0,$P43)+1,SUM($W35:CX35),CX35))*(1-$P42)*$P41/12)) -> 0 | CY41: =IF(CY$4="",0,IF(CY$8>$P40,0,IF(CY$8<=IF($P43>=$P40,0,$P43),0,IF(CY$8=IF($P43>=$P40,0,$P43)+1,SUM($W35:CY35),CY35))*(1-$P42)*$P41/12)) -> 0 | CZ41: =IF(CZ$4="",0,IF(CZ$8>$P40,0,IF(CZ$8<=IF($P43>=$P40,0,$P43),0,IF(CZ$8=IF($P43>=$P40,0,$P43)+1,SUM($W35:CZ35),CZ35))*(1-$P42)*$P41/12)) -> 0 | DA41: =IF(DA$4="",0,IF(DA$8>$P40,0,IF(DA$8<=IF($P43>=$P40,0,$P43),0,IF(DA$8=IF($P43>=$P40,0,$P43)+1,SUM($W35:DA35),DA35))*(1-$P42)*$P41/12)) -> 0 | DB41: =IF(DB$4="",0,IF(DB$8>$P40,0,IF(DB$8<=IF($P43>=$P40,0,$P43),0,IF(DB$8=IF($P43>=$P40,0,$P43)+1,SUM($W35:DB35),DB35))*(1-$P42)*$P41/12)) -> 0 | DC41: =IF(DC$4="",0,IF(DC$8>$P40,0,IF(DC$8<=IF($P43>=$P40,0,$P43),0,IF(DC$8=IF($P43>=$P40,0,$P43)+1,SUM($W35:DC35),DC35))*(1-$P42)*$P41/12)) -> 0 | DD41: =IF(DD$4="",0,IF(DD$8>$P40,0,IF(DD$8<=IF($P43>=$P40,0,$P43),0,IF(DD$8=IF($P43>=$P40,0,$P43)+1,SUM($W35:DD35),DD35))*(1-$P42)*$P41/12)) -> 0 | DE41: =IF(DE$4="",0,IF(DE$8>$P40,0,IF(DE$8<=IF($P43>=$P40,0,$P43),0,IF(DE$8=IF($P43>=$P40,0,$P43)+1,SUM($W35:DE35),DE35))*(1-$P42)*$P41/12)) -> 0 | DF41: =IF(DF$4="",0,IF(DF$8>$P40,0,IF(DF$8<=IF($P43>=$P40,0,$P43),0,IF(DF$8=IF($P43>=$P40,0,$P43)+1,SUM($W35:DF35),DF35))*(1-$P42)*$P41/12)) -> 0 | DG41: =IF(DG$4="",0,IF(DG$8>$P40,0,IF(DG$8<=IF($P43>=$P40,0,$P43),0,IF(DG$8=IF($P43>=$P40,0,$P43)+1,SUM($W35:DG35),DG35))*(1-$P42)*$P41/12)) -> 0 | DH41: =IF(DH$4="",0,IF(DH$8>$P40,0,IF(DH$8<=IF($P43>=$P40,0,$P43),0,IF(DH$8=IF($P43>=$P40,0,$P43)+1,SUM($W35:DH35),DH35))*(1-$P42)*$P41/12)) -> 0 | DI41: =IF(DI$4="",0,IF(DI$8>$P40,0,IF(DI$8<=IF($P43>=$P40,0,$P43),0,IF(DI$8=IF($P43>=$P40,0,$P43)+1,SUM($W35:DI35),DI35))*(1-$P42)*$P41/12)) -> 0 | DJ41: =IF(DJ$4="",0,IF(DJ$8>$P40,0,IF(DJ$8<=IF($P43>=$P40,0,$P43),0,IF(DJ$8=IF($P43>=$P40,0,$P43)+1,SUM($W35:DJ35),DJ35))*(1-$P42)*$P41/12)) -> 0 | DK41: =IF(DK$4="",0,IF(DK$8>$P40,0,IF(DK$8<=IF($P43>=$P40,0,$P43),0,IF(DK$8=IF($P43>=$P40,0,$P43)+1,SUM($W35:DK35),DK35))*(1-$P42)*$P41/12)) -> 0 | DL41: =IF(DL$4="",0,IF(DL$8>$P40,0,IF(DL$8<=IF($P43>=$P40,0,$P43),0,IF(DL$8=IF($P43>=$P40,0,$P43)+1,SUM($W35:DL35),DL35))*(1-$P42)*$P41/12)) -> 0 | DM41: =IF(DM$4="",0,IF(DM$8>$P40,0,IF(DM$8<=IF($P43>=$P40,0,$P43),0,IF(DM$8=IF($P43>=$P40,0,$P43)+1,SUM($W35:DM35),DM35))*(1-$P42)*$P41/12)) -> 0 | DN41: =IF(DN$4="",0,IF(DN$8>$P40,0,IF(DN$8<=IF($P43>=$P40,0,$P43),0,IF(DN$8=IF($P43>=$P40,0,$P43)+1,SUM($W35:DN35),DN35))*(1-$P42)*$P41/12)) -> 0 | DO41: =IF(DO$4="",0,IF(DO$8>$P40,0,IF(DO$8<=IF($P43>=$P40,0,$P43),0,IF(DO$8=IF($P43>=$P40,0,$P43)+1,SUM($W35:DO35),DO35))*(1-$P42)*$P41/12)) -> 0 | DP41: =IF(DP$4="",0,IF(DP$8>$P40,0,IF(DP$8<=IF($P43>=$P40,0,$P43),0,IF(DP$8=IF($P43>=$P40,0,$P43)+1,SUM($W35:DP35),DP35))*(1-$P42)*$P41/12)) -> 0 | DQ41: =IF(DQ$4="",0,IF(DQ$8>$P40,0,IF(DQ$8<=IF($P43>=$P40,0,$P43),0,IF(DQ$8=IF($P43>=$P40,0,$P43)+1,SUM($W35:DQ35),DQ35))*(1-$P42)*$P41/12)) -> 0 | DR41: =IF(DR$4="",0,IF(DR$8>$P40,0,IF(DR$8<=IF($P43>=$P40,0,$P43),0,IF(DR$8=IF($P43>=$P40,0,$P43)+1,SUM($W35:DR35),DR35))*(1-$P42)*$P41/12)) -> 0 | DS41: =IF(DS$4="",0,IF(DS$8>$P40,0,IF(DS$8<=IF($P43>=$P40,0,$P43),0,IF(DS$8=IF($P43>=$P40,0,$P43)+1,SUM($W35:DS35),DS35))*(1-$P42)*$P41/12)) -> 0 | DT41: =IF(DT$4="",0,IF(DT$8>$P40,0,IF(DT$8<=IF($P43>=$P40,0,$P43),0,IF(DT$8=IF($P43>=$P40,0,$P43)+1,SUM($W35:DT35),DT35))*(1-$P42)*$P41/12)) -> 0 | DU41: =IF(DU$4="",0,IF(DU$8>$P40,0,IF(DU$8<=IF($P43>=$P40,0,$P43),0,IF(DU$8=IF($P43>=$P40,0,$P43)+1,SUM($W35:DU35),DU35))*(1-$P42)*$P41/12)) -> 0 | DV41: =IF(DV$4="",0,IF(DV$8>$P40,0,IF(DV$8<=IF($P43>=$P40,0,$P43),0,IF(DV$8=IF($P43>=$P40,0,$P43)+1,SUM($W35:DV35),DV35))*(1-$P42)*$P41/12)) -> 0 | DW41: =IF(DW$4="",0,IF(DW$8>$P40,0,IF(DW$8<=IF($P43>=$P40,0,$P43),0,IF(DW$8=IF($P43>=$P40,0,$P43)+1,SUM($W35:DW35),DW35))*(1-$P42)*$P41/12)) -> 0 | DX41: =IF(DX$4="",0,IF(DX$8>$P40,0,IF(DX$8<=IF($P43>=$P40,0,$P43),0,IF(DX$8=IF($P43>=$P40,0,$P43)+1,SUM($W35:DX35),DX35))*(1-$P42)*$P41/12)) -> 0 | DY41: =IF(DY$4="",0,IF(DY$8>$P40,0,IF(DY$8<=IF($P43>=$P40,0,$P43),0,IF(DY$8=IF($P43>=$P40,0,$P43)+1,SUM($W35:DY35),DY35))*(1-$P42)*$P41/12)) -> 0 | DZ41: =IF(DZ$4="",0,IF(DZ$8>$P40,0,IF(DZ$8<=IF($P43>=$P40,0,$P43),0,IF(DZ$8=IF($P43>=$P40,0,$P43)+1,SUM($W35:DZ35),DZ35))*(1-$P42)*$P41/12)) -> 0 | EA41: =IF(EA$4="",0,IF(EA$8>$P40,0,IF(EA$8<=IF($P43>=$P40,0,$P43),0,IF(EA$8=IF($P43>=$P40,0,$P43)+1,SUM($W35:EA35),EA35))*(1-$P42)*$P41/12)) -> 0 | EB41: =IF(EB$4="",0,IF(EB$8>$P40,0,IF(EB$8<=IF($P43>=$P40,0,$P43),0,IF(EB$8=IF($P43>=$P40,0,$P43)+1,SUM($W35:EB35),EB35))*(1-$P42)*$P41/12)) -> 0 | EC41: =IF(EC$4="",0,IF(EC$8>$P40,0,IF(EC$8<=IF($P43>=$P40,0,$P43),0,IF(EC$8=IF($P43>=$P40,0,$P43)+1,SUM($W35:EC35),EC35))*(1-$P42)*$P41/12)) -> 0 | ED41: =IF(ED$4="",0,IF(ED$8>$P40,0,IF(ED$8<=IF($P43>=$P40,0,$P43),0,IF(ED$8=IF($P43>=$P40,0,$P43)+1,SUM($W35:ED35),ED35))*(1-$P42)*$P41/12)) -> 0 | EE41: =IF(EE$4="",0,IF(EE$8>$P40,0,IF(EE$8<=IF($P43>=$P40,0,$P43),0,IF(EE$8=IF($P43>=$P40,0,$P43)+1,SUM($W35:EE35),EE35))*(1-$P42)*$P41/12)) -> 0 | EF41: =IF(EF$4="",0,IF(EF$8>$P40,0,IF(EF$8<=IF($P43>=$P40,0,$P43),0,IF(EF$8=IF($P43>=$P40,0,$P43)+1,SUM($W35:EF35),EF35))*(1-$P42)*$P41/12)) -> 0 | EG41: =IF(EG$4="",0,IF(EG$8>$P40,0,IF(EG$8<=IF($P43>=$P40,0,$P43),0,IF(EG$8=IF($P43>=$P40,0,$P43)+1,SUM($W35:EG35),EG35))*(1-$P42)*$P41/12)) -> 0 | EH41: =IF(EH$4="",0,IF(EH$8>$P40,0,IF(EH$8<=IF($P43>=$P40,0,$P43),0,IF(EH$8=IF($P43>=$P40,0,$P43)+1,SUM($W35:EH35),EH35))*(1-$P42)*$P41/12)) -> 0 | EI41: =IF(EI$4="",0,IF(EI$8>$P40,0,IF(EI$8<=IF($P43>=$P40,0,$P43),0,IF(EI$8=IF($P43>=$P40,0,$P43)+1,SUM($W35:EI35),EI35))*(1-$P42)*$P41/12)) -> 0 | EJ41: =IF(EJ$4="",0,IF(EJ$8>$P40,0,IF(EJ$8<=IF($P43>=$P40,0,$P43),0,IF(EJ$8=IF($P43>=$P40,0,$P43)+1,SUM($W35:EJ35),EJ35))*(1-$P42)*$P41/12)) -> 0 | EK41: =IF(EK$4="",0,IF(EK$8>$P40,0,IF(EK$8<=IF($P43>=$P40,0,$P43),0,IF(EK$8=IF($P43>=$P40,0,$P43)+1,SUM($W35:EK35),EK35))*(1-$P42)*$P41/12)) -> 0 | EL41: =IF(EL$4="",0,IF(EL$8>$P40,0,IF(EL$8<=IF($P43>=$P40,0,$P43),0,IF(EL$8=IF($P43>=$P40,0,$P43)+1,SUM($W35:EL35),EL35))*(1-$P42)*$P41/12)) -> 0 | EM41: =IF(EM$4="",0,IF(EM$8>$P40,0,IF(EM$8<=IF($P43>=$P40,0,$P43),0,IF(EM$8=IF($P43>=$P40,0,$P43)+1,SUM($W35:EM35),EM35))*(1-$P42)*$P41/12)) -> 0 | EN41: =IF(EN$4="",0,IF(EN$8>$P40,0,IF(EN$8<=IF($P43>=$P40,0,$P43),0,IF(EN$8=IF($P43>=$P40,0,$P43)+1,SUM($W35:EN35),EN35))*(1-$P42)*$P41/12)) -> 0 | EO41: =IF(EO$4="",0,IF(EO$8>$P40,0,IF(EO$8<=IF($P43>=$P40,0,$P43),0,IF(EO$8=IF($P43>=$P40,0,$P43)+1,SUM($W35:EO35),EO35))*(1-$P42)*$P41/12)) -> 0 | EP41: =IF(EP$4="",0,IF(EP$8>$P40,0,IF(EP$8<=IF($P43>=$P40,0,$P43),0,IF(EP$8=IF($P43>=$P40,0,$P43)+1,SUM($W35:EP35),EP35))*(1-$P42)*$P41/12)) -> 0 | EQ41: =IF(EQ$4="",0,IF(EQ$8>$P40,0,IF(EQ$8<=IF($P43>=$P40,0,$P43),0,IF(EQ$8=IF($P43>=$P40,0,$P43)+1,SUM($W35:EQ35),EQ35))*(1-$P42)*$P41/12)) -> 0 | ER41: =IF(ER$4="",0,IF(ER$8>$P40,0,IF(ER$8<=IF($P43>=$P40,0,$P43),0,IF(ER$8=IF($P43>=$P40,0,$P43)+1,SUM($W35:ER35),ER35))*(1-$P42)*$P41/12)) -> 0 | ES41: =IF(ES$4="",0,IF(ES$8>$P40,0,IF(ES$8<=IF($P43>=$P40,0,$P43),0,IF(ES$8=IF($P43>=$P40,0,$P43)+1,SUM($W35:ES35),ES35))*(1-$P42)*$P41/12)) -> 0 | ET41: =IF(ET$4="",0,IF(ET$8>$P40,0,IF(ET$8<=IF($P43>=$P40,0,$P43),0,IF(ET$8=IF($P43>=$P40,0,$P43)+1,SUM($W35:ET35),ET35))*(1-$P42)*$P41/12)) -> 0 | EU41: =IF(EU$4="",0,IF(EU$8>$P40,0,IF(EU$8<=IF($P43>=$P40,0,$P43),0,IF(EU$8=IF($P43>=$P40,0,$P43)+1,SUM($W35:EU35),EU35))*(1-$P42)*$P41/12)) -> 0 | EV41: =IF(EV$4="",0,IF(EV$8>$P40,0,IF(EV$8<=IF($P43>=$P40,0,$P43),0,IF(EV$8=IF($P43>=$P40,0,$P43)+1,SUM($W35:EV35),EV35))*(1-$P42)*$P41/12)) -> 0 | EW41: =IF(EW$4="",0,IF(EW$8>$P40,0,IF(EW$8<=IF($P43>=$P40,0,$P43),0,IF(EW$8=IF($P43>=$P40,0,$P43)+1,SUM($W35:EW35),EW35))*(1-$P42)*$P41/12)) -> 0 | EX41: =IF(EX$4="",0,IF(EX$8>$P40,0,IF(EX$8<=IF($P43>=$P40,0,$P43),0,IF(EX$8=IF($P43>=$P40,0,$P43)+1,SUM($W35:EX35),EX35))*(1-$P42)*$P41/12)) -> 0 | EY41: =IF(EY$4="",0,IF(EY$8>$P40,0,IF(EY$8<=IF($P43>=$P40,0,$P43),0,IF(EY$8=IF($P43>=$P40,0,$P43)+1,SUM($W35:EY35),EY35))*(1-$P42)*$P41/12)) -> 0 | EZ41: =IF(EZ$4="",0,IF(EZ$8>$P40,0,IF(EZ$8<=IF($P43>=$P40,0,$P43),0,IF(EZ$8=IF($P43>=$P40,0,$P43)+1,SUM($W35:EZ35),EZ35))*(1-$P42)*$P41/12)) -> 0 | FA41: =IF(FA$4="",0,IF(FA$8>$P40,0,IF(FA$8<=IF($P43>=$P40,0,$P43),0,IF(FA$8=IF($P43>=$P40,0,$P43)+1,SUM($W35:FA35),FA35))*(1-$P42)*$P41/12)) -> 0 | FB41: =IF(FB$4="",0,IF(FB$8>$P40,0,IF(FB$8<=IF($P43>=$P40,0,$P43),0,IF(FB$8=IF($P43>=$P40,0,$P43)+1,SUM($W35:FB35),FB35))*(1-$P42)*$P41/12)) -> 0 | FC41: =IF(FC$4="",0,IF(FC$8>$P40,0,IF(FC$8<=IF($P43>=$P40,0,$P43),0,IF(FC$8=IF($P43>=$P40,0,$P43)+1,SUM($W35:FC35),FC35))*(1-$P42)*$P41/12)) -> 0 | FD41: =IF(FD$4="",0,IF(FD$8>$P40,0,IF(FD$8<=IF($P43>=$P40,0,$P43),0,IF(FD$8=IF($P43>=$P40,0,$P43)+1,SUM($W35:FD35),FD35))*(1-$P42)*$P41/12)) -> 0 | FE41: =IF(FE$4="",0,IF(FE$8>$P40,0,IF(FE$8<=IF($P43>=$P40,0,$P43),0,IF(FE$8=IF($P43>=$P40,0,$P43)+1,SUM($W35:FE35),FE35))*(1-$P42)*$P41/12)) -> 0 | FF41: =IF(FF$4="",0,IF(FF$8>$P40,0,IF(FF$8<=IF($P43>=$P40,0,$P43),0,IF(FF$8=IF($P43>=$P40,0,$P43)+1,SUM($W35:FF35),FF35))*(1-$P42)*$P41/12)) -> 0 | FG41: =IF(FG$4="",0,IF(FG$8>$P40,0,IF(FG$8<=IF($P43>=$P40,0,$P43),0,IF(FG$8=IF($P43>=$P40,0,$P43)+1,SUM($W35:FG35),FG35))*(1-$P42)*$P41/12)) -> 0 | FH41: =IF(FH$4="",0,IF(FH$8>$P40,0,IF(FH$8<=IF($P43>=$P40,0,$P43),0,IF(FH$8=IF($P43>=$P40,0,$P43)+1,SUM($W35:FH35),FH35))*(1-$P42)*$P41/12)) -> 0 | FI41: =IF(FI$4="",0,IF(FI$8>$P40,0,IF(FI$8<=IF($P43>=$P40,0,$P43),0,IF(FI$8=IF($P43>=$P40,0,$P43)+1,SUM($W35:FI35),FI35))*(1-$P42)*$P41/12)) -> 0 | FJ41: =IF(FJ$4="",0,IF(FJ$8>$P40,0,IF(FJ$8<=IF($P43>=$P40,0,$P43),0,IF(FJ$8=IF($P43>=$P40,0,$P43)+1,SUM($W35:FJ35),FJ35))*(1-$P42)*$P41/12)) -> 0 | FK41: =IF(FK$4="",0,IF(FK$8>$P40,0,IF(FK$8<=IF($P43>=$P40,0,$P43),0,IF(FK$8=IF($P43>=$P40,0,$P43)+1,SUM($W35:FK35),FK35))*(1-$P42)*$P41/12)) -> 0 | FL41: =IF(FL$4="",0,IF(FL$8>$P40,0,IF(FL$8<=IF($P43>=$P40,0,$P43),0,IF(FL$8=IF($P43>=$P40,0,$P43)+1,SUM($W35:FL35),FL35))*(1-$P42)*$P41/12)) -> 0 | FM41: =IF(FM$4="",0,IF(FM$8>$P40,0,IF(FM$8<=IF($P43>=$P40,0,$P43),0,IF(FM$8=IF($P43>=$P40,0,$P43)+1,SUM($W35:FM35),FM35))*(1-$P42)*$P41/12)) -> 0 | FN41: =IF(FN$4="",0,IF(FN$8>$P40,0,IF(FN$8<=IF($P43>=$P40,0,$P43),0,IF(FN$8=IF($P43>=$P40,0,$P43)+1,SUM($W35:FN35),FN35))*(1-$P42)*$P41/12)) -> 0 | FO41: =IF(FO$4="",0,IF(FO$8>$P40,0,IF(FO$8<=IF($P43>=$P40,0,$P43),0,IF(FO$8=IF($P43>=$P40,0,$P43)+1,SUM($W35:FO35),FO35))*(1-$P42)*$P41/12)) -> 0 | FP41: =IF(FP$4="",0,IF(FP$8>$P40,0,IF(FP$8<=IF($P43>=$P40,0,$P43),0,IF(FP$8=IF($P43>=$P40,0,$P43)+1,SUM($W35:FP35),FP35))*(1-$P42)*$P41/12)) -> 0 | FQ41: =IF(FQ$4="",0,IF(FQ$8>$P40,0,IF(FQ$8<=IF($P43>=$P40,0,$P43),0,IF(FQ$8=IF($P43>=$P40,0,$P43)+1,SUM($W35:FQ35),FQ35))*(1-$P42)*$P41/12)) -> 0 | FR41: =IF(FR$4="",0,IF(FR$8>$P40,0,IF(FR$8<=IF($P43>=$P40,0,$P43),0,IF(FR$8=IF($P43>=$P40,0,$P43)+1,SUM($W35:FR35),FR35))*(1-$P42)*$P41/12)) -> 0 | FS41: =IF(FS$4="",0,IF(FS$8>$P40,0,IF(FS$8<=IF($P43>=$P40,0,$P43),0,IF(FS$8=IF($P43>=$P40,0,$P43)+1,SUM($W35:FS35),FS35))*(1-$P42)*$P41/12)) -> 0 | FT41: =IF(FT$4="",0,IF(FT$8>$P40,0,IF(FT$8<=IF($P43>=$P40,0,$P43),0,IF(FT$8=IF($P43>=$P40,0,$P43)+1,SUM($W35:FT35),FT35))*(1-$P42)*$P41/12)) -> 0 | FU41: =IF(FU$4="",0,IF(FU$8>$P40,0,IF(FU$8<=IF($P43>=$P40,0,$P43),0,IF(FU$8=IF($P43>=$P40,0,$P43)+1,SUM($W35:FU35),FU35))*(1-$P42)*$P41/12)) -> 0 | FV41: =IF(FV$4="",0,IF(FV$8>$P40,0,IF(FV$8<=IF($P43>=$P40,0,$P43),0,IF(FV$8=IF($P43>=$P40,0,$P43)+1,SUM($W35:FV35),FV35))*(1-$P42)*$P41/12)) -> 0 | FW41: =IF(FW$4="",0,IF(FW$8>$P40,0,IF(FW$8<=IF($P43>=$P40,0,$P43),0,IF(FW$8=IF($P43>=$P40,0,$P43)+1,SUM($W35:FW35),FW35))*(1-$P42)*$P41/12)) -> 0 | FX41: =IF(FX$4="",0,IF(FX$8>$P40,0,IF(FX$8<=IF($P43>=$P40,0,$P43),0,IF(FX$8=IF($P43>=$P40,0,$P43)+1,SUM($W35:FX35),FX35))*(1-$P42)*$P41/12)) -> 0 | FY41: =IF(FY$4="",0,IF(FY$8>$P40,0,IF(FY$8<=IF($P43>=$P40,0,$P43),0,IF(FY$8=IF($P43>=$P40,0,$P43)+1,SUM($W35:FY35),FY35))*(1-$P42)*$P41/12)) -> 0 | FZ41: =IF(FZ$4="",0,IF(FZ$8>$P40,0,IF(FZ$8<=IF($P43>=$P40,0,$P43),0,IF(FZ$8=IF($P43>=$P40,0,$P43)+1,SUM($W35:FZ35),FZ35))*(1-$P42)*$P41/12)) -> 0 | GA41: =IF(GA$4="",0,IF(GA$8>$P40,0,IF(GA$8<=IF($P43>=$P40,0,$P43),0,IF(GA$8=IF($P43>=$P40,0,$P43)+1,SUM($W35:GA35),GA35))*(1-$P42)*$P41/12)) -> 0 | GB41: =IF(GB$4="",0,IF(GB$8>$P40,0,IF(GB$8<=IF($P43>=$P40,0,$P43),0,IF(GB$8=IF($P43>=$P40,0,$P43)+1,SUM($W35:GB35),GB35))*(1-$P42)*$P41/12)) -> 0 | GC41: =IF(GC$4="",0,IF(GC$8>$P40,0,IF(GC$8<=IF($P43>=$P40,0,$P43),0,IF(GC$8=IF($P43>=$P40,0,$P43)+1,SUM($W35:GC35),GC35))*(1-$P42)*$P41/12)) -> 0 | GD41: =IF(GD$4="",0,IF(GD$8>$P40,0,IF(GD$8<=IF($P43>=$P40,0,$P43),0,IF(GD$8=IF($P43>=$P40,0,$P43)+1,SUM($W35:GD35),GD35))*(1-$P42)*$P41/12)) -> 0 | GE41: =IF(GE$4="",0,IF(GE$8>$P40,0,IF(GE$8<=IF($P43>=$P40,0,$P43),0,IF(GE$8=IF($P43>=$P40,0,$P43)+1,SUM($W35:GE35),GE35))*(1-$P42)*$P41/12)) -> 0 | GF41: =IF(GF$4="",0,IF(GF$8>$P40,0,IF(GF$8<=IF($P43>=$P40,0,$P43),0,IF(GF$8=IF($P43>=$P40,0,$P43)+1,SUM($W35:GF35),GF35))*(1-$P42)*$P41/12)) -> 0 | GG41: =IF(GG$4="",0,IF(GG$8>$P40,0,IF(GG$8<=IF($P43>=$P40,0,$P43),0,IF(GG$8=IF($P43>=$P40,0,$P43)+1,SUM($W35:GG35),GG35))*(1-$P42)*$P41/12)) -> 0 | GH41: =IF(GH$4="",0,IF(GH$8>$P40,0,IF(GH$8<=IF($P43>=$P40,0,$P43),0,IF(GH$8=IF($P43>=$P40,0,$P43)+1,SUM($W35:GH35),GH35))*(1-$P42)*$P41/12)) -> 0 | GI41: =IF(GI$4="",0,IF(GI$8>$P40,0,IF(GI$8<=IF($P43>=$P40,0,$P43),0,IF(GI$8=IF($P43>=$P40,0,$P43)+1,SUM($W35:GI35),GI35))*(1-$P42)*$P41/12)) -> 0 | GJ41: =IF(GJ$4="",0,IF(GJ$8>$P40,0,IF(GJ$8<=IF($P43>=$P40,0,$P43),0,IF(GJ$8=IF($P43>=$P40,0,$P43)+1,SUM($W35:GJ35),GJ35))*(1-$P42)*$P41/12)) -> 0 | GK41: =IF(GK$4="",0,IF(GK$8>$P40,0,IF(GK$8<=IF($P43>=$P40,0,$P43),0,IF(GK$8=IF($P43>=$P40,0,$P43)+1,SUM($W35:GK35),GK35))*(1-$P42)*$P41/12)) -> 0 | GL41: =IF(GL$4="",0,IF(GL$8>$P40,0,IF(GL$8<=IF($P43>=$P40,0,$P43),0,IF(GL$8=IF($P43>=$P40,0,$P43)+1,SUM($W35:GL35),GL35))*(1-$P42)*$P41/12)) -> 0 | GM41: =IF(GM$4="",0,IF(GM$8>$P40,0,IF(GM$8<=IF($P43>=$P40,0,$P43),0,IF(GM$8=IF($P43>=$P40,0,$P43)+1,SUM($W35:GM35),GM35))*(1-$P42)*$P41/12)) -> 0 | GN41: =IF(GN$4="",0,IF(GN$8>$P40,0,IF(GN$8<=IF($P43>=$P40,0,$P43),0,IF(GN$8=IF($P43>=$P40,0,$P43)+1,SUM($W35:GN35),GN35))*(1-$P42)*$P41/12)) -> 0 | GO41: =IF(GO$4="",0,IF(GO$8>$P40,0,IF(GO$8<=IF($P43>=$P40,0,$P43),0,IF(GO$8=IF($P43>=$P40,0,$P43)+1,SUM($W35:GO35),GO35))*(1-$P42)*$P41/12)) -> 0 | GP41: =IF(GP$4="",0,IF(GP$8>$P40,0,IF(GP$8<=IF($P43>=$P40,0,$P43),0,IF(GP$8=IF($P43>=$P40,0,$P43)+1,SUM($W35:GP35),GP35))*(1-$P42)*$P41/12)) -> 0 | GQ41: =IF(GQ$4="",0,IF(GQ$8>$P40,0,IF(GQ$8<=IF($P43>=$P40,0,$P43),0,IF(GQ$8=IF($P43>=$P40,0,$P43)+1,SUM($W35:GQ35),GQ35))*(1-$P42)*$P41/12)) -> 0 | GR41: =IF(GR$4="",0,IF(GR$8>$P40,0,IF(GR$8<=IF($P43>=$P40,0,$P43),0,IF(GR$8=IF($P43>=$P40,0,$P43)+1,SUM($W35:GR35),GR35))*(1-$P42)*$P41/12)) -> 0 | GS41: =IF(GS$4="",0,IF(GS$8>$P40,0,IF(GS$8<=IF($P43>=$P40,0,$P43),0,IF(GS$8=IF($P43>=$P40,0,$P43)+1,SUM($W35:GS35),GS35))*(1-$P42)*$P41/12)) -> 0 | GT41: =IF(GT$4="",0,IF(GT$8>$P40,0,IF(GT$8<=IF($P43>=$P40,0,$P43),0,IF(GT$8=IF($P43>=$P40,0,$P43)+1,SUM($W35:GT35),GT35))*(1-$P42)*$P41/12)) -> 0 | GU41: =IF(GU$4="",0,IF(GU$8>$P40,0,IF(GU$8<=IF($P43>=$P40,0,$P43),0,IF(GU$8=IF($P43>=$P40,0,$P43)+1,SUM($W35:GU35),GU35))*(1-$P42)*$P41/12)) -> 0 | GV41: =IF(GV$4="",0,IF(GV$8>$P40,0,IF(GV$8<=IF($P43>=$P40,0,$P43),0,IF(GV$8=IF($P43>=$P40,0,$P43)+1,SUM($W35:GV35),GV35))*(1-$P42)*$P41/12)) -> 0
B42: =ROW() -> 42 | H42: Ежемесячные платежи по лизингу | I42: Возврат %% по кредиту | J42: баллон/выкупной | M42: % | O42: *
B43: =ROW() -> 43 | H43: Ежемесячные платежи по лизингу | I43: Возврат %% по кредиту | J43: каникулы на возврат тела кредита | M43: кол-во мес. | O43: *
B44: =ROW() -> 44
B45: =ROW() -> 45 | H45: Денежный поток | P45: CF | U45: =SUM(INDIRECT(ADDRESS($B45,X$2)&":"&ADDRESS($B45,MAX($2:$2)))) -> 0 | X45: =IF(X$4="",0,SUMIFS(X$10:X44,$P$10:$P44,"CF(+)")-SUMIFS(X$10:X44,$P$10:$P44,"CF(-)")) -> 0 | Y45: =IF(Y$4="",0,SUMIFS(Y$10:Y44,$P$10:$P44,"CF(+)")-SUMIFS(Y$10:Y44,$P$10:$P44,"CF(-)")) -> 0 | Z45: =IF(Z$4="",0,SUMIFS(Z$10:Z44,$P$10:$P44,"CF(+)")-SUMIFS(Z$10:Z44,$P$10:$P44,"CF(-)")) -> 0 | AA45: =IF(AA$4="",0,SUMIFS(AA$10:AA44,$P$10:$P44,"CF(+)")-SUMIFS(AA$10:AA44,$P$10:$P44,"CF(-)")) -> 0 | AB45: =IF(AB$4="",0,SUMIFS(AB$10:AB44,$P$10:$P44,"CF(+)")-SUMIFS(AB$10:AB44,$P$10:$P44,"CF(-)")) -> 0 | AC45: =IF(AC$4="",0,SUMIFS(AC$10:AC44,$P$10:$P44,"CF(+)")-SUMIFS(AC$10:AC44,$P$10:$P44,"CF(-)")) -> 0 | AD45: =IF(AD$4="",0,SUMIFS(AD$10:AD44,$P$10:$P44,"CF(+)")-SUMIFS(AD$10:AD44,$P$10:$P44,"CF(-)")) -> 0 | AE45: =IF(AE$4="",0,SUMIFS(AE$10:AE44,$P$10:$P44,"CF(+)")-SUMIFS(AE$10:AE44,$P$10:$P44,"CF(-)")) -> 0 | AF45: =IF(AF$4="",0,SUMIFS(AF$10:AF44,$P$10:$P44,"CF(+)")-SUMIFS(AF$10:AF44,$P$10:$P44,"CF(-)")) -> 0 | AG45: =IF(AG$4="",0,SUMIFS(AG$10:AG44,$P$10:$P44,"CF(+)")-SUMIFS(AG$10:AG44,$P$10:$P44,"CF(-)")) -> 0 | AH45: =IF(AH$4="",0,SUMIFS(AH$10:AH44,$P$10:$P44,"CF(+)")-SUMIFS(AH$10:AH44,$P$10:$P44,"CF(-)")) -> 0 | AI45: =IF(AI$4="",0,SUMIFS(AI$10:AI44,$P$10:$P44,"CF(+)")-SUMIFS(AI$10:AI44,$P$10:$P44,"CF(-)")) -> 0 | AJ45: =IF(AJ$4="",0,SUMIFS(AJ$10:AJ44,$P$10:$P44,"CF(+)")-SUMIFS(AJ$10:AJ44,$P$10:$P44,"CF(-)")) -> 0 | AK45: =IF(AK$4="",0,SUMIFS(AK$10:AK44,$P$10:$P44,"CF(+)")-SUMIFS(AK$10:AK44,$P$10:$P44,"CF(-)")) -> 0 | AL45: =IF(AL$4="",0,SUMIFS(AL$10:AL44,$P$10:$P44,"CF(+)")-SUMIFS(AL$10:AL44,$P$10:$P44,"CF(-)")) -> 0 | AM45: =IF(AM$4="",0,SUMIFS(AM$10:AM44,$P$10:$P44,"CF(+)")-SUMIFS(AM$10:AM44,$P$10:$P44,"CF(-)")) -> 0 | AN45: =IF(AN$4="",0,SUMIFS(AN$10:AN44,$P$10:$P44,"CF(+)")-SUMIFS(AN$10:AN44,$P$10:$P44,"CF(-)")) -> 0 | AO45: =IF(AO$4="",0,SUMIFS(AO$10:AO44,$P$10:$P44,"CF(+)")-SUMIFS(AO$10:AO44,$P$10:$P44,"CF(-)")) -> 0 | AP45: =IF(AP$4="",0,SUMIFS(AP$10:AP44,$P$10:$P44,"CF(+)")-SUMIFS(AP$10:AP44,$P$10:$P44,"CF(-)")) -> 0 | AQ45: =IF(AQ$4="",0,SUMIFS(AQ$10:AQ44,$P$10:$P44,"CF(+)")-SUMIFS(AQ$10:AQ44,$P$10:$P44,"CF(-)")) -> 0 | AR45: =IF(AR$4="",0,SUMIFS(AR$10:AR44,$P$10:$P44,"CF(+)")-SUMIFS(AR$10:AR44,$P$10:$P44,"CF(-)")) -> 0 | AS45: =IF(AS$4="",0,SUMIFS(AS$10:AS44,$P$10:$P44,"CF(+)")-SUMIFS(AS$10:AS44,$P$10:$P44,"CF(-)")) -> 0 | AT45: =IF(AT$4="",0,SUMIFS(AT$10:AT44,$P$10:$P44,"CF(+)")-SUMIFS(AT$10:AT44,$P$10:$P44,"CF(-)")) -> 0 | AU45: =IF(AU$4="",0,SUMIFS(AU$10:AU44,$P$10:$P44,"CF(+)")-SUMIFS(AU$10:AU44,$P$10:$P44,"CF(-)")) -> 0 | AV45: =IF(AV$4="",0,SUMIFS(AV$10:AV44,$P$10:$P44,"CF(+)")-SUMIFS(AV$10:AV44,$P$10:$P44,"CF(-)")) -> 0 | AW45: =IF(AW$4="",0,SUMIFS(AW$10:AW44,$P$10:$P44,"CF(+)")-SUMIFS(AW$10:AW44,$P$10:$P44,"CF(-)")) -> 0 | AX45: =IF(AX$4="",0,SUMIFS(AX$10:AX44,$P$10:$P44,"CF(+)")-SUMIFS(AX$10:AX44,$P$10:$P44,"CF(-)")) -> 0 | AY45: =IF(AY$4="",0,SUMIFS(AY$10:AY44,$P$10:$P44,"CF(+)")-SUMIFS(AY$10:AY44,$P$10:$P44,"CF(-)")) -> 0 | AZ45: =IF(AZ$4="",0,SUMIFS(AZ$10:AZ44,$P$10:$P44,"CF(+)")-SUMIFS(AZ$10:AZ44,$P$10:$P44,"CF(-)")) -> 0 | BA45: =IF(BA$4="",0,SUMIFS(BA$10:BA44,$P$10:$P44,"CF(+)")-SUMIFS(BA$10:BA44,$P$10:$P44,"CF(-)")) -> 0 | BB45: =IF(BB$4="",0,SUMIFS(BB$10:BB44,$P$10:$P44,"CF(+)")-SUMIFS(BB$10:BB44,$P$10:$P44,"CF(-)")) -> 0 | BC45: =IF(BC$4="",0,SUMIFS(BC$10:BC44,$P$10:$P44,"CF(+)")-SUMIFS(BC$10:BC44,$P$10:$P44,"CF(-)")) -> 0 | BD45: =IF(BD$4="",0,SUMIFS(BD$10:BD44,$P$10:$P44,"CF(+)")-SUMIFS(BD$10:BD44,$P$10:$P44,"CF(-)")) -> 0 | BE45: =IF(BE$4="",0,SUMIFS(BE$10:BE44,$P$10:$P44,"CF(+)")-SUMIFS(BE$10:BE44,$P$10:$P44,"CF(-)")) -> 0 | BF45: =IF(BF$4="",0,SUMIFS(BF$10:BF44,$P$10:$P44,"CF(+)")-SUMIFS(BF$10:BF44,$P$10:$P44,"CF(-)")) -> 0 | BG45: =IF(BG$4="",0,SUMIFS(BG$10:BG44,$P$10:$P44,"CF(+)")-SUMIFS(BG$10:BG44,$P$10:$P44,"CF(-)")) -> 0 | BH45: =IF(BH$4="",0,SUMIFS(BH$10:BH44,$P$10:$P44,"CF(+)")-SUMIFS(BH$10:BH44,$P$10:$P44,"CF(-)")) -> 0 | BI45: =IF(BI$4="",0,SUMIFS(BI$10:BI44,$P$10:$P44,"CF(+)")-SUMIFS(BI$10:BI44,$P$10:$P44,"CF(-)")) -> 0 | BJ45: =IF(BJ$4="",0,SUMIFS(BJ$10:BJ44,$P$10:$P44,"CF(+)")-SUMIFS(BJ$10:BJ44,$P$10:$P44,"CF(-)")) -> 0 | BK45: =IF(BK$4="",0,SUMIFS(BK$10:BK44,$P$10:$P44,"CF(+)")-SUMIFS(BK$10:BK44,$P$10:$P44,"CF(-)")) -> 0 | BL45: =IF(BL$4="",0,SUMIFS(BL$10:BL44,$P$10:$P44,"CF(+)")-SUMIFS(BL$10:BL44,$P$10:$P44,"CF(-)")) -> 0 | BM45: =IF(BM$4="",0,SUMIFS(BM$10:BM44,$P$10:$P44,"CF(+)")-SUMIFS(BM$10:BM44,$P$10:$P44,"CF(-)")) -> 0 | BN45: =IF(BN$4="",0,SUMIFS(BN$10:BN44,$P$10:$P44,"CF(+)")-SUMIFS(BN$10:BN44,$P$10:$P44,"CF(-)")) -> 0 | BO45: =IF(BO$4="",0,SUMIFS(BO$10:BO44,$P$10:$P44,"CF(+)")-SUMIFS(BO$10:BO44,$P$10:$P44,"CF(-)")) -> 0 | BP45: =IF(BP$4="",0,SUMIFS(BP$10:BP44,$P$10:$P44,"CF(+)")-SUMIFS(BP$10:BP44,$P$10:$P44,"CF(-)")) -> 0 | BQ45: =IF(BQ$4="",0,SUMIFS(BQ$10:BQ44,$P$10:$P44,"CF(+)")-SUMIFS(BQ$10:BQ44,$P$10:$P44,"CF(-)")) -> 0 | BR45: =IF(BR$4="",0,SUMIFS(BR$10:BR44,$P$10:$P44,"CF(+)")-SUMIFS(BR$10:BR44,$P$10:$P44,"CF(-)")) -> 0 | BS45: =IF(BS$4="",0,SUMIFS(BS$10:BS44,$P$10:$P44,"CF(+)")-SUMIFS(BS$10:BS44,$P$10:$P44,"CF(-)")) -> 0 | BT45: =IF(BT$4="",0,SUMIFS(BT$10:BT44,$P$10:$P44,"CF(+)")-SUMIFS(BT$10:BT44,$P$10:$P44,"CF(-)")) -> 0 | BU45: =IF(BU$4="",0,SUMIFS(BU$10:BU44,$P$10:$P44,"CF(+)")-SUMIFS(BU$10:BU44,$P$10:$P44,"CF(-)")) -> 0 | BV45: =IF(BV$4="",0,SUMIFS(BV$10:BV44,$P$10:$P44,"CF(+)")-SUMIFS(BV$10:BV44,$P$10:$P44,"CF(-)")) -> 0 | BW45: =IF(BW$4="",0,SUMIFS(BW$10:BW44,$P$10:$P44,"CF(+)")-SUMIFS(BW$10:BW44,$P$10:$P44,"CF(-)")) -> 0 | BX45: =IF(BX$4="",0,SUMIFS(BX$10:BX44,$P$10:$P44,"CF(+)")-SUMIFS(BX$10:BX44,$P$10:$P44,"CF(-)")) -> 0 | BY45: =IF(BY$4="",0,SUMIFS(BY$10:BY44,$P$10:$P44,"CF(+)")-SUMIFS(BY$10:BY44,$P$10:$P44,"CF(-)")) -> 0 | BZ45: =IF(BZ$4="",0,SUMIFS(BZ$10:BZ44,$P$10:$P44,"CF(+)")-SUMIFS(BZ$10:BZ44,$P$10:$P44,"CF(-)")) -> 0 | CA45: =IF(CA$4="",0,SUMIFS(CA$10:CA44,$P$10:$P44,"CF(+)")-SUMIFS(CA$10:CA44,$P$10:$P44,"CF(-)")) -> 0 | CB45: =IF(CB$4="",0,SUMIFS(CB$10:CB44,$P$10:$P44,"CF(+)")-SUMIFS(CB$10:CB44,$P$10:$P44,"CF(-)")) -> 0 | CC45: =IF(CC$4="",0,SUMIFS(CC$10:CC44,$P$10:$P44,"CF(+)")-SUMIFS(CC$10:CC44,$P$10:$P44,"CF(-)")) -> 0 | CD45: =IF(CD$4="",0,SUMIFS(CD$10:CD44,$P$10:$P44,"CF(+)")-SUMIFS(CD$10:CD44,$P$10:$P44,"CF(-)")) -> 0 | CE45: =IF(CE$4="",0,SUMIFS(CE$10:CE44,$P$10:$P44,"CF(+)")-SUMIFS(CE$10:CE44,$P$10:$P44,"CF(-)")) -> 0 | CF45: =IF(CF$4="",0,SUMIFS(CF$10:CF44,$P$10:$P44,"CF(+)")-SUMIFS(CF$10:CF44,$P$10:$P44,"CF(-)")) -> 0 | CG45: =IF(CG$4="",0,SUMIFS(CG$10:CG44,$P$10:$P44,"CF(+)")-SUMIFS(CG$10:CG44,$P$10:$P44,"CF(-)")) -> 0 | CH45: =IF(CH$4="",0,SUMIFS(CH$10:CH44,$P$10:$P44,"CF(+)")-SUMIFS(CH$10:CH44,$P$10:$P44,"CF(-)")) -> 0 | CI45: =IF(CI$4="",0,SUMIFS(CI$10:CI44,$P$10:$P44,"CF(+)")-SUMIFS(CI$10:CI44,$P$10:$P44,"CF(-)")) -> 0 | CJ45: =IF(CJ$4="",0,SUMIFS(CJ$10:CJ44,$P$10:$P44,"CF(+)")-SUMIFS(CJ$10:CJ44,$P$10:$P44,"CF(-)")) -> 0 | CK45: =IF(CK$4="",0,SUMIFS(CK$10:CK44,$P$10:$P44,"CF(+)")-SUMIFS(CK$10:CK44,$P$10:$P44,"CF(-)")) -> 0 | CL45: =IF(CL$4="",0,SUMIFS(CL$10:CL44,$P$10:$P44,"CF(+)")-SUMIFS(CL$10:CL44,$P$10:$P44,"CF(-)")) -> 0 | CM45: =IF(CM$4="",0,SUMIFS(CM$10:CM44,$P$10:$P44,"CF(+)")-SUMIFS(CM$10:CM44,$P$10:$P44,"CF(-)")) -> 0 | CN45: =IF(CN$4="",0,SUMIFS(CN$10:CN44,$P$10:$P44,"CF(+)")-SUMIFS(CN$10:CN44,$P$10:$P44,"CF(-)")) -> 0 | CO45: =IF(CO$4="",0,SUMIFS(CO$10:CO44,$P$10:$P44,"CF(+)")-SUMIFS(CO$10:CO44,$P$10:$P44,"CF(-)")) -> 0 | CP45: =IF(CP$4="",0,SUMIFS(CP$10:CP44,$P$10:$P44,"CF(+)")-SUMIFS(CP$10:CP44,$P$10:$P44,"CF(-)")) -> 0 | CQ45: =IF(CQ$4="",0,SUMIFS(CQ$10:CQ44,$P$10:$P44,"CF(+)")-SUMIFS(CQ$10:CQ44,$P$10:$P44,"CF(-)")) -> 0 | CR45: =IF(CR$4="",0,SUMIFS(CR$10:CR44,$P$10:$P44,"CF(+)")-SUMIFS(CR$10:CR44,$P$10:$P44,"CF(-)")) -> 0 | CS45: =IF(CS$4="",0,SUMIFS(CS$10:CS44,$P$10:$P44,"CF(+)")-SUMIFS(CS$10:CS44,$P$10:$P44,"CF(-)")) -> 0 | CT45: =IF(CT$4="",0,SUMIFS(CT$10:CT44,$P$10:$P44,"CF(+)")-SUMIFS(CT$10:CT44,$P$10:$P44,"CF(-)")) -> 0 | CU45: =IF(CU$4="",0,SUMIFS(CU$10:CU44,$P$10:$P44,"CF(+)")-SUMIFS(CU$10:CU44,$P$10:$P44,"CF(-)")) -> 0 | CV45: =IF(CV$4="",0,SUMIFS(CV$10:CV44,$P$10:$P44,"CF(+)")-SUMIFS(CV$10:CV44,$P$10:$P44,"CF(-)")) -> 0 | CW45: =IF(CW$4="",0,SUMIFS(CW$10:CW44,$P$10:$P44,"CF(+)")-SUMIFS(CW$10:CW44,$P$10:$P44,"CF(-)")) -> 0 | CX45: =IF(CX$4="",0,SUMIFS(CX$10:CX44,$P$10:$P44,"CF(+)")-SUMIFS(CX$10:CX44,$P$10:$P44,"CF(-)")) -> 0 | CY45: =IF(CY$4="",0,SUMIFS(CY$10:CY44,$P$10:$P44,"CF(+)")-SUMIFS(CY$10:CY44,$P$10:$P44,"CF(-)")) -> 0 | CZ45: =IF(CZ$4="",0,SUMIFS(CZ$10:CZ44,$P$10:$P44,"CF(+)")-SUMIFS(CZ$10:CZ44,$P$10:$P44,"CF(-)")) -> 0 | DA45: =IF(DA$4="",0,SUMIFS(DA$10:DA44,$P$10:$P44,"CF(+)")-SUMIFS(DA$10:DA44,$P$10:$P44,"CF(-)")) -> 0 | DB45: =IF(DB$4="",0,SUMIFS(DB$10:DB44,$P$10:$P44,"CF(+)")-SUMIFS(DB$10:DB44,$P$10:$P44,"CF(-)")) -> 0 | DC45: =IF(DC$4="",0,SUMIFS(DC$10:DC44,$P$10:$P44,"CF(+)")-SUMIFS(DC$10:DC44,$P$10:$P44,"CF(-)")) -> 0 | DD45: =IF(DD$4="",0,SUMIFS(DD$10:DD44,$P$10:$P44,"CF(+)")-SUMIFS(DD$10:DD44,$P$10:$P44,"CF(-)")) -> 0 | DE45: =IF(DE$4="",0,SUMIFS(DE$10:DE44,$P$10:$P44,"CF(+)")-SUMIFS(DE$10:DE44,$P$10:$P44,"CF(-)")) -> 0 | DF45: =IF(DF$4="",0,SUMIFS(DF$10:DF44,$P$10:$P44,"CF(+)")-SUMIFS(DF$10:DF44,$P$10:$P44,"CF(-)")) -> 0 | DG45: =IF(DG$4="",0,SUMIFS(DG$10:DG44,$P$10:$P44,"CF(+)")-SUMIFS(DG$10:DG44,$P$10:$P44,"CF(-)")) -> 0 | DH45: =IF(DH$4="",0,SUMIFS(DH$10:DH44,$P$10:$P44,"CF(+)")-SUMIFS(DH$10:DH44,$P$10:$P44,"CF(-)")) -> 0 | DI45: =IF(DI$4="",0,SUMIFS(DI$10:DI44,$P$10:$P44,"CF(+)")-SUMIFS(DI$10:DI44,$P$10:$P44,"CF(-)")) -> 0 | DJ45: =IF(DJ$4="",0,SUMIFS(DJ$10:DJ44,$P$10:$P44,"CF(+)")-SUMIFS(DJ$10:DJ44,$P$10:$P44,"CF(-)")) -> 0 | DK45: =IF(DK$4="",0,SUMIFS(DK$10:DK44,$P$10:$P44,"CF(+)")-SUMIFS(DK$10:DK44,$P$10:$P44,"CF(-)")) -> 0 | DL45: =IF(DL$4="",0,SUMIFS(DL$10:DL44,$P$10:$P44,"CF(+)")-SUMIFS(DL$10:DL44,$P$10:$P44,"CF(-)")) -> 0 | DM45: =IF(DM$4="",0,SUMIFS(DM$10:DM44,$P$10:$P44,"CF(+)")-SUMIFS(DM$10:DM44,$P$10:$P44,"CF(-)")) -> 0 | DN45: =IF(DN$4="",0,SUMIFS(DN$10:DN44,$P$10:$P44,"CF(+)")-SUMIFS(DN$10:DN44,$P$10:$P44,"CF(-)")) -> 0 | DO45: =IF(DO$4="",0,SUMIFS(DO$10:DO44,$P$10:$P44,"CF(+)")-SUMIFS(DO$10:DO44,$P$10:$P44,"CF(-)")) -> 0 | DP45: =IF(DP$4="",0,SUMIFS(DP$10:DP44,$P$10:$P44,"CF(+)")-SUMIFS(DP$10:DP44,$P$10:$P44,"CF(-)")) -> 0 | DQ45: =IF(DQ$4="",0,SUMIFS(DQ$10:DQ44,$P$10:$P44,"CF(+)")-SUMIFS(DQ$10:DQ44,$P$10:$P44,"CF(-)")) -> 0 | DR45: =IF(DR$4="",0,SUMIFS(DR$10:DR44,$P$10:$P44,"CF(+)")-SUMIFS(DR$10:DR44,$P$10:$P44,"CF(-)")) -> 0 | DS45: =IF(DS$4="",0,SUMIFS(DS$10:DS44,$P$10:$P44,"CF(+)")-SUMIFS(DS$10:DS44,$P$10:$P44,"CF(-)")) -> 0 | DT45: =IF(DT$4="",0,SUMIFS(DT$10:DT44,$P$10:$P44,"CF(+)")-SUMIFS(DT$10:DT44,$P$10:$P44,"CF(-)")) -> 0 | DU45: =IF(DU$4="",0,SUMIFS(DU$10:DU44,$P$10:$P44,"CF(+)")-SUMIFS(DU$10:DU44,$P$10:$P44,"CF(-)")) -> 0 | DV45: =IF(DV$4="",0,SUMIFS(DV$10:DV44,$P$10:$P44,"CF(+)")-SUMIFS(DV$10:DV44,$P$10:$P44,"CF(-)")) -> 0 | DW45: =IF(DW$4="",0,SUMIFS(DW$10:DW44,$P$10:$P44,"CF(+)")-SUMIFS(DW$10:DW44,$P$10:$P44,"CF(-)")) -> 0 | DX45: =IF(DX$4="",0,SUMIFS(DX$10:DX44,$P$10:$P44,"CF(+)")-SUMIFS(DX$10:DX44,$P$10:$P44,"CF(-)")) -> 0 | DY45: =IF(DY$4="",0,SUMIFS(DY$10:DY44,$P$10:$P44,"CF(+)")-SUMIFS(DY$10:DY44,$P$10:$P44,"CF(-)")) -> 0 | DZ45: =IF(DZ$4="",0,SUMIFS(DZ$10:DZ44,$P$10:$P44,"CF(+)")-SUMIFS(DZ$10:DZ44,$P$10:$P44,"CF(-)")) -> 0 | EA45: =IF(EA$4="",0,SUMIFS(EA$10:EA44,$P$10:$P44,"CF(+)")-SUMIFS(EA$10:EA44,$P$10:$P44,"CF(-)")) -> 0 | EB45: =IF(EB$4="",0,SUMIFS(EB$10:EB44,$P$10:$P44,"CF(+)")-SUMIFS(EB$10:EB44,$P$10:$P44,"CF(-)")) -> 0 | EC45: =IF(EC$4="",0,SUMIFS(EC$10:EC44,$P$10:$P44,"CF(+)")-SUMIFS(EC$10:EC44,$P$10:$P44,"CF(-)")) -> 0 | ED45: =IF(ED$4="",0,SUMIFS(ED$10:ED44,$P$10:$P44,"CF(+)")-SUMIFS(ED$10:ED44,$P$10:$P44,"CF(-)")) -> 0 | EE45: =IF(EE$4="",0,SUMIFS(EE$10:EE44,$P$10:$P44,"CF(+)")-SUMIFS(EE$10:EE44,$P$10:$P44,"CF(-)")) -> 0 | EF45: =IF(EF$4="",0,SUMIFS(EF$10:EF44,$P$10:$P44,"CF(+)")-SUMIFS(EF$10:EF44,$P$10:$P44,"CF(-)")) -> 0 | EG45: =IF(EG$4="",0,SUMIFS(EG$10:EG44,$P$10:$P44,"CF(+)")-SUMIFS(EG$10:EG44,$P$10:$P44,"CF(-)")) -> 0 | EH45: =IF(EH$4="",0,SUMIFS(EH$10:EH44,$P$10:$P44,"CF(+)")-SUMIFS(EH$10:EH44,$P$10:$P44,"CF(-)")) -> 0 | EI45: =IF(EI$4="",0,SUMIFS(EI$10:EI44,$P$10:$P44,"CF(+)")-SUMIFS(EI$10:EI44,$P$10:$P44,"CF(-)")) -> 0 | EJ45: =IF(EJ$4="",0,SUMIFS(EJ$10:EJ44,$P$10:$P44,"CF(+)")-SUMIFS(EJ$10:EJ44,$P$10:$P44,"CF(-)")) -> 0 | EK45: =IF(EK$4="",0,SUMIFS(EK$10:EK44,$P$10:$P44,"CF(+)")-SUMIFS(EK$10:EK44,$P$10:$P44,"CF(-)")) -> 0 | EL45: =IF(EL$4="",0,SUMIFS(EL$10:EL44,$P$10:$P44,"CF(+)")-SUMIFS(EL$10:EL44,$P$10:$P44,"CF(-)")) -> 0 | EM45: =IF(EM$4="",0,SUMIFS(EM$10:EM44,$P$10:$P44,"CF(+)")-SUMIFS(EM$10:EM44,$P$10:$P44,"CF(-)")) -> 0 | EN45: =IF(EN$4="",0,SUMIFS(EN$10:EN44,$P$10:$P44,"CF(+)")-SUMIFS(EN$10:EN44,$P$10:$P44,"CF(-)")) -> 0 | EO45: =IF(EO$4="",0,SUMIFS(EO$10:EO44,$P$10:$P44,"CF(+)")-SUMIFS(EO$10:EO44,$P$10:$P44,"CF(-)")) -> 0 | EP45: =IF(EP$4="",0,SUMIFS(EP$10:EP44,$P$10:$P44,"CF(+)")-SUMIFS(EP$10:EP44,$P$10:$P44,"CF(-)")) -> 0 | EQ45: =IF(EQ$4="",0,SUMIFS(EQ$10:EQ44,$P$10:$P44,"CF(+)")-SUMIFS(EQ$10:EQ44,$P$10:$P44,"CF(-)")) -> 0 | ER45: =IF(ER$4="",0,SUMIFS(ER$10:ER44,$P$10:$P44,"CF(+)")-SUMIFS(ER$10:ER44,$P$10:$P44,"CF(-)")) -> 0 | ES45: =IF(ES$4="",0,SUMIFS(ES$10:ES44,$P$10:$P44,"CF(+)")-SUMIFS(ES$10:ES44,$P$10:$P44,"CF(-)")) -> 0 | ET45: =IF(ET$4="",0,SUMIFS(ET$10:ET44,$P$10:$P44,"CF(+)")-SUMIFS(ET$10:ET44,$P$10:$P44,"CF(-)")) -> 0 | EU45: =IF(EU$4="",0,SUMIFS(EU$10:EU44,$P$10:$P44,"CF(+)")-SUMIFS(EU$10:EU44,$P$10:$P44,"CF(-)")) -> 0 | EV45: =IF(EV$4="",0,SUMIFS(EV$10:EV44,$P$10:$P44,"CF(+)")-SUMIFS(EV$10:EV44,$P$10:$P44,"CF(-)")) -> 0 | EW45: =IF(EW$4="",0,SUMIFS(EW$10:EW44,$P$10:$P44,"CF(+)")-SUMIFS(EW$10:EW44,$P$10:$P44,"CF(-)")) -> 0 | EX45: =IF(EX$4="",0,SUMIFS(EX$10:EX44,$P$10:$P44,"CF(+)")-SUMIFS(EX$10:EX44,$P$10:$P44,"CF(-)")) -> 0 | EY45: =IF(EY$4="",0,SUMIFS(EY$10:EY44,$P$10:$P44,"CF(+)")-SUMIFS(EY$10:EY44,$P$10:$P44,"CF(-)")) -> 0 | EZ45: =IF(EZ$4="",0,SUMIFS(EZ$10:EZ44,$P$10:$P44,"CF(+)")-SUMIFS(EZ$10:EZ44,$P$10:$P44,"CF(-)")) -> 0 | FA45: =IF(FA$4="",0,SUMIFS(FA$10:FA44,$P$10:$P44,"CF(+)")-SUMIFS(FA$10:FA44,$P$10:$P44,"CF(-)")) -> 0 | FB45: =IF(FB$4="",0,SUMIFS(FB$10:FB44,$P$10:$P44,"CF(+)")-SUMIFS(FB$10:FB44,$P$10:$P44,"CF(-)")) -> 0 | FC45: =IF(FC$4="",0,SUMIFS(FC$10:FC44,$P$10:$P44,"CF(+)")-SUMIFS(FC$10:FC44,$P$10:$P44,"CF(-)")) -> 0 | FD45: =IF(FD$4="",0,SUMIFS(FD$10:FD44,$P$10:$P44,"CF(+)")-SUMIFS(FD$10:FD44,$P$10:$P44,"CF(-)")) -> 0 | FE45: =IF(FE$4="",0,SUMIFS(FE$10:FE44,$P$10:$P44,"CF(+)")-SUMIFS(FE$10:FE44,$P$10:$P44,"CF(-)")) -> 0 | FF45: =IF(FF$4="",0,SUMIFS(FF$10:FF44,$P$10:$P44,"CF(+)")-SUMIFS(FF$10:FF44,$P$10:$P44,"CF(-)")) -> 0 | FG45: =IF(FG$4="",0,SUMIFS(FG$10:FG44,$P$10:$P44,"CF(+)")-SUMIFS(FG$10:FG44,$P$10:$P44,"CF(-)")) -> 0 | FH45: =IF(FH$4="",0,SUMIFS(FH$10:FH44,$P$10:$P44,"CF(+)")-SUMIFS(FH$10:FH44,$P$10:$P44,"CF(-)")) -> 0 | FI45: =IF(FI$4="",0,SUMIFS(FI$10:FI44,$P$10:$P44,"CF(+)")-SUMIFS(FI$10:FI44,$P$10:$P44,"CF(-)")) -> 0 | FJ45: =IF(FJ$4="",0,SUMIFS(FJ$10:FJ44,$P$10:$P44,"CF(+)")-SUMIFS(FJ$10:FJ44,$P$10:$P44,"CF(-)")) -> 0 | FK45: =IF(FK$4="",0,SUMIFS(FK$10:FK44,$P$10:$P44,"CF(+)")-SUMIFS(FK$10:FK44,$P$10:$P44,"CF(-)")) -> 0 | FL45: =IF(FL$4="",0,SUMIFS(FL$10:FL44,$P$10:$P44,"CF(+)")-SUMIFS(FL$10:FL44,$P$10:$P44,"CF(-)")) -> 0 | FM45: =IF(FM$4="",0,SUMIFS(FM$10:FM44,$P$10:$P44,"CF(+)")-SUMIFS(FM$10:FM44,$P$10:$P44,"CF(-)")) -> 0 | FN45: =IF(FN$4="",0,SUMIFS(FN$10:FN44,$P$10:$P44,"CF(+)")-SUMIFS(FN$10:FN44,$P$10:$P44,"CF(-)")) -> 0 | FO45: =IF(FO$4="",0,SUMIFS(FO$10:FO44,$P$10:$P44,"CF(+)")-SUMIFS(FO$10:FO44,$P$10:$P44,"CF(-)")) -> 0 | FP45: =IF(FP$4="",0,SUMIFS(FP$10:FP44,$P$10:$P44,"CF(+)")-SUMIFS(FP$10:FP44,$P$10:$P44,"CF(-)")) -> 0 | FQ45: =IF(FQ$4="",0,SUMIFS(FQ$10:FQ44,$P$10:$P44,"CF(+)")-SUMIFS(FQ$10:FQ44,$P$10:$P44,"CF(-)")) -> 0 | FR45: =IF(FR$4="",0,SUMIFS(FR$10:FR44,$P$10:$P44,"CF(+)")-SUMIFS(FR$10:FR44,$P$10:$P44,"CF(-)")) -> 0 | FS45: =IF(FS$4="",0,SUMIFS(FS$10:FS44,$P$10:$P44,"CF(+)")-SUMIFS(FS$10:FS44,$P$10:$P44,"CF(-)")) -> 0 | FT45: =IF(FT$4="",0,SUMIFS(FT$10:FT44,$P$10:$P44,"CF(+)")-SUMIFS(FT$10:FT44,$P$10:$P44,"CF(-)")) -> 0 | FU45: =IF(FU$4="",0,SUMIFS(FU$10:FU44,$P$10:$P44,"CF(+)")-SUMIFS(FU$10:FU44,$P$10:$P44,"CF(-)")) -> 0 | FV45: =IF(FV$4="",0,SUMIFS(FV$10:FV44,$P$10:$P44,"CF(+)")-SUMIFS(FV$10:FV44,$P$10:$P44,"CF(-)")) -> 0 | FW45: =IF(FW$4="",0,SUMIFS(FW$10:FW44,$P$10:$P44,"CF(+)")-SUMIFS(FW$10:FW44,$P$10:$P44,"CF(-)")) -> 0 | FX45: =IF(FX$4="",0,SUMIFS(FX$10:FX44,$P$10:$P44,"CF(+)")-SUMIFS(FX$10:FX44,$P$10:$P44,"CF(-)")) -> 0 | FY45: =IF(FY$4="",0,SUMIFS(FY$10:FY44,$P$10:$P44,"CF(+)")-SUMIFS(FY$10:FY44,$P$10:$P44,"CF(-)")) -> 0 | FZ45: =IF(FZ$4="",0,SUMIFS(FZ$10:FZ44,$P$10:$P44,"CF(+)")-SUMIFS(FZ$10:FZ44,$P$10:$P44,"CF(-)")) -> 0 | GA45: =IF(GA$4="",0,SUMIFS(GA$10:GA44,$P$10:$P44,"CF(+)")-SUMIFS(GA$10:GA44,$P$10:$P44,"CF(-)")) -> 0 | GB45: =IF(GB$4="",0,SUMIFS(GB$10:GB44,$P$10:$P44,"CF(+)")-SUMIFS(GB$10:GB44,$P$10:$P44,"CF(-)")) -> 0 | GC45: =IF(GC$4="",0,SUMIFS(GC$10:GC44,$P$10:$P44,"CF(+)")-SUMIFS(GC$10:GC44,$P$10:$P44,"CF(-)")) -> 0 | GD45: =IF(GD$4="",0,SUMIFS(GD$10:GD44,$P$10:$P44,"CF(+)")-SUMIFS(GD$10:GD44,$P$10:$P44,"CF(-)")) -> 0 | GE45: =IF(GE$4="",0,SUMIFS(GE$10:GE44,$P$10:$P44,"CF(+)")-SUMIFS(GE$10:GE44,$P$10:$P44,"CF(-)")) -> 0 | GF45: =IF(GF$4="",0,SUMIFS(GF$10:GF44,$P$10:$P44,"CF(+)")-SUMIFS(GF$10:GF44,$P$10:$P44,"CF(-)")) -> 0 | GG45: =IF(GG$4="",0,SUMIFS(GG$10:GG44,$P$10:$P44,"CF(+)")-SUMIFS(GG$10:GG44,$P$10:$P44,"CF(-)")) -> 0 | GH45: =IF(GH$4="",0,SUMIFS(GH$10:GH44,$P$10:$P44,"CF(+)")-SUMIFS(GH$10:GH44,$P$10:$P44,"CF(-)")) -> 0 | GI45: =IF(GI$4="",0,SUMIFS(GI$10:GI44,$P$10:$P44,"CF(+)")-SUMIFS(GI$10:GI44,$P$10:$P44,"CF(-)")) -> 0 | GJ45: =IF(GJ$4="",0,SUMIFS(GJ$10:GJ44,$P$10:$P44,"CF(+)")-SUMIFS(GJ$10:GJ44,$P$10:$P44,"CF(-)")) -> 0 | GK45: =IF(GK$4="",0,SUMIFS(GK$10:GK44,$P$10:$P44,"CF(+)")-SUMIFS(GK$10:GK44,$P$10:$P44,"CF(-)")) -> 0 | GL45: =IF(GL$4="",0,SUMIFS(GL$10:GL44,$P$10:$P44,"CF(+)")-SUMIFS(GL$10:GL44,$P$10:$P44,"CF(-)")) -> 0 | GM45: =IF(GM$4="",0,SUMIFS(GM$10:GM44,$P$10:$P44,"CF(+)")-SUMIFS(GM$10:GM44,$P$10:$P44,"CF(-)")) -> 0 | GN45: =IF(GN$4="",0,SUMIFS(GN$10:GN44,$P$10:$P44,"CF(+)")-SUMIFS(GN$10:GN44,$P$10:$P44,"CF(-)")) -> 0 | GO45: =IF(GO$4="",0,SUMIFS(GO$10:GO44,$P$10:$P44,"CF(+)")-SUMIFS(GO$10:GO44,$P$10:$P44,"CF(-)")) -> 0 | GP45: =IF(GP$4="",0,SUMIFS(GP$10:GP44,$P$10:$P44,"CF(+)")-SUMIFS(GP$10:GP44,$P$10:$P44,"CF(-)")) -> 0 | GQ45: =IF(GQ$4="",0,SUMIFS(GQ$10:GQ44,$P$10:$P44,"CF(+)")-SUMIFS(GQ$10:GQ44,$P$10:$P44,"CF(-)")) -> 0 | GR45: =IF(GR$4="",0,SUMIFS(GR$10:GR44,$P$10:$P44,"CF(+)")-SUMIFS(GR$10:GR44,$P$10:$P44,"CF(-)")) -> 0 | GS45: =IF(GS$4="",0,SUMIFS(GS$10:GS44,$P$10:$P44,"CF(+)")-SUMIFS(GS$10:GS44,$P$10:$P44,"CF(-)")) -> 0 | GT45: =IF(GT$4="",0,SUMIFS(GT$10:GT44,$P$10:$P44,"CF(+)")-SUMIFS(GT$10:GT44,$P$10:$P44,"CF(-)")) -> 0 | GU45: =IF(GU$4="",0,SUMIFS(GU$10:GU44,$P$10:$P44,"CF(+)")-SUMIFS(GU$10:GU44,$P$10:$P44,"CF(-)")) -> 0 | GV45: =IF(GV$4="",0,SUMIFS(GV$10:GV44,$P$10:$P44,"CF(+)")-SUMIFS(GV$10:GV44,$P$10:$P44,"CF(-)")) -> 0
B47: =ROW() -> 47 | H47: Денежный поток нарастающим итогом | P47: CF | U47: =INDIRECT(ADDRESS($B47,MAX($2:$2))) -> 0 | X47: =IF(X$4="",0,SUM($W45:X45)) -> 0 | Y47: =IF(Y$4="",0,SUM($W45:Y45)) -> 0 | Z47: =IF(Z$4="",0,SUM($W45:Z45)) -> 0 | AA47: =IF(AA$4="",0,SUM($W45:AA45)) -> 0 | AB47: =IF(AB$4="",0,SUM($W45:AB45)) -> 0 | AC47: =IF(AC$4="",0,SUM($W45:AC45)) -> 0 | AD47: =IF(AD$4="",0,SUM($W45:AD45)) -> 0 | AE47: =IF(AE$4="",0,SUM($W45:AE45)) -> 0 | AF47: =IF(AF$4="",0,SUM($W45:AF45)) -> 0 | AG47: =IF(AG$4="",0,SUM($W45:AG45)) -> 0 | AH47: =IF(AH$4="",0,SUM($W45:AH45)) -> 0 | AI47: =IF(AI$4="",0,SUM($W45:AI45)) -> 0 | AJ47: =IF(AJ$4="",0,SUM($W45:AJ45)) -> 0 | AK47: =IF(AK$4="",0,SUM($W45:AK45)) -> 0 | AL47: =IF(AL$4="",0,SUM($W45:AL45)) -> 0 | AM47: =IF(AM$4="",0,SUM($W45:AM45)) -> 0 | AN47: =IF(AN$4="",0,SUM($W45:AN45)) -> 0 | AO47: =IF(AO$4="",0,SUM($W45:AO45)) -> 0 | AP47: =IF(AP$4="",0,SUM($W45:AP45)) -> 0 | AQ47: =IF(AQ$4="",0,SUM($W45:AQ45)) -> 0 | AR47: =IF(AR$4="",0,SUM($W45:AR45)) -> 0 | AS47: =IF(AS$4="",0,SUM($W45:AS45)) -> 0 | AT47: =IF(AT$4="",0,SUM($W45:AT45)) -> 0 | AU47: =IF(AU$4="",0,SUM($W45:AU45)) -> 0 | AV47: =IF(AV$4="",0,SUM($W45:AV45)) -> 0 | AW47: =IF(AW$4="",0,SUM($W45:AW45)) -> 0 | AX47: =IF(AX$4="",0,SUM($W45:AX45)) -> 0 | AY47: =IF(AY$4="",0,SUM($W45:AY45)) -> 0 | AZ47: =IF(AZ$4="",0,SUM($W45:AZ45)) -> 0 | BA47: =IF(BA$4="",0,SUM($W45:BA45)) -> 0 | BB47: =IF(BB$4="",0,SUM($W45:BB45)) -> 0 | BC47: =IF(BC$4="",0,SUM($W45:BC45)) -> 0 | BD47: =IF(BD$4="",0,SUM($W45:BD45)) -> 0 | BE47: =IF(BE$4="",0,SUM($W45:BE45)) -> 0 | BF47: =IF(BF$4="",0,SUM($W45:BF45)) -> 0 | BG47: =IF(BG$4="",0,SUM($W45:BG45)) -> 0 | BH47: =IF(BH$4="",0,SUM($W45:BH45)) -> 0 | BI47: =IF(BI$4="",0,SUM($W45:BI45)) -> 0 | BJ47: =IF(BJ$4="",0,SUM($W45:BJ45)) -> 0 | BK47: =IF(BK$4="",0,SUM($W45:BK45)) -> 0 | BL47: =IF(BL$4="",0,SUM($W45:BL45)) -> 0 | BM47: =IF(BM$4="",0,SUM($W45:BM45)) -> 0 | BN47: =IF(BN$4="",0,SUM($W45:BN45)) -> 0 | BO47: =IF(BO$4="",0,SUM($W45:BO45)) -> 0 | BP47: =IF(BP$4="",0,SUM($W45:BP45)) -> 0 | BQ47: =IF(BQ$4="",0,SUM($W45:BQ45)) -> 0 | BR47: =IF(BR$4="",0,SUM($W45:BR45)) -> 0 | BS47: =IF(BS$4="",0,SUM($W45:BS45)) -> 0 | BT47: =IF(BT$4="",0,SUM($W45:BT45)) -> 0 | BU47: =IF(BU$4="",0,SUM($W45:BU45)) -> 0 | BV47: =IF(BV$4="",0,SUM($W45:BV45)) -> 0 | BW47: =IF(BW$4="",0,SUM($W45:BW45)) -> 0 | BX47: =IF(BX$4="",0,SUM($W45:BX45)) -> 0 | BY47: =IF(BY$4="",0,SUM($W45:BY45)) -> 0 | BZ47: =IF(BZ$4="",0,SUM($W45:BZ45)) -> 0 | CA47: =IF(CA$4="",0,SUM($W45:CA45)) -> 0 | CB47: =IF(CB$4="",0,SUM($W45:CB45)) -> 0 | CC47: =IF(CC$4="",0,SUM($W45:CC45)) -> 0 | CD47: =IF(CD$4="",0,SUM($W45:CD45)) -> 0 | CE47: =IF(CE$4="",0,SUM($W45:CE45)) -> 0 | CF47: =IF(CF$4="",0,SUM($W45:CF45)) -> 0 | CG47: =IF(CG$4="",0,SUM($W45:CG45)) -> 0 | CH47: =IF(CH$4="",0,SUM($W45:CH45)) -> 0 | CI47: =IF(CI$4="",0,SUM($W45:CI45)) -> 0 | CJ47: =IF(CJ$4="",0,SUM($W45:CJ45)) -> 0 | CK47: =IF(CK$4="",0,SUM($W45:CK45)) -> 0 | CL47: =IF(CL$4="",0,SUM($W45:CL45)) -> 0 | CM47: =IF(CM$4="",0,SUM($W45:CM45)) -> 0 | CN47: =IF(CN$4="",0,SUM($W45:CN45)) -> 0 | CO47: =IF(CO$4="",0,SUM($W45:CO45)) -> 0 | CP47: =IF(CP$4="",0,SUM($W45:CP45)) -> 0 | CQ47: =IF(CQ$4="",0,SUM($W45:CQ45)) -> 0 | CR47: =IF(CR$4="",0,SUM($W45:CR45)) -> 0 | CS47: =IF(CS$4="",0,SUM($W45:CS45)) -> 0 | CT47: =IF(CT$4="",0,SUM($W45:CT45)) -> 0 | CU47: =IF(CU$4="",0,SUM($W45:CU45)) -> 0 | CV47: =IF(CV$4="",0,SUM($W45:CV45)) -> 0 | CW47: =IF(CW$4="",0,SUM($W45:CW45)) -> 0 | CX47: =IF(CX$4="",0,SUM($W45:CX45)) -> 0 | CY47: =IF(CY$4="",0,SUM($W45:CY45)) -> 0 | CZ47: =IF(CZ$4="",0,SUM($W45:CZ45)) -> 0 | DA47: =IF(DA$4="",0,SUM($W45:DA45)) -> 0 | DB47: =IF(DB$4="",0,SUM($W45:DB45)) -> 0 | DC47: =IF(DC$4="",0,SUM($W45:DC45)) -> 0 | DD47: =IF(DD$4="",0,SUM($W45:DD45)) -> 0 | DE47: =IF(DE$4="",0,SUM($W45:DE45)) -> 0 | DF47: =IF(DF$4="",0,SUM($W45:DF45)) -> 0 | DG47: =IF(DG$4="",0,SUM($W45:DG45)) -> 0 | DH47: =IF(DH$4="",0,SUM($W45:DH45)) -> 0 | DI47: =IF(DI$4="",0,SUM($W45:DI45)) -> 0 | DJ47: =IF(DJ$4="",0,SUM($W45:DJ45)) -> 0 | DK47: =IF(DK$4="",0,SUM($W45:DK45)) -> 0 | DL47: =IF(DL$4="",0,SUM($W45:DL45)) -> 0 | DM47: =IF(DM$4="",0,SUM($W45:DM45)) -> 0 | DN47: =IF(DN$4="",0,SUM($W45:DN45)) -> 0 | DO47: =IF(DO$4="",0,SUM($W45:DO45)) -> 0 | DP47: =IF(DP$4="",0,SUM($W45:DP45)) -> 0 | DQ47: =IF(DQ$4="",0,SUM($W45:DQ45)) -> 0 | DR47: =IF(DR$4="",0,SUM($W45:DR45)) -> 0 | DS47: =IF(DS$4="",0,SUM($W45:DS45)) -> 0 | DT47: =IF(DT$4="",0,SUM($W45:DT45)) -> 0 | DU47: =IF(DU$4="",0,SUM($W45:DU45)) -> 0 | DV47: =IF(DV$4="",0,SUM($W45:DV45)) -> 0 | DW47: =IF(DW$4="",0,SUM($W45:DW45)) -> 0 | DX47: =IF(DX$4="",0,SUM($W45:DX45)) -> 0 | DY47: =IF(DY$4="",0,SUM($W45:DY45)) -> 0 | DZ47: =IF(DZ$4="",0,SUM($W45:DZ45)) -> 0 | EA47: =IF(EA$4="",0,SUM($W45:EA45)) -> 0 | EB47: =IF(EB$4="",0,SUM($W45:EB45)) -> 0 | EC47: =IF(EC$4="",0,SUM($W45:EC45)) -> 0 | ED47: =IF(ED$4="",0,SUM($W45:ED45)) -> 0 | EE47: =IF(EE$4="",0,SUM($W45:EE45)) -> 0 | EF47: =IF(EF$4="",0,SUM($W45:EF45)) -> 0 | EG47: =IF(EG$4="",0,SUM($W45:EG45)) -> 0 | EH47: =IF(EH$4="",0,SUM($W45:EH45)) -> 0 | EI47: =IF(EI$4="",0,SUM($W45:EI45)) -> 0 | EJ47: =IF(EJ$4="",0,SUM($W45:EJ45)) -> 0 | EK47: =IF(EK$4="",0,SUM($W45:EK45)) -> 0 | EL47: =IF(EL$4="",0,SUM($W45:EL45)) -> 0 | EM47: =IF(EM$4="",0,SUM($W45:EM45)) -> 0 | EN47: =IF(EN$4="",0,SUM($W45:EN45)) -> 0 | EO47: =IF(EO$4="",0,SUM($W45:EO45)) -> 0 | EP47: =IF(EP$4="",0,SUM($W45:EP45)) -> 0 | EQ47: =IF(EQ$4="",0,SUM($W45:EQ45)) -> 0 | ER47: =IF(ER$4="",0,SUM($W45:ER45)) -> 0 | ES47: =IF(ES$4="",0,SUM($W45:ES45)) -> 0 | ET47: =IF(ET$4="",0,SUM($W45:ET45)) -> 0 | EU47: =IF(EU$4="",0,SUM($W45:EU45)) -> 0 | EV47: =IF(EV$4="",0,SUM($W45:EV45)) -> 0 | EW47: =IF(EW$4="",0,SUM($W45:EW45)) -> 0 | EX47: =IF(EX$4="",0,SUM($W45:EX45)) -> 0 | EY47: =IF(EY$4="",0,SUM($W45:EY45)) -> 0 | EZ47: =IF(EZ$4="",0,SUM($W45:EZ45)) -> 0 | FA47: =IF(FA$4="",0,SUM($W45:FA45)) -> 0 | FB47: =IF(FB$4="",0,SUM($W45:FB45)) -> 0 | FC47: =IF(FC$4="",0,SUM($W45:FC45)) -> 0 | FD47: =IF(FD$4="",0,SUM($W45:FD45)) -> 0 | FE47: =IF(FE$4="",0,SUM($W45:FE45)) -> 0 | FF47: =IF(FF$4="",0,SUM($W45:FF45)) -> 0 | FG47: =IF(FG$4="",0,SUM($W45:FG45)) -> 0 | FH47: =IF(FH$4="",0,SUM($W45:FH45)) -> 0 | FI47: =IF(FI$4="",0,SUM($W45:FI45)) -> 0 | FJ47: =IF(FJ$4="",0,SUM($W45:FJ45)) -> 0 | FK47: =IF(FK$4="",0,SUM($W45:FK45)) -> 0 | FL47: =IF(FL$4="",0,SUM($W45:FL45)) -> 0 | FM47: =IF(FM$4="",0,SUM($W45:FM45)) -> 0 | FN47: =IF(FN$4="",0,SUM($W45:FN45)) -> 0 | FO47: =IF(FO$4="",0,SUM($W45:FO45)) -> 0 | FP47: =IF(FP$4="",0,SUM($W45:FP45)) -> 0 | FQ47: =IF(FQ$4="",0,SUM($W45:FQ45)) -> 0 | FR47: =IF(FR$4="",0,SUM($W45:FR45)) -> 0 | FS47: =IF(FS$4="",0,SUM($W45:FS45)) -> 0 | FT47: =IF(FT$4="",0,SUM($W45:FT45)) -> 0 | FU47: =IF(FU$4="",0,SUM($W45:FU45)) -> 0 | FV47: =IF(FV$4="",0,SUM($W45:FV45)) -> 0 | FW47: =IF(FW$4="",0,SUM($W45:FW45)) -> 0 | FX47: =IF(FX$4="",0,SUM($W45:FX45)) -> 0 | FY47: =IF(FY$4="",0,SUM($W45:FY45)) -> 0 | FZ47: =IF(FZ$4="",0,SUM($W45:FZ45)) -> 0 | GA47: =IF(GA$4="",0,SUM($W45:GA45)) -> 0 | GB47: =IF(GB$4="",0,SUM($W45:GB45)) -> 0 | GC47: =IF(GC$4="",0,SUM($W45:GC45)) -> 0 | GD47: =IF(GD$4="",0,SUM($W45:GD45)) -> 0 | GE47: =IF(GE$4="",0,SUM($W45:GE45)) -> 0 | GF47: =IF(GF$4="",0,SUM($W45:GF45)) -> 0 | GG47: =IF(GG$4="",0,SUM($W45:GG45)) -> 0 | GH47: =IF(GH$4="",0,SUM($W45:GH45)) -> 0 | GI47: =IF(GI$4="",0,SUM($W45:GI45)) -> 0 | GJ47: =IF(GJ$4="",0,SUM($W45:GJ45)) -> 0 | GK47: =IF(GK$4="",0,SUM($W45:GK45)) -> 0 | GL47: =IF(GL$4="",0,SUM($W45:GL45)) -> 0 | GM47: =IF(GM$4="",0,SUM($W45:GM45)) -> 0 | GN47: =IF(GN$4="",0,SUM($W45:GN45)) -> 0 | GO47: =IF(GO$4="",0,SUM($W45:GO45)) -> 0 | GP47: =IF(GP$4="",0,SUM($W45:GP45)) -> 0 | GQ47: =IF(GQ$4="",0,SUM($W45:GQ45)) -> 0 | GR47: =IF(GR$4="",0,SUM($W45:GR45)) -> 0 | GS47: =IF(GS$4="",0,SUM($W45:GS45)) -> 0 | GT47: =IF(GT$4="",0,SUM($W45:GT45)) -> 0 | GU47: =IF(GU$4="",0,SUM($W45:GU45)) -> 0 | GV47: =IF(GV$4="",0,SUM($W45:GV45)) -> 0
B49: =ROW() -> 49 | H49: Кассовый разрыв | P49: CF(-) | U49: =IF(MIN(INDIRECT(ADDRESS($B47,X$2)&":"&ADDRESS($B47,MAX($2:$2))))>=0,0,MIN(INDIRECT(ADDRESS($B47,X$2)&":"&ADDRESS($B47,MAX($2:$2))))) -> 0

Sheet M-Q-Y
X1: =MAX($W1:W1)+1 -> 1 | Y1: =MAX($W1:X1)+1 -> 2 | Z1: =MAX($W1:Y1)+1 -> 3 | AA1: =MAX($W1:Z1)+1 -> 4 | AB1: =MAX($W1:AA1)+1 -> 5 | AC1: =MAX($W1:AB1)+1 -> 6 | AD1: =MAX($W1:AC1)+1 -> 7 | AE1: =MAX($W1:AD1)+1 -> 8 | AF1: =MAX($W1:AE1)+1 -> 9 | AG1: =MAX($W1:AF1)+1 -> 10 | AH1: =MAX($W1:AG1)+1 -> 11 | AI1: =MAX($W1:AH1)+1 -> 12 | AJ1: =MAX($W1:AI1)+1 -> 13 | AK1: =MAX($W1:AJ1)+1 -> 14 | AL1: =MAX($W1:AK1)+1 -> 15 | AM1: =MAX($W1:AL1)+1 -> 16 | AN1: =MAX($W1:AM1)+1 -> 17 | AO1: =MAX($W1:AN1)+1 -> 18 | AP1: =MAX($W1:AO1)+1 -> 19 | AQ1: =MAX($W1:AP1)+1 -> 20 | AR1: =MAX($W1:AQ1)+1 -> 21 | AS1: =MAX($W1:AR1)+1 -> 22 | AT1: =MAX($W1:AS1)+1 -> 23 | AU1: =MAX($W1:AT1)+1 -> 24 | AV1: =MAX($W1:AU1)+1 -> 25 | AW1: =MAX($W1:AV1)+1 -> 26 | AX1: =MAX($W1:AW1)+1 -> 27 | AY1: =MAX($W1:AX1)+1 -> 28 | AZ1: =MAX($W1:AY1)+1 -> 29 | BA1: =MAX($W1:AZ1)+1 -> 30 | BB1: =MAX($W1:BA1)+1 -> 31 | BC1: =MAX($W1:BB1)+1 -> 32 | BD1: =MAX($W1:BC1)+1 -> 33 | BE1: =MAX($W1:BD1)+1 -> 34 | BF1: =MAX($W1:BE1)+1 -> 35 | BG1: =MAX($W1:BF1)+1 -> 36 | BH1: =MAX($W1:BG1)+1 -> 37 | BI1: =MAX($W1:BH1)+1 -> 38 | BJ1: =MAX($W1:BI1)+1 -> 39 | BK1: =MAX($W1:BJ1)+1 -> 40 | BL1: =MAX($W1:BK1)+1 -> 41 | BM1: =MAX($W1:BL1)+1 -> 42 | BN1: =MAX($W1:BM1)+1 -> 43 | BO1: =MAX($W1:BN1)+1 -> 44 | BP1: =MAX($W1:BO1)+1 -> 45 | BQ1: =MAX($W1:BP1)+1 -> 46 | BR1: =MAX($W1:BQ1)+1 -> 47 | BS1: =MAX($W1:BR1)+1 -> 48 | BT1: =MAX($W1:BS1)+1 -> 49 | BU1: =MAX($W1:BT1)+1 -> 50 | BV1: =MAX($W1:BU1)+1 -> 51 | BW1: =MAX($W1:BV1)+1 -> 52 | BX1: =MAX($W1:BW1)+1 -> 53 | BY1: =MAX($W1:BX1)+1 -> 54 | BZ1: =MAX($W1:BY1)+1 -> 55 | CA1: =MAX($W1:BZ1)+1 -> 56 | CB1: =MAX($W1:CA1)+1 -> 57 | CC1: =MAX($W1:CB1)+1 -> 58 | CD1: =MAX($W1:CC1)+1 -> 59 | CE1: =MAX($W1:CD1)+1 -> 60 | CF1: =MAX($W1:CE1)+1 -> 61 | CG1: =MAX($W1:CF1)+1 -> 62 | CH1: =MAX($W1:CG1)+1 -> 63 | CI1: =MAX($W1:CH1)+1 -> 64 | CJ1: =MAX($W1:CI1)+1 -> 65 | CK1: =MAX($W1:CJ1)+1 -> 66 | CL1: =MAX($W1:CK1)+1 -> 67 | CM1: =MAX($W1:CL1)+1 -> 68 | CN1: =MAX($W1:CM1)+1 -> 69 | CO1: =MAX($W1:CN1)+1 -> 70 | CP1: =MAX($W1:CO1)+1 -> 71 | CQ1: =MAX($W1:CP1)+1 -> 72 | CR1: =MAX($W1:CQ1)+1 -> 73 | CS1: =MAX($W1:CR1)+1 -> 74 | CT1: =MAX($W1:CS1)+1 -> 75 | CU1: =MAX($W1:CT1)+1 -> 76 | CV1: =MAX($W1:CU1)+1 -> 77 | CW1: =MAX($W1:CV1)+1 -> 78 | CX1: =MAX($W1:CW1)+1 -> 79 | CY1: =MAX($W1:CX1)+1 -> 80 | CZ1: =MAX($W1:CY1)+1 -> 81 | DA1: =MAX($W1:CZ1)+1 -> 82 | DB1: =MAX($W1:DA1)+1 -> 83 | DC1: =MAX($W1:DB1)+1 -> 84 | DD1: =MAX($W1:DC1)+1 -> 85 | DE1: =MAX($W1:DD1)+1 -> 86 | DF1: =MAX($W1:DE1)+1 -> 87 | DG1: =MAX($W1:DF1)+1 -> 88 | DH1: =MAX($W1:DG1)+1 -> 89 | DI1: =MAX($W1:DH1)+1 -> 90 | DJ1: =MAX($W1:DI1)+1 -> 91 | DK1: =MAX($W1:DJ1)+1 -> 92 | DL1: =MAX($W1:DK1)+1 -> 93 | DM1: =MAX($W1:DL1)+1 -> 94 | DN1: =MAX($W1:DM1)+1 -> 95 | DO1: =MAX($W1:DN1)+1 -> 96 | DP1: =MAX($W1:DO1)+1 -> 97 | DQ1: =MAX($W1:DP1)+1 -> 98 | DR1: =MAX($W1:DQ1)+1 -> 99 | DS1: =MAX($W1:DR1)+1 -> 100 | DT1: =MAX($W1:DS1)+1 -> 101 | DU1: =MAX($W1:DT1)+1 -> 102 | DV1: =MAX($W1:DU1)+1 -> 103 | DW1: =MAX($W1:DV1)+1 -> 104 | DX1: =MAX($W1:DW1)+1 -> 105 | DY1: =MAX($W1:DX1)+1 -> 106 | DZ1: =MAX($W1:DY1)+1 -> 107 | EA1: =MAX($W1:DZ1)+1 -> 108 | EB1: =MAX($W1:EA1)+1 -> 109 | EC1: =MAX($W1:EB1)+1 -> 110 | ED1: =MAX($W1:EC1)+1 -> 111 | EE1: =MAX($W1:ED1)+1 -> 112 | EF1: =MAX($W1:EE1)+1 -> 113 | EG1: =MAX($W1:EF1)+1 -> 114 | EH1: =MAX($W1:EG1)+1 -> 115 | EI1: =MAX($W1:EH1)+1 -> 116 | EJ1: =MAX($W1:EI1)+1 -> 117 | EK1: =MAX($W1:EJ1)+1 -> 118 | EL1: =MAX($W1:EK1)+1 -> 119 | EM1: =MAX($W1:EL1)+1 -> 120 | EN1: =MAX($W1:EM1)+1 -> 121 | EO1: =MAX($W1:EN1)+1 -> 122 | EP1: =MAX($W1:EO1)+1 -> 123 | EQ1: =MAX($W1:EP1)+1 -> 124 | ER1: =MAX($W1:EQ1)+1 -> 125 | ES1: =MAX($W1:ER1)+1 -> 126 | ET1: =MAX($W1:ES1)+1 -> 127 | EU1: =MAX($W1:ET1)+1 -> 128 | EV1: =MAX($W1:EU1)+1 -> 129 | EW1: =MAX($W1:EV1)+1 -> 130 | EX1: =MAX($W1:EW1)+1 -> 131 | EY1: =MAX($W1:EX1)+1 -> 132 | EZ1: =MAX($W1:EY1)+1 -> 133 | FA1: =MAX($W1:EZ1)+1 -> 134 | FB1: =MAX($W1:FA1)+1 -> 135 | FC1: =MAX($W1:FB1)+1 -> 136 | FD1: =MAX($W1:FC1)+1 -> 137 | FE1: =MAX($W1:FD1)+1 -> 138 | FF1: =MAX($W1:FE1)+1 -> 139 | FG1: =MAX($W1:FF1)+1 -> 140 | FH1: =MAX($W1:FG1)+1 -> 141 | FI1: =MAX($W1:FH1)+1 -> 142 | FJ1: =MAX($W1:FI1)+1 -> 143 | FK1: =MAX($W1:FJ1)+1 -> 144 | FL1: =MAX($W1:FK1)+1 -> 145 | FM1: =MAX($W1:FL1)+1 -> 146 | FN1: =MAX($W1:FM1)+1 -> 147 | FO1: =MAX($W1:FN1)+1 -> 148 | FP1: =MAX($W1:FO1)+1 -> 149 | FQ1: =MAX($W1:FP1)+1 -> 150 | FR1: =MAX($W1:FQ1)+1 -> 151 | FS1: =MAX($W1:FR1)+1 -> 152 | FT1: =MAX($W1:FS1)+1 -> 153 | FU1: =MAX($W1:FT1)+1 -> 154 | FV1: =MAX($W1:FU1)+1 -> 155 | FW1: =MAX($W1:FV1)+1 -> 156 | FX1: =MAX($W1:FW1)+1 -> 157 | FY1: =MAX($W1:FX1)+1 -> 158 | FZ1: =MAX($W1:FY1)+1 -> 159 | GA1: =MAX($W1:FZ1)+1 -> 160 | GB1: =MAX($W1:GA1)+1 -> 161 | GC1: =MAX($W1:GB1)+1 -> 162 | GD1: =MAX($W1:GC1)+1 -> 163 | GE1: =MAX($W1:GD1)+1 -> 164 | GF1: =MAX($W1:GE1)+1 -> 165 | GG1: =MAX($W1:GF1)+1 -> 166 | GH1: =MAX($W1:GG1)+1 -> 167 | GI1: =MAX($W1:GH1)+1 -> 168 | GJ1: =MAX($W1:GI1)+1 -> 169 | GK1: =MAX($W1:GJ1)+1 -> 170 | GL1: =MAX($W1:GK1)+1 -> 171 | GM1: =MAX($W1:GL1)+1 -> 172 | GN1: =MAX($W1:GM1)+1 -> 173 | GO1: =MAX($W1:GN1)+1 -> 174 | GP1: =MAX($W1:GO1)+1 -> 175 | GQ1: =MAX($W1:GP1)+1 -> 176 | GR1: =MAX($W1:GQ1)+1 -> 177 | GS1: =MAX($W1:GR1)+1 -> 178 | GT1: =MAX($W1:GS1)+1 -> 179 | GU1: =MAX($W1:GT1)+1 -> 180 | GV1: =MAX($W1:GU1)+1 -> 181
P2: =COLUMN() -> 16 | X2: =IF(X$4="",0,COLUMN()) -> 24 | Y2: =IF(Y$4="",0,COLUMN()) -> 25 | Z2: 26 | AA2: 27 | AB2: 28 | AC2: 29 | AD2: 30 | AE2: 31 | AF2: 32 | AG2: 33 | AH2: 34 | AI2: 35 | AJ2: 36 | AK2: 37 | AL2: 38 | AM2: 39 | AN2: 40 | AO2: 41 | AP2: 42 | AQ2: 43 | AR2: 44 | AS2: 45 | AT2: 46 | AU2: 47 | AV2: 48 | AW2: 49 | AX2: 50 | AY2: 51 | AZ2: 52 | BA2: 53 | BB2: 54 | BC2: 55 | BD2: 56 | BE2: 57 | BF2: 58 | BG2: 59 | BH2: 60 | BI2: 61 | BJ2: 62 | BK2: 63 | BL2: 64 | BM2: 65 | BN2: 66 | BO2: 67 | BP2: 68 | BQ2: 69 | BR2: 70 | BS2: 71 | BT2: 72 | BU2: 73 | BV2: 74 | BW2: 75 | BX2: 76 | BY2: 77 | BZ2: 78 | CA2: 79 | CB2: 80 | CC2: 81 | CD2: 82 | CE2: 83 | CF2: 84 | CG2: 85 | CH2: 86 | CI2: 87 | CJ2: 88 | CK2: =IF(CK$4="",0,COLUMN()) -> 89 | CL2: 90 | CM2: 91 | CN2: 92 | CO2: 93 | CP2: 94 | CQ2: 95 | CR2: 96 | CS2: 97 | CT2: 98 | CU2: 99 | CV2: 100 | CW2: 101 | CX2: 102 | CY2: 103 | CZ2: 104 | DA2: 105 | DB2: 106 | DC2: 107 | DD2: 108 | DE2: 109 | DF2: 110 | DG2: 111 | DH2: 112 | DI2: 113 | DJ2: 114 | DK2: 115 | DL2: 116 | DM2: 117 | DN2: 118 | DO2: 119 | DP2: 120 | DQ2: 121 | DR2: 122 | DS2: 123 | DT2: 124 | DU2: 125 | DV2: 126 | DW2: 127 | DX2: 128 | DY2: 129 | DZ2: 130 | EA2: 131 | EB2: 132 | EC2: 133 | ED2: 134 | EE2: 135 | EF2: 136 | EG2: 137 | EH2: 138 | EI2: 139 | EJ2: 140 | EK2: 141 | EL2: 142 | EM2: 143 | EN2: 0 | EO2: 0 | EP2: 0 | EQ2: 0 | ER2: 0 | ES2: 0 | ET2: 0 | EU2: 0 | EV2: 0 | EW2: =IF(EW$4="",0,COLUMN()) -> 0 | EX2: 0 | EY2: 0 | EZ2: 0 | FA2: 0 | FB2: 0 | FC2: 0 | FD2: 0 | FE2: 0 | FF2: 0 | FG2: 0 | FH2: 0 | FI2: 0 | FJ2: 0 | FK2: 0 | FL2: 0 | FM2: 0 | FN2: 0 | FO2: 0 | FP2: 0 | FQ2: 0 | FR2: 0 | FS2: 0 | FT2: 0 | FU2: 0 | FV2: 0 | FW2: 0 | FX2: 0 | FY2: 0 | FZ2: 0 | GA2: 0 | GB2: 0 | GC2: 0 | GD2: 0 | GE2: 0 | GF2: 0 | GG2: 0 | GH2: 0 | GI2: 0 | GJ2: 0 | GK2: 0 | GL2: 0 | GM2: 0 | GN2: 0 | GO2: 0 | GP2: 0 | GQ2: 0 | GR2: 0 | GS2: 0 | GT2: 0 | GU2: 0 | GV2: 0
